Workbook

Sheet Report - ALL (DASHBOARD)
A1: Dashboard | B1: Select Parameter: | F1: Select Statistic: | I1: Select Seasonal Period: | L1: Notes: | W1: 68
L2: - year type sorting is done by calendar year | W2: 1
L3: - year type sorting is provided for 60-20-20 index as well as 40-30-30 index | W3: 12
W4: FALSE
B12: =CONCATENATE('Report Data'!$P$7," / seasonal statistics (",$W$1,"-",$W$2,"-",$W$3,"-",IF(NOT($W$4),1,2),"a):") -> Average X2 Distance / seasonal statistics (68-1-12-1a):
C16: ='Report Data'!P6 -> September
C17: ='Report Data'!P7 -> Average X2 Distance
C18: ='Report Data'!P9 -> (X2/X2-POSITION)
C19: ='Report Data'!P8 -> Averages
C20: ='Report Data'!P11 -> POSITION (KM) | F20: =CONCATENATE("Difference from ",'Report Data'!Q13) -> Difference from NAA 041122 2035CT | G20: ="Difference from Previous" -> Difference from Previous
C24: ='Report Data'!O14 -> NAA 041122 2035CT | E24: ='Report Data'!P14 -> 86.84321641
C25: ='Report Data'!O15 -> ALT3A 041122 2035CT | E25: ='Report Data'!P15 -> 86.12290592 | F25: ='Report Data'!Q15 -> -0.7203104903 | G25: ='Report Data'!R15 -> -0.7203104903
C26: ='Report Data'!O16 -> ALT3B 041122 2035CT | E26: ='Report Data'!P16 -> 86.11921794 | F26: ='Report Data'!Q16 -> -0.7239984652 | G26: ='Report Data'!R16 -> -0.003687974883
C27: =IF(LEFT('Report Data'!O17,5)="EXTRA","",'Report Data'!O17) -> ALT1A 062222 2035CT | E27: =IF(C27="","",'Report Data'!P17) -> 86.14161589 | F27: ='Report Data'!Q17 -> -0.7016005167 | G27: =IF(E27="","",'Report Data'!R17) -> 0.02239794847
C28: =IF(LEFT('Report Data'!O18,5)="EXTRA","",'Report Data'!O18) -> ALT1A 062222 noShaEXCH 2035CT | E28: =IF(C28="","",'Report Data'!P18) -> 86.17191947 | F28: ='Report Data'!Q18 -> -0.6712969338 | G28: =IF(E28="","",'Report Data'!R18) -> 0.03030358291
B59: =CONCATENATE('Report Data'!$P$7," / monthly statistics (",$W$1,"-",$W$2,"-",$W$3,"-",IF(NOT($W$4),1,2),"b):") -> Average X2 Distance / monthly statistics (68-1-12-1b):
B87: =CONCATENATE('Report Data'!$P$7," / time series (",$W$1,"-",$W$2,"-",$W$3,"-",IF(NOT($W$4),1,2),"c):") -> Average X2 Distance / time series (68-1-12-1c):

Sheet Chart - Prob Exc

Sheet Chart - Pattern

Sheet Report Data
A2: Information, Tables and Calculations for Reports
A4: Table of Selected Values for Monthly Chart: | O4: Trend Evaluation:
A6: Title: | B6: ='Compile Data'!$B$5 -> Average X2 Distance | O6: Title: | P6: =INDEX(Other!$B$9:$B$31,'Report - ALL (DASHBOARD)'!$W$3) -> September
B7: =INDEX(Other!$C$9:$C$35,'Report - ALL (DASHBOARD)'!$W$2) -> Averages | P7: ='Compile Data'!$B$5 -> Average X2 Distance
B8: =CONCATENATE("(",'Compile Data'!$B$6,"/",'Compile Data'!$B$7,")") -> (X2/X2-POSITION) | P8: =CONCATENATE(INDEX(Other!$C$9:$C$35,'Report - ALL (DASHBOARD)'!$W$2)," ",IF('Report - ALL (DASHBOARD)'!$W$2>4,IF(AND('Compile Data'!$B$10="TAF",'Compile Data'!$B$8="PER-AVER"),"Totals","Averages"),"")) -> Averages
P9: =CONCATENATE("(",'Compile Data'!$B$6,"/",'Compile Data'!$B$7,")") -> (X2/X2-POSITION)
A11: Y-axis: | B11: =IF('Compile Data'!$B$10="CFS","Flow (CFS)",IF('Compile Data'!$B$10="TAF","Volume (TAF)",IF('Compile Data'!$B$10="KM","POSITION (KM)",IF('Compile Data'!$B$10="UMHOS/CM","EC (UMHOS/CM)",IF('Compile Data'!$B$10="mg/L","Chloride (mg/L)",""))))) -> POSITION (KM) | P11: =IF('Compile Data'!$B$10="CFS","Flow (CFS)",IF('Compile Data'!$B$10="TAF","Volume (TAF)",IF('Compile Data'!$B$10="KM","POSITION (KM)",IF('Compile Data'!$B$10="UMHOS/CM","EC (UMHOS/CM)",IF('Compile Data'!$B$10="mg/L","Chloride (mg/L)",""))))) -> POSITION (KM)
Q12: Diff from | R12: Diff from
B13: OCT | C13: NOV | D13: DEC | E13: JAN | F13: FEB | G13: MAR | H13: APR | I13: MAY | J13: JUN | K13: JUL | L13: AUG | M13: SEP | P13: Value | Q13: =$O$14 -> NAA 041122 2035CT | R13: Previous
A14: ='Compile Data'!$B$1 -> NAA 041122 2035CT | B14: =INDEX('Compile Data'!K$95:K$120,'Report - ALL (DASHBOARD)'!$W$2) -> 86.53710026 | C14: =INDEX('Compile Data'!L$95:L$120,'Report - ALL (DASHBOARD)'!$W$2) -> 85.59021754 | D14: =INDEX('Compile Data'!M$95:M$120,'Report - ALL (DASHBOARD)'!$W$2) -> 77.61105026 | E14: =INDEX('Compile Data'!N$95:N$120,'Report - ALL (DASHBOARD)'!$W$2) -> 68.58794259 | F14: =INDEX('Compile Data'!O$95:O$120,'Report - ALL (DASHBOARD)'!$W$2) -> 62.27203644 | G14: =INDEX('Compile Data'!P$95:P$120,'Report - ALL (DASHBOARD)'!$W$2) -> 62.02061393 | H14: =INDEX('Compile Data'!Q$95:Q$120,'Report - ALL (DASHBOARD)'!$W$2) -> 65.00943626 | I14: =INDEX('Compile Data'!R$95:R$120,'Report - ALL (DASHBOARD)'!$W$2) -> 71.21103129 | J14: =INDEX('Compile Data'!S$95:S$120,'Report - ALL (DASHBOARD)'!$W$2) -> 78.62116362 | K14: =INDEX('Compile Data'!T$95:T$120,'Report - ALL (DASHBOARD)'!$W$2) -> 82.25783102 | L14: =INDEX('Compile Data'!U$95:U$120,'Report - ALL (DASHBOARD)'!$W$2) -> 86.58338277 | M14: =INDEX('Compile Data'!V$95:V$120,'Report - ALL (DASHBOARD)'!$W$2) -> 86.84321641 | O14: ='Compile Data'!$B$1 -> NAA 041122 2035CT | P14: =INDEX('Compile Data'!$K$95:$AF$120,'Report - ALL (DASHBOARD)'!$W$2,'Report - ALL (DASHBOARD)'!$W$3) -> 86.84321641
A15: ='Compile Data'!$C$1 -> ALT3A 041122 2035CT | B15: =INDEX('Compile Data'!AI$95:AI$120,'Report - ALL (DASHBOARD)'!$W$2) -> 85.97924926 | C15: =INDEX('Compile Data'!AJ$95:AJ$120,'Report - ALL (DASHBOARD)'!$W$2) -> 85.44526803 | D15: =INDEX('Compile Data'!AK$95:AK$120,'Report - ALL (DASHBOARD)'!$W$2) -> 77.73258842 | E15: =INDEX('Compile Data'!AL$95:AL$120,'Report - ALL (DASHBOARD)'!$W$2) -> 68.80590769 | F15: =INDEX('Compile Data'!AM$95:AM$120,'Report - ALL (DASHBOARD)'!$W$2) -> 62.46438827 | G15: =INDEX('Compile Data'!AN$95:AN$120,'Report - ALL (DASHBOARD)'!$W$2) -> 62.16660839 | H15: =INDEX('Compile Data'!AO$95:AO$120,'Report - ALL (DASHBOARD)'!$W$2) -> 65.07347181 | I15: =INDEX('Compile Data'!AP$95:AP$120,'Report - ALL (DASHBOARD)'!$W$2) -> 71.12155203 | J15: =INDEX('Compile Data'!AQ$95:AQ$120,'Report - ALL (DASHBOARD)'!$W$2) -> 78.61915765 | K15: =INDEX('Compile Data'!AR$95:AR$120,'Report - ALL (DASHBOARD)'!$W$2) -> 82.11868677 | L15: =INDEX('Compile Data'!AS$95:AS$120,'Report - ALL (DASHBOARD)'!$W$2) -> 86.14557741 | M15: =INDEX('Compile Data'!AT$95:AT$120,'Report - ALL (DASHBOARD)'!$W$2) -> 86.12290592 | O15: ='Compile Data'!$C$1 -> ALT3A 041122 2035CT | P15: =INDEX('Compile Data'!$AI$95:$BD$120,'Report - ALL (DASHBOARD)'!$W$2,'Report - ALL (DASHBOARD)'!$W$3) -> 86.12290592 | Q15: =$P15-$P$14 -> -0.7203104903 | R15: =$P15-$P$14 -> -0.7203104903
A16: ='Compile Data'!$D$1 -> ALT3B 041122 2035CT | B16: =INDEX('Compile Data'!BG$95:BG$120,'Report - ALL (DASHBOARD)'!$W$2) -> 85.84867505 | C16: =INDEX('Compile Data'!BH$95:BH$120,'Report - ALL (DASHBOARD)'!$W$2) -> 85.44214146 | D16: =INDEX('Compile Data'!BI$95:BI$120,'Report - ALL (DASHBOARD)'!$W$2) -> 77.74946906 | E16: =INDEX('Compile Data'!BJ$95:BJ$120,'Report - ALL (DASHBOARD)'!$W$2) -> 68.74764577 | F16: =INDEX('Compile Data'!BK$95:BK$120,'Report - ALL (DASHBOARD)'!$W$2) -> 62.45222296 | G16: =INDEX('Compile Data'!BL$95:BL$120,'Report - ALL (DASHBOARD)'!$W$2) -> 62.16300625 | H16: =INDEX('Compile Data'!BM$95:BM$120,'Report - ALL (DASHBOARD)'!$W$2) -> 65.08462427 | I16: =INDEX('Compile Data'!BN$95:BN$120,'Report - ALL (DASHBOARD)'!$W$2) -> 71.13687194 | J16: =INDEX('Compile Data'!BO$95:BO$120,'Report - ALL (DASHBOARD)'!$W$2) -> 78.62350752 | K16: =INDEX('Compile Data'!BP$95:BP$120,'Report - ALL (DASHBOARD)'!$W$2) -> 82.09658767 | L16: =INDEX('Compile Data'!BQ$95:BQ$120,'Report - ALL (DASHBOARD)'!$W$2) -> 86.11436518 | M16: =INDEX('Compile Data'!BR$95:BR$120,'Report - ALL (DASHBOARD)'!$W$2) -> 86.11921794 | O16: ='Compile Data'!$D$1 -> ALT3B 041122 2035CT | P16: =INDEX('Compile Data'!$BG$95:$CB$120,'Report - ALL (DASHBOARD)'!$W$2,'Report - ALL (DASHBOARD)'!$W$3) -> 86.11921794 | Q16: =$P16-$P$14 -> -0.7239984652 | R16: =$P16-$P$15 -> -0.003687974883
A17: ='Compile Data'!$E$1 -> ALT1A 062222 2035CT | B17: =IFERROR(INDEX('Compile Data'!CE$95:CE$120,'Report - ALL (DASHBOARD)'!$W$2),"") -> 85.93356044 | C17: =IFERROR(INDEX('Compile Data'!CF$95:CF$120,'Report - ALL (DASHBOARD)'!$W$2),"") -> 85.45773441 | D17: =IFERROR(INDEX('Compile Data'!CG$95:CG$120,'Report - ALL (DASHBOARD)'!$W$2),"") -> 77.92293223 | E17: =IFERROR(INDEX('Compile Data'!CH$95:CH$120,'Report - ALL (DASHBOARD)'!$W$2),"") -> 68.798553 | F17: =IFERROR(INDEX('Compile Data'!CI$95:CI$120,'Report - ALL (DASHBOARD)'!$W$2),"") -> 62.47390347 | G17: =IFERROR(INDEX('Compile Data'!CJ$95:CJ$120,'Report - ALL (DASHBOARD)'!$W$2),"") -> 62.17670966 | H17: =IFERROR(INDEX('Compile Data'!CK$95:CK$120,'Report - ALL (DASHBOARD)'!$W$2),"") -> 65.04939298 | I17: =IFERROR(INDEX('Compile Data'!CL$95:CL$120,'Report - ALL (DASHBOARD)'!$W$2),"") -> 71.20392562 | J17: =IFERROR(INDEX('Compile Data'!CM$95:CM$120,'Report - ALL (DASHBOARD)'!$W$2),"") -> 78.60620159 | K17: =IFERROR(INDEX('Compile Data'!CN$95:CN$120,'Report - ALL (DASHBOARD)'!$W$2),"") -> 82.13153299 | L17: =IFERROR(INDEX('Compile Data'!CO$95:CO$120,'Report - ALL (DASHBOARD)'!$W$2),"") -> 86.10817384 | M17: =IFERROR(INDEX('Compile Data'!CP$95:CP$120,'Report - ALL (DASHBOARD)'!$W$2),"") -> 86.14161589 | O17: ='Compile Data'!$E$1 -> ALT1A 062222 2035CT | P17: =INDEX('Compile Data'!$CE$95:$CZ$120,'Report - ALL (DASHBOARD)'!$W$2,'Report - ALL (DASHBOARD)'!$W$3) -> 86.14161589 | Q17: -0.7016005167 | R17: =$P17-$P$16 -> 0.02239794847
A18: ='Compile Data'!$F$1 -> ALT1A 062222 noShaEXCH 2035CT | B18: =IFERROR(INDEX('Compile Data'!DC$95:DC$120,'Report - ALL (DASHBOARD)'!$W$2),"") -> 85.86766666 | C18: =IFERROR(INDEX('Compile Data'!DD$95:DD$120,'Report - ALL (DASHBOARD)'!$W$2),"") -> 85.46401587 | D18: =IFERROR(INDEX('Compile Data'!DE$95:DE$120,'Report - ALL (DASHBOARD)'!$W$2),"") -> 78.01015244 | E18: =IFERROR(INDEX('Compile Data'!DF$95:DF$120,'Report - ALL (DASHBOARD)'!$W$2),"") -> 68.80825289 | F18: =IFERROR(INDEX('Compile Data'!DG$95:DG$120,'Report - ALL (DASHBOARD)'!$W$2),"") -> 62.47573801 | G18: =IFERROR(INDEX('Compile Data'!DH$95:DH$120,'Report - ALL (DASHBOARD)'!$W$2),"") -> 62.17407436 | H18: =IFERROR(INDEX('Compile Data'!DI$95:DI$120,'Report - ALL (DASHBOARD)'!$W$2),"") -> 65.0462445 | I18: =IFERROR(INDEX('Compile Data'!DJ$95:DJ$120,'Report - ALL (DASHBOARD)'!$W$2),"") -> 71.20230023 | J18: =IFERROR(INDEX('Compile Data'!DK$95:DK$120,'Report - ALL (DASHBOARD)'!$W$2),"") -> 78.60631347 | K18: =IFERROR(INDEX('Compile Data'!DL$95:DL$120,'Report - ALL (DASHBOARD)'!$W$2),"") -> 82.12311647 | L18: =IFERROR(INDEX('Compile Data'!DM$95:DM$120,'Report - ALL (DASHBOARD)'!$W$2),"") -> 86.11328097 | M18: =IFERROR(INDEX('Compile Data'!DN$95:DN$120,'Report - ALL (DASHBOARD)'!$W$2),"") -> 86.17191947 | O18: ='Compile Data'!$F$1 -> ALT1A 062222 noShaEXCH 2035CT | P18: =INDEX('Compile Data'!$DC$95:$DX$120,'Report - ALL (DASHBOARD)'!$W$2,'Report - ALL (DASHBOARD)'!$W$3) -> 86.17191947 | Q18: -0.6712969338 | R18: =$P18-$P$17 -> 0.03030358291
A22: Annuals Plot: | O22: Exceedence Plot:
A24: Title: | B24: =INDEX(Other!$B$9:$B$31,'Report - ALL (DASHBOARD)'!$W$3) -> September | O24: Title: | P24: =INDEX(Other!$B$9:$B$31,'Report - ALL (DASHBOARD)'!$W$3) -> September
B25: ='Compile Data'!$B$5 -> Average X2 Distance | P25: ='Compile Data'!$B$5 -> Average X2 Distance
B26: =IF('Compile Data'!$B$10="CFS","Flow (CFS)",IF('Compile Data'!$B$10="TAF","Volume (TAF)",IF('Compile Data'!$B$10="KM","POSITION (KM)",IF('Compile Data'!$B$10="UMHOS/CM","EC (UMHOS/CM)",IF('Compile Data'!$B$10="mg/L","Chloride (mg/L)",""))))) -> POSITION (KM) | P26: =IF('Compile Data'!$B$10="CFS","Flow (CFS)",IF('Compile Data'!$B$10="TAF","Volume (TAF)",IF('Compile Data'!$B$10="KM","POSITION (KM)",IF('Compile Data'!$B$10="UMHOS/CM","EC (UMHOS/CM)",IF('Compile Data'!$B$10="mg/L","Chloride (mg/L)",""))))) -> POSITION (KM)
B28: ='Compile Data'!$B$1 -> NAA 041122 2035CT | C28: ='Compile Data'!$C$1 -> ALT3A 041122 2035CT | D28: ='Compile Data'!$D$1 -> ALT3B 041122 2035CT | E28: ='Compile Data'!$E$1 -> ALT1A 062222 2035CT | F28: ='Compile Data'!$F$1 -> ALT1A 062222 noShaEXCH 2035CT | Q28: ='Compile Data'!$B$1 -> NAA 041122 2035CT | R28: ='Compile Data'!$C$1 -> ALT3A 041122 2035CT | S28: ='Compile Data'!$D$1 -> ALT3B 041122 2035CT | T28: ='Compile Data'!$E$1 -> ALT1A 062222 2035CT | U28: ='Compile Data'!$F$1 -> ALT1A 062222 noShaEXCH 2035CT
A29: 1922 | B29: =INDEX('Compile Data'!$K$12:$AF$93,$A29-1921,'Report - ALL (DASHBOARD)'!$W$3) -> 81.5848999 | C29: =INDEX('Compile Data'!$AI$12:$BD$93,$A29-1921,'Report - ALL (DASHBOARD)'!$W$3) -> 79.39510345 | D29: =INDEX('Compile Data'!$BG$12:$CB$93,$A29-1921,'Report - ALL (DASHBOARD)'!$W$3) -> 79.39176941 | E29: =INDEX('Compile Data'!$CE$12:$CZ$93,$A29-1921,'Report - ALL (DASHBOARD)'!$W$3) -> 81.14016724 | F29: =INDEX('Compile Data'!$DC$12:$DX$93,$A29-1921,'Report - ALL (DASHBOARD)'!$W$3) -> 81.14016724 | O29: 1 | P29: =(O29-1)/81 -> 0 | Q29: =INDEX('Compile Data'!$K$123:$AF$204,$O29,'Report - ALL (DASHBOARD)'!$W$3) -> 94.00570679 | R29: =INDEX('Compile Data'!$AI$123:$BD$204,$O29,'Report - ALL (DASHBOARD)'!$W$3) -> 93.68120575 | S29: =INDEX('Compile Data'!$BG$123:$CB$204,$O29,'Report - ALL (DASHBOARD)'!$W$3) -> 93.67951965 | T29: =INDEX('Compile Data'!$CE$123:$CZ$204,$O29,'Report - ALL (DASHBOARD)'!$W$3) -> 93.66718292 | U29: =INDEX('Compile Data'!$DC$123:$DX$204,$O29,'Report - ALL (DASHBOARD)'!$W$3) -> 93.69112396
A30: =A29+1 -> 1923 | B30: =INDEX('Compile Data'!$K$12:$AF$93,$A30-1921,'Report - ALL (DASHBOARD)'!$W$3) -> 89.34145355 | C30: =INDEX('Compile Data'!$AI$12:$BD$93,$A30-1921,'Report - ALL (DASHBOARD)'!$W$3) -> 89.15116882 | D30: =INDEX('Compile Data'!$BG$12:$CB$93,$A30-1921,'Report - ALL (DASHBOARD)'!$W$3) -> 89.38591003 | E30: =INDEX('Compile Data'!$CE$12:$CZ$93,$A30-1921,'Report - ALL (DASHBOARD)'!$W$3) -> 89.33154297 | F30: =INDEX('Compile Data'!$DC$12:$DX$93,$A30-1921,'Report - ALL (DASHBOARD)'!$W$3) -> 89.33154297 | O30: 2 | P30: 0.01234567901 | Q30: =INDEX('Compile Data'!$K$123:$AF$204,$O30,'Report - ALL (DASHBOARD)'!$W$3) -> 93.84692383 | R30: =INDEX('Compile Data'!$AI$123:$BD$204,$O30,'Report - ALL (DASHBOARD)'!$W$3) -> 93.60287476 | S30: =INDEX('Compile Data'!$BG$123:$CB$204,$O30,'Report - ALL (DASHBOARD)'!$W$3) -> 93.595047 | T30: =INDEX('Compile Data'!$CE$123:$CZ$204,$O30,'Report - ALL (DASHBOARD)'!$W$3) -> 93.61917877 | U30: =INDEX('Compile Data'!$DC$123:$DX$204,$O30,'Report - ALL (DASHBOARD)'!$W$3) -> 93.66335297
A31: =A30+1 -> 1924 | B31: =INDEX('Compile Data'!$K$12:$AF$93,$A31-1921,'Report - ALL (DASHBOARD)'!$W$3) -> 93.45515442 | C31: =INDEX('Compile Data'!$AI$12:$BD$93,$A31-1921,'Report - ALL (DASHBOARD)'!$W$3) -> 91.57067108 | D31: =INDEX('Compile Data'!$BG$12:$CB$93,$A31-1921,'Report - ALL (DASHBOARD)'!$W$3) -> 91.57710266 | E31: =INDEX('Compile Data'!$CE$12:$CZ$93,$A31-1921,'Report - ALL (DASHBOARD)'!$W$3) -> 91.6618576 | F31: =INDEX('Compile Data'!$DC$12:$DX$93,$A31-1921,'Report - ALL (DASHBOARD)'!$W$3) -> 92.06061554 | O31: 3 | P31: 0.02469135802 | Q31: =INDEX('Compile Data'!$K$123:$AF$204,$O31,'Report - ALL (DASHBOARD)'!$W$3) -> 93.71229553 | R31: =INDEX('Compile Data'!$AI$123:$BD$204,$O31,'Report - ALL (DASHBOARD)'!$W$3) -> 93.5087738 | S31: =INDEX('Compile Data'!$BG$123:$CB$204,$O31,'Report - ALL (DASHBOARD)'!$W$3) -> 93.50832367 | T31: =INDEX('Compile Data'!$CE$123:$CZ$204,$O31,'Report - ALL (DASHBOARD)'!$W$3) -> 93.49971008 | U31: =INDEX('Compile Data'!$DC$123:$DX$204,$O31,'Report - ALL (DASHBOARD)'!$W$3) -> 93.64182281
A32: 1925 | B32: =INDEX('Compile Data'!$K$12:$AF$93,$A32-1921,'Report - ALL (DASHBOARD)'!$W$3) -> 92.24819946 | C32: =INDEX('Compile Data'!$AI$12:$BD$93,$A32-1921,'Report - ALL (DASHBOARD)'!$W$3) -> 92.27438354 | D32: =INDEX('Compile Data'!$BG$12:$CB$93,$A32-1921,'Report - ALL (DASHBOARD)'!$W$3) -> 92.05153656 | E32: =INDEX('Compile Data'!$CE$12:$CZ$93,$A32-1921,'Report - ALL (DASHBOARD)'!$W$3) -> 91.53705597 | F32: =INDEX('Compile Data'!$DC$12:$DX$93,$A32-1921,'Report - ALL (DASHBOARD)'!$W$3) -> 91.54278564 | O32: 4 | P32: 0.03703703704 | Q32: =INDEX('Compile Data'!$K$123:$AF$204,$O32,'Report - ALL (DASHBOARD)'!$W$3) -> 93.69350433 | R32: =INDEX('Compile Data'!$AI$123:$BD$204,$O32,'Report - ALL (DASHBOARD)'!$W$3) -> 93.38175201 | S32: =INDEX('Compile Data'!$BG$123:$CB$204,$O32,'Report - ALL (DASHBOARD)'!$W$3) -> 93.38519287 | T32: =INDEX('Compile Data'!$CE$123:$CZ$204,$O32,'Report - ALL (DASHBOARD)'!$W$3) -> 93.37593842 | U32: =INDEX('Compile Data'!$DC$123:$DX$204,$O32,'Report - ALL (DASHBOARD)'!$W$3) -> 93.49756622
A33: 1926 | B33: =INDEX('Compile Data'!$K$12:$AF$93,$A33-1921,'Report - ALL (DASHBOARD)'!$W$3) -> 92.34918976 | C33: =INDEX('Compile Data'!$AI$12:$BD$93,$A33-1921,'Report - ALL (DASHBOARD)'!$W$3) -> 91.81839752 | D33: =INDEX('Compile Data'!$BG$12:$CB$93,$A33-1921,'Report - ALL (DASHBOARD)'!$W$3) -> 91.75814819 | E33: =INDEX('Compile Data'!$CE$12:$CZ$93,$A33-1921,'Report - ALL (DASHBOARD)'!$W$3) -> 91.68467712 | F33: =INDEX('Compile Data'!$DC$12:$DX$93,$A33-1921,'Report - ALL (DASHBOARD)'!$W$3) -> 91.64247131 | O33: 5 | P33: 0.04938271605 | Q33: =INDEX('Compile Data'!$K$123:$AF$204,$O33,'Report - ALL (DASHBOARD)'!$W$3) -> 93.66648865 | R33: =INDEX('Compile Data'!$AI$123:$BD$204,$O33,'Report - ALL (DASHBOARD)'!$W$3) -> 93.01309967 | S33: =INDEX('Compile Data'!$BG$123:$CB$204,$O33,'Report - ALL (DASHBOARD)'!$W$3) -> 92.97640228 | T33: =INDEX('Compile Data'!$CE$123:$CZ$204,$O33,'Report - ALL (DASHBOARD)'!$W$3) -> 93.33425903 | U33: =INDEX('Compile Data'!$DC$123:$DX$204,$O33,'Report - ALL (DASHBOARD)'!$W$3) -> 93.38210297
A34: 1927 | B34: =INDEX('Compile Data'!$K$12:$AF$93,$A34-1921,'Report - ALL (DASHBOARD)'!$W$3) -> 80.76161194 | C34: =INDEX('Compile Data'!$AI$12:$BD$93,$A34-1921,'Report - ALL (DASHBOARD)'!$W$3) -> 80.27758789 | D34: =INDEX('Compile Data'!$BG$12:$CB$93,$A34-1921,'Report - ALL (DASHBOARD)'!$W$3) -> 80.27720642 | E34: =INDEX('Compile Data'!$CE$12:$CZ$93,$A34-1921,'Report - ALL (DASHBOARD)'!$W$3) -> 80.2758255 | F34: =INDEX('Compile Data'!$DC$12:$DX$93,$A34-1921,'Report - ALL (DASHBOARD)'!$W$3) -> 80.27577209 | O34: 6 | P34: 0.06172839506 | Q34: =INDEX('Compile Data'!$K$123:$AF$204,$O34,'Report - ALL (DASHBOARD)'!$W$3) -> 93.62600708 | R34: =INDEX('Compile Data'!$AI$123:$BD$204,$O34,'Report - ALL (DASHBOARD)'!$W$3) -> 92.88539124 | S34: =INDEX('Compile Data'!$BG$123:$CB$204,$O34,'Report - ALL (DASHBOARD)'!$W$3) -> 92.89608002 | T34: =INDEX('Compile Data'!$CE$123:$CZ$204,$O34,'Report - ALL (DASHBOARD)'!$W$3) -> 92.92598724 | U34: =INDEX('Compile Data'!$DC$123:$DX$204,$O34,'Report - ALL (DASHBOARD)'!$W$3) -> 92.93887329
A35: 1928 | B35: =INDEX('Compile Data'!$K$12:$AF$93,$A35-1921,'Report - ALL (DASHBOARD)'!$W$3) -> 80.38069916 | C35: =INDEX('Compile Data'!$AI$12:$BD$93,$A35-1921,'Report - ALL (DASHBOARD)'!$W$3) -> 80.07839966 | D35: =INDEX('Compile Data'!$BG$12:$CB$93,$A35-1921,'Report - ALL (DASHBOARD)'!$W$3) -> 80.35591125 | E35: =INDEX('Compile Data'!$CE$12:$CZ$93,$A35-1921,'Report - ALL (DASHBOARD)'!$W$3) -> 80.30885315 | F35: =INDEX('Compile Data'!$DC$12:$DX$93,$A35-1921,'Report - ALL (DASHBOARD)'!$W$3) -> 80.30909729 | O35: 7 | P35: 0.07407407407 | Q35: =INDEX('Compile Data'!$K$123:$AF$204,$O35,'Report - ALL (DASHBOARD)'!$W$3) -> 93.52148438 | R35: =INDEX('Compile Data'!$AI$123:$BD$204,$O35,'Report - ALL (DASHBOARD)'!$W$3) -> 92.70346069 | S35: =INDEX('Compile Data'!$BG$123:$CB$204,$O35,'Report - ALL (DASHBOARD)'!$W$3) -> 92.60511017 | T35: =INDEX('Compile Data'!$CE$123:$CZ$204,$O35,'Report - ALL (DASHBOARD)'!$W$3) -> 92.66943359 | U35: =INDEX('Compile Data'!$DC$123:$DX$204,$O35,'Report - ALL (DASHBOARD)'!$W$3) -> 92.71491241
A36: 1929 | B36: =INDEX('Compile Data'!$K$12:$AF$93,$A36-1921,'Report - ALL (DASHBOARD)'!$W$3) -> 93.84692383 | C36: =INDEX('Compile Data'!$AI$12:$BD$93,$A36-1921,'Report - ALL (DASHBOARD)'!$W$3) -> 92.32707214 | D36: =INDEX('Compile Data'!$BG$12:$CB$93,$A36-1921,'Report - ALL (DASHBOARD)'!$W$3) -> 92.20794678 | E36: =INDEX('Compile Data'!$CE$12:$CZ$93,$A36-1921,'Report - ALL (DASHBOARD)'!$W$3) -> 91.75749207 | F36: =INDEX('Compile Data'!$DC$12:$DX$93,$A36-1921,'Report - ALL (DASHBOARD)'!$W$3) -> 92.63502502 | O36: 8 | P36: 0.08641975309 | Q36: =INDEX('Compile Data'!$K$123:$AF$204,$O36,'Report - ALL (DASHBOARD)'!$W$3) -> 93.50547028 | R36: =INDEX('Compile Data'!$AI$123:$BD$204,$O36,'Report - ALL (DASHBOARD)'!$W$3) -> 92.62879944 | S36: =INDEX('Compile Data'!$BG$123:$CB$204,$O36,'Report - ALL (DASHBOARD)'!$W$3) -> 92.47515869 | T36: =INDEX('Compile Data'!$CE$123:$CZ$204,$O36,'Report - ALL (DASHBOARD)'!$W$3) -> 92.38883209 | U36: =INDEX('Compile Data'!$DC$123:$DX$204,$O36,'Report - ALL (DASHBOARD)'!$W$3) -> 92.66936493
A37: 1930 | B37: =INDEX('Compile Data'!$K$12:$AF$93,$A37-1921,'Report - ALL (DASHBOARD)'!$W$3) -> 92.57168579 | C37: =INDEX('Compile Data'!$AI$12:$BD$93,$A37-1921,'Report - ALL (DASHBOARD)'!$W$3) -> 92.54185486 | D37: =INDEX('Compile Data'!$BG$12:$CB$93,$A37-1921,'Report - ALL (DASHBOARD)'!$W$3) -> 92.08296204 | E37: =INDEX('Compile Data'!$CE$12:$CZ$93,$A37-1921,'Report - ALL (DASHBOARD)'!$W$3) -> 91.45445251 | F37: =INDEX('Compile Data'!$DC$12:$DX$93,$A37-1921,'Report - ALL (DASHBOARD)'!$W$3) -> 91.49945831 | O37: 9 | P37: 0.0987654321 | Q37: =INDEX('Compile Data'!$K$123:$AF$204,$O37,'Report - ALL (DASHBOARD)'!$W$3) -> 93.45515442 | R37: =INDEX('Compile Data'!$AI$123:$BD$204,$O37,'Report - ALL (DASHBOARD)'!$W$3) -> 92.59296417 | S37: =INDEX('Compile Data'!$BG$123:$CB$204,$O37,'Report - ALL (DASHBOARD)'!$W$3) -> 92.27726746 | T37: =INDEX('Compile Data'!$CE$123:$CZ$204,$O37,'Report - ALL (DASHBOARD)'!$W$3) -> 92.19034576 | U37: =INDEX('Compile Data'!$DC$123:$DX$204,$O37,'Report - ALL (DASHBOARD)'!$W$3) -> 92.63502502
A38: 1931 | B38: =INDEX('Compile Data'!$K$12:$AF$93,$A38-1921,'Report - ALL (DASHBOARD)'!$W$3) -> 93.36582947 | C38: =INDEX('Compile Data'!$AI$12:$BD$93,$A38-1921,'Report - ALL (DASHBOARD)'!$W$3) -> 93.38175201 | D38: =INDEX('Compile Data'!$BG$12:$CB$93,$A38-1921,'Report - ALL (DASHBOARD)'!$W$3) -> 93.38519287 | E38: =INDEX('Compile Data'!$CE$12:$CZ$93,$A38-1921,'Report - ALL (DASHBOARD)'!$W$3) -> 93.37593842 | F38: =INDEX('Compile Data'!$DC$12:$DX$93,$A38-1921,'Report - ALL (DASHBOARD)'!$W$3) -> 93.38210297 | O38: 10 | P38: 0.1111111111 | Q38: =INDEX('Compile Data'!$K$123:$AF$204,$O38,'Report - ALL (DASHBOARD)'!$W$3) -> 93.36582947 | R38: =INDEX('Compile Data'!$AI$123:$BD$204,$O38,'Report - ALL (DASHBOARD)'!$W$3) -> 92.54185486 | S38: =INDEX('Compile Data'!$BG$123:$CB$204,$O38,'Report - ALL (DASHBOARD)'!$W$3) -> 92.20794678 | T38: =INDEX('Compile Data'!$CE$123:$CZ$204,$O38,'Report - ALL (DASHBOARD)'!$W$3) -> 92.03198242 | U38: =INDEX('Compile Data'!$DC$123:$DX$204,$O38,'Report - ALL (DASHBOARD)'!$W$3) -> 92.2115097
A39: 1932 | B39: =INDEX('Compile Data'!$K$12:$AF$93,$A39-1921,'Report - ALL (DASHBOARD)'!$W$3) -> 92.04975891 | C39: =INDEX('Compile Data'!$AI$12:$BD$93,$A39-1921,'Report - ALL (DASHBOARD)'!$W$3) -> 92.02381134 | D39: =INDEX('Compile Data'!$BG$12:$CB$93,$A39-1921,'Report - ALL (DASHBOARD)'!$W$3) -> 92.01282501 | E39: =INDEX('Compile Data'!$CE$12:$CZ$93,$A39-1921,'Report - ALL (DASHBOARD)'!$W$3) -> 92.03198242 | F39: =INDEX('Compile Data'!$DC$12:$DX$93,$A39-1921,'Report - ALL (DASHBOARD)'!$W$3) -> 92.07028198 | O39: 11 | P39: 0.1234567901 | Q39: =INDEX('Compile Data'!$K$123:$AF$204,$O39,'Report - ALL (DASHBOARD)'!$W$3) -> 92.88584137 | R39: =INDEX('Compile Data'!$AI$123:$BD$204,$O39,'Report - ALL (DASHBOARD)'!$W$3) -> 92.32707214 | S39: =INDEX('Compile Data'!$BG$123:$CB$204,$O39,'Report - ALL (DASHBOARD)'!$W$3) -> 92.18839264 | T39: =INDEX('Compile Data'!$CE$123:$CZ$204,$O39,'Report - ALL (DASHBOARD)'!$W$3) -> 92.00183868 | U39: =INDEX('Compile Data'!$DC$123:$DX$204,$O39,'Report - ALL (DASHBOARD)'!$W$3) -> 92.19032288
A40: 1933 | B40: =INDEX('Compile Data'!$K$12:$AF$93,$A40-1921,'Report - ALL (DASHBOARD)'!$W$3) -> 92.88584137 | C40: =INDEX('Compile Data'!$AI$12:$BD$93,$A40-1921,'Report - ALL (DASHBOARD)'!$W$3) -> 92.88539124 | D40: =INDEX('Compile Data'!$BG$12:$CB$93,$A40-1921,'Report - ALL (DASHBOARD)'!$W$3) -> 92.89608002 | E40: =INDEX('Compile Data'!$CE$12:$CZ$93,$A40-1921,'Report - ALL (DASHBOARD)'!$W$3) -> 92.92598724 | F40: =INDEX('Compile Data'!$DC$12:$DX$93,$A40-1921,'Report - ALL (DASHBOARD)'!$W$3) -> 92.93887329 | O40: 12 | P40: 0.1358024691 | Q40: =INDEX('Compile Data'!$K$123:$AF$204,$O40,'Report - ALL (DASHBOARD)'!$W$3) -> 92.85577393 | R40: =INDEX('Compile Data'!$AI$123:$BD$204,$O40,'Report - ALL (DASHBOARD)'!$W$3) -> 92.27438354 | S40: =INDEX('Compile Data'!$BG$123:$CB$204,$O40,'Report - ALL (DASHBOARD)'!$W$3) -> 92.08296204 | T40: =INDEX('Compile Data'!$CE$123:$CZ$204,$O40,'Report - ALL (DASHBOARD)'!$W$3) -> 91.75749207 | U40: =INDEX('Compile Data'!$DC$123:$DX$204,$O40,'Report - ALL (DASHBOARD)'!$W$3) -> 92.07028198
A41: 1934 | B41: =INDEX('Compile Data'!$K$12:$AF$93,$A41-1921,'Report - ALL (DASHBOARD)'!$W$3) -> 93.50547028 | C41: =INDEX('Compile Data'!$AI$12:$BD$93,$A41-1921,'Report - ALL (DASHBOARD)'!$W$3) -> 93.5087738 | D41: =INDEX('Compile Data'!$BG$12:$CB$93,$A41-1921,'Report - ALL (DASHBOARD)'!$W$3) -> 93.50832367 | E41: =INDEX('Compile Data'!$CE$12:$CZ$93,$A41-1921,'Report - ALL (DASHBOARD)'!$W$3) -> 93.49971008 | F41: =INDEX('Compile Data'!$DC$12:$DX$93,$A41-1921,'Report - ALL (DASHBOARD)'!$W$3) -> 93.49756622 | O41: 13 | P41: 0.1481481481 | Q41: =INDEX('Compile Data'!$K$123:$AF$204,$O41,'Report - ALL (DASHBOARD)'!$W$3) -> 92.82063293 | R41: =INDEX('Compile Data'!$AI$123:$BD$204,$O41,'Report - ALL (DASHBOARD)'!$W$3) -> 92.18214417 | S41: =INDEX('Compile Data'!$BG$123:$CB$204,$O41,'Report - ALL (DASHBOARD)'!$W$3) -> 92.05153656 | T41: =INDEX('Compile Data'!$CE$123:$CZ$204,$O41,'Report - ALL (DASHBOARD)'!$W$3) -> 91.7569809 | U41: =INDEX('Compile Data'!$DC$123:$DX$204,$O41,'Report - ALL (DASHBOARD)'!$W$3) -> 92.06061554
A42: 1935 | B42: =INDEX('Compile Data'!$K$12:$AF$93,$A42-1921,'Report - ALL (DASHBOARD)'!$W$3) -> 91.59603882 | C42: =INDEX('Compile Data'!$AI$12:$BD$93,$A42-1921,'Report - ALL (DASHBOARD)'!$W$3) -> 91.06589508 | D42: =INDEX('Compile Data'!$BG$12:$CB$93,$A42-1921,'Report - ALL (DASHBOARD)'!$W$3) -> 91.25535583 | E42: =INDEX('Compile Data'!$CE$12:$CZ$93,$A42-1921,'Report - ALL (DASHBOARD)'!$W$3) -> 91.17301178 | F42: =INDEX('Compile Data'!$DC$12:$DX$93,$A42-1921,'Report - ALL (DASHBOARD)'!$W$3) -> 91.10701752 | O42: 14 | P42: 0.1604938272 | Q42: =INDEX('Compile Data'!$K$123:$AF$204,$O42,'Report - ALL (DASHBOARD)'!$W$3) -> 92.71157074 | R42: =INDEX('Compile Data'!$AI$123:$BD$204,$O42,'Report - ALL (DASHBOARD)'!$W$3) -> 92.02381134 | S42: =INDEX('Compile Data'!$BG$123:$CB$204,$O42,'Report - ALL (DASHBOARD)'!$W$3) -> 92.01282501 | T42: =INDEX('Compile Data'!$CE$123:$CZ$204,$O42,'Report - ALL (DASHBOARD)'!$W$3) -> 91.68467712 | U42: =INDEX('Compile Data'!$DC$123:$DX$204,$O42,'Report - ALL (DASHBOARD)'!$W$3) -> 92.00130463
A43: 1936 | B43: =INDEX('Compile Data'!$K$12:$AF$93,$A43-1921,'Report - ALL (DASHBOARD)'!$W$3) -> 89.82564545 | C43: =INDEX('Compile Data'!$AI$12:$BD$93,$A43-1921,'Report - ALL (DASHBOARD)'!$W$3) -> 89.84971619 | D43: =INDEX('Compile Data'!$BG$12:$CB$93,$A43-1921,'Report - ALL (DASHBOARD)'!$W$3) -> 89.85366058 | E43: =INDEX('Compile Data'!$CE$12:$CZ$93,$A43-1921,'Report - ALL (DASHBOARD)'!$W$3) -> 89.85862732 | F43: =INDEX('Compile Data'!$DC$12:$DX$93,$A43-1921,'Report - ALL (DASHBOARD)'!$W$3) -> 89.85864258 | O43: 15 | P43: 0.1728395062 | Q43: =INDEX('Compile Data'!$K$123:$AF$204,$O43,'Report - ALL (DASHBOARD)'!$W$3) -> 92.57168579 | R43: =INDEX('Compile Data'!$AI$123:$BD$204,$O43,'Report - ALL (DASHBOARD)'!$W$3) -> 91.96260071 | S43: =INDEX('Compile Data'!$BG$123:$CB$204,$O43,'Report - ALL (DASHBOARD)'!$W$3) -> 92.00611877 | T43: =INDEX('Compile Data'!$CE$123:$CZ$204,$O43,'Report - ALL (DASHBOARD)'!$W$3) -> 91.671875 | U43: =INDEX('Compile Data'!$DC$123:$DX$204,$O43,'Report - ALL (DASHBOARD)'!$W$3) -> 91.75696564
A44: 1937 | B44: =INDEX('Compile Data'!$K$12:$AF$93,$A44-1921,'Report - ALL (DASHBOARD)'!$W$3) -> 92.25325775 | C44: =INDEX('Compile Data'!$AI$12:$BD$93,$A44-1921,'Report - ALL (DASHBOARD)'!$W$3) -> 91.24962616 | D44: =INDEX('Compile Data'!$BG$12:$CB$93,$A44-1921,'Report - ALL (DASHBOARD)'!$W$3) -> 91.25270081 | E44: =INDEX('Compile Data'!$CE$12:$CZ$93,$A44-1921,'Report - ALL (DASHBOARD)'!$W$3) -> 91.41792297 | F44: =INDEX('Compile Data'!$DC$12:$DX$93,$A44-1921,'Report - ALL (DASHBOARD)'!$W$3) -> 91.41784668 | O44: 16 | P44: 0.1851851852 | Q44: =INDEX('Compile Data'!$K$123:$AF$204,$O44,'Report - ALL (DASHBOARD)'!$W$3) -> 92.56659698 | R44: =INDEX('Compile Data'!$AI$123:$BD$204,$O44,'Report - ALL (DASHBOARD)'!$W$3) -> 91.92106628 | S44: =INDEX('Compile Data'!$BG$123:$CB$204,$O44,'Report - ALL (DASHBOARD)'!$W$3) -> 91.86821747 | T44: =INDEX('Compile Data'!$CE$123:$CZ$204,$O44,'Report - ALL (DASHBOARD)'!$W$3) -> 91.66329956 | U44: =INDEX('Compile Data'!$DC$123:$DX$204,$O44,'Report - ALL (DASHBOARD)'!$W$3) -> 91.64247131
A45: 1938 | B45: =INDEX('Compile Data'!$K$12:$AF$93,$A45-1921,'Report - ALL (DASHBOARD)'!$W$3) -> 80.59387207 | C45: =INDEX('Compile Data'!$AI$12:$BD$93,$A45-1921,'Report - ALL (DASHBOARD)'!$W$3) -> 79.57974243 | D45: =INDEX('Compile Data'!$BG$12:$CB$93,$A45-1921,'Report - ALL (DASHBOARD)'!$W$3) -> 79.50920105 | E45: =INDEX('Compile Data'!$CE$12:$CZ$93,$A45-1921,'Report - ALL (DASHBOARD)'!$W$3) -> 80.11299896 | F45: =INDEX('Compile Data'!$DC$12:$DX$93,$A45-1921,'Report - ALL (DASHBOARD)'!$W$3) -> 80.44869232 | O45: 17 | P45: 0.1975308642 | Q45: =INDEX('Compile Data'!$K$123:$AF$204,$O45,'Report - ALL (DASHBOARD)'!$W$3) -> 92.52751923 | R45: =INDEX('Compile Data'!$AI$123:$BD$204,$O45,'Report - ALL (DASHBOARD)'!$W$3) -> 91.86706543 | S45: =INDEX('Compile Data'!$BG$123:$CB$204,$O45,'Report - ALL (DASHBOARD)'!$W$3) -> 91.75814819 | T45: =INDEX('Compile Data'!$CE$123:$CZ$204,$O45,'Report - ALL (DASHBOARD)'!$W$3) -> 91.6618576 | U45: =INDEX('Compile Data'!$DC$123:$DX$204,$O45,'Report - ALL (DASHBOARD)'!$W$3) -> 91.64244843
A46: 1939 | B46: =INDEX('Compile Data'!$K$12:$AF$93,$A46-1921,'Report - ALL (DASHBOARD)'!$W$3) -> 92.85577393 | C46: =INDEX('Compile Data'!$AI$12:$BD$93,$A46-1921,'Report - ALL (DASHBOARD)'!$W$3) -> 91.86706543 | D46: =INDEX('Compile Data'!$BG$12:$CB$93,$A46-1921,'Report - ALL (DASHBOARD)'!$W$3) -> 91.86821747 | E46: =INDEX('Compile Data'!$CE$12:$CZ$93,$A46-1921,'Report - ALL (DASHBOARD)'!$W$3) -> 91.7569809 | F46: =INDEX('Compile Data'!$DC$12:$DX$93,$A46-1921,'Report - ALL (DASHBOARD)'!$W$3) -> 91.75696564 | O46: 18 | P46: 0.2098765432 | Q46: =INDEX('Compile Data'!$K$123:$AF$204,$O46,'Report - ALL (DASHBOARD)'!$W$3) -> 92.43729401 | R46: =INDEX('Compile Data'!$AI$123:$BD$204,$O46,'Report - ALL (DASHBOARD)'!$W$3) -> 91.81839752 | S46: =INDEX('Compile Data'!$BG$123:$CB$204,$O46,'Report - ALL (DASHBOARD)'!$W$3) -> 91.67311096 | T46: =INDEX('Compile Data'!$CE$123:$CZ$204,$O46,'Report - ALL (DASHBOARD)'!$W$3) -> 91.63925934 | U46: =INDEX('Compile Data'!$DC$123:$DX$204,$O46,'Report - ALL (DASHBOARD)'!$W$3) -> 91.62902069
A47: 1940 | B47: =INDEX('Compile Data'!$K$12:$AF$93,$A47-1921,'Report - ALL (DASHBOARD)'!$W$3) -> 80.60099792 | C47: =INDEX('Compile Data'!$AI$12:$BD$93,$A47-1921,'Report - ALL (DASHBOARD)'!$W$3) -> 80.84773254 | D47: =INDEX('Compile Data'!$BG$12:$CB$93,$A47-1921,'Report - ALL (DASHBOARD)'!$W$3) -> 80.82542419 | E47: =INDEX('Compile Data'!$CE$12:$CZ$93,$A47-1921,'Report - ALL (DASHBOARD)'!$W$3) -> 80.054039 | F47: =INDEX('Compile Data'!$DC$12:$DX$93,$A47-1921,'Report - ALL (DASHBOARD)'!$W$3) -> 80.05400848 | O47: 19 | P47: 0.2222222222 | Q47: =INDEX('Compile Data'!$K$123:$AF$204,$O47,'Report - ALL (DASHBOARD)'!$W$3) -> 92.42777252 | R47: =INDEX('Compile Data'!$AI$123:$BD$204,$O47,'Report - ALL (DASHBOARD)'!$W$3) -> 91.70458221 | S47: =INDEX('Compile Data'!$BG$123:$CB$204,$O47,'Report - ALL (DASHBOARD)'!$W$3) -> 91.57710266 | T47: =INDEX('Compile Data'!$CE$123:$CZ$204,$O47,'Report - ALL (DASHBOARD)'!$W$3) -> 91.53705597 | U47: =INDEX('Compile Data'!$DC$123:$DX$204,$O47,'Report - ALL (DASHBOARD)'!$W$3) -> 91.54278564
A48: 1941 | B48: =INDEX('Compile Data'!$K$12:$AF$93,$A48-1921,'Report - ALL (DASHBOARD)'!$W$3) -> 81.13887024 | C48: =INDEX('Compile Data'!$AI$12:$BD$93,$A48-1921,'Report - ALL (DASHBOARD)'!$W$3) -> 80.54251099 | D48: =INDEX('Compile Data'!$BG$12:$CB$93,$A48-1921,'Report - ALL (DASHBOARD)'!$W$3) -> 80.53340149 | E48: =INDEX('Compile Data'!$CE$12:$CZ$93,$A48-1921,'Report - ALL (DASHBOARD)'!$W$3) -> 80.53352356 | F48: =INDEX('Compile Data'!$DC$12:$DX$93,$A48-1921,'Report - ALL (DASHBOARD)'!$W$3) -> 80.5334549 | O48: 20 | P48: 0.2345679012 | Q48: =INDEX('Compile Data'!$K$123:$AF$204,$O48,'Report - ALL (DASHBOARD)'!$W$3) -> 92.4065094 | R48: =INDEX('Compile Data'!$AI$123:$BD$204,$O48,'Report - ALL (DASHBOARD)'!$W$3) -> 91.63767242 | S48: =INDEX('Compile Data'!$BG$123:$CB$204,$O48,'Report - ALL (DASHBOARD)'!$W$3) -> 91.52420044 | T48: =INDEX('Compile Data'!$CE$123:$CZ$204,$O48,'Report - ALL (DASHBOARD)'!$W$3) -> 91.52231598 | U48: =INDEX('Compile Data'!$DC$123:$DX$204,$O48,'Report - ALL (DASHBOARD)'!$W$3) -> 91.52236176
A49: 1942 | B49: =INDEX('Compile Data'!$K$12:$AF$93,$A49-1921,'Report - ALL (DASHBOARD)'!$W$3) -> 81.20843506 | C49: =INDEX('Compile Data'!$AI$12:$BD$93,$A49-1921,'Report - ALL (DASHBOARD)'!$W$3) -> 80.58952332 | D49: =INDEX('Compile Data'!$BG$12:$CB$93,$A49-1921,'Report - ALL (DASHBOARD)'!$W$3) -> 80.58955383 | E49: =INDEX('Compile Data'!$CE$12:$CZ$93,$A49-1921,'Report - ALL (DASHBOARD)'!$W$3) -> 80.64136505 | F49: =INDEX('Compile Data'!$DC$12:$DX$93,$A49-1921,'Report - ALL (DASHBOARD)'!$W$3) -> 80.64134216 | O49: 21 | P49: 0.2469135802 | Q49: =INDEX('Compile Data'!$K$123:$AF$204,$O49,'Report - ALL (DASHBOARD)'!$W$3) -> 92.34918976 | R49: =INDEX('Compile Data'!$AI$123:$BD$204,$O49,'Report - ALL (DASHBOARD)'!$W$3) -> 91.57067108 | S49: =INDEX('Compile Data'!$BG$123:$CB$204,$O49,'Report - ALL (DASHBOARD)'!$W$3) -> 91.48168182 | T49: =INDEX('Compile Data'!$CE$123:$CZ$204,$O49,'Report - ALL (DASHBOARD)'!$W$3) -> 91.45445251 | U49: =INDEX('Compile Data'!$DC$123:$DX$204,$O49,'Report - ALL (DASHBOARD)'!$W$3) -> 91.49945831
A50: 1943 | B50: =INDEX('Compile Data'!$K$12:$AF$93,$A50-1921,'Report - ALL (DASHBOARD)'!$W$3) -> 80.48088837 | C50: =INDEX('Compile Data'!$AI$12:$BD$93,$A50-1921,'Report - ALL (DASHBOARD)'!$W$3) -> 79.83272552 | D50: =INDEX('Compile Data'!$BG$12:$CB$93,$A50-1921,'Report - ALL (DASHBOARD)'!$W$3) -> 79.83273315 | E50: =INDEX('Compile Data'!$CE$12:$CZ$93,$A50-1921,'Report - ALL (DASHBOARD)'!$W$3) -> 79.95996857 | F50: =INDEX('Compile Data'!$DC$12:$DX$93,$A50-1921,'Report - ALL (DASHBOARD)'!$W$3) -> 79.9600296 | O50: 22 | P50: 0.2592592593 | Q50: =INDEX('Compile Data'!$K$123:$AF$204,$O50,'Report - ALL (DASHBOARD)'!$W$3) -> 92.29573059 | R50: =INDEX('Compile Data'!$AI$123:$BD$204,$O50,'Report - ALL (DASHBOARD)'!$W$3) -> 91.52161407 | S50: =INDEX('Compile Data'!$BG$123:$CB$204,$O50,'Report - ALL (DASHBOARD)'!$W$3) -> 91.46955872 | T50: =INDEX('Compile Data'!$CE$123:$CZ$204,$O50,'Report - ALL (DASHBOARD)'!$W$3) -> 91.45261383 | U50: =INDEX('Compile Data'!$DC$123:$DX$204,$O50,'Report - ALL (DASHBOARD)'!$W$3) -> 91.42965698
A51: 1944 | B51: =INDEX('Compile Data'!$K$12:$AF$93,$A51-1921,'Report - ALL (DASHBOARD)'!$W$3) -> 92.26230621 | C51: =INDEX('Compile Data'!$AI$12:$BD$93,$A51-1921,'Report - ALL (DASHBOARD)'!$W$3) -> 91.28543854 | D51: =INDEX('Compile Data'!$BG$12:$CB$93,$A51-1921,'Report - ALL (DASHBOARD)'!$W$3) -> 90.97891998 | E51: =INDEX('Compile Data'!$CE$12:$CZ$93,$A51-1921,'Report - ALL (DASHBOARD)'!$W$3) -> 90.91773224 | F51: =INDEX('Compile Data'!$DC$12:$DX$93,$A51-1921,'Report - ALL (DASHBOARD)'!$W$3) -> 90.91770172 | O51: 23 | P51: 0.2716049383 | Q51: =INDEX('Compile Data'!$K$123:$AF$204,$O51,'Report - ALL (DASHBOARD)'!$W$3) -> 92.26230621 | R51: =INDEX('Compile Data'!$AI$123:$BD$204,$O51,'Report - ALL (DASHBOARD)'!$W$3) -> 91.49693298 | S51: =INDEX('Compile Data'!$BG$123:$CB$204,$O51,'Report - ALL (DASHBOARD)'!$W$3) -> 91.46403503 | T51: =INDEX('Compile Data'!$CE$123:$CZ$204,$O51,'Report - ALL (DASHBOARD)'!$W$3) -> 91.42576599 | U51: =INDEX('Compile Data'!$DC$123:$DX$204,$O51,'Report - ALL (DASHBOARD)'!$W$3) -> 91.4257431
A52: 1945 | B52: =INDEX('Compile Data'!$K$12:$AF$93,$A52-1921,'Report - ALL (DASHBOARD)'!$W$3) -> 91.98844147 | C52: =INDEX('Compile Data'!$AI$12:$BD$93,$A52-1921,'Report - ALL (DASHBOARD)'!$W$3) -> 90.95529938 | D52: =INDEX('Compile Data'!$BG$12:$CB$93,$A52-1921,'Report - ALL (DASHBOARD)'!$W$3) -> 91.44395447 | E52: =INDEX('Compile Data'!$CE$12:$CZ$93,$A52-1921,'Report - ALL (DASHBOARD)'!$W$3) -> 91.42576599 | F52: =INDEX('Compile Data'!$DC$12:$DX$93,$A52-1921,'Report - ALL (DASHBOARD)'!$W$3) -> 91.4257431 | O52: 24 | P52: 0.2839506173 | Q52: =INDEX('Compile Data'!$K$123:$AF$204,$O52,'Report - ALL (DASHBOARD)'!$W$3) -> 92.25325775 | R52: =INDEX('Compile Data'!$AI$123:$BD$204,$O52,'Report - ALL (DASHBOARD)'!$W$3) -> 91.48303986 | S52: =INDEX('Compile Data'!$BG$123:$CB$204,$O52,'Report - ALL (DASHBOARD)'!$W$3) -> 91.46202087 | T52: =INDEX('Compile Data'!$CE$123:$CZ$204,$O52,'Report - ALL (DASHBOARD)'!$W$3) -> 91.41792297 | U52: =INDEX('Compile Data'!$DC$123:$DX$204,$O52,'Report - ALL (DASHBOARD)'!$W$3) -> 91.41784668
A53: 1946 | B53: =INDEX('Compile Data'!$K$12:$AF$93,$A53-1921,'Report - ALL (DASHBOARD)'!$W$3) -> 90.0541687 | C53: =INDEX('Compile Data'!$AI$12:$BD$93,$A53-1921,'Report - ALL (DASHBOARD)'!$W$3) -> 89.7399292 | D53: =INDEX('Compile Data'!$BG$12:$CB$93,$A53-1921,'Report - ALL (DASHBOARD)'!$W$3) -> 89.52292633 | E53: =INDEX('Compile Data'!$CE$12:$CZ$93,$A53-1921,'Report - ALL (DASHBOARD)'!$W$3) -> 89.50505829 | F53: =INDEX('Compile Data'!$DC$12:$DX$93,$A53-1921,'Report - ALL (DASHBOARD)'!$W$3) -> 89.50499725 | O53: 25 | P53: 0.2962962963 | Q53: =INDEX('Compile Data'!$K$123:$AF$204,$O53,'Report - ALL (DASHBOARD)'!$W$3) -> 92.24819946 | R53: =INDEX('Compile Data'!$AI$123:$BD$204,$O53,'Report - ALL (DASHBOARD)'!$W$3) -> 91.47972107 | S53: =INDEX('Compile Data'!$BG$123:$CB$204,$O53,'Report - ALL (DASHBOARD)'!$W$3) -> 91.44395447 | T53: =INDEX('Compile Data'!$CE$123:$CZ$204,$O53,'Report - ALL (DASHBOARD)'!$W$3) -> 91.40581512 | U53: =INDEX('Compile Data'!$DC$123:$DX$204,$O53,'Report - ALL (DASHBOARD)'!$W$3) -> 91.40648651
A54: 1947 | B54: =INDEX('Compile Data'!$K$12:$AF$93,$A54-1921,'Report - ALL (DASHBOARD)'!$W$3) -> 92.23472595 | C54: =INDEX('Compile Data'!$AI$12:$BD$93,$A54-1921,'Report - ALL (DASHBOARD)'!$W$3) -> 91.96260071 | D54: =INDEX('Compile Data'!$BG$12:$CB$93,$A54-1921,'Report - ALL (DASHBOARD)'!$W$3) -> 91.33823395 | E54: =INDEX('Compile Data'!$CE$12:$CZ$93,$A54-1921,'Report - ALL (DASHBOARD)'!$W$3) -> 91.17856598 | F54: =INDEX('Compile Data'!$DC$12:$DX$93,$A54-1921,'Report - ALL (DASHBOARD)'!$W$3) -> 91.17856598 | O54: 26 | P54: 0.3086419753 | Q54: =INDEX('Compile Data'!$K$123:$AF$204,$O54,'Report - ALL (DASHBOARD)'!$W$3) -> 92.23472595 | R54: =INDEX('Compile Data'!$AI$123:$BD$204,$O54,'Report - ALL (DASHBOARD)'!$W$3) -> 91.46334839 | S54: =INDEX('Compile Data'!$BG$123:$CB$204,$O54,'Report - ALL (DASHBOARD)'!$W$3) -> 91.40952301 | T54: =INDEX('Compile Data'!$CE$123:$CZ$204,$O54,'Report - ALL (DASHBOARD)'!$W$3) -> 91.2400589 | U54: =INDEX('Compile Data'!$DC$123:$DX$204,$O54,'Report - ALL (DASHBOARD)'!$W$3) -> 91.23826599
A55: 1948 | B55: =INDEX('Compile Data'!$K$12:$AF$93,$A55-1921,'Report - ALL (DASHBOARD)'!$W$3) -> 90.46966553 | C55: =INDEX('Compile Data'!$AI$12:$BD$93,$A55-1921,'Report - ALL (DASHBOARD)'!$W$3) -> 90.69863892 | D55: =INDEX('Compile Data'!$BG$12:$CB$93,$A55-1921,'Report - ALL (DASHBOARD)'!$W$3) -> 90.69844818 | E55: =INDEX('Compile Data'!$CE$12:$CZ$93,$A55-1921,'Report - ALL (DASHBOARD)'!$W$3) -> 90.09965515 | F55: =INDEX('Compile Data'!$DC$12:$DX$93,$A55-1921,'Report - ALL (DASHBOARD)'!$W$3) -> 90.09947968 | O55: 27 | P55: 0.3209876543 | Q55: =INDEX('Compile Data'!$K$123:$AF$204,$O55,'Report - ALL (DASHBOARD)'!$W$3) -> 92.21045685 | R55: =INDEX('Compile Data'!$AI$123:$BD$204,$O55,'Report - ALL (DASHBOARD)'!$W$3) -> 91.38002014 | S55: =INDEX('Compile Data'!$BG$123:$CB$204,$O55,'Report - ALL (DASHBOARD)'!$W$3) -> 91.35791779 | T55: =INDEX('Compile Data'!$CE$123:$CZ$204,$O55,'Report - ALL (DASHBOARD)'!$W$3) -> 91.2253418 | U55: =INDEX('Compile Data'!$DC$123:$DX$204,$O55,'Report - ALL (DASHBOARD)'!$W$3) -> 91.22183228
A56: 1949 | B56: =INDEX('Compile Data'!$K$12:$AF$93,$A56-1921,'Report - ALL (DASHBOARD)'!$W$3) -> 92.17023468 | C56: =INDEX('Compile Data'!$AI$12:$BD$93,$A56-1921,'Report - ALL (DASHBOARD)'!$W$3) -> 92.18214417 | D56: =INDEX('Compile Data'!$BG$12:$CB$93,$A56-1921,'Report - ALL (DASHBOARD)'!$W$3) -> 92.18839264 | E56: =INDEX('Compile Data'!$CE$12:$CZ$93,$A56-1921,'Report - ALL (DASHBOARD)'!$W$3) -> 92.19034576 | F56: =INDEX('Compile Data'!$DC$12:$DX$93,$A56-1921,'Report - ALL (DASHBOARD)'!$W$3) -> 92.19032288 | O56: 28 | P56: 0.3333333333 | Q56: =INDEX('Compile Data'!$K$123:$AF$204,$O56,'Report - ALL (DASHBOARD)'!$W$3) -> 92.2067337 | R56: =INDEX('Compile Data'!$AI$123:$BD$204,$O56,'Report - ALL (DASHBOARD)'!$W$3) -> 91.3380127 | S56: =INDEX('Compile Data'!$BG$123:$CB$204,$O56,'Report - ALL (DASHBOARD)'!$W$3) -> 91.33823395 | T56: =INDEX('Compile Data'!$CE$123:$CZ$204,$O56,'Report - ALL (DASHBOARD)'!$W$3) -> 91.22003937 | U56: =INDEX('Compile Data'!$DC$123:$DX$204,$O56,'Report - ALL (DASHBOARD)'!$W$3) -> 91.22002411
A57: 1950 | B57: =INDEX('Compile Data'!$K$12:$AF$93,$A57-1921,'Report - ALL (DASHBOARD)'!$W$3) -> 91.08113098 | C57: =INDEX('Compile Data'!$AI$12:$BD$93,$A57-1921,'Report - ALL (DASHBOARD)'!$W$3) -> 90.59171295 | D57: =INDEX('Compile Data'!$BG$12:$CB$93,$A57-1921,'Report - ALL (DASHBOARD)'!$W$3) -> 90.59275818 | E57: =INDEX('Compile Data'!$CE$12:$CZ$93,$A57-1921,'Report - ALL (DASHBOARD)'!$W$3) -> 90.88852692 | F57: =INDEX('Compile Data'!$DC$12:$DX$93,$A57-1921,'Report - ALL (DASHBOARD)'!$W$3) -> 90.88855743 | O57: 29 | P57: 0.3456790123 | Q57: =INDEX('Compile Data'!$K$123:$AF$204,$O57,'Report - ALL (DASHBOARD)'!$W$3) -> 92.17023468 | R57: =INDEX('Compile Data'!$AI$123:$BD$204,$O57,'Report - ALL (DASHBOARD)'!$W$3) -> 91.28543854 | S57: =INDEX('Compile Data'!$BG$123:$CB$204,$O57,'Report - ALL (DASHBOARD)'!$W$3) -> 91.30234528 | T57: =INDEX('Compile Data'!$CE$123:$CZ$204,$O57,'Report - ALL (DASHBOARD)'!$W$3) -> 91.18417358 | U57: =INDEX('Compile Data'!$DC$123:$DX$204,$O57,'Report - ALL (DASHBOARD)'!$W$3) -> 91.18404388
A58: 1951 | B58: =INDEX('Compile Data'!$K$12:$AF$93,$A58-1921,'Report - ALL (DASHBOARD)'!$W$3) -> 80.61856079 | C58: =INDEX('Compile Data'!$AI$12:$BD$93,$A58-1921,'Report - ALL (DASHBOARD)'!$W$3) -> 80.05539703 | D58: =INDEX('Compile Data'!$BG$12:$CB$93,$A58-1921,'Report - ALL (DASHBOARD)'!$W$3) -> 80.05480957 | E58: =INDEX('Compile Data'!$CE$12:$CZ$93,$A58-1921,'Report - ALL (DASHBOARD)'!$W$3) -> 80.06118774 | F58: =INDEX('Compile Data'!$DC$12:$DX$93,$A58-1921,'Report - ALL (DASHBOARD)'!$W$3) -> 80.06116486 | O58: 30 | P58: 0.3580246914 | Q58: =INDEX('Compile Data'!$K$123:$AF$204,$O58,'Report - ALL (DASHBOARD)'!$W$3) -> 92.04975891 | R58: =INDEX('Compile Data'!$AI$123:$BD$204,$O58,'Report - ALL (DASHBOARD)'!$W$3) -> 91.24962616 | S58: =INDEX('Compile Data'!$BG$123:$CB$204,$O58,'Report - ALL (DASHBOARD)'!$W$3) -> 91.25535583 | T58: =INDEX('Compile Data'!$CE$123:$CZ$204,$O58,'Report - ALL (DASHBOARD)'!$W$3) -> 91.17856598 | U58: =INDEX('Compile Data'!$DC$123:$DX$204,$O58,'Report - ALL (DASHBOARD)'!$W$3) -> 91.17856598
A59: 1952 | B59: =INDEX('Compile Data'!$K$12:$AF$93,$A59-1921,'Report - ALL (DASHBOARD)'!$W$3) -> 79.26548767 | C59: =INDEX('Compile Data'!$AI$12:$BD$93,$A59-1921,'Report - ALL (DASHBOARD)'!$W$3) -> 77.73764038 | D59: =INDEX('Compile Data'!$BG$12:$CB$93,$A59-1921,'Report - ALL (DASHBOARD)'!$W$3) -> 78.79263306 | E59: =INDEX('Compile Data'!$CE$12:$CZ$93,$A59-1921,'Report - ALL (DASHBOARD)'!$W$3) -> 78.74692535 | F59: =INDEX('Compile Data'!$DC$12:$DX$93,$A59-1921,'Report - ALL (DASHBOARD)'!$W$3) -> 78.74679565 | O59: 31 | P59: 0.3703703704 | Q59: =INDEX('Compile Data'!$K$123:$AF$204,$O59,'Report - ALL (DASHBOARD)'!$W$3) -> 91.98844147 | R59: =INDEX('Compile Data'!$AI$123:$BD$204,$O59,'Report - ALL (DASHBOARD)'!$W$3) -> 91.24858093 | S59: =INDEX('Compile Data'!$BG$123:$CB$204,$O59,'Report - ALL (DASHBOARD)'!$W$3) -> 91.25270081 | T59: =INDEX('Compile Data'!$CE$123:$CZ$204,$O59,'Report - ALL (DASHBOARD)'!$W$3) -> 91.17301178 | U59: =INDEX('Compile Data'!$DC$123:$DX$204,$O59,'Report - ALL (DASHBOARD)'!$W$3) -> 91.10701752
A60: 1953 | B60: =INDEX('Compile Data'!$K$12:$AF$93,$A60-1921,'Report - ALL (DASHBOARD)'!$W$3) -> 80.35185242 | C60: =INDEX('Compile Data'!$AI$12:$BD$93,$A60-1921,'Report - ALL (DASHBOARD)'!$W$3) -> 79.81674194 | D60: =INDEX('Compile Data'!$BG$12:$CB$93,$A60-1921,'Report - ALL (DASHBOARD)'!$W$3) -> 79.78726959 | E60: =INDEX('Compile Data'!$CE$12:$CZ$93,$A60-1921,'Report - ALL (DASHBOARD)'!$W$3) -> 79.79801941 | F60: =INDEX('Compile Data'!$DC$12:$DX$93,$A60-1921,'Report - ALL (DASHBOARD)'!$W$3) -> 79.79794312 | O60: 32 | P60: 0.3827160494 | Q60: =INDEX('Compile Data'!$K$123:$AF$204,$O60,'Report - ALL (DASHBOARD)'!$W$3) -> 91.89258575 | R60: =INDEX('Compile Data'!$AI$123:$BD$204,$O60,'Report - ALL (DASHBOARD)'!$W$3) -> 91.21891022 | S60: =INDEX('Compile Data'!$BG$123:$CB$204,$O60,'Report - ALL (DASHBOARD)'!$W$3) -> 91.24659729 | T60: =INDEX('Compile Data'!$CE$123:$CZ$204,$O60,'Report - ALL (DASHBOARD)'!$W$3) -> 91.12792969 | U60: =INDEX('Compile Data'!$DC$123:$DX$204,$O60,'Report - ALL (DASHBOARD)'!$W$3) -> 90.95466614
A61: 1954 | B61: =INDEX('Compile Data'!$K$12:$AF$93,$A61-1921,'Report - ALL (DASHBOARD)'!$W$3) -> 80.34163666 | C61: =INDEX('Compile Data'!$AI$12:$BD$93,$A61-1921,'Report - ALL (DASHBOARD)'!$W$3) -> 79.68241882 | D61: =INDEX('Compile Data'!$BG$12:$CB$93,$A61-1921,'Report - ALL (DASHBOARD)'!$W$3) -> 79.68556213 | E61: =INDEX('Compile Data'!$CE$12:$CZ$93,$A61-1921,'Report - ALL (DASHBOARD)'!$W$3) -> 79.6434021 | F61: =INDEX('Compile Data'!$DC$12:$DX$93,$A61-1921,'Report - ALL (DASHBOARD)'!$W$3) -> 79.64395142 | O61: 33 | P61: =(O61-1)/81 -> 0.3950617284 | Q61: =INDEX('Compile Data'!$K$123:$AF$204,$O61,'Report - ALL (DASHBOARD)'!$W$3) -> 91.79708862 | R61: =INDEX('Compile Data'!$AI$123:$BD$204,$O61,'Report - ALL (DASHBOARD)'!$W$3) -> 91.06589508 | S61: =INDEX('Compile Data'!$BG$123:$CB$204,$O61,'Report - ALL (DASHBOARD)'!$W$3) -> 91.22910309 | T61: =INDEX('Compile Data'!$CE$123:$CZ$204,$O61,'Report - ALL (DASHBOARD)'!$W$3) -> 90.96282959 | U61: =INDEX('Compile Data'!$DC$123:$DX$204,$O61,'Report - ALL (DASHBOARD)'!$W$3) -> 90.94920349
A62: 1955 | B62: =INDEX('Compile Data'!$K$12:$AF$93,$A62-1921,'Report - ALL (DASHBOARD)'!$W$3) -> 91.89258575 | C62: =INDEX('Compile Data'!$AI$12:$BD$93,$A62-1921,'Report - ALL (DASHBOARD)'!$W$3) -> 90.64298248 | D62: =INDEX('Compile Data'!$BG$12:$CB$93,$A62-1921,'Report - ALL (DASHBOARD)'!$W$3) -> 90.64533997 | E62: =INDEX('Compile Data'!$CE$12:$CZ$93,$A62-1921,'Report - ALL (DASHBOARD)'!$W$3) -> 90.86891937 | F62: =INDEX('Compile Data'!$DC$12:$DX$93,$A62-1921,'Report - ALL (DASHBOARD)'!$W$3) -> 90.91259766 | O62: 34 | P62: 0.4074074074 | Q62: =INDEX('Compile Data'!$K$123:$AF$204,$O62,'Report - ALL (DASHBOARD)'!$W$3) -> 91.76417542 | R62: =INDEX('Compile Data'!$AI$123:$BD$204,$O62,'Report - ALL (DASHBOARD)'!$W$3) -> 90.99395752 | S62: =INDEX('Compile Data'!$BG$123:$CB$204,$O62,'Report - ALL (DASHBOARD)'!$W$3) -> 90.97891998 | T62: =INDEX('Compile Data'!$CE$123:$CZ$204,$O62,'Report - ALL (DASHBOARD)'!$W$3) -> 90.91773224 | U62: =INDEX('Compile Data'!$DC$123:$DX$204,$O62,'Report - ALL (DASHBOARD)'!$W$3) -> 90.91770172
A63: 1956 | B63: =INDEX('Compile Data'!$K$12:$AF$93,$A63-1921,'Report - ALL (DASHBOARD)'!$W$3) -> 80.9953537 | C63: =INDEX('Compile Data'!$AI$12:$BD$93,$A63-1921,'Report - ALL (DASHBOARD)'!$W$3) -> 80.81513214 | D63: =INDEX('Compile Data'!$BG$12:$CB$93,$A63-1921,'Report - ALL (DASHBOARD)'!$W$3) -> 80.52042389 | E63: =INDEX('Compile Data'!$CE$12:$CZ$93,$A63-1921,'Report - ALL (DASHBOARD)'!$W$3) -> 80.44752502 | F63: =INDEX('Compile Data'!$DC$12:$DX$93,$A63-1921,'Report - ALL (DASHBOARD)'!$W$3) -> 80.44737244 | O63: 35 | P63: 0.4197530864 | Q63: =INDEX('Compile Data'!$K$123:$AF$204,$O63,'Report - ALL (DASHBOARD)'!$W$3) -> 91.59603882 | R63: =INDEX('Compile Data'!$AI$123:$BD$204,$O63,'Report - ALL (DASHBOARD)'!$W$3) -> 90.95529938 | S63: =INDEX('Compile Data'!$BG$123:$CB$204,$O63,'Report - ALL (DASHBOARD)'!$W$3) -> 90.97821045 | T63: =INDEX('Compile Data'!$CE$123:$CZ$204,$O63,'Report - ALL (DASHBOARD)'!$W$3) -> 90.88852692 | U63: =INDEX('Compile Data'!$DC$123:$DX$204,$O63,'Report - ALL (DASHBOARD)'!$W$3) -> 90.91259766
A64: 1957 | B64: =INDEX('Compile Data'!$K$12:$AF$93,$A64-1921,'Report - ALL (DASHBOARD)'!$W$3) -> 90.00261688 | C64: =INDEX('Compile Data'!$AI$12:$BD$93,$A64-1921,'Report - ALL (DASHBOARD)'!$W$3) -> 88.76751709 | D64: =INDEX('Compile Data'!$BG$12:$CB$93,$A64-1921,'Report - ALL (DASHBOARD)'!$W$3) -> 89.22917938 | E64: =INDEX('Compile Data'!$CE$12:$CZ$93,$A64-1921,'Report - ALL (DASHBOARD)'!$W$3) -> 89.16585541 | F64: =INDEX('Compile Data'!$DC$12:$DX$93,$A64-1921,'Report - ALL (DASHBOARD)'!$W$3) -> 89.32829285 | O64: 36 | P64: 0.4320987654 | Q64: =INDEX('Compile Data'!$K$123:$AF$204,$O64,'Report - ALL (DASHBOARD)'!$W$3) -> 91.45965576 | R64: =INDEX('Compile Data'!$AI$123:$BD$204,$O64,'Report - ALL (DASHBOARD)'!$W$3) -> 90.69863892 | S64: =INDEX('Compile Data'!$BG$123:$CB$204,$O64,'Report - ALL (DASHBOARD)'!$W$3) -> 90.69844818 | T64: =INDEX('Compile Data'!$CE$123:$CZ$204,$O64,'Report - ALL (DASHBOARD)'!$W$3) -> 90.86891937 | U64: =INDEX('Compile Data'!$DC$123:$DX$204,$O64,'Report - ALL (DASHBOARD)'!$W$3) -> 90.88855743
A65: 1958 | B65: =INDEX('Compile Data'!$K$12:$AF$93,$A65-1921,'Report - ALL (DASHBOARD)'!$W$3) -> 79.84021759 | C65: =INDEX('Compile Data'!$AI$12:$BD$93,$A65-1921,'Report - ALL (DASHBOARD)'!$W$3) -> 79.15380859 | D65: =INDEX('Compile Data'!$BG$12:$CB$93,$A65-1921,'Report - ALL (DASHBOARD)'!$W$3) -> 79.16152191 | E65: =INDEX('Compile Data'!$CE$12:$CZ$93,$A65-1921,'Report - ALL (DASHBOARD)'!$W$3) -> 79.20614624 | F65: =INDEX('Compile Data'!$DC$12:$DX$93,$A65-1921,'Report - ALL (DASHBOARD)'!$W$3) -> 79.21238708 | O65: 37 | P65: 0.4444444444 | Q65: =INDEX('Compile Data'!$K$123:$AF$204,$O65,'Report - ALL (DASHBOARD)'!$W$3) -> 91.44303894 | R65: =INDEX('Compile Data'!$AI$123:$BD$204,$O65,'Report - ALL (DASHBOARD)'!$W$3) -> 90.64298248 | S65: =INDEX('Compile Data'!$BG$123:$CB$204,$O65,'Report - ALL (DASHBOARD)'!$W$3) -> 90.64533997 | T65: =INDEX('Compile Data'!$CE$123:$CZ$204,$O65,'Report - ALL (DASHBOARD)'!$W$3) -> 90.86540985 | U65: =INDEX('Compile Data'!$DC$123:$DX$204,$O65,'Report - ALL (DASHBOARD)'!$W$3) -> 90.74648285
A66: 1959 | B66: =INDEX('Compile Data'!$K$12:$AF$93,$A66-1921,'Report - ALL (DASHBOARD)'!$W$3) -> 89.65769196 | C66: =INDEX('Compile Data'!$AI$12:$BD$93,$A66-1921,'Report - ALL (DASHBOARD)'!$W$3) -> 88.81804657 | D66: =INDEX('Compile Data'!$BG$12:$CB$93,$A66-1921,'Report - ALL (DASHBOARD)'!$W$3) -> 88.84307861 | E66: =INDEX('Compile Data'!$CE$12:$CZ$93,$A66-1921,'Report - ALL (DASHBOARD)'!$W$3) -> 88.87847137 | F66: =INDEX('Compile Data'!$DC$12:$DX$93,$A66-1921,'Report - ALL (DASHBOARD)'!$W$3) -> 88.90365601 | O66: 38 | P66: 0.4567901235 | Q66: =INDEX('Compile Data'!$K$123:$AF$204,$O66,'Report - ALL (DASHBOARD)'!$W$3) -> 91.08113098 | R66: =INDEX('Compile Data'!$AI$123:$BD$204,$O66,'Report - ALL (DASHBOARD)'!$W$3) -> 90.59171295 | S66: =INDEX('Compile Data'!$BG$123:$CB$204,$O66,'Report - ALL (DASHBOARD)'!$W$3) -> 90.61491394 | T66: =INDEX('Compile Data'!$CE$123:$CZ$204,$O66,'Report - ALL (DASHBOARD)'!$W$3) -> 90.75688934 | U66: =INDEX('Compile Data'!$DC$123:$DX$204,$O66,'Report - ALL (DASHBOARD)'!$W$3) -> 90.50762177
A67: 1960 | B67: =INDEX('Compile Data'!$K$12:$AF$93,$A67-1921,'Report - ALL (DASHBOARD)'!$W$3) -> 92.82063293 | C67: =INDEX('Compile Data'!$AI$12:$BD$93,$A67-1921,'Report - ALL (DASHBOARD)'!$W$3) -> 91.49693298 | D67: =INDEX('Compile Data'!$BG$12:$CB$93,$A67-1921,'Report - ALL (DASHBOARD)'!$W$3) -> 91.46955872 | E67: =INDEX('Compile Data'!$CE$12:$CZ$93,$A67-1921,'Report - ALL (DASHBOARD)'!$W$3) -> 91.63925934 | F67: =INDEX('Compile Data'!$DC$12:$DX$93,$A67-1921,'Report - ALL (DASHBOARD)'!$W$3) -> 91.64244843 | O67: 39 | P67: 0.4691358025 | Q67: =INDEX('Compile Data'!$K$123:$AF$204,$O67,'Report - ALL (DASHBOARD)'!$W$3) -> 90.82824707 | R67: =INDEX('Compile Data'!$AI$123:$BD$204,$O67,'Report - ALL (DASHBOARD)'!$W$3) -> 90.42243195 | S67: =INDEX('Compile Data'!$BG$123:$CB$204,$O67,'Report - ALL (DASHBOARD)'!$W$3) -> 90.59275818 | T67: =INDEX('Compile Data'!$CE$123:$CZ$204,$O67,'Report - ALL (DASHBOARD)'!$W$3) -> 90.09965515 | U67: =INDEX('Compile Data'!$DC$123:$DX$204,$O67,'Report - ALL (DASHBOARD)'!$W$3) -> 90.09947968
A68: 1961 | B68: =INDEX('Compile Data'!$K$12:$AF$93,$A68-1921,'Report - ALL (DASHBOARD)'!$W$3) -> 92.43729401 | C68: =INDEX('Compile Data'!$AI$12:$BD$93,$A68-1921,'Report - ALL (DASHBOARD)'!$W$3) -> 91.3380127 | D68: =INDEX('Compile Data'!$BG$12:$CB$93,$A68-1921,'Report - ALL (DASHBOARD)'!$W$3) -> 91.46403503 | E68: =INDEX('Compile Data'!$CE$12:$CZ$93,$A68-1921,'Report - ALL (DASHBOARD)'!$W$3) -> 91.40581512 | F68: =INDEX('Compile Data'!$DC$12:$DX$93,$A68-1921,'Report - ALL (DASHBOARD)'!$W$3) -> 91.40648651 | O68: 40 | P68: 0.4814814815 | Q68: =INDEX('Compile Data'!$K$123:$AF$204,$O68,'Report - ALL (DASHBOARD)'!$W$3) -> 90.46966553 | R68: =INDEX('Compile Data'!$AI$123:$BD$204,$O68,'Report - ALL (DASHBOARD)'!$W$3) -> 89.84971619 | S68: =INDEX('Compile Data'!$BG$123:$CB$204,$O68,'Report - ALL (DASHBOARD)'!$W$3) -> 89.85366058 | T68: =INDEX('Compile Data'!$CE$123:$CZ$204,$O68,'Report - ALL (DASHBOARD)'!$W$3) -> 89.92974091 | U68: =INDEX('Compile Data'!$DC$123:$DX$204,$O68,'Report - ALL (DASHBOARD)'!$W$3) -> 89.93637848
A69: 1962 | B69: =INDEX('Compile Data'!$K$12:$AF$93,$A69-1921,'Report - ALL (DASHBOARD)'!$W$3) -> 92.21045685 | C69: =INDEX('Compile Data'!$AI$12:$BD$93,$A69-1921,'Report - ALL (DASHBOARD)'!$W$3) -> 91.48303986 | D69: =INDEX('Compile Data'!$BG$12:$CB$93,$A69-1921,'Report - ALL (DASHBOARD)'!$W$3) -> 91.40952301 | E69: =INDEX('Compile Data'!$CE$12:$CZ$93,$A69-1921,'Report - ALL (DASHBOARD)'!$W$3) -> 91.45261383 | F69: =INDEX('Compile Data'!$DC$12:$DX$93,$A69-1921,'Report - ALL (DASHBOARD)'!$W$3) -> 91.42965698 | O69: 41 | P69: 0.4938271605 | Q69: =INDEX('Compile Data'!$K$123:$AF$204,$O69,'Report - ALL (DASHBOARD)'!$W$3) -> 90.0541687 | R69: =INDEX('Compile Data'!$AI$123:$BD$204,$O69,'Report - ALL (DASHBOARD)'!$W$3) -> 89.7399292 | S69: =INDEX('Compile Data'!$BG$123:$CB$204,$O69,'Report - ALL (DASHBOARD)'!$W$3) -> 89.79572296 | T69: =INDEX('Compile Data'!$CE$123:$CZ$204,$O69,'Report - ALL (DASHBOARD)'!$W$3) -> 89.85862732 | U69: =INDEX('Compile Data'!$DC$123:$DX$204,$O69,'Report - ALL (DASHBOARD)'!$W$3) -> 89.85864258
A70: 1963 | B70: =INDEX('Compile Data'!$K$12:$AF$93,$A70-1921,'Report - ALL (DASHBOARD)'!$W$3) -> 81.41243744 | C70: =INDEX('Compile Data'!$AI$12:$BD$93,$A70-1921,'Report - ALL (DASHBOARD)'!$W$3) -> 80.93915558 | D70: =INDEX('Compile Data'!$BG$12:$CB$93,$A70-1921,'Report - ALL (DASHBOARD)'!$W$3) -> 80.94537354 | E70: =INDEX('Compile Data'!$CE$12:$CZ$93,$A70-1921,'Report - ALL (DASHBOARD)'!$W$3) -> 80.94873047 | F70: =INDEX('Compile Data'!$DC$12:$DX$93,$A70-1921,'Report - ALL (DASHBOARD)'!$W$3) -> 80.94835663 | O70: 42 | P70: 0.5061728395 | Q70: =INDEX('Compile Data'!$K$123:$AF$204,$O70,'Report - ALL (DASHBOARD)'!$W$3) -> 90.00261688 | R70: =INDEX('Compile Data'!$AI$123:$BD$204,$O70,'Report - ALL (DASHBOARD)'!$W$3) -> 89.68759918 | S70: =INDEX('Compile Data'!$BG$123:$CB$204,$O70,'Report - ALL (DASHBOARD)'!$W$3) -> 89.52292633 | T70: =INDEX('Compile Data'!$CE$123:$CZ$204,$O70,'Report - ALL (DASHBOARD)'!$W$3) -> 89.50505829 | U70: =INDEX('Compile Data'!$DC$123:$DX$204,$O70,'Report - ALL (DASHBOARD)'!$W$3) -> 89.50499725
A71: 1964 | B71: =INDEX('Compile Data'!$K$12:$AF$93,$A71-1921,'Report - ALL (DASHBOARD)'!$W$3) -> 92.71157074 | C71: =INDEX('Compile Data'!$AI$12:$BD$93,$A71-1921,'Report - ALL (DASHBOARD)'!$W$3) -> 91.92106628 | D71: =INDEX('Compile Data'!$BG$12:$CB$93,$A71-1921,'Report - ALL (DASHBOARD)'!$W$3) -> 92.00611877 | E71: =INDEX('Compile Data'!$CE$12:$CZ$93,$A71-1921,'Report - ALL (DASHBOARD)'!$W$3) -> 92.00183868 | F71: =INDEX('Compile Data'!$DC$12:$DX$93,$A71-1921,'Report - ALL (DASHBOARD)'!$W$3) -> 92.00130463 | O71: 43 | P71: 0.5185185185 | Q71: =INDEX('Compile Data'!$K$123:$AF$204,$O71,'Report - ALL (DASHBOARD)'!$W$3) -> 89.82564545 | R71: =INDEX('Compile Data'!$AI$123:$BD$204,$O71,'Report - ALL (DASHBOARD)'!$W$3) -> 89.15116882 | S71: =INDEX('Compile Data'!$BG$123:$CB$204,$O71,'Report - ALL (DASHBOARD)'!$W$3) -> 89.38591003 | T71: =INDEX('Compile Data'!$CE$123:$CZ$204,$O71,'Report - ALL (DASHBOARD)'!$W$3) -> 89.33154297 | U71: =INDEX('Compile Data'!$DC$123:$DX$204,$O71,'Report - ALL (DASHBOARD)'!$W$3) -> 89.33154297
A72: 1965 | B72: =INDEX('Compile Data'!$K$12:$AF$93,$A72-1921,'Report - ALL (DASHBOARD)'!$W$3) -> 81.26406097 | C72: =INDEX('Compile Data'!$AI$12:$BD$93,$A72-1921,'Report - ALL (DASHBOARD)'!$W$3) -> 80.65029907 | D72: =INDEX('Compile Data'!$BG$12:$CB$93,$A72-1921,'Report - ALL (DASHBOARD)'!$W$3) -> 80.78509521 | E72: =INDEX('Compile Data'!$CE$12:$CZ$93,$A72-1921,'Report - ALL (DASHBOARD)'!$W$3) -> 80.8155899 | F72: =INDEX('Compile Data'!$DC$12:$DX$93,$A72-1921,'Report - ALL (DASHBOARD)'!$W$3) -> 80.81634521 | O72: 44 | P72: 0.5308641975 | Q72: =INDEX('Compile Data'!$K$123:$AF$204,$O72,'Report - ALL (DASHBOARD)'!$W$3) -> 89.65769196 | R72: =INDEX('Compile Data'!$AI$123:$BD$204,$O72,'Report - ALL (DASHBOARD)'!$W$3) -> 88.81804657 | S72: =INDEX('Compile Data'!$BG$123:$CB$204,$O72,'Report - ALL (DASHBOARD)'!$W$3) -> 89.22917938 | T72: =INDEX('Compile Data'!$CE$123:$CZ$204,$O72,'Report - ALL (DASHBOARD)'!$W$3) -> 89.16585541 | U72: =INDEX('Compile Data'!$DC$123:$DX$204,$O72,'Report - ALL (DASHBOARD)'!$W$3) -> 89.32829285
A73: 1966 | B73: =INDEX('Compile Data'!$K$12:$AF$93,$A73-1921,'Report - ALL (DASHBOARD)'!$W$3) -> 91.79708862 | C73: =INDEX('Compile Data'!$AI$12:$BD$93,$A73-1921,'Report - ALL (DASHBOARD)'!$W$3) -> 90.99395752 | D73: =INDEX('Compile Data'!$BG$12:$CB$93,$A73-1921,'Report - ALL (DASHBOARD)'!$W$3) -> 90.97821045 | E73: =INDEX('Compile Data'!$CE$12:$CZ$93,$A73-1921,'Report - ALL (DASHBOARD)'!$W$3) -> 91.12792969 | F73: =INDEX('Compile Data'!$DC$12:$DX$93,$A73-1921,'Report - ALL (DASHBOARD)'!$W$3) -> 90.94920349 | O73: 45 | P73: 0.5432098765 | Q73: =INDEX('Compile Data'!$K$123:$AF$204,$O73,'Report - ALL (DASHBOARD)'!$W$3) -> 89.34145355 | R73: =INDEX('Compile Data'!$AI$123:$BD$204,$O73,'Report - ALL (DASHBOARD)'!$W$3) -> 88.76751709 | S73: =INDEX('Compile Data'!$BG$123:$CB$204,$O73,'Report - ALL (DASHBOARD)'!$W$3) -> 88.84307861 | T73: =INDEX('Compile Data'!$CE$123:$CZ$204,$O73,'Report - ALL (DASHBOARD)'!$W$3) -> 88.87847137 | U73: =INDEX('Compile Data'!$DC$123:$DX$204,$O73,'Report - ALL (DASHBOARD)'!$W$3) -> 88.90365601
A74: 1967 | B74: =INDEX('Compile Data'!$K$12:$AF$93,$A74-1921,'Report - ALL (DASHBOARD)'!$W$3) -> 78.42658234 | C74: =INDEX('Compile Data'!$AI$12:$BD$93,$A74-1921,'Report - ALL (DASHBOARD)'!$W$3) -> 76.17852783 | D74: =INDEX('Compile Data'!$BG$12:$CB$93,$A74-1921,'Report - ALL (DASHBOARD)'!$W$3) -> 77.89102173 | E74: =INDEX('Compile Data'!$CE$12:$CZ$93,$A74-1921,'Report - ALL (DASHBOARD)'!$W$3) -> 77.56945038 | F74: =INDEX('Compile Data'!$DC$12:$DX$93,$A74-1921,'Report - ALL (DASHBOARD)'!$W$3) -> 77.56959534 | O74: 46 | P74: 0.5555555556 | Q74: =INDEX('Compile Data'!$K$123:$AF$204,$O74,'Report - ALL (DASHBOARD)'!$W$3) -> 82.12141418 | R74: =INDEX('Compile Data'!$AI$123:$BD$204,$O74,'Report - ALL (DASHBOARD)'!$W$3) -> 81.44536591 | S74: =INDEX('Compile Data'!$BG$123:$CB$204,$O74,'Report - ALL (DASHBOARD)'!$W$3) -> 81.14910126 | T74: =INDEX('Compile Data'!$CE$123:$CZ$204,$O74,'Report - ALL (DASHBOARD)'!$W$3) -> 81.14016724 | U74: =INDEX('Compile Data'!$DC$123:$DX$204,$O74,'Report - ALL (DASHBOARD)'!$W$3) -> 81.14016724
A75: 1968 | B75: =INDEX('Compile Data'!$K$12:$AF$93,$A75-1921,'Report - ALL (DASHBOARD)'!$W$3) -> 90.82824707 | C75: =INDEX('Compile Data'!$AI$12:$BD$93,$A75-1921,'Report - ALL (DASHBOARD)'!$W$3) -> 89.68759918 | D75: =INDEX('Compile Data'!$BG$12:$CB$93,$A75-1921,'Report - ALL (DASHBOARD)'!$W$3) -> 89.79572296 | E75: =INDEX('Compile Data'!$CE$12:$CZ$93,$A75-1921,'Report - ALL (DASHBOARD)'!$W$3) -> 89.92974091 | F75: =INDEX('Compile Data'!$DC$12:$DX$93,$A75-1921,'Report - ALL (DASHBOARD)'!$W$3) -> 89.93637848 | O75: 47 | P75: 0.5679012346 | Q75: =INDEX('Compile Data'!$K$123:$AF$204,$O75,'Report - ALL (DASHBOARD)'!$W$3) -> 81.5848999 | R75: =INDEX('Compile Data'!$AI$123:$BD$204,$O75,'Report - ALL (DASHBOARD)'!$W$3) -> 80.93915558 | S75: =INDEX('Compile Data'!$BG$123:$CB$204,$O75,'Report - ALL (DASHBOARD)'!$W$3) -> 80.94537354 | T75: =INDEX('Compile Data'!$CE$123:$CZ$204,$O75,'Report - ALL (DASHBOARD)'!$W$3) -> 81.13883209 | U75: =INDEX('Compile Data'!$DC$123:$DX$204,$O75,'Report - ALL (DASHBOARD)'!$W$3) -> 81.13873291
A76: 1969 | B76: =INDEX('Compile Data'!$K$12:$AF$93,$A76-1921,'Report - ALL (DASHBOARD)'!$W$3) -> 81.08569336 | C76: =INDEX('Compile Data'!$AI$12:$BD$93,$A76-1921,'Report - ALL (DASHBOARD)'!$W$3) -> 79.59931946 | D76: =INDEX('Compile Data'!$BG$12:$CB$93,$A76-1921,'Report - ALL (DASHBOARD)'!$W$3) -> 79.59660339 | E76: =INDEX('Compile Data'!$CE$12:$CZ$93,$A76-1921,'Report - ALL (DASHBOARD)'!$W$3) -> 80.54412842 | F76: =INDEX('Compile Data'!$DC$12:$DX$93,$A76-1921,'Report - ALL (DASHBOARD)'!$W$3) -> 80.54489136 | O76: 48 | P76: 0.5802469136 | Q76: =INDEX('Compile Data'!$K$123:$AF$204,$O76,'Report - ALL (DASHBOARD)'!$W$3) -> 81.50212097 | R76: =INDEX('Compile Data'!$AI$123:$BD$204,$O76,'Report - ALL (DASHBOARD)'!$W$3) -> 80.88231659 | S76: =INDEX('Compile Data'!$BG$123:$CB$204,$O76,'Report - ALL (DASHBOARD)'!$W$3) -> 80.87590027 | T76: =INDEX('Compile Data'!$CE$123:$CZ$204,$O76,'Report - ALL (DASHBOARD)'!$W$3) -> 80.94873047 | U76: =INDEX('Compile Data'!$DC$123:$DX$204,$O76,'Report - ALL (DASHBOARD)'!$W$3) -> 80.94835663
A77: 1970 | B77: =INDEX('Compile Data'!$K$12:$AF$93,$A77-1921,'Report - ALL (DASHBOARD)'!$W$3) -> 80.4850769 | C77: =INDEX('Compile Data'!$AI$12:$BD$93,$A77-1921,'Report - ALL (DASHBOARD)'!$W$3) -> 79.92778015 | D77: =INDEX('Compile Data'!$BG$12:$CB$93,$A77-1921,'Report - ALL (DASHBOARD)'!$W$3) -> 79.90912628 | E77: =INDEX('Compile Data'!$CE$12:$CZ$93,$A77-1921,'Report - ALL (DASHBOARD)'!$W$3) -> 80.14464569 | F77: =INDEX('Compile Data'!$DC$12:$DX$93,$A77-1921,'Report - ALL (DASHBOARD)'!$W$3) -> 80.14466095 | O77: 49 | P77: 0.5925925926 | Q77: =INDEX('Compile Data'!$K$123:$AF$204,$O77,'Report - ALL (DASHBOARD)'!$W$3) -> 81.45089722 | R77: =INDEX('Compile Data'!$AI$123:$BD$204,$O77,'Report - ALL (DASHBOARD)'!$W$3) -> 80.84773254 | S77: =INDEX('Compile Data'!$BG$123:$CB$204,$O77,'Report - ALL (DASHBOARD)'!$W$3) -> 80.82542419 | T77: =INDEX('Compile Data'!$CE$123:$CZ$204,$O77,'Report - ALL (DASHBOARD)'!$W$3) -> 80.92018127 | U77: =INDEX('Compile Data'!$DC$123:$DX$204,$O77,'Report - ALL (DASHBOARD)'!$W$3) -> 80.92042542
A78: 1971 | B78: =INDEX('Compile Data'!$K$12:$AF$93,$A78-1921,'Report - ALL (DASHBOARD)'!$W$3) -> 80.17554474 | C78: =INDEX('Compile Data'!$AI$12:$BD$93,$A78-1921,'Report - ALL (DASHBOARD)'!$W$3) -> 79.62398529 | D78: =INDEX('Compile Data'!$BG$12:$CB$93,$A78-1921,'Report - ALL (DASHBOARD)'!$W$3) -> 79.62462616 | E78: =INDEX('Compile Data'!$CE$12:$CZ$93,$A78-1921,'Report - ALL (DASHBOARD)'!$W$3) -> 79.63586426 | F78: =INDEX('Compile Data'!$DC$12:$DX$93,$A78-1921,'Report - ALL (DASHBOARD)'!$W$3) -> 79.63588715 | O78: 50 | P78: 0.6049382716 | Q78: =INDEX('Compile Data'!$K$123:$AF$204,$O78,'Report - ALL (DASHBOARD)'!$W$3) -> 81.41313934 | R78: =INDEX('Compile Data'!$AI$123:$BD$204,$O78,'Report - ALL (DASHBOARD)'!$W$3) -> 80.81513214 | S78: =INDEX('Compile Data'!$BG$123:$CB$204,$O78,'Report - ALL (DASHBOARD)'!$W$3) -> 80.78509521 | T78: =INDEX('Compile Data'!$CE$123:$CZ$204,$O78,'Report - ALL (DASHBOARD)'!$W$3) -> 80.88482666 | U78: =INDEX('Compile Data'!$DC$123:$DX$204,$O78,'Report - ALL (DASHBOARD)'!$W$3) -> 80.88483429
A79: 1972 | B79: =INDEX('Compile Data'!$K$12:$AF$93,$A79-1921,'Report - ALL (DASHBOARD)'!$W$3) -> 91.45965576 | C79: =INDEX('Compile Data'!$AI$12:$BD$93,$A79-1921,'Report - ALL (DASHBOARD)'!$W$3) -> 90.42243195 | D79: =INDEX('Compile Data'!$BG$12:$CB$93,$A79-1921,'Report - ALL (DASHBOARD)'!$W$3) -> 90.61491394 | E79: =INDEX('Compile Data'!$CE$12:$CZ$93,$A79-1921,'Report - ALL (DASHBOARD)'!$W$3) -> 90.86540985 | F79: =INDEX('Compile Data'!$DC$12:$DX$93,$A79-1921,'Report - ALL (DASHBOARD)'!$W$3) -> 90.50762177 | O79: 51 | P79: 0.6172839506 | Q79: =INDEX('Compile Data'!$K$123:$AF$204,$O79,'Report - ALL (DASHBOARD)'!$W$3) -> 81.41243744 | R79: =INDEX('Compile Data'!$AI$123:$BD$204,$O79,'Report - ALL (DASHBOARD)'!$W$3) -> 80.77721405 | S79: =INDEX('Compile Data'!$BG$123:$CB$204,$O79,'Report - ALL (DASHBOARD)'!$W$3) -> 80.77690125 | T79: =INDEX('Compile Data'!$CE$123:$CZ$204,$O79,'Report - ALL (DASHBOARD)'!$W$3) -> 80.8155899 | U79: =INDEX('Compile Data'!$DC$123:$DX$204,$O79,'Report - ALL (DASHBOARD)'!$W$3) -> 80.81634521
A80: 1973 | B80: =INDEX('Compile Data'!$K$12:$AF$93,$A80-1921,'Report - ALL (DASHBOARD)'!$W$3) -> 80.71572113 | C80: =INDEX('Compile Data'!$AI$12:$BD$93,$A80-1921,'Report - ALL (DASHBOARD)'!$W$3) -> 80.44616699 | D80: =INDEX('Compile Data'!$BG$12:$CB$93,$A80-1921,'Report - ALL (DASHBOARD)'!$W$3) -> 80.38976288 | E80: =INDEX('Compile Data'!$CE$12:$CZ$93,$A80-1921,'Report - ALL (DASHBOARD)'!$W$3) -> 80.34336853 | F80: =INDEX('Compile Data'!$DC$12:$DX$93,$A80-1921,'Report - ALL (DASHBOARD)'!$W$3) -> 80.34565735 | O80: 52 | P80: 0.6296296296 | Q80: =INDEX('Compile Data'!$K$123:$AF$204,$O80,'Report - ALL (DASHBOARD)'!$W$3) -> 81.29148865 | R80: =INDEX('Compile Data'!$AI$123:$BD$204,$O80,'Report - ALL (DASHBOARD)'!$W$3) -> 80.68200684 | S80: =INDEX('Compile Data'!$BG$123:$CB$204,$O80,'Report - ALL (DASHBOARD)'!$W$3) -> 80.63765717 | T80: =INDEX('Compile Data'!$CE$123:$CZ$204,$O80,'Report - ALL (DASHBOARD)'!$W$3) -> 80.77355957 | U80: =INDEX('Compile Data'!$DC$123:$DX$204,$O80,'Report - ALL (DASHBOARD)'!$W$3) -> 80.77352142
A81: 1974 | B81: =INDEX('Compile Data'!$K$12:$AF$93,$A81-1921,'Report - ALL (DASHBOARD)'!$W$3) -> 81.41313934 | C81: =INDEX('Compile Data'!$AI$12:$BD$93,$A81-1921,'Report - ALL (DASHBOARD)'!$W$3) -> 80.88231659 | D81: =INDEX('Compile Data'!$BG$12:$CB$93,$A81-1921,'Report - ALL (DASHBOARD)'!$W$3) -> 80.87590027 | E81: =INDEX('Compile Data'!$CE$12:$CZ$93,$A81-1921,'Report - ALL (DASHBOARD)'!$W$3) -> 80.88482666 | F81: =INDEX('Compile Data'!$DC$12:$DX$93,$A81-1921,'Report - ALL (DASHBOARD)'!$W$3) -> 80.88483429 | O81: 53 | P81: 0.6419753086 | Q81: =INDEX('Compile Data'!$K$123:$AF$204,$O81,'Report - ALL (DASHBOARD)'!$W$3) -> 81.26406097 | R81: =INDEX('Compile Data'!$AI$123:$BD$204,$O81,'Report - ALL (DASHBOARD)'!$W$3) -> 80.65029907 | S81: =INDEX('Compile Data'!$BG$123:$CB$204,$O81,'Report - ALL (DASHBOARD)'!$W$3) -> 80.58955383 | T81: =INDEX('Compile Data'!$CE$123:$CZ$204,$O81,'Report - ALL (DASHBOARD)'!$W$3) -> 80.67523193 | U81: =INDEX('Compile Data'!$DC$123:$DX$204,$O81,'Report - ALL (DASHBOARD)'!$W$3) -> 80.67604828
A82: 1975 | B82: =INDEX('Compile Data'!$K$12:$AF$93,$A82-1921,'Report - ALL (DASHBOARD)'!$W$3) -> 81.22618866 | C82: =INDEX('Compile Data'!$AI$12:$BD$93,$A82-1921,'Report - ALL (DASHBOARD)'!$W$3) -> 80.18276215 | D82: =INDEX('Compile Data'!$BG$12:$CB$93,$A82-1921,'Report - ALL (DASHBOARD)'!$W$3) -> 80.18358612 | E82: =INDEX('Compile Data'!$CE$12:$CZ$93,$A82-1921,'Report - ALL (DASHBOARD)'!$W$3) -> 80.67523193 | F82: =INDEX('Compile Data'!$DC$12:$DX$93,$A82-1921,'Report - ALL (DASHBOARD)'!$W$3) -> 80.67604828 | O82: 54 | P82: 0.6543209877 | Q82: =INDEX('Compile Data'!$K$123:$AF$204,$O82,'Report - ALL (DASHBOARD)'!$W$3) -> 81.22618866 | R82: =INDEX('Compile Data'!$AI$123:$BD$204,$O82,'Report - ALL (DASHBOARD)'!$W$3) -> 80.63846588 | S82: =INDEX('Compile Data'!$BG$123:$CB$204,$O82,'Report - ALL (DASHBOARD)'!$W$3) -> 80.53340149 | T82: =INDEX('Compile Data'!$CE$123:$CZ$204,$O82,'Report - ALL (DASHBOARD)'!$W$3) -> 80.64136505 | U82: =INDEX('Compile Data'!$DC$123:$DX$204,$O82,'Report - ALL (DASHBOARD)'!$W$3) -> 80.64134216
A83: 1976 | B83: =INDEX('Compile Data'!$K$12:$AF$93,$A83-1921,'Report - ALL (DASHBOARD)'!$W$3) -> 94.00570679 | C83: =INDEX('Compile Data'!$AI$12:$BD$93,$A83-1921,'Report - ALL (DASHBOARD)'!$W$3) -> 92.62879944 | D83: =INDEX('Compile Data'!$BG$12:$CB$93,$A83-1921,'Report - ALL (DASHBOARD)'!$W$3) -> 92.47515869 | E83: =INDEX('Compile Data'!$CE$12:$CZ$93,$A83-1921,'Report - ALL (DASHBOARD)'!$W$3) -> 92.66943359 | F83: =INDEX('Compile Data'!$DC$12:$DX$93,$A83-1921,'Report - ALL (DASHBOARD)'!$W$3) -> 92.66936493 | O83: 55 | P83: 0.6666666667 | Q83: =INDEX('Compile Data'!$K$123:$AF$204,$O83,'Report - ALL (DASHBOARD)'!$W$3) -> 81.20843506 | R83: =INDEX('Compile Data'!$AI$123:$BD$204,$O83,'Report - ALL (DASHBOARD)'!$W$3) -> 80.60153198 | S83: =INDEX('Compile Data'!$BG$123:$CB$204,$O83,'Report - ALL (DASHBOARD)'!$W$3) -> 80.52042389 | T83: =INDEX('Compile Data'!$CE$123:$CZ$204,$O83,'Report - ALL (DASHBOARD)'!$W$3) -> 80.54412842 | U83: =INDEX('Compile Data'!$DC$123:$DX$204,$O83,'Report - ALL (DASHBOARD)'!$W$3) -> 80.54489136
A84: 1977 | B84: =INDEX('Compile Data'!$K$12:$AF$93,$A84-1921,'Report - ALL (DASHBOARD)'!$W$3) -> 93.52148438 | C84: =INDEX('Compile Data'!$AI$12:$BD$93,$A84-1921,'Report - ALL (DASHBOARD)'!$W$3) -> 92.59296417 | D84: =INDEX('Compile Data'!$BG$12:$CB$93,$A84-1921,'Report - ALL (DASHBOARD)'!$W$3) -> 92.27726746 | E84: =INDEX('Compile Data'!$CE$12:$CZ$93,$A84-1921,'Report - ALL (DASHBOARD)'!$W$3) -> 91.66329956 | F84: =INDEX('Compile Data'!$DC$12:$DX$93,$A84-1921,'Report - ALL (DASHBOARD)'!$W$3) -> 92.2115097 | O84: 56 | P84: 0.6790123457 | Q84: =INDEX('Compile Data'!$K$123:$AF$204,$O84,'Report - ALL (DASHBOARD)'!$W$3) -> 81.13887024 | R84: =INDEX('Compile Data'!$AI$123:$BD$204,$O84,'Report - ALL (DASHBOARD)'!$W$3) -> 80.58952332 | S84: =INDEX('Compile Data'!$BG$123:$CB$204,$O84,'Report - ALL (DASHBOARD)'!$W$3) -> 80.47712708 | T84: =INDEX('Compile Data'!$CE$123:$CZ$204,$O84,'Report - ALL (DASHBOARD)'!$W$3) -> 80.53352356 | U84: =INDEX('Compile Data'!$DC$123:$DX$204,$O84,'Report - ALL (DASHBOARD)'!$W$3) -> 80.5334549
A85: 1978 | B85: =INDEX('Compile Data'!$K$12:$AF$93,$A85-1921,'Report - ALL (DASHBOARD)'!$W$3) -> 81.45089722 | C85: =INDEX('Compile Data'!$AI$12:$BD$93,$A85-1921,'Report - ALL (DASHBOARD)'!$W$3) -> 76.4361496 | D85: =INDEX('Compile Data'!$BG$12:$CB$93,$A85-1921,'Report - ALL (DASHBOARD)'!$W$3) -> 78.58963776 | E85: =INDEX('Compile Data'!$CE$12:$CZ$93,$A85-1921,'Report - ALL (DASHBOARD)'!$W$3) -> 80.92018127 | F85: =INDEX('Compile Data'!$DC$12:$DX$93,$A85-1921,'Report - ALL (DASHBOARD)'!$W$3) -> 80.92042542 | O85: 57 | P85: 0.6913580247 | Q85: =INDEX('Compile Data'!$K$123:$AF$204,$O85,'Report - ALL (DASHBOARD)'!$W$3) -> 81.08569336 | R85: =INDEX('Compile Data'!$AI$123:$BD$204,$O85,'Report - ALL (DASHBOARD)'!$W$3) -> 80.54251099 | S85: =INDEX('Compile Data'!$BG$123:$CB$204,$O85,'Report - ALL (DASHBOARD)'!$W$3) -> 80.45117188 | T85: =INDEX('Compile Data'!$CE$123:$CZ$204,$O85,'Report - ALL (DASHBOARD)'!$W$3) -> 80.52854156 | U85: =INDEX('Compile Data'!$DC$123:$DX$204,$O85,'Report - ALL (DASHBOARD)'!$W$3) -> 80.52763367
A86: 1979 | B86: =INDEX('Compile Data'!$K$12:$AF$93,$A86-1921,'Report - ALL (DASHBOARD)'!$W$3) -> 91.76417542 | C86: =INDEX('Compile Data'!$AI$12:$BD$93,$A86-1921,'Report - ALL (DASHBOARD)'!$W$3) -> 91.21891022 | D86: =INDEX('Compile Data'!$BG$12:$CB$93,$A86-1921,'Report - ALL (DASHBOARD)'!$W$3) -> 91.22910309 | E86: =INDEX('Compile Data'!$CE$12:$CZ$93,$A86-1921,'Report - ALL (DASHBOARD)'!$W$3) -> 91.22003937 | F86: =INDEX('Compile Data'!$DC$12:$DX$93,$A86-1921,'Report - ALL (DASHBOARD)'!$W$3) -> 91.22002411 | O86: 58 | P86: 0.7037037037 | Q86: =INDEX('Compile Data'!$K$123:$AF$204,$O86,'Report - ALL (DASHBOARD)'!$W$3) -> 81.06995392 | R86: =INDEX('Compile Data'!$AI$123:$BD$204,$O86,'Report - ALL (DASHBOARD)'!$W$3) -> 80.44616699 | S86: =INDEX('Compile Data'!$BG$123:$CB$204,$O86,'Report - ALL (DASHBOARD)'!$W$3) -> 80.43895721 | T86: =INDEX('Compile Data'!$CE$123:$CZ$204,$O86,'Report - ALL (DASHBOARD)'!$W$3) -> 80.4901886 | U86: =INDEX('Compile Data'!$DC$123:$DX$204,$O86,'Report - ALL (DASHBOARD)'!$W$3) -> 80.49028015
A87: 1980 | B87: =INDEX('Compile Data'!$K$12:$AF$93,$A87-1921,'Report - ALL (DASHBOARD)'!$W$3) -> 80.82565308 | C87: =INDEX('Compile Data'!$AI$12:$BD$93,$A87-1921,'Report - ALL (DASHBOARD)'!$W$3) -> 80.22436523 | D87: =INDEX('Compile Data'!$BG$12:$CB$93,$A87-1921,'Report - ALL (DASHBOARD)'!$W$3) -> 80.21910858 | E87: =INDEX('Compile Data'!$CE$12:$CZ$93,$A87-1921,'Report - ALL (DASHBOARD)'!$W$3) -> 80.21131134 | F87: =INDEX('Compile Data'!$DC$12:$DX$93,$A87-1921,'Report - ALL (DASHBOARD)'!$W$3) -> 80.2113266 | O87: 59 | P87: 0.7160493827 | Q87: =INDEX('Compile Data'!$K$123:$AF$204,$O87,'Report - ALL (DASHBOARD)'!$W$3) -> 81.06604004 | R87: =INDEX('Compile Data'!$AI$123:$BD$204,$O87,'Report - ALL (DASHBOARD)'!$W$3) -> 80.44158173 | S87: =INDEX('Compile Data'!$BG$123:$CB$204,$O87,'Report - ALL (DASHBOARD)'!$W$3) -> 80.38976288 | T87: =INDEX('Compile Data'!$CE$123:$CZ$204,$O87,'Report - ALL (DASHBOARD)'!$W$3) -> 80.47497559 | U87: =INDEX('Compile Data'!$DC$123:$DX$204,$O87,'Report - ALL (DASHBOARD)'!$W$3) -> 80.47576141
A88: 1981 | B88: =INDEX('Compile Data'!$K$12:$AF$93,$A88-1921,'Report - ALL (DASHBOARD)'!$W$3) -> 92.2067337 | C88: =INDEX('Compile Data'!$AI$12:$BD$93,$A88-1921,'Report - ALL (DASHBOARD)'!$W$3) -> 91.46334839 | D88: =INDEX('Compile Data'!$BG$12:$CB$93,$A88-1921,'Report - ALL (DASHBOARD)'!$W$3) -> 91.46202087 | E88: =INDEX('Compile Data'!$CE$12:$CZ$93,$A88-1921,'Report - ALL (DASHBOARD)'!$W$3) -> 90.96282959 | F88: =INDEX('Compile Data'!$DC$12:$DX$93,$A88-1921,'Report - ALL (DASHBOARD)'!$W$3) -> 90.95466614 | O88: 60 | P88: 0.7283950617 | Q88: =INDEX('Compile Data'!$K$123:$AF$204,$O88,'Report - ALL (DASHBOARD)'!$W$3) -> 81.01874542 | R88: =INDEX('Compile Data'!$AI$123:$BD$204,$O88,'Report - ALL (DASHBOARD)'!$W$3) -> 80.41156006 | S88: =INDEX('Compile Data'!$BG$123:$CB$204,$O88,'Report - ALL (DASHBOARD)'!$W$3) -> 80.37522125 | T88: =INDEX('Compile Data'!$CE$123:$CZ$204,$O88,'Report - ALL (DASHBOARD)'!$W$3) -> 80.44752502 | U88: =INDEX('Compile Data'!$DC$123:$DX$204,$O88,'Report - ALL (DASHBOARD)'!$W$3) -> 80.44869232
A89: 1982 | B89: =INDEX('Compile Data'!$K$12:$AF$93,$A89-1921,'Report - ALL (DASHBOARD)'!$W$3) -> 82.12141418 | C89: =INDEX('Compile Data'!$AI$12:$BD$93,$A89-1921,'Report - ALL (DASHBOARD)'!$W$3) -> 80.68200684 | D89: =INDEX('Compile Data'!$BG$12:$CB$93,$A89-1921,'Report - ALL (DASHBOARD)'!$W$3) -> 79.52044678 | E89: =INDEX('Compile Data'!$CE$12:$CZ$93,$A89-1921,'Report - ALL (DASHBOARD)'!$W$3) -> 79.55002594 | F89: =INDEX('Compile Data'!$DC$12:$DX$93,$A89-1921,'Report - ALL (DASHBOARD)'!$W$3) -> 79.55007172 | O89: 61 | P89: 0.7407407407 | Q89: =INDEX('Compile Data'!$K$123:$AF$204,$O89,'Report - ALL (DASHBOARD)'!$W$3) -> 80.99604034 | R89: =INDEX('Compile Data'!$AI$123:$BD$204,$O89,'Report - ALL (DASHBOARD)'!$W$3) -> 80.37522125 | S89: =INDEX('Compile Data'!$BG$123:$CB$204,$O89,'Report - ALL (DASHBOARD)'!$W$3) -> 80.35591125 | T89: =INDEX('Compile Data'!$CE$123:$CZ$204,$O89,'Report - ALL (DASHBOARD)'!$W$3) -> 80.41890717 | U89: =INDEX('Compile Data'!$DC$123:$DX$204,$O89,'Report - ALL (DASHBOARD)'!$W$3) -> 80.44737244
A90: 1983 | B90: =INDEX('Compile Data'!$K$12:$AF$93,$A90-1921,'Report - ALL (DASHBOARD)'!$W$3) -> 73.01747131 | C90: =INDEX('Compile Data'!$AI$12:$BD$93,$A90-1921,'Report - ALL (DASHBOARD)'!$W$3) -> 72.48278046 | D90: =INDEX('Compile Data'!$BG$12:$CB$93,$A90-1921,'Report - ALL (DASHBOARD)'!$W$3) -> 72.48301697 | E90: =INDEX('Compile Data'!$CE$12:$CZ$93,$A90-1921,'Report - ALL (DASHBOARD)'!$W$3) -> 72.65531921 | F90: =INDEX('Compile Data'!$DC$12:$DX$93,$A90-1921,'Report - ALL (DASHBOARD)'!$W$3) -> 72.65532684 | O90: 62 | P90: 0.7530864198 | Q90: =INDEX('Compile Data'!$K$123:$AF$204,$O90,'Report - ALL (DASHBOARD)'!$W$3) -> 80.9953537 | R90: =INDEX('Compile Data'!$AI$123:$BD$204,$O90,'Report - ALL (DASHBOARD)'!$W$3) -> 80.27758789 | S90: =INDEX('Compile Data'!$BG$123:$CB$204,$O90,'Report - ALL (DASHBOARD)'!$W$3) -> 80.27720642 | T90: =INDEX('Compile Data'!$CE$123:$CZ$204,$O90,'Report - ALL (DASHBOARD)'!$W$3) -> 80.34336853 | U90: =INDEX('Compile Data'!$DC$123:$DX$204,$O90,'Report - ALL (DASHBOARD)'!$W$3) -> 80.41886139
A91: 1984 | B91: =INDEX('Compile Data'!$K$12:$AF$93,$A91-1921,'Report - ALL (DASHBOARD)'!$W$3) -> 80.63768768 | C91: =INDEX('Compile Data'!$AI$12:$BD$93,$A91-1921,'Report - ALL (DASHBOARD)'!$W$3) -> 80.37522125 | D91: =INDEX('Compile Data'!$BG$12:$CB$93,$A91-1921,'Report - ALL (DASHBOARD)'!$W$3) -> 80.37522125 | E91: =INDEX('Compile Data'!$CE$12:$CZ$93,$A91-1921,'Report - ALL (DASHBOARD)'!$W$3) -> 79.85392761 | F91: =INDEX('Compile Data'!$DC$12:$DX$93,$A91-1921,'Report - ALL (DASHBOARD)'!$W$3) -> 79.85387421 | O91: 63 | P91: 0.7654320988 | Q91: =INDEX('Compile Data'!$K$123:$AF$204,$O91,'Report - ALL (DASHBOARD)'!$W$3) -> 80.82565308 | R91: =INDEX('Compile Data'!$AI$123:$BD$204,$O91,'Report - ALL (DASHBOARD)'!$W$3) -> 80.22436523 | S91: =INDEX('Compile Data'!$BG$123:$CB$204,$O91,'Report - ALL (DASHBOARD)'!$W$3) -> 80.21910858 | T91: =INDEX('Compile Data'!$CE$123:$CZ$204,$O91,'Report - ALL (DASHBOARD)'!$W$3) -> 80.30885315 | U91: =INDEX('Compile Data'!$DC$123:$DX$204,$O91,'Report - ALL (DASHBOARD)'!$W$3) -> 80.34565735
A92: 1985 | B92: =INDEX('Compile Data'!$K$12:$AF$93,$A92-1921,'Report - ALL (DASHBOARD)'!$W$3) -> 92.29573059 | C92: =INDEX('Compile Data'!$AI$12:$BD$93,$A92-1921,'Report - ALL (DASHBOARD)'!$W$3) -> 91.38002014 | D92: =INDEX('Compile Data'!$BG$12:$CB$93,$A92-1921,'Report - ALL (DASHBOARD)'!$W$3) -> 91.35791779 | E92: =INDEX('Compile Data'!$CE$12:$CZ$93,$A92-1921,'Report - ALL (DASHBOARD)'!$W$3) -> 91.18417358 | F92: =INDEX('Compile Data'!$DC$12:$DX$93,$A92-1921,'Report - ALL (DASHBOARD)'!$W$3) -> 91.18404388 | O92: 64 | P92: 0.7777777778 | Q92: =INDEX('Compile Data'!$K$123:$AF$204,$O92,'Report - ALL (DASHBOARD)'!$W$3) -> 80.76161194 | R92: =INDEX('Compile Data'!$AI$123:$BD$204,$O92,'Report - ALL (DASHBOARD)'!$W$3) -> 80.18276215 | S92: =INDEX('Compile Data'!$BG$123:$CB$204,$O92,'Report - ALL (DASHBOARD)'!$W$3) -> 80.18358612 | T92: =INDEX('Compile Data'!$CE$123:$CZ$204,$O92,'Report - ALL (DASHBOARD)'!$W$3) -> 80.2758255 | U92: =INDEX('Compile Data'!$DC$123:$DX$204,$O92,'Report - ALL (DASHBOARD)'!$W$3) -> 80.30909729
A93: 1986 | B93: =INDEX('Compile Data'!$K$12:$AF$93,$A93-1921,'Report - ALL (DASHBOARD)'!$W$3) -> 81.06604004 | C93: =INDEX('Compile Data'!$AI$12:$BD$93,$A93-1921,'Report - ALL (DASHBOARD)'!$W$3) -> 80.44158173 | D93: =INDEX('Compile Data'!$BG$12:$CB$93,$A93-1921,'Report - ALL (DASHBOARD)'!$W$3) -> 80.47712708 | E93: =INDEX('Compile Data'!$CE$12:$CZ$93,$A93-1921,'Report - ALL (DASHBOARD)'!$W$3) -> 80.4901886 | F93: =INDEX('Compile Data'!$DC$12:$DX$93,$A93-1921,'Report - ALL (DASHBOARD)'!$W$3) -> 80.49028015 | O93: 65 | P93: =(O93-1)/81 -> 0.7901234568 | Q93: =INDEX('Compile Data'!$K$123:$AF$204,$O93,'Report - ALL (DASHBOARD)'!$W$3) -> 80.71572113 | R93: =INDEX('Compile Data'!$AI$123:$BD$204,$O93,'Report - ALL (DASHBOARD)'!$W$3) -> 80.07839966 | S93: =INDEX('Compile Data'!$BG$123:$CB$204,$O93,'Report - ALL (DASHBOARD)'!$W$3) -> 80.05480957 | T93: =INDEX('Compile Data'!$CE$123:$CZ$204,$O93,'Report - ALL (DASHBOARD)'!$W$3) -> 80.21131134 | U93: =INDEX('Compile Data'!$DC$123:$DX$204,$O93,'Report - ALL (DASHBOARD)'!$W$3) -> 80.27577209
A94: 1987 | B94: =INDEX('Compile Data'!$K$12:$AF$93,$A94-1921,'Report - ALL (DASHBOARD)'!$W$3) -> 92.56659698 | C94: =INDEX('Compile Data'!$AI$12:$BD$93,$A94-1921,'Report - ALL (DASHBOARD)'!$W$3) -> 91.52161407 | D94: =INDEX('Compile Data'!$BG$12:$CB$93,$A94-1921,'Report - ALL (DASHBOARD)'!$W$3) -> 91.52420044 | E94: =INDEX('Compile Data'!$CE$12:$CZ$93,$A94-1921,'Report - ALL (DASHBOARD)'!$W$3) -> 91.52231598 | F94: =INDEX('Compile Data'!$DC$12:$DX$93,$A94-1921,'Report - ALL (DASHBOARD)'!$W$3) -> 91.52236176 | O94: 66 | P94: 0.8024691358 | Q94: =INDEX('Compile Data'!$K$123:$AF$204,$O94,'Report - ALL (DASHBOARD)'!$W$3) -> 80.63768768 | R94: =INDEX('Compile Data'!$AI$123:$BD$204,$O94,'Report - ALL (DASHBOARD)'!$W$3) -> 80.05539703 | S94: =INDEX('Compile Data'!$BG$123:$CB$204,$O94,'Report - ALL (DASHBOARD)'!$W$3) -> 80.01623535 | T94: =INDEX('Compile Data'!$CE$123:$CZ$204,$O94,'Report - ALL (DASHBOARD)'!$W$3) -> 80.14464569 | U94: =INDEX('Compile Data'!$DC$123:$DX$204,$O94,'Report - ALL (DASHBOARD)'!$W$3) -> 80.2113266
A95: =A94+1 -> 1988 | B95: =INDEX('Compile Data'!$K$12:$AF$93,$A95-1921,'Report - ALL (DASHBOARD)'!$W$3) -> 93.62600708 | C95: =INDEX('Compile Data'!$AI$12:$BD$93,$A95-1921,'Report - ALL (DASHBOARD)'!$W$3) -> 92.70346069 | D95: =INDEX('Compile Data'!$BG$12:$CB$93,$A95-1921,'Report - ALL (DASHBOARD)'!$W$3) -> 92.60511017 | E95: =INDEX('Compile Data'!$CE$12:$CZ$93,$A95-1921,'Report - ALL (DASHBOARD)'!$W$3) -> 92.38883209 | F95: =INDEX('Compile Data'!$DC$12:$DX$93,$A95-1921,'Report - ALL (DASHBOARD)'!$W$3) -> 92.71491241 | O95: 67 | P95: 0.8148148148 | Q95: =INDEX('Compile Data'!$K$123:$AF$204,$O95,'Report - ALL (DASHBOARD)'!$W$3) -> 80.61856079 | R95: =INDEX('Compile Data'!$AI$123:$BD$204,$O95,'Report - ALL (DASHBOARD)'!$W$3) -> 80.01677704 | S95: =INDEX('Compile Data'!$BG$123:$CB$204,$O95,'Report - ALL (DASHBOARD)'!$W$3) -> 79.90912628 | T95: =INDEX('Compile Data'!$CE$123:$CZ$204,$O95,'Report - ALL (DASHBOARD)'!$W$3) -> 80.11299896 | U95: =INDEX('Compile Data'!$DC$123:$DX$204,$O95,'Report - ALL (DASHBOARD)'!$W$3) -> 80.14466095
A96: 1989 | B96: =INDEX('Compile Data'!$K$12:$AF$93,$A96-1921,'Report - ALL (DASHBOARD)'!$W$3) -> 91.44303894 | C96: =INDEX('Compile Data'!$AI$12:$BD$93,$A96-1921,'Report - ALL (DASHBOARD)'!$W$3) -> 91.47972107 | D96: =INDEX('Compile Data'!$BG$12:$CB$93,$A96-1921,'Report - ALL (DASHBOARD)'!$W$3) -> 91.48168182 | E96: =INDEX('Compile Data'!$CE$12:$CZ$93,$A96-1921,'Report - ALL (DASHBOARD)'!$W$3) -> 90.75688934 | F96: =INDEX('Compile Data'!$DC$12:$DX$93,$A96-1921,'Report - ALL (DASHBOARD)'!$W$3) -> 90.74648285 | O96: 68 | P96: 0.8271604938 | Q96: =INDEX('Compile Data'!$K$123:$AF$204,$O96,'Report - ALL (DASHBOARD)'!$W$3) -> 80.60099792 | R96: =INDEX('Compile Data'!$AI$123:$BD$204,$O96,'Report - ALL (DASHBOARD)'!$W$3) -> 79.92778015 | S96: =INDEX('Compile Data'!$BG$123:$CB$204,$O96,'Report - ALL (DASHBOARD)'!$W$3) -> 79.83273315 | T96: =INDEX('Compile Data'!$CE$123:$CZ$204,$O96,'Report - ALL (DASHBOARD)'!$W$3) -> 80.06118774 | U96: =INDEX('Compile Data'!$DC$123:$DX$204,$O96,'Report - ALL (DASHBOARD)'!$W$3) -> 80.06116486
A97: 1990 | B97: =INDEX('Compile Data'!$K$12:$AF$93,$A97-1921,'Report - ALL (DASHBOARD)'!$W$3) -> 93.66648865 | C97: =INDEX('Compile Data'!$AI$12:$BD$93,$A97-1921,'Report - ALL (DASHBOARD)'!$W$3) -> 93.68120575 | D97: =INDEX('Compile Data'!$BG$12:$CB$93,$A97-1921,'Report - ALL (DASHBOARD)'!$W$3) -> 93.67951965 | E97: =INDEX('Compile Data'!$CE$12:$CZ$93,$A97-1921,'Report - ALL (DASHBOARD)'!$W$3) -> 93.66718292 | F97: =INDEX('Compile Data'!$DC$12:$DX$93,$A97-1921,'Report - ALL (DASHBOARD)'!$W$3) -> 93.69112396 | O97: 69 | P97: 0.8395061728 | Q97: =INDEX('Compile Data'!$K$123:$AF$204,$O97,'Report - ALL (DASHBOARD)'!$W$3) -> 80.59387207 | R97: =INDEX('Compile Data'!$AI$123:$BD$204,$O97,'Report - ALL (DASHBOARD)'!$W$3) -> 79.83272552 | S97: =INDEX('Compile Data'!$BG$123:$CB$204,$O97,'Report - ALL (DASHBOARD)'!$W$3) -> 79.78726959 | T97: =INDEX('Compile Data'!$CE$123:$CZ$204,$O97,'Report - ALL (DASHBOARD)'!$W$3) -> 80.054039 | U97: =INDEX('Compile Data'!$DC$123:$DX$204,$O97,'Report - ALL (DASHBOARD)'!$W$3) -> 80.05400848
A98: 1991 | B98: =INDEX('Compile Data'!$K$12:$AF$93,$A98-1921,'Report - ALL (DASHBOARD)'!$W$3) -> 93.69350433 | C98: =INDEX('Compile Data'!$AI$12:$BD$93,$A98-1921,'Report - ALL (DASHBOARD)'!$W$3) -> 93.60287476 | D98: =INDEX('Compile Data'!$BG$12:$CB$93,$A98-1921,'Report - ALL (DASHBOARD)'!$W$3) -> 93.595047 | E98: =INDEX('Compile Data'!$CE$12:$CZ$93,$A98-1921,'Report - ALL (DASHBOARD)'!$W$3) -> 93.61917877 | F98: =INDEX('Compile Data'!$DC$12:$DX$93,$A98-1921,'Report - ALL (DASHBOARD)'!$W$3) -> 93.66335297 | O98: 70 | P98: 0.8518518519 | Q98: =INDEX('Compile Data'!$K$123:$AF$204,$O98,'Report - ALL (DASHBOARD)'!$W$3) -> 80.59328461 | R98: =INDEX('Compile Data'!$AI$123:$BD$204,$O98,'Report - ALL (DASHBOARD)'!$W$3) -> 79.81674194 | S98: =INDEX('Compile Data'!$BG$123:$CB$204,$O98,'Report - ALL (DASHBOARD)'!$W$3) -> 79.68556213 | T98: =INDEX('Compile Data'!$CE$123:$CZ$204,$O98,'Report - ALL (DASHBOARD)'!$W$3) -> 80.04885864 | U98: =INDEX('Compile Data'!$DC$123:$DX$204,$O98,'Report - ALL (DASHBOARD)'!$W$3) -> 80.04886627
A99: 1992 | B99: =INDEX('Compile Data'!$K$12:$AF$93,$A99-1921,'Report - ALL (DASHBOARD)'!$W$3) -> 93.71229553 | C99: =INDEX('Compile Data'!$AI$12:$BD$93,$A99-1921,'Report - ALL (DASHBOARD)'!$W$3) -> 93.01309967 | D99: =INDEX('Compile Data'!$BG$12:$CB$93,$A99-1921,'Report - ALL (DASHBOARD)'!$W$3) -> 92.97640228 | E99: =INDEX('Compile Data'!$CE$12:$CZ$93,$A99-1921,'Report - ALL (DASHBOARD)'!$W$3) -> 93.33425903 | F99: =INDEX('Compile Data'!$DC$12:$DX$93,$A99-1921,'Report - ALL (DASHBOARD)'!$W$3) -> 93.64182281 | O99: 71 | P99: 0.8641975309 | Q99: =INDEX('Compile Data'!$K$123:$AF$204,$O99,'Report - ALL (DASHBOARD)'!$W$3) -> 80.4850769 | R99: =INDEX('Compile Data'!$AI$123:$BD$204,$O99,'Report - ALL (DASHBOARD)'!$W$3) -> 79.68241882 | S99: =INDEX('Compile Data'!$BG$123:$CB$204,$O99,'Report - ALL (DASHBOARD)'!$W$3) -> 79.62462616 | T99: =INDEX('Compile Data'!$CE$123:$CZ$204,$O99,'Report - ALL (DASHBOARD)'!$W$3) -> 79.95996857 | U99: =INDEX('Compile Data'!$DC$123:$DX$204,$O99,'Report - ALL (DASHBOARD)'!$W$3) -> 79.9600296
A100: 1993 | B100: =INDEX('Compile Data'!$K$12:$AF$93,$A100-1921,'Report - ALL (DASHBOARD)'!$W$3) -> 81.06995392 | C100: =INDEX('Compile Data'!$AI$12:$BD$93,$A100-1921,'Report - ALL (DASHBOARD)'!$W$3) -> 80.63846588 | D100: =INDEX('Compile Data'!$BG$12:$CB$93,$A100-1921,'Report - ALL (DASHBOARD)'!$W$3) -> 80.63765717 | E100: =INDEX('Compile Data'!$CE$12:$CZ$93,$A100-1921,'Report - ALL (DASHBOARD)'!$W$3) -> 80.52854156 | F100: =INDEX('Compile Data'!$DC$12:$DX$93,$A100-1921,'Report - ALL (DASHBOARD)'!$W$3) -> 80.52763367 | O100: 72 | P100: 0.8765432099 | Q100: =INDEX('Compile Data'!$K$123:$AF$204,$O100,'Report - ALL (DASHBOARD)'!$W$3) -> 80.48088837 | R100: =INDEX('Compile Data'!$AI$123:$BD$204,$O100,'Report - ALL (DASHBOARD)'!$W$3) -> 79.62398529 | S100: =INDEX('Compile Data'!$BG$123:$CB$204,$O100,'Report - ALL (DASHBOARD)'!$W$3) -> 79.59660339 | T100: =INDEX('Compile Data'!$CE$123:$CZ$204,$O100,'Report - ALL (DASHBOARD)'!$W$3) -> 79.85392761 | U100: =INDEX('Compile Data'!$DC$123:$DX$204,$O100,'Report - ALL (DASHBOARD)'!$W$3) -> 79.85387421
A101: 1994 | B101: =INDEX('Compile Data'!$K$12:$AF$93,$A101-1921,'Report - ALL (DASHBOARD)'!$W$3) -> 92.4065094 | C101: =INDEX('Compile Data'!$AI$12:$BD$93,$A101-1921,'Report - ALL (DASHBOARD)'!$W$3) -> 91.70458221 | D101: =INDEX('Compile Data'!$BG$12:$CB$93,$A101-1921,'Report - ALL (DASHBOARD)'!$W$3) -> 91.30234528 | E101: =INDEX('Compile Data'!$CE$12:$CZ$93,$A101-1921,'Report - ALL (DASHBOARD)'!$W$3) -> 91.2253418 | F101: =INDEX('Compile Data'!$DC$12:$DX$93,$A101-1921,'Report - ALL (DASHBOARD)'!$W$3) -> 91.22183228 | O101: 73 | P101: 0.8888888889 | Q101: =INDEX('Compile Data'!$K$123:$AF$204,$O101,'Report - ALL (DASHBOARD)'!$W$3) -> 80.38069916 | R101: =INDEX('Compile Data'!$AI$123:$BD$204,$O101,'Report - ALL (DASHBOARD)'!$W$3) -> 79.59931946 | S101: =INDEX('Compile Data'!$BG$123:$CB$204,$O101,'Report - ALL (DASHBOARD)'!$W$3) -> 79.52044678 | T101: =INDEX('Compile Data'!$CE$123:$CZ$204,$O101,'Report - ALL (DASHBOARD)'!$W$3) -> 79.79801941 | U101: =INDEX('Compile Data'!$DC$123:$DX$204,$O101,'Report - ALL (DASHBOARD)'!$W$3) -> 79.79794312
A102: 1995 | B102: =INDEX('Compile Data'!$K$12:$AF$93,$A102-1921,'Report - ALL (DASHBOARD)'!$W$3) -> 78.17926788 | C102: =INDEX('Compile Data'!$AI$12:$BD$93,$A102-1921,'Report - ALL (DASHBOARD)'!$W$3) -> 77.74559021 | D102: =INDEX('Compile Data'!$BG$12:$CB$93,$A102-1921,'Report - ALL (DASHBOARD)'!$W$3) -> 75.33726501 | E102: =INDEX('Compile Data'!$CE$12:$CZ$93,$A102-1921,'Report - ALL (DASHBOARD)'!$W$3) -> 75.3377533 | F102: =INDEX('Compile Data'!$DC$12:$DX$93,$A102-1921,'Report - ALL (DASHBOARD)'!$W$3) -> 75.33733368 | O102: 74 | P102: 0.9012345679 | Q102: =INDEX('Compile Data'!$K$123:$AF$204,$O102,'Report - ALL (DASHBOARD)'!$W$3) -> 80.35185242 | R102: =INDEX('Compile Data'!$AI$123:$BD$204,$O102,'Report - ALL (DASHBOARD)'!$W$3) -> 79.57974243 | S102: =INDEX('Compile Data'!$BG$123:$CB$204,$O102,'Report - ALL (DASHBOARD)'!$W$3) -> 79.50920105 | T102: =INDEX('Compile Data'!$CE$123:$CZ$204,$O102,'Report - ALL (DASHBOARD)'!$W$3) -> 79.6434021 | U102: =INDEX('Compile Data'!$DC$123:$DX$204,$O102,'Report - ALL (DASHBOARD)'!$W$3) -> 79.64395142
A103: 1996 | B103: =INDEX('Compile Data'!$K$12:$AF$93,$A103-1921,'Report - ALL (DASHBOARD)'!$W$3) -> 81.50212097 | C103: =INDEX('Compile Data'!$AI$12:$BD$93,$A103-1921,'Report - ALL (DASHBOARD)'!$W$3) -> 81.44536591 | D103: =INDEX('Compile Data'!$BG$12:$CB$93,$A103-1921,'Report - ALL (DASHBOARD)'!$W$3) -> 81.14910126 | E103: =INDEX('Compile Data'!$CE$12:$CZ$93,$A103-1921,'Report - ALL (DASHBOARD)'!$W$3) -> 81.13883209 | F103: =INDEX('Compile Data'!$DC$12:$DX$93,$A103-1921,'Report - ALL (DASHBOARD)'!$W$3) -> 81.13873291 | O103: 75 | P103: 0.9135802469 | Q103: =INDEX('Compile Data'!$K$123:$AF$204,$O103,'Report - ALL (DASHBOARD)'!$W$3) -> 80.34163666 | R103: =INDEX('Compile Data'!$AI$123:$BD$204,$O103,'Report - ALL (DASHBOARD)'!$W$3) -> 79.39510345 | S103: =INDEX('Compile Data'!$BG$123:$CB$204,$O103,'Report - ALL (DASHBOARD)'!$W$3) -> 79.39176941 | T103: =INDEX('Compile Data'!$CE$123:$CZ$204,$O103,'Report - ALL (DASHBOARD)'!$W$3) -> 79.63586426 | U103: =INDEX('Compile Data'!$DC$123:$DX$204,$O103,'Report - ALL (DASHBOARD)'!$W$3) -> 79.63588715
A104: 1997 | B104: =INDEX('Compile Data'!$K$12:$AF$93,$A104-1921,'Report - ALL (DASHBOARD)'!$W$3) -> 81.29148865 | C104: =INDEX('Compile Data'!$AI$12:$BD$93,$A104-1921,'Report - ALL (DASHBOARD)'!$W$3) -> 80.77721405 | D104: =INDEX('Compile Data'!$BG$12:$CB$93,$A104-1921,'Report - ALL (DASHBOARD)'!$W$3) -> 80.77690125 | E104: =INDEX('Compile Data'!$CE$12:$CZ$93,$A104-1921,'Report - ALL (DASHBOARD)'!$W$3) -> 80.77355957 | F104: =INDEX('Compile Data'!$DC$12:$DX$93,$A104-1921,'Report - ALL (DASHBOARD)'!$W$3) -> 80.77352142 | O104: 76 | P104: 0.9259259259 | Q104: =INDEX('Compile Data'!$K$123:$AF$204,$O104,'Report - ALL (DASHBOARD)'!$W$3) -> 80.17554474 | R104: =INDEX('Compile Data'!$AI$123:$BD$204,$O104,'Report - ALL (DASHBOARD)'!$W$3) -> 79.15380859 | S104: =INDEX('Compile Data'!$BG$123:$CB$204,$O104,'Report - ALL (DASHBOARD)'!$W$3) -> 79.16152191 | T104: =INDEX('Compile Data'!$CE$123:$CZ$204,$O104,'Report - ALL (DASHBOARD)'!$W$3) -> 79.55002594 | U104: =INDEX('Compile Data'!$DC$123:$DX$204,$O104,'Report - ALL (DASHBOARD)'!$W$3) -> 79.55007172
A105: 1998 | B105: =INDEX('Compile Data'!$K$12:$AF$93,$A105-1921,'Report - ALL (DASHBOARD)'!$W$3) -> 74.91355133 | C105: =INDEX('Compile Data'!$AI$12:$BD$93,$A105-1921,'Report - ALL (DASHBOARD)'!$W$3) -> 74.58511353 | D105: =INDEX('Compile Data'!$BG$12:$CB$93,$A105-1921,'Report - ALL (DASHBOARD)'!$W$3) -> 74.58474731 | E105: =INDEX('Compile Data'!$CE$12:$CZ$93,$A105-1921,'Report - ALL (DASHBOARD)'!$W$3) -> 74.58388519 | F105: =INDEX('Compile Data'!$DC$12:$DX$93,$A105-1921,'Report - ALL (DASHBOARD)'!$W$3) -> 74.58393097 | O105: 77 | P105: 0.9382716049 | Q105: =INDEX('Compile Data'!$K$123:$AF$204,$O105,'Report - ALL (DASHBOARD)'!$W$3) -> 79.84021759 | R105: =INDEX('Compile Data'!$AI$123:$BD$204,$O105,'Report - ALL (DASHBOARD)'!$W$3) -> 77.74559021 | S105: =INDEX('Compile Data'!$BG$123:$CB$204,$O105,'Report - ALL (DASHBOARD)'!$W$3) -> 78.79263306 | T105: =INDEX('Compile Data'!$CE$123:$CZ$204,$O105,'Report - ALL (DASHBOARD)'!$W$3) -> 79.20614624 | U105: =INDEX('Compile Data'!$DC$123:$DX$204,$O105,'Report - ALL (DASHBOARD)'!$W$3) -> 79.21238708
A106: 1999 | B106: =INDEX('Compile Data'!$K$12:$AF$93,$A106-1921,'Report - ALL (DASHBOARD)'!$W$3) -> 80.59328461 | C106: =INDEX('Compile Data'!$AI$12:$BD$93,$A106-1921,'Report - ALL (DASHBOARD)'!$W$3) -> 80.01677704 | D106: =INDEX('Compile Data'!$BG$12:$CB$93,$A106-1921,'Report - ALL (DASHBOARD)'!$W$3) -> 80.01623535 | E106: =INDEX('Compile Data'!$CE$12:$CZ$93,$A106-1921,'Report - ALL (DASHBOARD)'!$W$3) -> 80.04885864 | F106: =INDEX('Compile Data'!$DC$12:$DX$93,$A106-1921,'Report - ALL (DASHBOARD)'!$W$3) -> 80.04886627 | O106: 78 | P106: 0.950617284 | Q106: =INDEX('Compile Data'!$K$123:$AF$204,$O106,'Report - ALL (DASHBOARD)'!$W$3) -> 79.26548767 | R106: =INDEX('Compile Data'!$AI$123:$BD$204,$O106,'Report - ALL (DASHBOARD)'!$W$3) -> 77.73764038 | S106: =INDEX('Compile Data'!$BG$123:$CB$204,$O106,'Report - ALL (DASHBOARD)'!$W$3) -> 78.58963776 | T106: =INDEX('Compile Data'!$CE$123:$CZ$204,$O106,'Report - ALL (DASHBOARD)'!$W$3) -> 78.74692535 | U106: =INDEX('Compile Data'!$DC$123:$DX$204,$O106,'Report - ALL (DASHBOARD)'!$W$3) -> 78.74679565
A107: 2000 | B107: =INDEX('Compile Data'!$K$12:$AF$93,$A107-1921,'Report - ALL (DASHBOARD)'!$W$3) -> 81.01874542 | C107: =INDEX('Compile Data'!$AI$12:$BD$93,$A107-1921,'Report - ALL (DASHBOARD)'!$W$3) -> 80.41156006 | D107: =INDEX('Compile Data'!$BG$12:$CB$93,$A107-1921,'Report - ALL (DASHBOARD)'!$W$3) -> 80.45117188 | E107: =INDEX('Compile Data'!$CE$12:$CZ$93,$A107-1921,'Report - ALL (DASHBOARD)'!$W$3) -> 80.47497559 | F107: =INDEX('Compile Data'!$DC$12:$DX$93,$A107-1921,'Report - ALL (DASHBOARD)'!$W$3) -> 80.47576141 | O107: 79 | P107: 0.962962963 | Q107: =INDEX('Compile Data'!$K$123:$AF$204,$O107,'Report - ALL (DASHBOARD)'!$W$3) -> 78.42658234 | R107: =INDEX('Compile Data'!$AI$123:$BD$204,$O107,'Report - ALL (DASHBOARD)'!$W$3) -> 76.4361496 | S107: =INDEX('Compile Data'!$BG$123:$CB$204,$O107,'Report - ALL (DASHBOARD)'!$W$3) -> 77.89102173 | T107: =INDEX('Compile Data'!$CE$123:$CZ$204,$O107,'Report - ALL (DASHBOARD)'!$W$3) -> 77.56945038 | U107: =INDEX('Compile Data'!$DC$123:$DX$204,$O107,'Report - ALL (DASHBOARD)'!$W$3) -> 77.56959534
A108: 2001 | B108: =INDEX('Compile Data'!$K$12:$AF$93,$A108-1921,'Report - ALL (DASHBOARD)'!$W$3) -> 92.42777252 | C108: =INDEX('Compile Data'!$AI$12:$BD$93,$A108-1921,'Report - ALL (DASHBOARD)'!$W$3) -> 91.63767242 | D108: =INDEX('Compile Data'!$BG$12:$CB$93,$A108-1921,'Report - ALL (DASHBOARD)'!$W$3) -> 91.67311096 | E108: =INDEX('Compile Data'!$CE$12:$CZ$93,$A108-1921,'Report - ALL (DASHBOARD)'!$W$3) -> 91.671875 | F108: =INDEX('Compile Data'!$DC$12:$DX$93,$A108-1921,'Report - ALL (DASHBOARD)'!$W$3) -> 91.62902069 | O108: 80 | P108: 0.975308642 | Q108: =INDEX('Compile Data'!$K$123:$AF$204,$O108,'Report - ALL (DASHBOARD)'!$W$3) -> 78.17926788 | R108: =INDEX('Compile Data'!$AI$123:$BD$204,$O108,'Report - ALL (DASHBOARD)'!$W$3) -> 76.17852783 | S108: =INDEX('Compile Data'!$BG$123:$CB$204,$O108,'Report - ALL (DASHBOARD)'!$W$3) -> 75.33726501 | T108: =INDEX('Compile Data'!$CE$123:$CZ$204,$O108,'Report - ALL (DASHBOARD)'!$W$3) -> 75.3377533 | U108: =INDEX('Compile Data'!$DC$123:$DX$204,$O108,'Report - ALL (DASHBOARD)'!$W$3) -> 75.33733368
A109: 2002 | B109: =INDEX('Compile Data'!$K$12:$AF$93,$A109-1921,'Report - ALL (DASHBOARD)'!$W$3) -> 92.52751923 | C109: =INDEX('Compile Data'!$AI$12:$BD$93,$A109-1921,'Report - ALL (DASHBOARD)'!$W$3) -> 91.24858093 | D109: =INDEX('Compile Data'!$BG$12:$CB$93,$A109-1921,'Report - ALL (DASHBOARD)'!$W$3) -> 91.24659729 | E109: =INDEX('Compile Data'!$CE$12:$CZ$93,$A109-1921,'Report - ALL (DASHBOARD)'!$W$3) -> 91.2400589 | F109: =INDEX('Compile Data'!$DC$12:$DX$93,$A109-1921,'Report - ALL (DASHBOARD)'!$W$3) -> 91.23826599 | O109: 81 | P109: 0.987654321 | Q109: =INDEX('Compile Data'!$K$123:$AF$204,$O109,'Report - ALL (DASHBOARD)'!$W$3) -> 74.91355133 | R109: =INDEX('Compile Data'!$AI$123:$BD$204,$O109,'Report - ALL (DASHBOARD)'!$W$3) -> 74.58511353 | S109: =INDEX('Compile Data'!$BG$123:$CB$204,$O109,'Report - ALL (DASHBOARD)'!$W$3) -> 74.58474731 | T109: =INDEX('Compile Data'!$CE$123:$CZ$204,$O109,'Report - ALL (DASHBOARD)'!$W$3) -> 74.58388519 | U109: =INDEX('Compile Data'!$DC$123:$DX$204,$O109,'Report - ALL (DASHBOARD)'!$W$3) -> 74.58393097
A110: 2003 | B110: =INDEX('Compile Data'!$K$12:$AF$93,$A110-1921,'Report - ALL (DASHBOARD)'!$W$3) -> 80.99604034 | C110: =INDEX('Compile Data'!$AI$12:$BD$93,$A110-1921,'Report - ALL (DASHBOARD)'!$W$3) -> 80.60153198 | D110: =INDEX('Compile Data'!$BG$12:$CB$93,$A110-1921,'Report - ALL (DASHBOARD)'!$W$3) -> 80.43895721 | E110: =INDEX('Compile Data'!$CE$12:$CZ$93,$A110-1921,'Report - ALL (DASHBOARD)'!$W$3) -> 80.41890717 | F110: =INDEX('Compile Data'!$DC$12:$DX$93,$A110-1921,'Report - ALL (DASHBOARD)'!$W$3) -> 80.41886139 | O110: 82 | P110: 1 | Q110: =INDEX('Compile Data'!$K$123:$AF$204,$O110,'Report - ALL (DASHBOARD)'!$W$3) -> 73.01747131 | R110: =INDEX('Compile Data'!$AI$123:$BD$204,$O110,'Report - ALL (DASHBOARD)'!$W$3) -> 72.48278046 | S110: =INDEX('Compile Data'!$BG$123:$CB$204,$O110,'Report - ALL (DASHBOARD)'!$W$3) -> 72.48301697 | T110: =INDEX('Compile Data'!$CE$123:$CZ$204,$O110,'Report - ALL (DASHBOARD)'!$W$3) -> 72.65531921 | U110: =INDEX('Compile Data'!$DC$123:$DX$204,$O110,'Report - ALL (DASHBOARD)'!$W$3) -> 72.65532684

Sheet Compile Data
B1: =Control!$B$9 -> NAA 041122 2035CT | C1: =Control!$B$10 -> ALT3A 041122 2035CT | D1: =Control!$B$11 -> ALT3B 041122 2035CT | E1: =Control!$B$12 -> ALT1A 062222 2035CT | F1: =Control!$B$13 -> ALT1A 062222 noShaEXCH 2035CT | AB1: =$B$8 -> PER-AVER | AZ1: =$C$8 -> PER-AVER | BX1: ='Compile Data'!$D$8 -> PER-AVER | CV1: ='Compile Data'!$D$8 -> PER-AVER | DT1: ='Compile Data'!$F$8 -> PER-AVER
A2: Index: | B2: ='Report - ALL (DASHBOARD)'!W1 -> 68 | C2: =B2 -> 68 | D2: 68 | E2: 68 | F2: 68
A3: Convert? | B3: =IF('Report - ALL (DASHBOARD)'!W4,1,0) -> 0 | C3: 0 | D3: 0 | E3: 0 | F3: 0
A4: Column: | B4: =VLOOKUP(B$2,Control!$A$25:$J$93,7) -> BP | C4: BP | D4: BP | E4: BP | F4: BP
A5: Title: | B5: =VLOOKUP(B$2,Control!$A$25:$J$93,10) -> Average X2 Distance | C5: =VLOOKUP(C$2,Control!$A$25:$J$155,9) -> PER-AVER | D5: =VLOOKUP(D$2,Control!$A$25:$J$155,9) -> PER-AVER | E5: =VLOOKUP(E$2,Control!$A$25:$J$155,9) -> PER-AVER | F5: =VLOOKUP(F$2,Control!$A$25:$J$155,9) -> PER-AVER
A6: Parameter: | B6: =INDIRECT(CONCATENATE("'",B$1,"'!",B$4,2)) -> X2 | C6: =INDIRECT(CONCATENATE("'",C$1,"'!",C$4,2)) -> X2 | D6: X2 | E6: X2 | F6: X2
B7: =INDIRECT(CONCATENATE("'",B$1,"'!",B$4,3)) -> X2-POSITION | C7: X2-POSITION | D7: X2-POSITION | E7: X2-POSITION | F7: X2-POSITION
A8: Type: | B8: =TRIM(VLOOKUP(B$2,Control!$A$25:$J$93,9)) -> PER-AVER | C8: =TRIM(VLOOKUP(C$2,Control!$A$25:$J$155,9)) -> PER-AVER | D8: =TRIM(VLOOKUP(D$2,Control!$A$25:$J$155,9)) -> PER-AVER | E8: =TRIM(VLOOKUP(E$2,Control!$A$25:$J$155,9)) -> PER-AVER | F8: =TRIM(VLOOKUP(F$2,Control!$A$25:$J$155,9)) -> PER-AVER | J8: =CONCATENATE(TRIM(B$1),": ",TRIM(B$5)," - ",TRIM(B$6)," ",TRIM(B$7)," (",TRIM(B$10),") ",TRIM(B$11)) -> NAA 041122 2035CT: Average X2 Distance - X2 X2-POSITION (KM) | AH8: =CONCATENATE(TRIM(C$1),": ",TRIM(C$5)," - ",TRIM(C$6)," ",TRIM(C$7)," (",TRIM(C$10),") ",TRIM(C$11)) -> ALT3A 041122 2035CT: PER-AVER - X2 X2-POSITION (KM) | BF8: =CONCATENATE(TRIM('Compile Data'!D$1),": ",TRIM('Compile Data'!D$5)," - ",TRIM('Compile Data'!D$6)," ",TRIM('Compile Data'!D$7)," (",TRIM('Compile Data'!D$10),") ",TRIM('Compile Data'!D$11)) -> ALT3B 041122 2035CT: PER-AVER - X2 X2-POSITION (KM) | CD8: =CONCATENATE(TRIM('Compile Data'!E$1),": ",TRIM('Compile Data'!E$5)," - ",TRIM('Compile Data'!E$6)," ",TRIM('Compile Data'!E$7)," (",TRIM('Compile Data'!E$10),") ",TRIM('Compile Data'!E$11)) -> ALT1A 062222 2035CT: PER-AVER - X2 X2-POSITION (KM) | DB8: =CONCATENATE(TRIM('Compile Data'!F$1),": ",TRIM('Compile Data'!F$5)," - ",TRIM('Compile Data'!F$6)," ",TRIM('Compile Data'!F$7)," (",TRIM('Compile Data'!F$10),") ",TRIM('Compile Data'!F$11)) -> ALT1A 062222 noShaEXCH 2035CT: PER-AVER - X2 X2-POSITION (KM)
A9: Units-native: | B9: =TRIM(INDIRECT(CONCATENATE("'",B$1,"'!",B$4,11))) -> KM | C9: KM | D9: KM | E9: KM | F9: KM
A10: Units-shown: | B10: =IF(AND(B$3>0,B$9="CFS"),"TAF",B$9) -> KM | C10: KM | D10: KM | E10: KM | F10: KM | X10: Jan-Dec | Y10: Mar-Feb | Z10: Oct-Sep | AB10: Oct-Jan | AC10: Dec-Feb | AD10: Mar-Jun | AE10: Jun-Sep | AF10: Sep-Nov | AV10: Jan-Dec | AW10: Mar-Feb | AX10: Oct-Sep | AZ10: Oct-Jan | BA10: Dec-Feb | BB10: Mar-Jun | BC10: Jun-Sep | BD10: Sep-Nov | BT10: Jan-Dec | BU10: Mar-Feb | BV10: Oct-Sep | BX10: Oct-Jan | BY10: Dec-Feb | BZ10: Mar-Jun | CA10: Jun-Sep | CB10: Sep-Nov | CR10: Jan-Dec | CS10: Mar-Feb | CT10: Oct-Sep | CV10: Oct-Jan | CW10: Dec-Feb | CX10: Mar-Jun | CY10: Jun-Sep | CZ10: Sep-Nov | DP10: Jan-Dec | DQ10: Mar-Feb | DR10: Oct-Sep | DT10: Oct-Jan | DU10: Dec-Feb | DV10: Mar-Jun | DW10: Jun-Sep | DX10: Sep-Nov
A11: Date | B11: =IF(ISNUMBER(FIND("PRV",B$6)),"SHIFTED","") ->  | J11: YEAR | K11: OCT | L11: NOV | M11: DEC | N11: JAN | O11: FEB | P11: MAR | Q11: APR | R11: MAY | S11: JUN | T11: JUL | U11: AUG | V11: SEP | X11: =IF(AND($B$10="TAF",$B$8="PER-AVER"),"TOT","AVG") -> AVG | Y11: =IF(AND($B$10="TAF",$B$8="PER-AVER"),"TOT","AVG") -> AVG | Z11: =IF(AND($B$10="TAF",$B$8="PER-AVER"),"TOT","AVG") -> AVG | AB11: =IF(AND($B$10="TAF",$B$8="PER-AVER"),"TOT","AVG") -> AVG | AC11: =IF(AND($B$10="TAF",$B$8="PER-AVER"),"TOT","AVG") -> AVG | AD11: =IF(AND($B$10="TAF",$B$8="PER-AVER"),"TOT","AVG") -> AVG | AE11: =IF(AND($B$10="TAF",$B$8="PER-AVER"),"TOT","AVG") -> AVG | AF11: =IF(AND($B$10="TAF",$B$8="PER-AVER"),"TOT","AVG") -> AVG | AH11: YEAR | AI11: OCT | AJ11: NOV | AK11: DEC | AL11: JAN | AM11: FEB | AN11: MAR | AO11: APR | AP11: MAY | AQ11: JUN | AR11: JUL | AS11: AUG | AT11: SEP | AV11: =IF(AND($C$10="TAF",$C$8="PER-AVER"),"TOT","AVG") -> AVG | AW11: =IF(AND($C$10="TAF",$C$8="PER-AVER"),"TOT","AVG") -> AVG | AX11: =IF(AND($C$10="TAF",$C$8="PER-AVER"),"TOT","AVG") -> AVG | AZ11: =IF(AND($C$10="TAF",$C$8="PER-AVER"),"TOT","AVG") -> AVG | BA11: =IF(AND($C$10="TAF",$C$8="PER-AVER"),"TOT","AVG") -> AVG | BB11: =IF(AND($C$10="TAF",$C$8="PER-AVER"),"TOT","AVG") -> AVG | BC11: =IF(AND($C$10="TAF",$C$8="PER-AVER"),"TOT","AVG") -> AVG | BD11: =IF(AND($C$10="TAF",$C$8="PER-AVER"),"TOT","AVG") -> AVG | BF11: YEAR | BG11: OCT | BH11: NOV | BI11: DEC | BJ11: JAN | BK11: FEB | BL11: MAR | BM11: APR | BN11: MAY | BO11: JUN | BP11: JUL | BQ11: AUG | BR11: SEP | BT11: =IF(AND('Compile Data'!$D$10="TAF",'Compile Data'!$D$8="PER-AVER"),"TOT","AVG") -> AVG | BU11: =IF(AND('Compile Data'!$D$10="TAF",'Compile Data'!$D$8="PER-AVER"),"TOT","AVG") -> AVG | BV11: =IF(AND('Compile Data'!$D$10="TAF",'Compile Data'!$D$8="PER-AVER"),"TOT","AVG") -> AVG | BX11: =IF(AND('Compile Data'!$D$10="TAF",'Compile Data'!$D$8="PER-AVER"),"TOT","AVG") -> AVG | BY11: =IF(AND('Compile Data'!$D$10="TAF",'Compile Data'!$D$8="PER-AVER"),"TOT","AVG") -> AVG | BZ11: =IF(AND('Compile Data'!$D$10="TAF",'Compile Data'!$D$8="PER-AVER"),"TOT","AVG") -> AVG | CA11: =IF(AND('Compile Data'!$D$10="TAF",'Compile Data'!$D$8="PER-AVER"),"TOT","AVG") -> AVG | CB11: =IF(AND('Compile Data'!$D$10="TAF",'Compile Data'!$D$8="PER-AVER"),"TOT","AVG") -> AVG | CD11: YEAR | CE11: OCT | CF11: NOV | CG11: DEC | CH11: JAN | CI11: FEB | CJ11: MAR | CK11: APR | CL11: MAY | CM11: JUN | CN11: JUL | CO11: AUG | CP11: SEP | CR11: =IF(AND('Compile Data'!$D$10="TAF",'Compile Data'!$D$8="PER-AVER"),"TOT","AVG") -> AVG | CS11: =IF(AND('Compile Data'!$D$10="TAF",'Compile Data'!$D$8="PER-AVER"),"TOT","AVG") -> AVG | CT11: =IF(AND('Compile Data'!$D$10="TAF",'Compile Data'!$D$8="PER-AVER"),"TOT","AVG") -> AVG | CV11: =IF(AND('Compile Data'!$D$10="TAF",'Compile Data'!$D$8="PER-AVER"),"TOT","AVG") -> AVG | CW11: =IF(AND('Compile Data'!$D$10="TAF",'Compile Data'!$D$8="PER-AVER"),"TOT","AVG") -> AVG | CX11: =IF(AND('Compile Data'!$D$10="TAF",'Compile Data'!$D$8="PER-AVER"),"TOT","AVG") -> AVG | CY11: =IF(AND('Compile Data'!$D$10="TAF",'Compile Data'!$D$8="PER-AVER"),"TOT","AVG") -> AVG | CZ11: =IF(AND('Compile Data'!$D$10="TAF",'Compile Data'!$D$8="PER-AVER"),"TOT","AVG") -> AVG | DB11: YEAR | DC11: OCT | DD11: NOV | DE11: DEC | DF11: JAN | DG11: FEB | DH11: MAR | DI11: APR | DJ11: MAY | DK11: JUN | DL11: JUL | DM11: AUG | DN11: SEP | DP11: =IF(AND('Compile Data'!$F$10="TAF",'Compile Data'!$F$8="PER-AVER"),"TOT","AVG") -> AVG | DQ11: =IF(AND('Compile Data'!$F$10="TAF",'Compile Data'!$F$8="PER-AVER"),"TOT","AVG") -> AVG | DR11: =IF(AND('Compile Data'!$F$10="TAF",'Compile Data'!$F$8="PER-AVER"),"TOT","AVG") -> AVG | DT11: =IF(AND('Compile Data'!$F$10="TAF",'Compile Data'!$F$8="PER-AVER"),"TOT","AVG") -> AVG | DU11: =IF(AND('Compile Data'!$F$10="TAF",'Compile Data'!$F$8="PER-AVER"),"TOT","AVG") -> AVG | DV11: =IF(AND('Compile Data'!$F$10="TAF",'Compile Data'!$F$8="PER-AVER"),"TOT","AVG") -> AVG | DW11: =IF(AND('Compile Data'!$F$10="TAF",'Compile Data'!$F$8="PER-AVER"),"TOT","AVG") -> AVG | DX11: =IF(AND('Compile Data'!$F$10="TAF",'Compile Data'!$F$8="PER-AVER"),"TOT","AVG") -> AVG
A12: 1921-09-30 | J12: 1922 | K12: =B13 -> 74.22718811 | L12: =B14 -> 80.79016113 | M12: =B15 -> 81.62612915 | N12: =B16 -> 76.01322937 | O12: =B17 -> 56.24071503 | P12: =B18 -> 55.81490707 | Q12: =B19 -> 57.14109421 | R12: =B20 -> 55.12168884 | S12: =B21 -> 63.75791168 | T12: =B22 -> 75.40342712 | U12: =B23 -> 82.75148773 | V12: =B24 -> 81.5848999 | X12: =IF(X$11="AVG",AVERAGE(N12:V12,K13:M13),SUM(N12:V12,K13:M13)) -> 69.0871954 | Y12: =IF(Y$11="AVG",AVERAGE(P12:V12,K13:O13),SUM(P12:V12,K13:O13)) -> 68.20931753 | Z12: =IF(Z$11="AVG",AVERAGE(K12:V12),SUM(K12:V12)) -> 70.03940328 | AB12: =IF(AB$11="AVG",IF(AB$1="INST-VAL",AVERAGE(V11,K12:M12,K12:N12),AVERAGE(K12:N12)),SUM(K12:N12)) -> 78.16417694 | AC12: =IF(AC$11="AVG",IF(AB$1="INST-VAL",AVERAGE(L12:N12,M12:O12),AVERAGE(M12:O12)),SUM(M12:O12)) -> 71.29335785 | AD12: =IF(AD$11="AVG",IF(AB$1="INST-VAL",AVERAGE(O12:R12,P12:S12),AVERAGE(P12:S12)),SUM(P12:S12)) -> 57.95890045 | AE12: =IF(AE$11="AVG",IF(AB$1="INST-VAL",AVERAGE(R12:U12,S12:V12),AVERAGE(S12:V12)),SUM(S12:V12)) -> 75.87443161 | AF12: =IF(AF$11="AVG",IF(AB$1="INST-VAL",AVERAGE(U12:V12,K13,V12,K13:L13),AVERAGE(V12,K13:L13)),SUM(V12,K13:L13)) -> 81.54571533 | AH12: 1922 | AI12: ='Compile Data'!C13 -> 72.78142548 | AJ12: ='Compile Data'!C14 -> 80.6312561 | AK12: ='Compile Data'!C15 -> 81.63070679 | AL12: ='Compile Data'!C16 -> 76.12779999 | AM12: ='Compile Data'!C17 -> 56.55198288 | AN12: ='Compile Data'!C18 -> 55.8357811 | AO12: ='Compile Data'!C19 -> 56.92459106 | AP12: ='Compile Data'!C20 -> 55.09210968 | AQ12: ='Compile Data'!C21 -> 63.99343491 | AR12: ='Compile Data'!C22 -> 75.57607269 | AS12: ='Compile Data'!C23 -> 82.45005035 | AT12: ='Compile Data'!C24 -> 79.39510345 | AV12: =IF(AV$11="AVG",AVERAGE(AL12:AT12,AI13:AK13),SUM(AL12:AT12,AI13:AK13)) -> 68.67607021 | AW12: =IF(AW$11="AVG",AVERAGE(AN12:AT12,AI13:AM13),SUM(AN12:AT12,AI13:AM13)) -> 67.79106426 | AX12: =IF(AX$11="AVG",AVERAGE(AI12:AT12),SUM(AI12:AT12)) -> 69.74919287 | AZ12: =IF(AZ$11="AVG",IF(AZ$1="INST-VAL",AVERAGE(AT11,AI12:AK12,AI12:AL12),AVERAGE(AI12:AL12)),SUM(AI12:AL12)) -> 77.79279709 | BA12: =IF(BA$11="AVG",IF(AZ$1="INST-VAL",AVERAGE(AJ12:AL12,AK12:AM12),AVERAGE(AK12:AM12)),SUM(AK12:AM12)) -> 71.43682988 | BB12: =IF(BB$11="AVG",IF(AZ$1="INST-VAL",AVERAGE(AM12:AP12,AN12:AQ12),AVERAGE(AN12:AQ12)),SUM(AN12:AQ12)) -> 57.96147919 | BC12: =IF(BC$11="AVG",IF(AZ$1="INST-VAL",AVERAGE(AP12:AS12,AQ12:AT12),AVERAGE(AQ12:AT12)),SUM(AQ12:AT12)) -> 75.35366535 | BD12: =IF(BD$11="AVG",IF(AZ$1="INST-VAL",AVERAGE(AS12:AT12,AI13,AT12,AI13:AJ13),AVERAGE(AT12,AI13:AJ13)),SUM(AT12,AI13:AJ13)) -> 79.61123912 | BF12: 1922 | BG12: ='Compile Data'!D13 -> 72.77642822 | BH12: ='Compile Data'!D14 -> 80.63154602 | BI12: ='Compile Data'!D15 -> 81.59505463 | BJ12: ='Compile Data'!D16 -> 76.12787628 | BK12: ='Compile Data'!D17 -> 56.53591919 | BL12: ='Compile Data'!D18 -> 55.83275986 | BM12: ='Compile Data'!D19 -> 56.98168564 | BN12: ='Compile Data'!D20 -> 55.10040665 | BO12: ='Compile Data'!D21 -> 63.99279404 | BP12: ='Compile Data'!D22 -> 75.57596588 | BQ12: ='Compile Data'!D23 -> 82.45021057 | BR12: ='Compile Data'!D24 -> 79.39176941 | BT12: =IF(BT$11="AVG",AVERAGE(BJ12:BR12,BG13:BI13),SUM(BJ12:BR12,BG13:BI13)) -> 68.67944876 | BU12: =IF(BU$11="AVG",AVERAGE(BL12:BR12,BG13:BK13),SUM(BL12:BR12,BG13:BK13)) -> 67.79577827 | BV12: =IF(BV$11="AVG",AVERAGE(BG12:BR12),SUM(BG12:BR12)) -> 69.74936803 | BX12: =IF(BX$11="AVG",IF(BX$1="INST-VAL",AVERAGE(BR11,BG12:BI12,BG12:BJ12),AVERAGE(BG12:BJ12)),SUM(BG12:BJ12)) -> 77.78272629 | BY12: =IF(BY$11="AVG",IF(BX$1="INST-VAL",AVERAGE(BH12:BJ12,BI12:BK12),AVERAGE(BI12:BK12)),SUM(BI12:BK12)) -> 71.4196167 | BZ12: =IF(BZ$11="AVG",IF(BX$1="INST-VAL",AVERAGE(BK12:BN12,BL12:BO12),AVERAGE(BL12:BO12)),SUM(BL12:BO12)) -> 57.97691154 | CA12: =IF(CA$11="AVG",IF(BX$1="INST-VAL",AVERAGE(BN12:BQ12,BO12:BR12),AVERAGE(BO12:BR12)),SUM(BO12:BR12)) -> 75.35268497 | CB12: =IF(CB$11="AVG",IF(BX$1="INST-VAL",AVERAGE(BQ12:BR12,BG13,BR12,BG13:BH13),AVERAGE(BR12,BG13:BH13)),SUM(BR12,BG13:BH13)) -> 79.60946401 | CD12: 1922 | CE12: ='Compile Data'!E13 -> 74.07633209 | CF12: ='Compile Data'!E14 -> 80.78560638 | CG12: ='Compile Data'!E15 -> 81.6280899 | CH12: ='Compile Data'!E16 -> 75.97454834 | CI12: ='Compile Data'!E17 -> 56.48704147 | CJ12: ='Compile Data'!E18 -> 55.8274765 | CK12: ='Compile Data'!E19 -> 57.14229584 | CL12: ='Compile Data'!E20 -> 55.12480164 | CM12: ='Compile Data'!E21 -> 63.75852966 | CN12: ='Compile Data'!E22 -> 75.40322113 | CO12: ='Compile Data'!E23 -> 82.42366791 | CP12: ='Compile Data'!E24 -> 81.14016724 | CR12: =IF(CR$11="AVG",AVERAGE(CH12:CP12,CE13:CG13),SUM(CH12:CP12,CE13:CG13)) -> 69.05491606 | CS12: =IF(CS$11="AVG",AVERAGE(CJ12:CP12,CE13:CI13),SUM(CJ12:CP12,CE13:CI13)) -> 68.1900034 | CT12: =IF(CT$11="AVG",AVERAGE(CE12:CP12),SUM(CE12:CP12)) -> 69.98098151 | CV12: =IF(CV$11="AVG",IF(CV$1="INST-VAL",AVERAGE(CP11,CE12:CG12,CE12:CH12),AVERAGE(CE12:CH12)),SUM(CE12:CH12)) -> 78.11614418 | CW12: =IF(CW$11="AVG",IF(CV$1="INST-VAL",AVERAGE(CF12:CH12,CG12:CI12),AVERAGE(CG12:CI12)),SUM(CG12:CI12)) -> 71.36322657 | CX12: =IF(CX$11="AVG",IF(CV$1="INST-VAL",AVERAGE(CI12:CL12,CJ12:CM12),AVERAGE(CJ12:CM12)),SUM(CJ12:CM12)) -> 57.96327591 | CY12: =IF(CY$11="AVG",IF(CV$1="INST-VAL",AVERAGE(CL12:CO12,CM12:CP12),AVERAGE(CM12:CP12)),SUM(CM12:CP12)) -> 75.68139648 | CZ12: =IF(CZ$11="AVG",IF(CV$1="INST-VAL",AVERAGE(CO12:CP12,CE13,CP12,CE13:CF13),AVERAGE(CP12,CE13:CF13)),SUM(CP12,CE13:CF13)) -> 81.15893809 | DB12: 1922 | DC12: ='Compile Data'!F13 -> 74.07633209 | DD12: ='Compile Data'!F14 -> 80.78560638 | DE12: ='Compile Data'!F15 -> 81.6280899 | DF12: ='Compile Data'!F16 -> 75.97454834 | DG12: ='Compile Data'!F17 -> 56.48704147 | DH12: ='Compile Data'!F18 -> 55.8274765 | DI12: ='Compile Data'!F19 -> 57.14229584 | DJ12: ='Compile Data'!F20 -> 55.12480164 | DK12: ='Compile Data'!F21 -> 63.75852966 | DL12: ='Compile Data'!F22 -> 75.40322113 | DM12: ='Compile Data'!F23 -> 82.42366791 | DN12: ='Compile Data'!F24 -> 81.14016724 | DP12: =IF(DP$11="AVG",AVERAGE(DF12:DN12,DC13:DE13),SUM(DF12:DN12,DC13:DE13)) -> 69.05491606 | DQ12: =IF(DQ$11="AVG",AVERAGE(DH12:DN12,DC13:DG13),SUM(DH12:DN12,DC13:DG13)) -> 68.1900034 | DR12: =IF(DR$11="AVG",AVERAGE(DC12:DN12),SUM(DC12:DN12)) -> 69.98098151 | DT12: =IF(DT$11="AVG",IF(DT$1="INST-VAL",AVERAGE(DN11,DC12:DE12,DC12:DF12),AVERAGE(DC12:DF12)),SUM(DC12:DF12)) -> 78.11614418 | DU12: =IF(DU$11="AVG",IF(DT$1="INST-VAL",AVERAGE(DD12:DF12,DE12:DG12),AVERAGE(DE12:DG12)),SUM(DE12:DG12)) -> 71.36322657 | DV12: =IF(DV$11="AVG",IF(DT$1="INST-VAL",AVERAGE(DG12:DJ12,DH12:DK12),AVERAGE(DH12:DK12)),SUM(DH12:DK12)) -> 57.96327591 | DW12: =IF(DW$11="AVG",IF(DT$1="INST-VAL",AVERAGE(DJ12:DM12,DK12:DN12),AVERAGE(DK12:DN12)),SUM(DK12:DN12)) -> 75.68139648 | DX12: =IF(DX$11="AVG",IF(DT$1="INST-VAL",AVERAGE(DM12:DN12,DC13,DN12,DC13:DD13),AVERAGE(DN12,DC13:DD13)),SUM(DN12,DC13:DD13)) -> 81.15893809
A13: 1921-10-31 | B13: =INDIRECT(CONCATENATE("'",B$1,"'!",B$4,(YEAR($A13)-1921)*12+MONTH($A13)+3+IF(ISNUMBER(FIND("PRV",B$6)),1,0)))*IF(AND(B$3>0,TRIM(B$9)="CFS"),Conv_Flags!$C13,1) -> 74.22718811 | C13: =INDIRECT(CONCATENATE("'",C$1,"'!",C$4,(YEAR($A13)-1921)*12+MONTH($A13)+3+IF(ISNUMBER(FIND("PRV",C$6)),1,0)))*IF(AND(C$3>0,TRIM(C$9)="CFS"),Conv_Flags!$C13,1) -> 72.78142548 | D13: =INDIRECT(CONCATENATE("'",D$1,"'!",D$4,(YEAR($A13)-1921)*12+MONTH($A13)+3+IF(ISNUMBER(FIND("PRV",D$6)),1,0)))*IF(AND(D$3>0,TRIM(D$9)="CFS"),Conv_Flags!$C13,1) -> 72.77642822 | E13: =INDIRECT(CONCATENATE("'",E$1,"'!",E$4,(YEAR($A13)-1921)*12+MONTH($A13)+3+IF(ISNUMBER(FIND("PRV",E$6)),1,0)))*IF(AND(E$3>0,TRIM(E$9)="CFS"),Conv_Flags!$C13,1) -> 74.07633209 | F13: =INDIRECT(CONCATENATE("'",F$1,"'!",F$4,(YEAR($A13)-1921)*12+MONTH($A13)+3+IF(ISNUMBER(FIND("PRV",F$6)),1,0)))*IF(AND(F$3>0,TRIM(F$9)="CFS"),Conv_Flags!$C13,1) -> 74.07633209 | J13: 1923 | K13: =B25 -> 80.58673096 | L13: =B26 -> 82.46551514 | M13: =B27 -> 62.1647377 | N13: =B28 -> 57.99226379 | O13: =B29 -> 63.72714615 | P13: =B30 -> 70.40219879 | Q13: =B31 -> 61.82641983 | R13: =B32 -> 66.74623108 | S13: =B33 -> 80.02337646 | T13: =B34 -> 82.4705658 | U13: =B35 -> 86.47273254 | V13: =B36 -> 89.34145355 | X13: 77.72497559 | Y13: 81.45639388 | Z13: 73.68494765 | AB13: 70.8023119 | AC13: 61.29471588 | AD13: 69.74955654 | AE13: 84.57703209 | AF13: 90.63298035 | AH13: 1923 | AI13: ='Compile Data'!C25 -> 78.1124649 | AJ13: ='Compile Data'!C26 -> 81.32614899 | AK13: ='Compile Data'!C27 -> 62.72730255 | AL13: ='Compile Data'!C28 -> 58.29171753 | AM13: ='Compile Data'!C29 -> 63.76799393 | AN13: ='Compile Data'!C30 -> 70.40391541 | AO13: ='Compile Data'!C31 -> 61.87662506 | AP13: ='Compile Data'!C32 -> 66.87442017 | AQ13: ='Compile Data'!C33 -> 80.11871338 | AR13: ='Compile Data'!C34 -> 82.4413147 | AS13: ='Compile Data'!C35 -> 86.44615173 | AT13: ='Compile Data'!C36 -> 89.15116882 | AV13: 77.69836648 | AW13: 81.39418666 | AX13: 73.46149476 | AZ13: 70.11440849 | BA13: 61.59567134 | BB13: 69.8184185 | BC13: 84.53933716 | BD13: 90.43596395 | BF13: 1923 | BG13: ='Compile Data'!D25 -> 78.11053467 | BH13: ='Compile Data'!D26 -> 81.32608795 | BI13: ='Compile Data'!D27 -> 62.72737503 | BJ13: ='Compile Data'!D28 -> 58.2917366 | BK13: ='Compile Data'!D29 -> 63.768013 | BL13: ='Compile Data'!D30 -> 70.4047699 | BM13: ='Compile Data'!D31 -> 61.8576889 | BN13: ='Compile Data'!D32 -> 66.86754608 | BO13: ='Compile Data'!D33 -> 80.12005615 | BP13: ='Compile Data'!D34 -> 82.4630127 | BQ13: ='Compile Data'!D35 -> 86.44725037 | BR13: ='Compile Data'!D36 -> 89.38591003 | BT13: 77.73685296 | BU13: 81.43243726 | BV13: 73.48083178 | BX13: 70.11393356 | BY13: 61.59570821 | BZ13: 69.81251526 | CA13: 84.60405731 | CB13: 90.56783295 | CD13: 1923 | CE13: ='Compile Data'!E25 -> 80.07609558 | CF13: ='Compile Data'!E26 -> 82.26055145 | CG13: ='Compile Data'!E27 -> 63.04059601 | CH13: ='Compile Data'!E28 -> 58.30253601 | CI13: ='Compile Data'!E29 -> 63.78010178 | CJ13: ='Compile Data'!E30 -> 70.41136169 | CK13: ='Compile Data'!E31 -> 61.82981873 | CL13: ='Compile Data'!E32 -> 66.74427795 | CM13: ='Compile Data'!E33 -> 80.02120972 | CN13: ='Compile Data'!E34 -> 82.47203827 | CO13: ='Compile Data'!E35 -> 86.44166565 | CP13: ='Compile Data'!E36 -> 89.33154297 | CR13: 77.70518653 | CS13: 81.39751371 | CT13: 73.72598298 | CV13: 70.91994476 | CW13: 61.7077446 | CX13: 69.75166702 | CY13: 84.56661415 | CZ13: 90.49908956 | DB13: 1923 | DC13: ='Compile Data'!F25 -> 80.07609558 | DD13: ='Compile Data'!F26 -> 82.26055145 | DE13: ='Compile Data'!F27 -> 63.04059601 | DF13: ='Compile Data'!F28 -> 58.30253601 | DG13: ='Compile Data'!F29 -> 63.78010178 | DH13: ='Compile Data'!F30 -> 70.41136169 | DI13: ='Compile Data'!F31 -> 61.82981873 | DJ13: ='Compile Data'!F32 -> 66.74427795 | DK13: ='Compile Data'!F33 -> 80.02120972 | DL13: ='Compile Data'!F34 -> 82.47203827 | DM13: ='Compile Data'!F35 -> 86.44166565 | DN13: ='Compile Data'!F36 -> 89.33154297 | DP13: 77.70518653 | DQ13: 81.39751371 | DR13: 73.72598298 | DT13: 70.91994476 | DU13: 61.7077446 | DV13: 69.75166702 | DW13: 84.56661415 | DX13: 90.49908956
A14: 1921-11-30 | B14: =INDIRECT(CONCATENATE("'",B$1,"'!",B$4,(YEAR($A14)-1921)*12+MONTH($A14)+3+IF(ISNUMBER(FIND("PRV",B$6)),1,0)))*IF(AND(B$3>0,TRIM(B$9)="CFS"),Conv_Flags!$C14,1) -> 80.79016113 | C14: =INDIRECT(CONCATENATE("'",C$1,"'!",C$4,(YEAR($A14)-1921)*12+MONTH($A14)+3+IF(ISNUMBER(FIND("PRV",C$6)),1,0)))*IF(AND(C$3>0,TRIM(C$9)="CFS"),Conv_Flags!$C14,1) -> 80.6312561 | D14: =INDIRECT(CONCATENATE("'",D$1,"'!",D$4,(YEAR($A14)-1921)*12+MONTH($A14)+3+IF(ISNUMBER(FIND("PRV",D$6)),1,0)))*IF(AND(D$3>0,TRIM(D$9)="CFS"),Conv_Flags!$C14,1) -> 80.63154602 | E14: =INDIRECT(CONCATENATE("'",E$1,"'!",E$4,(YEAR($A14)-1921)*12+MONTH($A14)+3+IF(ISNUMBER(FIND("PRV",E$6)),1,0)))*IF(AND(E$3>0,TRIM(E$9)="CFS"),Conv_Flags!$C14,1) -> 80.78560638 | F14: =INDIRECT(CONCATENATE("'",F$1,"'!",F$4,(YEAR($A14)-1921)*12+MONTH($A14)+3+IF(ISNUMBER(FIND("PRV",F$6)),1,0)))*IF(AND(F$3>0,TRIM(F$9)="CFS"),Conv_Flags!$C14,1) -> 80.78560638 | J14: 1924 | K14: =B37 -> 90.6294632 | L14: =B38 -> 91.92802429 | M14: =B39 -> 91.13983154 | N14: =B40 -> 87.49650574 | O14: =B41 -> 78.99992371 | P14: =B42 -> 76.24393463 | Q14: =B43 -> 82.26754761 | R14: =B44 -> 88.61326599 | S14: =B45 -> 91.95285034 | T14: =B46 -> 92.5099411 | U14: =B47 -> 92.66281128 | V14: =B48 -> 93.45515442 | X14: 88.23103333 | Y14: 86.07495499 | Z14: 88.15827115 | AB14: 90.29845619 | AC14: 85.87875366 | AD14: 84.76939964 | AE14: 92.64518929 | AF14: 93.7098643 | AH14: 1924 | AI14: ='Compile Data'!C37 -> 90.4800415 | AJ14: ='Compile Data'!C38 -> 91.67668152 | AK14: ='Compile Data'!C39 -> 90.85165405 | AL14: ='Compile Data'!C40 -> 87.43526459 | AM14: ='Compile Data'!C41 -> 78.97428894 | AN14: ='Compile Data'!C42 -> 76.22775269 | AO14: ='Compile Data'!C43 -> 82.26911926 | AP14: ='Compile Data'!C44 -> 88.29864502 | AQ14: ='Compile Data'!C45 -> 91.74576569 | AR14: ='Compile Data'!C46 -> 91.53073883 | AS14: ='Compile Data'!C47 -> 90.72483826 | AT14: ='Compile Data'!C48 -> 91.57067108 | AV14: 87.72551727 | AW14: 85.57743963 | AX14: 87.64878845 | AZ14: 90.11091042 | BA14: 85.75373586 | BB14: 84.63532066 | BC14: 91.39300346 | BD14: 92.89916738 | BF14: 1924 | BG14: ='Compile Data'!D37 -> 90.61550903 | BH14: ='Compile Data'!D38 -> 91.70207977 | BI14: ='Compile Data'!D39 -> 90.91866302 | BJ14: ='Compile Data'!D40 -> 87.43174744 | BK14: ='Compile Data'!D41 -> 78.97501373 | BL14: ='Compile Data'!D42 -> 76.23097229 | BM14: ='Compile Data'!D43 -> 82.26951599 | BN14: ='Compile Data'!D44 -> 88.29885864 | BO14: ='Compile Data'!D45 -> 91.74517822 | BP14: ='Compile Data'!D46 -> 91.53011322 | BQ14: ='Compile Data'!D47 -> 90.72385406 | BR14: ='Compile Data'!D48 -> 91.57710266 | BT14: 87.72273318 | BU14: 85.57536411 | BV14: 87.66821734 | BX14: 90.16699982 | BY14: 85.7751414 | BZ14: 84.63613129 | CA14: 91.39406204 | CB14: 92.88910421 | CD14: 1924 | CE14: ='Compile Data'!E37 -> 90.46840668 | CF14: ='Compile Data'!E38 -> 91.69731903 | CG14: ='Compile Data'!E39 -> 90.96195984 | CH14: ='Compile Data'!E40 -> 87.42134857 | CI14: ='Compile Data'!E41 -> 78.96921539 | CJ14: ='Compile Data'!E42 -> 76.23017883 | CK14: ='Compile Data'!E43 -> 82.2648468 | CL14: ='Compile Data'!E44 -> 88.61140442 | CM14: ='Compile Data'!E45 -> 91.9940567 | CN14: ='Compile Data'!E46 -> 91.60155487 | CO14: ='Compile Data'!E47 -> 90.78041077 | CP14: ='Compile Data'!E48 -> 91.6618576 | CR14: 87.74985886 | CS14: 85.5929486 | CT14: 87.72187996 | CV14: 90.13725853 | CW14: 85.7841746 | CX14: 84.77512169 | CY14: 91.50946999 | CZ14: 92.83987172 | DB14: 1924 | DC14: ='Compile Data'!F37 -> 90.46840668 | DD14: ='Compile Data'!F38 -> 91.69731903 | DE14: ='Compile Data'!F39 -> 90.96195984 | DF14: ='Compile Data'!F40 -> 87.42134857 | DG14: ='Compile Data'!F41 -> 78.96921539 | DH14: ='Compile Data'!F42 -> 76.23017883 | DI14: ='Compile Data'!F43 -> 82.2648468 | DJ14: ='Compile Data'!F44 -> 88.61139679 | DK14: ='Compile Data'!F45 -> 91.99417114 | DL14: ='Compile Data'!F46 -> 91.59326935 | DM14: ='Compile Data'!F47 -> 90.96156311 | DN14: ='Compile Data'!F48 -> 92.06061554 | DP14: 87.76187452 | DQ14: 85.62275378 | DR14: 87.76952426 | DT14: 90.13725853 | DU14: 85.7841746 | DV14: 84.77514839 | DW14: 91.65240479 | DX14: 92.75580597
A15: 1921-12-31 | B15: =INDIRECT(CONCATENATE("'",B$1,"'!",B$4,(YEAR($A15)-1921)*12+MONTH($A15)+3+IF(ISNUMBER(FIND("PRV",B$6)),1,0)))*IF(AND(B$3>0,TRIM(B$9)="CFS"),Conv_Flags!$C15,1) -> 81.62612915 | C15: =INDIRECT(CONCATENATE("'",C$1,"'!",C$4,(YEAR($A15)-1921)*12+MONTH($A15)+3+IF(ISNUMBER(FIND("PRV",C$6)),1,0)))*IF(AND(C$3>0,TRIM(C$9)="CFS"),Conv_Flags!$C15,1) -> 81.63070679 | D15: =INDIRECT(CONCATENATE("'",D$1,"'!",D$4,(YEAR($A15)-1921)*12+MONTH($A15)+3+IF(ISNUMBER(FIND("PRV",D$6)),1,0)))*IF(AND(D$3>0,TRIM(D$9)="CFS"),Conv_Flags!$C15,1) -> 81.59505463 | E15: =INDIRECT(CONCATENATE("'",E$1,"'!",E$4,(YEAR($A15)-1921)*12+MONTH($A15)+3+IF(ISNUMBER(FIND("PRV",E$6)),1,0)))*IF(AND(E$3>0,TRIM(E$9)="CFS"),Conv_Flags!$C15,1) -> 81.6280899 | F15: =INDIRECT(CONCATENATE("'",F$1,"'!",F$4,(YEAR($A15)-1921)*12+MONTH($A15)+3+IF(ISNUMBER(FIND("PRV",F$6)),1,0)))*IF(AND(F$3>0,TRIM(F$9)="CFS"),Conv_Flags!$C15,1) -> 81.6280899 | J15: 1925 | K15: =B49 -> 93.83544922 | L15: =B50 -> 93.83898926 | M15: =B51 -> 86.89602661 | N15: =B52 -> 84.175354 | O15: =B53 -> 56.44813538 | P15: =B54 -> 63.88208771 | Q15: =B55 -> 61.04888153 | R15: =B56 -> 69.41654205 | S15: =B57 -> 79.80135345 | T15: =B58 -> 85.41824341 | U15: =B59 -> 90.61914825 | V15: =B60 -> 92.24819946 | X15: 80.07701492 | Y15: 80.04180431 | Z15: 79.80236753 | AB15: 89.68645477 | AC15: 75.83983866 | AD15: 68.53721619 | AE15: 87.02173615 | AF15: 92.73718007 | AH15: 1925 | AI15: ='Compile Data'!C49 -> 93.38535309 | AJ15: ='Compile Data'!C50 -> 93.74147797 | AK15: ='Compile Data'!C51 -> 86.80229187 | AL15: ='Compile Data'!C52 -> 84.07061005 | AM15: ='Compile Data'!C53 -> 56.56201172 | AN15: ='Compile Data'!C54 -> 63.90963745 | AO15: ='Compile Data'!C55 -> 61.04726028 | AP15: ='Compile Data'!C56 -> 69.41713715 | AQ15: ='Compile Data'!C57 -> 79.83073425 | AR15: ='Compile Data'!C58 -> 84.76861572 | AS15: ='Compile Data'!C59 -> 90.29168701 | AT15: ='Compile Data'!C60 -> 92.27438354 | AV15: 79.99494203 | AW15: 80.01266034 | AX15: 79.67510001 | AZ15: 89.49993324 | BA15: 75.81163788 | BB15: 68.55119228 | BC15: 86.79135513 | BD15: 92.72400665 | BF15: 1925 | BG15: ='Compile Data'!D49 -> 93.3706665 | BH15: ='Compile Data'!D50 -> 93.71954346 | BI15: ='Compile Data'!D51 -> 86.80023193 | BJ15: ='Compile Data'!D52 -> 84.06627655 | BK15: ='Compile Data'!D53 -> 56.57205582 | BL15: ='Compile Data'!D54 -> 63.91022491 | BM15: ='Compile Data'!D55 -> 61.04533386 | BN15: ='Compile Data'!D56 -> 69.41514587 | BO15: ='Compile Data'!D57 -> 79.83388519 | BP15: ='Compile Data'!D58 -> 84.78825378 | BQ15: ='Compile Data'!D59 -> 89.5152359 | BR15: ='Compile Data'!D60 -> 92.05153656 | BT15: 79.90112336 | BU15: 79.91520532 | BV15: 79.5906992 | BX15: 89.48917961 | BY15: 75.81285477 | BZ15: 68.55114746 | CA15: 86.54722786 | CB15: 92.62755585 | CD15: 1925 | CE15: ='Compile Data'!E49 -> 93.23855591 | CF15: ='Compile Data'!E50 -> 93.61920166 | CG15: ='Compile Data'!E51 -> 86.60567474 | CH15: ='Compile Data'!E52 -> 83.9352951 | CI15: ='Compile Data'!E53 -> 56.57234573 | CJ15: ='Compile Data'!E54 -> 63.91189194 | CK15: ='Compile Data'!E55 -> 61.04026794 | CL15: ='Compile Data'!E56 -> 69.45848846 | CM15: ='Compile Data'!E57 -> 79.84749603 | CN15: ='Compile Data'!E58 -> 84.80762482 | CO15: ='Compile Data'!E59 -> 89.47737885 | CP15: ='Compile Data'!E60 -> 91.53705597 | CR15: 79.74248505 | CS15: 79.79696147 | CT15: 79.5042731 | CV15: 89.34968185 | CW15: 75.70443853 | CX15: 68.56453609 | CY15: 86.41738892 | CZ15: 91.97356669 | DB15: 1925 | DC15: ='Compile Data'!F49 -> 92.85369873 | DD15: ='Compile Data'!F50 -> 93.35310364 | DE15: ='Compile Data'!F51 -> 86.8290863 | DF15: ='Compile Data'!F52 -> 84.13132477 | DG15: ='Compile Data'!F53 -> 56.58979034 | DH15: ='Compile Data'!F54 -> 63.91220474 | DI15: ='Compile Data'!F55 -> 61.04005051 | DJ15: ='Compile Data'!F56 -> 69.41495514 | DK15: ='Compile Data'!F57 -> 79.83650208 | DL15: ='Compile Data'!F58 -> 84.78520966 | DM15: ='Compile Data'!F59 -> 89.48213959 | DN15: ='Compile Data'!F60 -> 91.54278564 | DP15: 79.74313164 | DQ15: 79.78378264 | DR15: 79.48090426 | DT15: 89.29180336 | DU15: 75.85006714 | DV15: 68.55092812 | DW15: 86.41165924 | DX15: 91.92828369
A16: 1922-01-31 | B16: =INDIRECT(CONCATENATE("'",B$1,"'!",B$4,(YEAR($A16)-1921)*12+MONTH($A16)+3+IF(ISNUMBER(FIND("PRV",B$6)),1,0)))*IF(AND(B$3>0,TRIM(B$9)="CFS"),Conv_Flags!$C16,1) -> 76.01322937 | C16: =INDIRECT(CONCATENATE("'",C$1,"'!",C$4,(YEAR($A16)-1921)*12+MONTH($A16)+3+IF(ISNUMBER(FIND("PRV",C$6)),1,0)))*IF(AND(C$3>0,TRIM(C$9)="CFS"),Conv_Flags!$C16,1) -> 76.12779999 | D16: =INDIRECT(CONCATENATE("'",D$1,"'!",D$4,(YEAR($A16)-1921)*12+MONTH($A16)+3+IF(ISNUMBER(FIND("PRV",D$6)),1,0)))*IF(AND(D$3>0,TRIM(D$9)="CFS"),Conv_Flags!$C16,1) -> 76.12787628 | E16: =INDIRECT(CONCATENATE("'",E$1,"'!",E$4,(YEAR($A16)-1921)*12+MONTH($A16)+3+IF(ISNUMBER(FIND("PRV",E$6)),1,0)))*IF(AND(E$3>0,TRIM(E$9)="CFS"),Conv_Flags!$C16,1) -> 75.97454834 | F16: =INDIRECT(CONCATENATE("'",F$1,"'!",F$4,(YEAR($A16)-1921)*12+MONTH($A16)+3+IF(ISNUMBER(FIND("PRV",F$6)),1,0)))*IF(AND(F$3>0,TRIM(F$9)="CFS"),Conv_Flags!$C16,1) -> 75.97454834 | J16: 1926 | K16: =B61 -> 93.51060486 | L16: =B62 -> 92.4527359 | M16: =B63 -> 91.90289307 | N16: =B64 -> 82.00418854 | O16: =B65 -> 58.19677353 | P16: =B66 -> 66.18096161 | Q16: =B67 -> 65.54465485 | R16: =B68 -> 70.88218689 | S16: =B69 -> 81.66763306 | T16: =B70 -> 85.68396759 | U16: =B71 -> 90.83055878 | V16: =B72 -> 92.34918976 | X16: 77.81657887 | Y16: 75.66274071 | Z16: 80.93386237 | AB16: 89.96760559 | AC16: 77.36795171 | AD16: 71.0688591 | AE16: 87.6328373 | AF16: 88.08192444 | AH16: 1926 | AI16: ='Compile Data'!C61 -> 93.44685364 | AJ16: ='Compile Data'!C62 -> 92.45078278 | AK16: ='Compile Data'!C63 -> 91.86959076 | AL16: ='Compile Data'!C64 -> 81.93350983 | AM16: ='Compile Data'!C65 -> 58.91173172 | AN16: ='Compile Data'!C66 -> 66.07913971 | AO16: ='Compile Data'!C67 -> 65.43707275 | AP16: ='Compile Data'!C68 -> 70.88607025 | AQ16: ='Compile Data'!C69 -> 81.67721558 | AR16: ='Compile Data'!C70 -> 85.37843323 | AS16: ='Compile Data'!C71 -> 90.1397171 | AT16: ='Compile Data'!C72 -> 91.81839752 | AV16: 77.73016453 | AW16: 75.63271077 | AX16: 80.83570957 | AZ16: 89.92518425 | BA16: 77.57161077 | BB16: 71.01987457 | BC16: 87.25344086 | BD16: 87.77910614 | BF16: 1926 | BG16: ='Compile Data'!D61 -> 93.40512085 | BH16: ='Compile Data'!D62 -> 92.42601013 | BI16: ='Compile Data'!D63 -> 91.78440094 | BJ16: ='Compile Data'!D64 -> 81.85061646 | BK16: ='Compile Data'!D65 -> 58.95669937 | BL16: ='Compile Data'!D66 -> 66.09388733 | BM16: ='Compile Data'!D67 -> 65.43275452 | BN16: ='Compile Data'!D68 -> 70.88317108 | BO16: ='Compile Data'!D69 -> 81.68527985 | BP16: ='Compile Data'!D70 -> 85.40335846 | BQ16: ='Compile Data'!D71 -> 90.02868652 | BR16: ='Compile Data'!D72 -> 91.75814819 | BT16: 77.73556741 | BU16: 75.64875539 | BV16: 80.80901114 | BX16: 89.86653709 | BY16: 77.53057226 | BZ16: 71.02377319 | CA16: 87.21886826 | CB16: 87.73701731 | CD16: 1926 | CE16: ='Compile Data'!E61 -> 92.48871613 | CF16: ='Compile Data'!E62 -> 91.89492798 | CG16: ='Compile Data'!E63 -> 91.9383316 | CH16: ='Compile Data'!E64 -> 82.09091187 | CI16: ='Compile Data'!E65 -> 59.07044601 | CJ16: ='Compile Data'!E66 -> 66.11585999 | CK16: ='Compile Data'!E67 -> 65.43225861 | CL16: ='Compile Data'!E68 -> 70.88230133 | CM16: ='Compile Data'!E69 -> 81.68846893 | CN16: ='Compile Data'!E70 -> 85.39203644 | CO16: ='Compile Data'!E71 -> 89.93242645 | CP16: ='Compile Data'!E72 -> 91.68467712 | CR16: 77.77872817 | CS16: 75.66764355 | CT16: 80.71761354 | CV16: 89.60322189 | CW16: 77.69989649 | CX16: 71.02972221 | CY16: 87.17440224 | CZ16: 87.72679647 | DB16: 1926 | DC16: ='Compile Data'!F61 -> 92.48335266 | DD16: ='Compile Data'!F62 -> 91.75871277 | DE16: ='Compile Data'!F63 -> 91.94055176 | DF16: ='Compile Data'!F64 -> 82.12417603 | DG16: ='Compile Data'!F65 -> 59.08475113 | DH16: ='Compile Data'!F66 -> 66.1186142 | DI16: ='Compile Data'!F67 -> 65.43154144 | DJ16: ='Compile Data'!F68 -> 70.88198853 | DK16: ='Compile Data'!F69 -> 81.68755341 | DL16: ='Compile Data'!F70 -> 85.43370056 | DM16: ='Compile Data'!F71 -> 89.8371582 | DN16: ='Compile Data'!F72 -> 91.64247131 | DP16: 77.77240467 | DQ16: 75.6586113 | DR16: 80.70204767 | DT16: 89.5766983 | DU16: 77.71649297 | DV16: 71.02992439 | DW16: 87.15022087 | DX16: 87.68974304
A17: 1922-02-28 | B17: =INDIRECT(CONCATENATE("'",B$1,"'!",B$4,(YEAR($A17)-1921)*12+MONTH($A17)+3+IF(ISNUMBER(FIND("PRV",B$6)),1,0)))*IF(AND(B$3>0,TRIM(B$9)="CFS"),Conv_Flags!$C17,1) -> 56.24071503 | C17: =INDIRECT(CONCATENATE("'",C$1,"'!",C$4,(YEAR($A17)-1921)*12+MONTH($A17)+3+IF(ISNUMBER(FIND("PRV",C$6)),1,0)))*IF(AND(C$3>0,TRIM(C$9)="CFS"),Conv_Flags!$C17,1) -> 56.55198288 | D17: =INDIRECT(CONCATENATE("'",D$1,"'!",D$4,(YEAR($A17)-1921)*12+MONTH($A17)+3+IF(ISNUMBER(FIND("PRV",D$6)),1,0)))*IF(AND(D$3>0,TRIM(D$9)="CFS"),Conv_Flags!$C17,1) -> 56.53591919 | E17: =INDIRECT(CONCATENATE("'",E$1,"'!",E$4,(YEAR($A17)-1921)*12+MONTH($A17)+3+IF(ISNUMBER(FIND("PRV",E$6)),1,0)))*IF(AND(E$3>0,TRIM(E$9)="CFS"),Conv_Flags!$C17,1) -> 56.48704147 | F17: =INDIRECT(CONCATENATE("'",F$1,"'!",F$4,(YEAR($A17)-1921)*12+MONTH($A17)+3+IF(ISNUMBER(FIND("PRV",F$6)),1,0)))*IF(AND(F$3>0,TRIM(F$9)="CFS"),Conv_Flags!$C17,1) -> 56.48704147 | J17: 1927 | K17: =B73 -> 93.37419891 | L17: =B74 -> 78.52238464 | M17: =B75 -> 68.56224823 | N17: =B76 -> 60.32997513 | O17: =B77 -> 54.02492905 | P17: =B78 -> 54.14756775 | Q17: =B79 -> 54.01091766 | R17: =B80 -> 65.1014328 | S17: =B81 -> 80.04253387 | T17: =B82 -> 78.50783539 | U17: =B83 -> 82.12177277 | V17: =B84 -> 80.76161194 | X17: 71.73079936 | Y17: 73.60536702 | Z17: 70.79228401 | AB17: 75.19720173 | AC17: 60.97238413 | AD17: 63.32561302 | AE17: 80.35843849 | AF17: 82.02842204 | AH17: 1927 | AI17: ='Compile Data'!C73 -> 93.05592346 | AJ17: ='Compile Data'!C74 -> 78.46299744 | AK17: ='Compile Data'!C75 -> 68.98176575 | AL17: ='Compile Data'!C76 -> 61.62296295 | AM17: ='Compile Data'!C77 -> 54.05283356 | AN17: ='Compile Data'!C78 -> 54.4295311 | AO17: ='Compile Data'!C79 -> 54.03341675 | AP17: ='Compile Data'!C80 -> 65.46373749 | AQ17: ='Compile Data'!C81 -> 79.9952774 | AR17: ='Compile Data'!C82 -> 78.63132477 | AS17: ='Compile Data'!C83 -> 81.94709778 | AT17: ='Compile Data'!C84 -> 80.27758789 | AV17: 71.83344491 | AW17: 73.68079599 | AX17: 70.91287136 | AZ17: 75.5309124 | BA17: 61.55252075 | BB17: 63.48049068 | BC17: 80.21282196 | BD17: 81.81685384 | BF17: 1927 | BG17: ='Compile Data'!D73 -> 93.03977203 | BH17: ='Compile Data'!D74 -> 78.41313171 | BI17: ='Compile Data'!D75 -> 69.28130341 | BJ17: ='Compile Data'!D76 -> 61.71274567 | BK17: ='Compile Data'!D77 -> 54.05282593 | BL17: ='Compile Data'!D78 -> 54.42963409 | BM17: ='Compile Data'!D79 -> 54.03343582 | BN17: ='Compile Data'!D80 -> 65.46381378 | BO17: ='Compile Data'!D81 -> 79.99532318 | BP17: ='Compile Data'!D82 -> 78.63045502 | BQ17: ='Compile Data'!D83 -> 81.94675446 | BR17: ='Compile Data'!D84 -> 80.27720642 | BT17: 71.83247662 | BU17: 73.66465473 | BV17: 70.93970013 | BX17: 75.6117382 | BY17: 61.68229167 | BZ17: 63.48055172 | CA17: 80.21243477 | CB17: 81.78424835 | CD17: 1927 | CE17: ='Compile Data'!E73 -> 92.97169495 | CF17: ='Compile Data'!E74 -> 78.52401733 | CG17: ='Compile Data'!E75 -> 69.55963898 | CH17: ='Compile Data'!E76 -> 61.77568054 | CI17: ='Compile Data'!E77 -> 54.0526619 | CJ17: ='Compile Data'!E78 -> 54.43004608 | CK17: ='Compile Data'!E79 -> 54.03357697 | CL17: ='Compile Data'!E80 -> 65.24410248 | CM17: ='Compile Data'!E81 -> 79.85780334 | CN17: ='Compile Data'!E82 -> 78.63648987 | CO17: ='Compile Data'!E83 -> 81.94335938 | CP17: ='Compile Data'!E84 -> 80.2758255 | CR17: 71.78728898 | CS17: 73.61523819 | CT17: 70.94207478 | CV17: 75.70775795 | CW17: 61.7959938 | CX17: 63.39138222 | CY17: 80.17836952 | CZ17: 81.70271047 | DB17: 1927 | DC17: ='Compile Data'!F73 -> 92.96352386 | DD17: ='Compile Data'!F74 -> 78.46323395 | DE17: ='Compile Data'!F75 -> 69.60014343 | DF17: ='Compile Data'!F76 -> 61.79073334 | DG17: ='Compile Data'!F77 -> 54.05267334 | DH17: ='Compile Data'!F78 -> 54.43001175 | DI17: ='Compile Data'!F79 -> 54.03356934 | DJ17: ='Compile Data'!F80 -> 65.24407196 | DK17: ='Compile Data'!F81 -> 79.85777283 | DL17: ='Compile Data'!F82 -> 78.63641357 | DM17: ='Compile Data'!F83 -> 81.94332123 | DN17: ='Compile Data'!F84 -> 80.27577209 | DP17: 71.78895601 | DQ17: 73.61565812 | DR17: 70.94093672 | DT17: 75.70440865 | DU17: 61.8145167 | DV17: 63.39135647 | DW17: 80.17831993 | DX17: 81.70437113
A18: 1922-03-31 | B18: =INDIRECT(CONCATENATE("'",B$1,"'!",B$4,(YEAR($A18)-1921)*12+MONTH($A18)+3+IF(ISNUMBER(FIND("PRV",B$6)),1,0)))*IF(AND(B$3>0,TRIM(B$9)="CFS"),Conv_Flags!$C18,1) -> 55.81490707 | C18: =INDIRECT(CONCATENATE("'",C$1,"'!",C$4,(YEAR($A18)-1921)*12+MONTH($A18)+3+IF(ISNUMBER(FIND("PRV",C$6)),1,0)))*IF(AND(C$3>0,TRIM(C$9)="CFS"),Conv_Flags!$C18,1) -> 55.8357811 | D18: =INDIRECT(CONCATENATE("'",D$1,"'!",D$4,(YEAR($A18)-1921)*12+MONTH($A18)+3+IF(ISNUMBER(FIND("PRV",D$6)),1,0)))*IF(AND(D$3>0,TRIM(D$9)="CFS"),Conv_Flags!$C18,1) -> 55.83275986 | E18: =INDIRECT(CONCATENATE("'",E$1,"'!",E$4,(YEAR($A18)-1921)*12+MONTH($A18)+3+IF(ISNUMBER(FIND("PRV",E$6)),1,0)))*IF(AND(E$3>0,TRIM(E$9)="CFS"),Conv_Flags!$C18,1) -> 55.8274765 | F18: =INDIRECT(CONCATENATE("'",F$1,"'!",F$4,(YEAR($A18)-1921)*12+MONTH($A18)+3+IF(ISNUMBER(FIND("PRV",F$6)),1,0)))*IF(AND(F$3>0,TRIM(F$9)="CFS"),Conv_Flags!$C18,1) -> 55.8274765 | J18: 1928 | K18: =B85 -> 80.95581818 | L18: =B86 -> 84.367836 | M18: =B87 -> 86.39736176 | N18: =B88 -> 72.67017365 | O18: =B89 -> 64.17954254 | P18: =B90 -> 54.29455948 | Q18: =B91 -> 57.91453171 | R18: =B92 -> 69.86321259 | S18: =B93 -> 80.5243988 | T18: =B94 -> 78.77466583 | U18: =B95 -> 82.69571686 | V18: =B96 -> 80.38069916 | X18: 74.66245206 | Y18: 76.74608676 | Z18: 74.41820971 | AB18: 81.09779739 | AC18: 74.41569265 | AD18: 65.64917564 | AE18: 80.59387016 | AF18: 82.10701497 | AH18: 1928 | AI18: ='Compile Data'!C85 -> 80.82108307 | AJ18: ='Compile Data'!C86 -> 84.35189056 | AK18: ='Compile Data'!C87 -> 86.37459564 | AL18: ='Compile Data'!C88 -> 72.80874634 | AM18: ='Compile Data'!C89 -> 65.03526306 | AN18: ='Compile Data'!C90 -> 54.37718964 | AO18: ='Compile Data'!C91 -> 57.91908646 | AP18: ='Compile Data'!C92 -> 68.79425812 | AQ18: ='Compile Data'!C93 -> 79.59498596 | AR18: ='Compile Data'!C94 -> 78.95648956 | AS18: ='Compile Data'!C95 -> 82.60275269 | AT18: ='Compile Data'!C96 -> 80.07839966 | AV18: 74.56963634 | AW18: 76.57773495 | AX18: 74.30956173 | AZ18: 81.0890789 | BA18: 74.73953501 | BB18: 65.17138004 | BC18: 80.30815697 | BD18: 81.9901123 | BF18: 1928 | BG18: ='Compile Data'!D85 -> 80.75100708 | BH18: ='Compile Data'!D86 -> 84.32453156 | BI18: ='Compile Data'!D87 -> 86.37198639 | BJ18: ='Compile Data'!D88 -> 72.7135849 | BK18: ='Compile Data'!D89 -> 65.03812408 | BL18: ='Compile Data'!D90 -> 54.37945175 | BM18: ='Compile Data'!D91 -> 57.91944885 | BN18: ='Compile Data'!D92 -> 68.79438782 | BO18: ='Compile Data'!D93 -> 79.59519958 | BP18: ='Compile Data'!D94 -> 78.94628906 | BQ18: ='Compile Data'!D95 -> 82.82146454 | BR18: ='Compile Data'!D96 -> 80.35591125 | BT18: 74.59510326 | BU18: 76.60399087 | BV18: 74.33428224 | BX18: 81.04027748 | BY18: 74.70789846 | BZ18: 65.172122 | CA18: 80.42971611 | CB18: 82.0784785 | CD18: 1928 | CE18: ='Compile Data'!E85 -> 80.58456421 | CF18: ='Compile Data'!E86 -> 84.2477417 | CG18: ='Compile Data'!E87 -> 86.36561584 | CH18: ='Compile Data'!E88 -> 72.62355804 | CI18: ='Compile Data'!E89 -> 65.14017487 | CJ18: ='Compile Data'!E90 -> 54.38853455 | CK18: ='Compile Data'!E91 -> 57.91521454 | CL18: ='Compile Data'!E92 -> 69.86668396 | CM18: ='Compile Data'!E93 -> 79.74777985 | CN18: ='Compile Data'!E94 -> 79.31536102 | CO18: ='Compile Data'!E95 -> 83.02036285 | CP18: ='Compile Data'!E96 -> 80.30885315 | CR18: 74.74747276 | CS18: 76.75995255 | CT18: 74.46037038 | CV18: 80.95536995 | CW18: 74.70978292 | CX18: 65.47955322 | CY18: 80.59808922 | CZ18: 82.06979879 | DB18: 1928 | DC18: ='Compile Data'!F85 -> 80.58789825 | DD18: ='Compile Data'!F86 -> 84.24944305 | DE18: ='Compile Data'!F87 -> 86.36579132 | DF18: ='Compile Data'!F88 -> 72.62363434 | DG18: ='Compile Data'!F89 -> 65.14019775 | DH18: ='Compile Data'!F90 -> 54.38854218 | DI18: ='Compile Data'!F91 -> 57.91521835 | DJ18: ='Compile Data'!F92 -> 69.86668396 | DK18: ='Compile Data'!F93 -> 79.7477951 | DL18: ='Compile Data'!F94 -> 79.31538391 | DM18: ='Compile Data'!F95 -> 83.02030945 | DN18: ='Compile Data'!F96 -> 80.30909729 | DP18: 74.74749215 | DQ18: 76.75996749 | DR18: 74.46083291 | DT18: 80.95669174 | DU18: 74.70987447 | DV18: 65.4795599 | DW18: 80.59814644 | DX18: 82.06983948
A19: 1922-04-30 | B19: =INDIRECT(CONCATENATE("'",B$1,"'!",B$4,(YEAR($A19)-1921)*12+MONTH($A19)+3+IF(ISNUMBER(FIND("PRV",B$6)),1,0)))*IF(AND(B$3>0,TRIM(B$9)="CFS"),Conv_Flags!$C19,1) -> 57.14109421 | C19: =INDIRECT(CONCATENATE("'",C$1,"'!",C$4,(YEAR($A19)-1921)*12+MONTH($A19)+3+IF(ISNUMBER(FIND("PRV",C$6)),1,0)))*IF(AND(C$3>0,TRIM(C$9)="CFS"),Conv_Flags!$C19,1) -> 56.92459106 | D19: =INDIRECT(CONCATENATE("'",D$1,"'!",D$4,(YEAR($A19)-1921)*12+MONTH($A19)+3+IF(ISNUMBER(FIND("PRV",D$6)),1,0)))*IF(AND(D$3>0,TRIM(D$9)="CFS"),Conv_Flags!$C19,1) -> 56.98168564 | E19: =INDIRECT(CONCATENATE("'",E$1,"'!",E$4,(YEAR($A19)-1921)*12+MONTH($A19)+3+IF(ISNUMBER(FIND("PRV",E$6)),1,0)))*IF(AND(E$3>0,TRIM(E$9)="CFS"),Conv_Flags!$C19,1) -> 57.14229584 | F19: =INDIRECT(CONCATENATE("'",F$1,"'!",F$4,(YEAR($A19)-1921)*12+MONTH($A19)+3+IF(ISNUMBER(FIND("PRV",F$6)),1,0)))*IF(AND(F$3>0,TRIM(F$9)="CFS"),Conv_Flags!$C19,1) -> 57.14229584 | J19: 1929 | K19: =B97 -> 80.63575745 | L19: =B98 -> 85.30458832 | M19: =B99 -> 88.71157837 | N19: =B100 -> 85.77129364 | O19: =B101 -> 76.08203888 | P19: =B102 -> 75.11805725 | Q19: =B103 -> 80.00109863 | R19: =B104 -> 83.06550598 | S19: =B105 -> 84.30024719 | T19: =B106 -> 88.23419189 | U19: =B107 -> 92.33738708 | V19: =B108 -> 93.84692383 | X19: 85.36263084 | Y19: 82.80334663 | Z19: 84.45072238 | AB19: 85.10580444 | AC19: 83.52163696 | AD19: 80.62122726 | AE19: 89.6796875 | AF19: 93.21859741 | AH19: 1929 | AI19: ='Compile Data'!C97 -> 80.64369965 | AJ19: ='Compile Data'!C98 -> 85.24823761 | AK19: ='Compile Data'!C99 -> 88.7765274 | AL19: ='Compile Data'!C100 -> 85.83454895 | AM19: ='Compile Data'!C101 -> 76.10664368 | AN19: ='Compile Data'!C102 -> 75.12697601 | AO19: ='Compile Data'!C103 -> 80.002388 | AP19: ='Compile Data'!C104 -> 83.06533051 | AQ19: ='Compile Data'!C105 -> 84.33916473 | AR19: ='Compile Data'!C106 -> 87.6401825 | AS19: ='Compile Data'!C107 -> 90.90549469 | AT19: ='Compile Data'!C108 -> 92.32707214 | AV19: 84.83630435 | AW19: 82.31693904 | AX19: 84.16802216 | AZ19: 85.1257534 | BA19: 83.57257334 | BB19: 80.63346481 | BC19: 88.80297852 | BD19: 91.51229604 | BF19: 1929 | BG19: ='Compile Data'!D97 -> 80.64135742 | BH19: ='Compile Data'!D98 -> 85.23816681 | BI19: ='Compile Data'!D99 -> 88.69785309 | BJ19: ='Compile Data'!D100 -> 85.77365112 | BK19: ='Compile Data'!D101 -> 76.08470917 | BL19: ='Compile Data'!D102 -> 75.11988068 | BM19: ='Compile Data'!D103 -> 80.00133514 | BN19: ='Compile Data'!D104 -> 83.06510162 | BO19: ='Compile Data'!D105 -> 84.3391037 | BP19: ='Compile Data'!D106 -> 87.6399231 | BQ19: ='Compile Data'!D107 -> 90.91448212 | BR19: ='Compile Data'!D108 -> 92.20794678 | BT19: 84.78502019 | BU19: 82.27107112 | BV19: 84.1436259 | BX19: 85.08775711 | BY19: 83.51873779 | BZ19: 80.63135529 | CA19: 88.77536392 | CB19: 91.34737142 | CD19: 1929 | CE19: ='Compile Data'!E97 -> 80.55968475 | CF19: ='Compile Data'!E98 -> 85.34085846 | CG19: ='Compile Data'!E99 -> 88.74260712 | CH19: ='Compile Data'!E100 -> 85.80889893 | CI19: ='Compile Data'!E101 -> 76.10459137 | CJ19: ='Compile Data'!E102 -> 75.12619781 | CK19: ='Compile Data'!E103 -> 80.00282288 | CL19: ='Compile Data'!E104 -> 83.06593323 | CM19: ='Compile Data'!E105 -> 84.3314743 | CN19: ='Compile Data'!E106 -> 87.61737061 | CO19: ='Compile Data'!E107 -> 90.86864471 | CP19: ='Compile Data'!E108 -> 91.75749207 | CR19: 84.45318349 | CS19: 81.93205961 | CT19: 84.11054802 | CV19: 85.11301231 | CW19: 83.55203247 | CX19: 80.63160706 | CY19: 88.64374542 | CZ19: 90.20428975 | DB19: 1929 | DC19: ='Compile Data'!F97 -> 80.55963898 | DD19: ='Compile Data'!F98 -> 85.34078217 | DE19: ='Compile Data'!F99 -> 88.74262238 | DF19: ='Compile Data'!F100 -> 85.8089447 | DG19: ='Compile Data'!F101 -> 76.10459137 | DH19: ='Compile Data'!F102 -> 75.12618256 | DI19: ='Compile Data'!F103 -> 80.00281525 | DJ19: ='Compile Data'!F104 -> 83.0659256 | DK19: ='Compile Data'!F105 -> 84.33144379 | DL19: ='Compile Data'!F106 -> 87.61802673 | DM19: ='Compile Data'!F107 -> 90.84129333 | DN19: ='Compile Data'!F108 -> 92.63502502 | DP19: 84.86650213 | DQ19: 82.35700162 | DR19: 84.18144099 | DT19: 85.11299706 | DU19: 83.55205282 | DV19: 80.6315918 | DW19: 88.85644722 | DX19: 91.66210175
A20: 1922-05-31 | B20: =INDIRECT(CONCATENATE("'",B$1,"'!",B$4,(YEAR($A20)-1921)*12+MONTH($A20)+3+IF(ISNUMBER(FIND("PRV",B$6)),1,0)))*IF(AND(B$3>0,TRIM(B$9)="CFS"),Conv_Flags!$C20,1) -> 55.12168884 | C20: =INDIRECT(CONCATENATE("'",C$1,"'!",C$4,(YEAR($A20)-1921)*12+MONTH($A20)+3+IF(ISNUMBER(FIND("PRV",C$6)),1,0)))*IF(AND(C$3>0,TRIM(C$9)="CFS"),Conv_Flags!$C20,1) -> 55.09210968 | D20: =INDIRECT(CONCATENATE("'",D$1,"'!",D$4,(YEAR($A20)-1921)*12+MONTH($A20)+3+IF(ISNUMBER(FIND("PRV",D$6)),1,0)))*IF(AND(D$3>0,TRIM(D$9)="CFS"),Conv_Flags!$C20,1) -> 55.10040665 | E20: =INDIRECT(CONCATENATE("'",E$1,"'!",E$4,(YEAR($A20)-1921)*12+MONTH($A20)+3+IF(ISNUMBER(FIND("PRV",E$6)),1,0)))*IF(AND(E$3>0,TRIM(E$9)="CFS"),Conv_Flags!$C20,1) -> 55.12480164 | F20: =INDIRECT(CONCATENATE("'",F$1,"'!",F$4,(YEAR($A20)-1921)*12+MONTH($A20)+3+IF(ISNUMBER(FIND("PRV",F$6)),1,0)))*IF(AND(F$3>0,TRIM(F$9)="CFS"),Conv_Flags!$C20,1) -> 55.12480164 | J20: 1930 | K20: =B109 -> 92.83311462 | L20: =B110 -> 92.97575378 | M20: =B111 -> 79.78595734 | N20: =B112 -> 65.48721313 | O20: =B113 -> 65.65470886 | P20: =B114 -> 60.34064102 | Q20: =B115 -> 68.6653595 | R20: =B116 -> 79.63864899 | S20: =B117 -> 82.99786377 | T20: =B118 -> 85.3879776 | U20: =B119 -> 90.5566864 | V20: =B120 -> 92.57168579 | X20: 80.68326283 | Y20: 83.48117987 | Z20: 79.7413009 | AB20: 82.77050972 | AC20: 70.30929311 | AD20: 72.91062832 | AE20: 87.87855339 | AF20: 92.71944936 | AH20: 1930 | AI20: ='Compile Data'!C109 -> 90.641922 | AJ20: ='Compile Data'!C110 -> 91.56789398 | AK20: ='Compile Data'!C111 -> 80.47803497 | AL20: ='Compile Data'!C112 -> 66.00994873 | AM20: ='Compile Data'!C113 -> 65.69886017 | AN20: ='Compile Data'!C114 -> 61.02577972 | AO20: ='Compile Data'!C115 -> 68.77522278 | AP20: ='Compile Data'!C116 -> 79.55387115 | AQ20: ='Compile Data'!C117 -> 82.98915863 | AR20: ='Compile Data'!C118 -> 85.40032959 | AS20: ='Compile Data'!C119 -> 90.03520966 | AT20: ='Compile Data'!C120 -> 92.54185486 | AV20: 80.73822848 | AW20: 83.48186302 | AX20: 79.55984052 | AZ20: 82.17444992 | BA20: 70.72894796 | BB20: 73.08600807 | BC20: 87.74163818 | BD20: 92.71115875 | BF20: 1930 | BG20: ='Compile Data'!D109 -> 90.43205261 | BH20: ='Compile Data'!D110 -> 91.40211487 | BI20: ='Compile Data'!D111 -> 80.43994141 | BJ20: ='Compile Data'!D112 -> 65.99478149 | BK20: ='Compile Data'!D113 -> 65.69618988 | BL20: ='Compile Data'!D114 -> 61.02464294 | BM20: ='Compile Data'!D115 -> 68.77348328 | BN20: ='Compile Data'!D116 -> 79.55303192 | BO20: ='Compile Data'!D117 -> 82.98617554 | BP20: ='Compile Data'!D118 -> 85.42366791 | BQ20: ='Compile Data'!D119 -> 89.47908783 | BR20: ='Compile Data'!D120 -> 92.08296204 | BT20: 80.63800303 | BU20: 83.38239098 | BV20: 79.44067764 | BX20: 82.0672226 | BY20: 70.71030426 | BZ20: 73.08433342 | CA20: 87.49297333 | CB20: 92.50202688 | CD20: 1930 | CE20: ='Compile Data'!E109 -> 89.04807281 | CF20: ='Compile Data'!E110 -> 89.80730438 | CG20: ='Compile Data'!E111 -> 79.8993988 | CH20: ='Compile Data'!E112 -> 65.96215057 | CI20: ='Compile Data'!E113 -> 65.69785309 | CJ20: ='Compile Data'!E114 -> 61.01951599 | CK20: ='Compile Data'!E115 -> 68.76389313 | CL20: ='Compile Data'!E116 -> 79.5461731 | CM20: ='Compile Data'!E117 -> 82.98491669 | CN20: ='Compile Data'!E118 -> 85.4367981 | CO20: ='Compile Data'!E119 -> 88.9861145 | CP20: ='Compile Data'!E120 -> 91.45445251 | CR20: 80.49765205 | CS20: 83.25288963 | CT20: 79.05055364 | CV20: 81.17923164 | CW20: 70.51980082 | CX20: 73.07862473 | CY20: 87.21557045 | CZ20: 92.09415944 | DB20: 1930 | DC20: ='Compile Data'!F109 -> 90.88622284 | DD20: ='Compile Data'!F110 -> 91.46505737 | DE20: ='Compile Data'!F111 -> 80.51249695 | DF20: ='Compile Data'!F112 -> 66.08116913 | DG20: ='Compile Data'!F113 -> 65.7183609 | DH20: ='Compile Data'!F114 -> 61.03043365 | DI20: ='Compile Data'!F115 -> 68.76821136 | DJ20: ='Compile Data'!F116 -> 79.54685974 | DK20: ='Compile Data'!F117 -> 82.98673248 | DL20: ='Compile Data'!F118 -> 85.41650391 | DM20: ='Compile Data'!F119 -> 89.00480652 | DN20: ='Compile Data'!F120 -> 91.49945831 | DP20: 80.47182465 | DQ20: 83.22897847 | DR20: 79.40969276 | DT20: 82.23623657 | DU20: 70.77067566 | DV20: 73.08305931 | DW20: 87.22687531 | DX20: 91.89216359
A21: 1922-06-30 | B21: =INDIRECT(CONCATENATE("'",B$1,"'!",B$4,(YEAR($A21)-1921)*12+MONTH($A21)+3+IF(ISNUMBER(FIND("PRV",B$6)),1,0)))*IF(AND(B$3>0,TRIM(B$9)="CFS"),Conv_Flags!$C21,1) -> 63.75791168 | C21: =INDIRECT(CONCATENATE("'",C$1,"'!",C$4,(YEAR($A21)-1921)*12+MONTH($A21)+3+IF(ISNUMBER(FIND("PRV",C$6)),1,0)))*IF(AND(C$3>0,TRIM(C$9)="CFS"),Conv_Flags!$C21,1) -> 63.99343491 | D21: =INDIRECT(CONCATENATE("'",D$1,"'!",D$4,(YEAR($A21)-1921)*12+MONTH($A21)+3+IF(ISNUMBER(FIND("PRV",D$6)),1,0)))*IF(AND(D$3>0,TRIM(D$9)="CFS"),Conv_Flags!$C21,1) -> 63.99279404 | E21: =INDIRECT(CONCATENATE("'",E$1,"'!",E$4,(YEAR($A21)-1921)*12+MONTH($A21)+3+IF(ISNUMBER(FIND("PRV",E$6)),1,0)))*IF(AND(E$3>0,TRIM(E$9)="CFS"),Conv_Flags!$C21,1) -> 63.75852966 | F21: =INDIRECT(CONCATENATE("'",F$1,"'!",F$4,(YEAR($A21)-1921)*12+MONTH($A21)+3+IF(ISNUMBER(FIND("PRV",F$6)),1,0)))*IF(AND(F$3>0,TRIM(F$9)="CFS"),Conv_Flags!$C21,1) -> 63.75852966 | J21: 1931 | K21: =B121 -> 93.04043579 | L21: =B122 -> 92.5462265 | M21: =B123 -> 91.31170654 | N21: =B124 -> 84.69039917 | O21: =B125 -> 80.0265274 | P21: =B126 -> 81.438591 | Q21: =B127 -> 82.61682892 | R21: =B128 -> 87.67559052 | S21: =B129 -> 91.6688385 | T21: =B130 -> 92.22943115 | U21: =B131 -> 92.59161377 | V21: =B132 -> 93.36582947 | X21: 87.54816755 | Y21: 84.51248837 | Z21: 88.60016823 | AB21: 90.397192 | AC21: 85.34287771 | AD21: 85.84996223 | AE21: 92.46392822 | AF21: 93.73354594 | AH21: 1931 | AI21: ='Compile Data'!C121 -> 93.05272675 | AJ21: ='Compile Data'!C122 -> 92.53889465 | AK21: ='Compile Data'!C123 -> 91.23688507 | AL21: ='Compile Data'!C124 -> 84.62948608 | AM21: ='Compile Data'!C125 -> 80.00293732 | AN21: ='Compile Data'!C126 -> 81.43185425 | AO21: ='Compile Data'!C127 -> 82.61499023 | AP21: ='Compile Data'!C128 -> 87.67264557 | AQ21: ='Compile Data'!C129 -> 91.69042206 | AR21: ='Compile Data'!C130 -> 92.25688934 | AS21: ='Compile Data'!C131 -> 92.61404419 | AT21: ='Compile Data'!C132 -> 93.38175201 | AV21: 87.59953562 | AW21: 84.62411944 | AX21: 88.59362729 | AZ21: 90.36449814 | BA21: 85.28976949 | BB21: 85.85247803 | BC21: 92.4857769 | BD21: 93.71013387 | BF21: 1931 | BG21: ='Compile Data'!D121 -> 92.91992188 | BH21: ='Compile Data'!D122 -> 92.50319672 | BI21: ='Compile Data'!D123 -> 91.21889496 | BJ21: ='Compile Data'!D124 -> 84.62275696 | BK21: ='Compile Data'!D125 -> 80.00086975 | BL21: ='Compile Data'!D126 -> 81.43122864 | BM21: ='Compile Data'!D127 -> 82.61483765 | BN21: ='Compile Data'!D128 -> 87.67201996 | BO21: ='Compile Data'!D129 -> 91.69478607 | BP21: ='Compile Data'!D130 -> 92.26242828 | BQ21: ='Compile Data'!D131 -> 92.61909485 | BR21: ='Compile Data'!D132 -> 93.38519287 | BT21: 87.59940338 | BU21: 84.58601093 | BV21: 88.57876905 | BX21: 90.31619263 | BY21: 85.28084056 | BZ21: 85.85321808 | CA21: 92.49037552 | CB21: 93.70646922 | CD21: 1931 | CE21: ='Compile Data'!E121 -> 92.45539093 | CF21: ='Compile Data'!E122 -> 92.37263489 | CG21: ='Compile Data'!E123 -> 91.29193115 | CH21: ='Compile Data'!E124 -> 84.70290375 | CI21: ='Compile Data'!E125 -> 80.01995087 | CJ21: ='Compile Data'!E126 -> 81.43665314 | CK21: ='Compile Data'!E127 -> 82.61639404 | CL21: ='Compile Data'!E128 -> 87.6739502 | CM21: ='Compile Data'!E129 -> 91.68273926 | CN21: ='Compile Data'!E130 -> 92.24713135 | CO21: ='Compile Data'!E131 -> 92.60627747 | CP21: ='Compile Data'!E132 -> 93.37593842 | CR21: 87.60837873 | CS21: 84.58643055 | CT21: 88.54015795 | CV21: 90.20571518 | CW21: 85.33826192 | CX21: 85.85243416 | CY21: 92.47802162 | CZ21: 93.71694438 | DB21: 1931 | DC21: ='Compile Data'!F121 -> 91.94314575 | DD21: ='Compile Data'!F122 -> 92.23388672 | DE21: ='Compile Data'!F123 -> 91.43232727 | DF21: ='Compile Data'!F124 -> 84.8285675 | DG21: ='Compile Data'!F125 -> 80.05680847 | DH21: ='Compile Data'!F126 -> 81.4474411 | DI21: ='Compile Data'!F127 -> 82.61946869 | DJ21: ='Compile Data'!F128 -> 87.67443848 | DK21: ='Compile Data'!F129 -> 91.69147491 | DL21: ='Compile Data'!F130 -> 92.25765991 | DM21: ='Compile Data'!F131 -> 92.61453247 | DN21: ='Compile Data'!F132 -> 93.38210297 | DP21: 87.62313779 | DQ21: 84.58768241 | DR21: 88.51515452 | DT21: 90.10948181 | DU21: 85.43923442 | DV21: 85.8582058 | DW21: 92.48644257 | DX21: 93.70976257
A22: 1922-07-31 | B22: =INDIRECT(CONCATENATE("'",B$1,"'!",B$4,(YEAR($A22)-1921)*12+MONTH($A22)+3+IF(ISNUMBER(FIND("PRV",B$6)),1,0)))*IF(AND(B$3>0,TRIM(B$9)="CFS"),Conv_Flags!$C22,1) -> 75.40342712 | C22: =INDIRECT(CONCATENATE("'",C$1,"'!",C$4,(YEAR($A22)-1921)*12+MONTH($A22)+3+IF(ISNUMBER(FIND("PRV",C$6)),1,0)))*IF(AND(C$3>0,TRIM(C$9)="CFS"),Conv_Flags!$C22,1) -> 75.57607269 | D22: =INDIRECT(CONCATENATE("'",D$1,"'!",D$4,(YEAR($A22)-1921)*12+MONTH($A22)+3+IF(ISNUMBER(FIND("PRV",D$6)),1,0)))*IF(AND(D$3>0,TRIM(D$9)="CFS"),Conv_Flags!$C22,1) -> 75.57596588 | E22: =INDIRECT(CONCATENATE("'",E$1,"'!",E$4,(YEAR($A22)-1921)*12+MONTH($A22)+3+IF(ISNUMBER(FIND("PRV",E$6)),1,0)))*IF(AND(E$3>0,TRIM(E$9)="CFS"),Conv_Flags!$C22,1) -> 75.40322113 | F22: =INDIRECT(CONCATENATE("'",F$1,"'!",F$4,(YEAR($A22)-1921)*12+MONTH($A22)+3+IF(ISNUMBER(FIND("PRV",F$6)),1,0)))*IF(AND(F$3>0,TRIM(F$9)="CFS"),Conv_Flags!$C22,1) -> 75.40322113 | J22: 1932 | K22: =B133 -> 93.77640533 | L22: =B134 -> 94.05840302 | M22: =B135 -> 76.43955231 | N22: =B136 -> 65.31842041 | O22: =B137 -> 62.97035599 | P22: =B138 -> 68.3469162 | Q22: =B139 -> 72.2203064 | R22: =B140 -> 73.84298706 | S22: =B141 -> 77.0276413 | T22: =B142 -> 83.86480713 | U22: =B143 -> 90.20259094 | V22: =B144 -> 92.04975891 | X22: 80.05027612 | Y22: 82.60124779 | Z22: 79.17651208 | AB22: 82.39819527 | AC22: 68.24277623 | AD22: 72.85946274 | AE22: 85.78619957 | AF22: 92.26556142 | AH22: 1932 | AI22: ='Compile Data'!C133 -> 93.74591064 | AJ22: ='Compile Data'!C134 -> 94.00273895 | AK22: ='Compile Data'!C135 -> 77.15075684 | AL22: ='Compile Data'!C136 -> 65.83631134 | AM22: ='Compile Data'!C137 -> 63.09111786 | AN22: ='Compile Data'!C138 -> 68.35140228 | AO22: ='Compile Data'!C139 -> 72.22019958 | AP22: ='Compile Data'!C140 -> 73.92901611 | AQ22: ='Compile Data'!C141 -> 77.06819153 | AR22: ='Compile Data'!C142 -> 83.90034485 | AS22: ='Compile Data'!C143 -> 90.2178421 | AT22: ='Compile Data'!C144 -> 92.02381134 | AV22: 80.11075974 | AW22: 82.60386531 | AX22: 79.29480362 | AZ22: 82.68392944 | BA22: 68.69272868 | BB22: 72.89220238 | BC22: 85.80254745 | BD22: 92.24440765 | BF22: 1932 | BG22: ='Compile Data'!D133 -> 93.73976135 | BH22: ='Compile Data'!D134 -> 93.99445343 | BI22: ='Compile Data'!D135 -> 77.15541077 | BJ22: ='Compile Data'!D136 -> 65.4887619 | BK22: ='Compile Data'!D137 -> 62.97415543 | BL22: ='Compile Data'!D138 -> 68.34731293 | BM22: ='Compile Data'!D139 -> 72.21674347 | BN22: ='Compile Data'!D140 -> 74.12431335 | BO22: ='Compile Data'!D141 -> 77.16351318 | BP22: ='Compile Data'!D142 -> 83.91500854 | BQ22: ='Compile Data'!D143 -> 90.21469879 | BR22: ='Compile Data'!D144 -> 92.01282501 | BT22: 80.09420427 | BU22: 82.62607447 | BV22: 79.27891318 | BX22: 82.59459686 | BY22: 68.5394427 | BZ22: 72.96297073 | CA22: 85.82651138 | CB22: 92.23458862 | CD22: 1932 | CE22: ='Compile Data'!E133 -> 93.75714874 | CF22: ='Compile Data'!E134 -> 94.01774597 | CG22: ='Compile Data'!E135 -> 77.16371155 | CH22: ='Compile Data'!E136 -> 65.48639679 | CI22: ='Compile Data'!E137 -> 62.97307968 | CJ22: ='Compile Data'!E138 -> 68.3473053 | CK22: ='Compile Data'!E139 -> 72.21956635 | CL22: ='Compile Data'!E140 -> 73.93877411 | CM22: ='Compile Data'!E141 -> 77.07556915 | CN22: ='Compile Data'!E142 -> 83.84964752 | CO22: ='Compile Data'!E143 -> 90.18940735 | CP22: ='Compile Data'!E144 -> 92.03198242 | CR22: 80.06850719 | CS22: 82.60262553 | CT22: 79.25419458 | CV22: 82.60625076 | CW22: 68.54106267 | CX22: 72.89530373 | CY22: 85.78665161 | CZ22: 92.2493693 | DB22: 1932 | DC22: ='Compile Data'!F133 -> 93.74521637 | DD22: ='Compile Data'!F134 -> 94.00196838 | DE22: ='Compile Data'!F135 -> 77.15797424 | DF22: ='Compile Data'!F136 -> 65.4865036 | DG22: ='Compile Data'!F137 -> 62.97340775 | DH22: ='Compile Data'!F138 -> 68.3473053 | DI22: ='Compile Data'!F139 -> 72.21963501 | DJ22: ='Compile Data'!F140 -> 73.91572571 | DK22: ='Compile Data'!F141 -> 77.06640625 | DL22: ='Compile Data'!F142 -> 83.80195618 | DM22: ='Compile Data'!F143 -> 90.20571136 | DN22: ='Compile Data'!F144 -> 92.07028198 | DP22: 80.07153479 | DQ22: 82.60808118 | DR22: 79.24934101 | DT22: 82.59791565 | DU22: 68.5392952 | DV22: 72.88726807 | DW22: 85.78608894 | DX22: 92.27779897
A23: 1922-08-31 | B23: =INDIRECT(CONCATENATE("'",B$1,"'!",B$4,(YEAR($A23)-1921)*12+MONTH($A23)+3+IF(ISNUMBER(FIND("PRV",B$6)),1,0)))*IF(AND(B$3>0,TRIM(B$9)="CFS"),Conv_Flags!$C23,1) -> 82.75148773 | C23: =INDIRECT(CONCATENATE("'",C$1,"'!",C$4,(YEAR($A23)-1921)*12+MONTH($A23)+3+IF(ISNUMBER(FIND("PRV",C$6)),1,0)))*IF(AND(C$3>0,TRIM(C$9)="CFS"),Conv_Flags!$C23,1) -> 82.45005035 | D23: =INDIRECT(CONCATENATE("'",D$1,"'!",D$4,(YEAR($A23)-1921)*12+MONTH($A23)+3+IF(ISNUMBER(FIND("PRV",D$6)),1,0)))*IF(AND(D$3>0,TRIM(D$9)="CFS"),Conv_Flags!$C23,1) -> 82.45021057 | E23: =INDIRECT(CONCATENATE("'",E$1,"'!",E$4,(YEAR($A23)-1921)*12+MONTH($A23)+3+IF(ISNUMBER(FIND("PRV",E$6)),1,0)))*IF(AND(E$3>0,TRIM(E$9)="CFS"),Conv_Flags!$C23,1) -> 82.42366791 | F23: =INDIRECT(CONCATENATE("'",F$1,"'!",F$4,(YEAR($A23)-1921)*12+MONTH($A23)+3+IF(ISNUMBER(FIND("PRV",F$6)),1,0)))*IF(AND(F$3>0,TRIM(F$9)="CFS"),Conv_Flags!$C23,1) -> 82.42366791 | J23: 1933 | K23: =B145 -> 92.4707489 | L23: =B146 -> 92.27617645 | M23: =B147 -> 90.01260376 | N23: =B148 -> 81.82146454 | O23: =B149 -> 77.07897186 | P23: =B150 -> 78.17967224 | Q23: =B151 -> 77.71621704 | R23: =B152 -> 81.24006653 | S23: =B153 -> 83.5904541 | T23: =B154 -> 88.14659882 | U23: =B155 -> 91.80430603 | V23: =B156 -> 92.88584137 | X23: 85.19717979 | Y23: 83.51636632 | Z23: 85.6019268 | AB23: 89.14524841 | AC23: 82.97101339 | AD23: 80.18160248 | AE23: 89.10680008 | AF23: 92.96297201 | AH23: 1933 | AI23: ='Compile Data'!C145 -> 92.40751648 | AJ23: ='Compile Data'!C146 -> 92.30189514 | AK23: ='Compile Data'!C147 -> 89.9814682 | AL23: ='Compile Data'!C148 -> 81.7687912 | AM23: ='Compile Data'!C149 -> 77.07590485 | AN23: ='Compile Data'!C150 -> 77.27637482 | AO23: ='Compile Data'!C151 -> 77.12477112 | AP23: ='Compile Data'!C152 -> 81.16762543 | AQ23: ='Compile Data'!C153 -> 83.56977844 | AR23: ='Compile Data'!C154 -> 88.1397171 | AS23: ='Compile Data'!C155 -> 91.80149841 | AT23: ='Compile Data'!C156 -> 92.88539124 | AV23: 85.06242498 | AW23: 83.27217229 | AX23: 85.45839437 | AZ23: 89.11491776 | BA23: 82.94205475 | BB23: 79.78463745 | BC23: 89.0990963 | BD23: 92.97198232 | BF23: 1933 | BG23: ='Compile Data'!D145 -> 92.39195251 | BH23: ='Compile Data'!D146 -> 92.29898834 | BI23: ='Compile Data'!D147 -> 89.98217773 | BJ23: ='Compile Data'!D148 -> 81.76948547 | BK23: ='Compile Data'!D149 -> 77.07587433 | BL23: ='Compile Data'!D150 -> 77.3080368 | BM23: ='Compile Data'!D151 -> 77.14535522 | BN23: ='Compile Data'!D152 -> 81.17011261 | BO23: ='Compile Data'!D153 -> 83.57051849 | BP23: ='Compile Data'!D154 -> 88.14535522 | BQ23: ='Compile Data'!D155 -> 91.81153107 | BR23: ='Compile Data'!D156 -> 92.89608002 | BT23: 85.06895955 | BU23: 83.40446218 | BV23: 85.46378899 | BX23: 89.11065102 | BY23: 82.94251251 | BZ23: 79.79850578 | CA23: 89.1058712 | CB23: 92.97808838 | CD23: 1933 | CE23: ='Compile Data'!E145 -> 92.42730713 | CF23: ='Compile Data'!E146 -> 92.28881836 | CG23: ='Compile Data'!E147 -> 89.99423218 | CH23: ='Compile Data'!E148 -> 81.78773499 | CI23: ='Compile Data'!E149 -> 77.0811615 | CJ23: ='Compile Data'!E150 -> 77.30973053 | CK23: ='Compile Data'!E151 -> 77.14582825 | CL23: ='Compile Data'!E152 -> 81.17021179 | CM23: ='Compile Data'!E153 -> 83.57048035 | CN23: ='Compile Data'!E154 -> 88.17168427 | CO23: ='Compile Data'!E155 -> 91.84284973 | CP23: ='Compile Data'!E156 -> 92.92598724 | CR23: 85.0755043 | CS23: 83.41303698 | CT23: 85.47633553 | CV23: 89.12452316 | CW23: 82.95437622 | CX23: 79.79906273 | CY23: 89.1277504 | CZ23: 92.97892507 | DB23: 1933 | DC23: ='Compile Data'!F145 -> 92.4763031 | DD23: ='Compile Data'!F146 -> 92.28681183 | DE23: ='Compile Data'!F147 -> 90.00836945 | DF23: ='Compile Data'!F148 -> 81.81044769 | DG23: ='Compile Data'!F149 -> 77.08802032 | DH23: ='Compile Data'!F150 -> 77.31143188 | DI23: ='Compile Data'!F151 -> 77.14621735 | DJ23: ='Compile Data'!F152 -> 81.17036438 | DK23: ='Compile Data'!F153 -> 83.57205963 | DL23: ='Compile Data'!F154 -> 88.1348877 | DM23: ='Compile Data'!F155 -> 91.83625793 | DN23: ='Compile Data'!F156 -> 92.93887329 | DP23: 85.08178393 | DQ23: 83.41895994 | DR23: 85.48167038 | DT23: 89.14548302 | DU23: 82.96894582 | DV23: 79.80001831 | DW23: 89.12051964 | DX23: 93.00296021
A24: 1922-09-30 | B24: =INDIRECT(CONCATENATE("'",B$1,"'!",B$4,(YEAR($A24)-1921)*12+MONTH($A24)+3+IF(ISNUMBER(FIND("PRV",B$6)),1,0)))*IF(AND(B$3>0,TRIM(B$9)="CFS"),Conv_Flags!$C24,1) -> 81.5848999 | C24: =INDIRECT(CONCATENATE("'",C$1,"'!",C$4,(YEAR($A24)-1921)*12+MONTH($A24)+3+IF(ISNUMBER(FIND("PRV",C$6)),1,0)))*IF(AND(C$3>0,TRIM(C$9)="CFS"),Conv_Flags!$C24,1) -> 79.39510345 | D24: =INDIRECT(CONCATENATE("'",D$1,"'!",D$4,(YEAR($A24)-1921)*12+MONTH($A24)+3+IF(ISNUMBER(FIND("PRV",D$6)),1,0)))*IF(AND(D$3>0,TRIM(D$9)="CFS"),Conv_Flags!$C24,1) -> 79.39176941 | E24: =INDIRECT(CONCATENATE("'",E$1,"'!",E$4,(YEAR($A24)-1921)*12+MONTH($A24)+3+IF(ISNUMBER(FIND("PRV",E$6)),1,0)))*IF(AND(E$3>0,TRIM(E$9)="CFS"),Conv_Flags!$C24,1) -> 81.14016724 | F24: =INDIRECT(CONCATENATE("'",F$1,"'!",F$4,(YEAR($A24)-1921)*12+MONTH($A24)+3+IF(ISNUMBER(FIND("PRV",F$6)),1,0)))*IF(AND(F$3>0,TRIM(F$9)="CFS"),Conv_Flags!$C24,1) -> 81.14016724 | J24: 1934 | K24: =B157 -> 92.94387817 | L24: =B158 -> 93.05919647 | M24: =B159 -> 83.89949036 | N24: =B160 -> 71.43699646 | O24: =B161 -> 67.29367828 | P24: =B162 -> 74.36495972 | Q24: =B163 -> 79.146492 | R24: =B164 -> 82.54602051 | S24: =B165 -> 83.71839142 | T24: =B166 -> 87.95899963 | U24: =B167 -> 92.05710602 | V24: =B168 -> 93.50547028 | X24: 83.70170784 | Y24: 83.08026695 | Z24: 83.49422328 | AB24: 85.33489037 | AC24: 74.21005503 | AD24: 79.94396591 | AE24: 89.30999184 | AF24: 91.9691925 | AH24: 1934 | AI24: ='Compile Data'!C157 -> 92.95715332 | AJ24: ='Compile Data'!C158 -> 93.0734024 | AK24: ='Compile Data'!C159 -> 83.90869141 | AL24: ='Compile Data'!C160 -> 70.67009735 | AM24: ='Compile Data'!C161 -> 66.69156647 | AN24: ='Compile Data'!C162 -> 74.24803925 | AO24: ='Compile Data'!C163 -> 79.06912231 | AP24: ='Compile Data'!C164 -> 82.5251236 | AQ24: ='Compile Data'!C165 -> 83.70755768 | AR24: ='Compile Data'!C166 -> 87.94769287 | AS24: ='Compile Data'!C167 -> 92.05295563 | AT24: ='Compile Data'!C168 -> 93.5087738 | AV24: 83.56601334 | AW24: 83.48051453 | AX24: 83.36334801 | AZ24: 85.15233612 | BA24: 73.75678507 | BB24: 79.88746071 | BC24: 89.304245 | BD24: 91.98206584 | BF24: 1934 | BG24: ='Compile Data'!D157 -> 92.96259308 | BH24: ='Compile Data'!D158 -> 93.07559204 | BI24: ='Compile Data'!D159 -> 83.89698029 | BJ24: ='Compile Data'!D160 -> 71.43338776 | BK24: ='Compile Data'!D161 -> 67.43800354 | BL24: ='Compile Data'!D162 -> 74.2800293 | BM24: ='Compile Data'!D163 -> 79.06446838 | BN24: ='Compile Data'!D164 -> 82.52462769 | BO24: ='Compile Data'!D165 -> 83.70762634 | BP24: ='Compile Data'!D166 -> 87.94652557 | BQ24: ='Compile Data'!D167 -> 92.05220795 | BR24: ='Compile Data'!D168 -> 93.50832367 | BT24: 83.69401296 | BU24: 83.48280271 | BV24: 83.4908638 | BX24: 85.34213829 | BY24: 74.25612386 | BZ24: 79.89418793 | CA24: 89.30367088 | CB24: 91.98212179 | CD24: 1934 | CE24: ='Compile Data'!E157 -> 92.95039368 | CF24: ='Compile Data'!E158 -> 93.06039429 | CG24: ='Compile Data'!E159 -> 83.88959503 | CH24: ='Compile Data'!E160 -> 71.43746185 | CI24: ='Compile Data'!E161 -> 67.48182678 | CJ24: ='Compile Data'!E162 -> 74.13869476 | CK24: ='Compile Data'!E163 -> 78.9743042 | CL24: ='Compile Data'!E164 -> 82.51142883 | CM24: ='Compile Data'!E165 -> 83.70399475 | CN24: ='Compile Data'!E166 -> 87.93643951 | CO24: ='Compile Data'!E167 -> 92.04615021 | CP24: ='Compile Data'!E168 -> 93.49971008 | CR24: 83.67339706 | CS24: 83.45893224 | CT24: 83.4691995 | CV24: 85.33446121 | CW24: 74.26962789 | CX24: 79.83210564 | CY24: 89.29657364 | CZ24: 91.96901449 | DB24: 1934 | DC24: ='Compile Data'!F157 -> 92.98693085 | DD24: ='Compile Data'!F158 -> 93.08307648 | DE24: ='Compile Data'!F159 -> 83.90283966 | DF24: ='Compile Data'!F160 -> 71.44805908 | DG24: ='Compile Data'!F161 -> 67.496521 | DH24: ='Compile Data'!F162 -> 74.14594269 | DI24: ='Compile Data'!F163 -> 78.97523499 | DJ24: ='Compile Data'!F164 -> 82.51155853 | DK24: ='Compile Data'!F165 -> 83.70386505 | DL24: ='Compile Data'!F166 -> 87.93923187 | DM24: ='Compile Data'!F167 -> 92.04471588 | DN24: ='Compile Data'!F168 -> 93.49756622 | DP24: 83.67617289 | DQ24: 83.45950953 | DR24: 83.47796186 | DT24: 85.35522652 | DU24: 74.28247325 | DV24: 79.83415031 | DW24: 89.29634476 | DX24: 91.96887461
A25: 1922-10-31 | B25: =INDIRECT(CONCATENATE("'",B$1,"'!",B$4,(YEAR($A25)-1921)*12+MONTH($A25)+3+IF(ISNUMBER(FIND("PRV",B$6)),1,0)))*IF(AND(B$3>0,TRIM(B$9)="CFS"),Conv_Flags!$C25,1) -> 80.58673096 | C25: =INDIRECT(CONCATENATE("'",C$1,"'!",C$4,(YEAR($A25)-1921)*12+MONTH($A25)+3+IF(ISNUMBER(FIND("PRV",C$6)),1,0)))*IF(AND(C$3>0,TRIM(C$9)="CFS"),Conv_Flags!$C25,1) -> 78.1124649 | D25: =INDIRECT(CONCATENATE("'",D$1,"'!",D$4,(YEAR($A25)-1921)*12+MONTH($A25)+3+IF(ISNUMBER(FIND("PRV",D$6)),1,0)))*IF(AND(D$3>0,TRIM(D$9)="CFS"),Conv_Flags!$C25,1) -> 78.11053467 | E25: =INDIRECT(CONCATENATE("'",E$1,"'!",E$4,(YEAR($A25)-1921)*12+MONTH($A25)+3+IF(ISNUMBER(FIND("PRV",E$6)),1,0)))*IF(AND(E$3>0,TRIM(E$9)="CFS"),Conv_Flags!$C25,1) -> 80.07609558 | F25: =INDIRECT(CONCATENATE("'",F$1,"'!",F$4,(YEAR($A25)-1921)*12+MONTH($A25)+3+IF(ISNUMBER(FIND("PRV",F$6)),1,0)))*IF(AND(F$3>0,TRIM(F$9)="CFS"),Conv_Flags!$C25,1) -> 80.07609558 | J25: 1935 | K25: =B169 -> 92.0437851 | L25: =B170 -> 90.35832214 | M25: =B171 -> 89.99027252 | N25: =B172 -> 66.3639679 | O25: =B173 -> 64.9094162 | P25: =B174 -> 62.40463257 | Q25: =B175 -> 54.60756683 | R25: =B176 -> 62.33644104 | S25: =B177 -> 75.6601181 | T25: =B178 -> 81.8910141 | U25: =B179 -> 87.5269928 | V25: =B180 -> 91.59603882 | X25: 77.0135657 | Y25: 75.75687822 | Z25: 76.64071401 | AB25: 84.68908691 | AC25: 73.75455221 | AD25: 63.75218964 | AE25: 84.16854095 | AF25: 92.32703145 | AH25: 1935 | AI25: ='Compile Data'!C169 -> 92.06276703 | AJ25: ='Compile Data'!C170 -> 90.37465668 | AK25: ='Compile Data'!C171 -> 89.93380737 | AL25: ='Compile Data'!C172 -> 67.65102386 | AM25: ='Compile Data'!C173 -> 68.68465424 | AN25: ='Compile Data'!C174 -> 64.30549622 | AO25: ='Compile Data'!C175 -> 54.77836609 | AP25: ='Compile Data'!C176 -> 62.57172394 | AQ25: ='Compile Data'!C177 -> 75.76171875 | AR25: ='Compile Data'!C178 -> 81.79348755 | AS25: ='Compile Data'!C179 -> 87.04525757 | AT25: ='Compile Data'!C180 -> 91.06589508 | AV25: 77.35130501 | AW25: 75.73802058 | AX25: 77.1690712 | AZ25: 85.00556374 | BA25: 75.42316182 | BB25: 64.35432625 | BC25: 83.91658974 | BD25: 91.47697957 | BF25: 1935 | BG25: ='Compile Data'!D169 -> 92.06301117 | BH25: ='Compile Data'!D170 -> 90.37503052 | BI25: ='Compile Data'!D171 -> 89.93491364 | BJ25: ='Compile Data'!D172 -> 67.65187073 | BK25: ='Compile Data'!D173 -> 68.68499756 | BL25: ='Compile Data'!D174 -> 64.30588531 | BM25: ='Compile Data'!D175 -> 54.77829742 | BN25: ='Compile Data'!D176 -> 62.55635834 | BO25: ='Compile Data'!D177 -> 75.75093079 | BP25: ='Compile Data'!D178 -> 81.83312225 | BQ25: ='Compile Data'!D179 -> 87.06536865 | BR25: ='Compile Data'!D180 -> 91.25535583 | BT25: 77.35921478 | BU25: 75.72726027 | BV25: 77.18792852 | BX25: 85.00620651 | BY25: 75.42392731 | BZ25: 64.34786797 | CA25: 83.97619438 | CB25: 91.5514857 | CD25: 1935 | CE25: ='Compile Data'!E169 -> 92.04550171 | CF25: ='Compile Data'!E170 -> 90.36183167 | CG25: ='Compile Data'!E171 -> 89.94342041 | CH25: ='Compile Data'!E172 -> 67.66011047 | CI25: ='Compile Data'!E173 -> 68.68560028 | CJ25: ='Compile Data'!E174 -> 64.30580139 | CK25: ='Compile Data'!E175 -> 54.77788544 | CL25: ='Compile Data'!E176 -> 62.24315643 | CM25: ='Compile Data'!E177 -> 75.79067993 | CN25: ='Compile Data'!E178 -> 81.78674316 | CO25: ='Compile Data'!E179 -> 86.96528625 | CP25: ='Compile Data'!E180 -> 91.17301178 | CR25: 77.34609159 | CS25: 75.71019236 | CT25: 77.14491908 | CV25: 85.00271606 | CW25: 75.42971039 | CX25: 64.2793808 | CY25: 83.92893028 | CZ25: 91.53711446 | DB25: 1935 | DC25: ='Compile Data'!F169 -> 92.04631042 | DD25: ='Compile Data'!F170 -> 90.36274719 | DE25: ='Compile Data'!F171 -> 89.94232178 | DF25: ='Compile Data'!F172 -> 67.65919495 | DG25: ='Compile Data'!F173 -> 68.6854248 | DH25: ='Compile Data'!F174 -> 64.3049469 | DI25: ='Compile Data'!F175 -> 54.77772522 | DJ25: ='Compile Data'!F176 -> 62.24365997 | DK25: ='Compile Data'!F177 -> 75.79110718 | DL25: ='Compile Data'!F178 -> 81.78546143 | DM25: ='Compile Data'!F179 -> 86.96977234 | DN25: ='Compile Data'!F180 -> 91.10701752 | DP25: 77.32917722 | DQ25: 75.6931661 | DR25: 77.13964081 | DT25: 85.00264359 | DU25: 75.42898051 | DV25: 64.27935982 | DW25: 83.91333961 | DX25: 91.5011673
A26: 1922-11-30 | B26: =INDIRECT(CONCATENATE("'",B$1,"'!",B$4,(YEAR($A26)-1921)*12+MONTH($A26)+3+IF(ISNUMBER(FIND("PRV",B$6)),1,0)))*IF(AND(B$3>0,TRIM(B$9)="CFS"),Conv_Flags!$C26,1) -> 82.46551514 | C26: =INDIRECT(CONCATENATE("'",C$1,"'!",C$4,(YEAR($A26)-1921)*12+MONTH($A26)+3+IF(ISNUMBER(FIND("PRV",C$6)),1,0)))*IF(AND(C$3>0,TRIM(C$9)="CFS"),Conv_Flags!$C26,1) -> 81.32614899 | D26: =INDIRECT(CONCATENATE("'",D$1,"'!",D$4,(YEAR($A26)-1921)*12+MONTH($A26)+3+IF(ISNUMBER(FIND("PRV",D$6)),1,0)))*IF(AND(D$3>0,TRIM(D$9)="CFS"),Conv_Flags!$C26,1) -> 81.32608795 | E26: =INDIRECT(CONCATENATE("'",E$1,"'!",E$4,(YEAR($A26)-1921)*12+MONTH($A26)+3+IF(ISNUMBER(FIND("PRV",E$6)),1,0)))*IF(AND(E$3>0,TRIM(E$9)="CFS"),Conv_Flags!$C26,1) -> 82.26055145 | F26: =INDIRECT(CONCATENATE("'",F$1,"'!",F$4,(YEAR($A26)-1921)*12+MONTH($A26)+3+IF(ISNUMBER(FIND("PRV",F$6)),1,0)))*IF(AND(F$3>0,TRIM(F$9)="CFS"),Conv_Flags!$C26,1) -> 82.26055145 | J26: 1936 | K26: =B181 -> 93.23933411 | L26: =B182 -> 92.14572144 | M26: =B183 -> 91.48154449 | N26: =B184 -> 62.19313431 | O26: =B185 -> 54 | P26: =B186 -> 57.29766464 | Q26: =B187 -> 58.93661499 | R26: =B188 -> 69.18825531 | S26: =B189 -> 79.78252411 | T26: =B190 -> 82.32074738 | U26: =B191 -> 86.9598999 | V26: =B192 -> 89.82564545 | X26: 75.99250285 | Y26: 78.05711842 | Z26: 76.44759051 | AB26: 84.76493359 | AC26: 69.22489293 | AD26: 66.30126476 | AE26: 84.72220421 | AF26: 90.55469513 | AH26: 1936 | AI26: ='Compile Data'!C181 -> 92.3479538 | AJ26: ='Compile Data'!C182 -> 91.01708984 | AK26: ='Compile Data'!C183 -> 91.19299316 | AL26: ='Compile Data'!C184 -> 62.97626495 | AM26: ='Compile Data'!C185 -> 54 | AN26: ='Compile Data'!C186 -> 57.13817215 | AO26: ='Compile Data'!C187 -> 58.88770294 | AP26: ='Compile Data'!C188 -> 69.18667603 | AQ26: ='Compile Data'!C189 -> 79.78379059 | AR26: ='Compile Data'!C190 -> 82.29935455 | AS26: ='Compile Data'!C191 -> 86.97766876 | AT26: ='Compile Data'!C192 -> 89.84971619 | AV26: 76.00473563 | AW26: 78.0204827 | AX26: 76.30478191 | AZ26: 84.38357544 | BA26: 69.38975271 | BB26: 66.24908543 | BC26: 84.72763252 | BD26: 90.41225688 | BF26: 1936 | BG26: ='Compile Data'!D181 -> 92.40322876 | BH26: ='Compile Data'!D182 -> 90.9958725 | BI26: ='Compile Data'!D183 -> 91.02928925 | BJ26: ='Compile Data'!D184 -> 62.75341415 | BK26: ='Compile Data'!D185 -> 54 | BL26: ='Compile Data'!D186 -> 57.12824249 | BM26: ='Compile Data'!D187 -> 58.8862648 | BN26: ='Compile Data'!D188 -> 69.18733978 | BO26: ='Compile Data'!D189 -> 79.78388977 | BP26: ='Compile Data'!D190 -> 82.2996521 | BQ26: ='Compile Data'!D191 -> 86.97776031 | BR26: ='Compile Data'!D192 -> 89.85366058 | BT26: 75.97407722 | BU26: 78.00725174 | BV26: 76.27488454 | BX26: 84.29545116 | BY26: 69.26090113 | BZ26: 66.24643421 | CA26: 84.72874069 | CB26: 90.35444132 | CD26: 1936 | CE26: ='Compile Data'!E181 -> 92.27487946 | CF26: ='Compile Data'!E182 -> 91.16345215 | CG26: ='Compile Data'!E183 -> 91.32649231 | CH26: ='Compile Data'!E184 -> 62.71492004 | CI26: ='Compile Data'!E185 -> 54 | CJ26: ='Compile Data'!E186 -> 56.97232056 | CK26: ='Compile Data'!E187 -> 58.84972 | CL26: ='Compile Data'!E188 -> 69.19294739 | CM26: ='Compile Data'!E189 -> 79.78414154 | CN26: ='Compile Data'!E190 -> 82.30243683 | CO26: ='Compile Data'!E191 -> 86.97956848 | CP26: ='Compile Data'!E192 -> 89.85862732 | CR26: 76.02312501 | CS26: 78.06847127 | CT26: 76.28495884 | CV26: 84.36993599 | CW26: 69.34713745 | CX26: 66.19978237 | CY26: 84.73119354 | CZ26: 90.52905273 | DB26: 1936 | DC26: ='Compile Data'!F181 -> 92.32506561 | DD26: ='Compile Data'!F182 -> 91.07141876 | DE26: ='Compile Data'!F183 -> 91.22933197 | DF26: ='Compile Data'!F184 -> 62.71248627 | DG26: ='Compile Data'!F185 -> 54 | DH26: ='Compile Data'!F186 -> 56.97038651 | DI26: ='Compile Data'!F187 -> 58.8490448 | DJ26: ='Compile Data'!F188 -> 69.19296265 | DK26: ='Compile Data'!F189 -> 79.78412628 | DL26: ='Compile Data'!F190 -> 82.30243683 | DM26: ='Compile Data'!F191 -> 86.97955322 | DN26: ='Compile Data'!F192 -> 89.85864258 | DP26: 76.02267806 | DQ26: 78.06823063 | DR26: 76.27295462 | DT26: 84.33457565 | DU26: 69.31393941 | DV26: 66.19913006 | DW26: 84.73118973 | DX26: 90.52880859
A27: 1922-12-31 | B27: =INDIRECT(CONCATENATE("'",B$1,"'!",B$4,(YEAR($A27)-1921)*12+MONTH($A27)+3+IF(ISNUMBER(FIND("PRV",B$6)),1,0)))*IF(AND(B$3>0,TRIM(B$9)="CFS"),Conv_Flags!$C27,1) -> 62.1647377 | C27: =INDIRECT(CONCATENATE("'",C$1,"'!",C$4,(YEAR($A27)-1921)*12+MONTH($A27)+3+IF(ISNUMBER(FIND("PRV",C$6)),1,0)))*IF(AND(C$3>0,TRIM(C$9)="CFS"),Conv_Flags!$C27,1) -> 62.72730255 | D27: =INDIRECT(CONCATENATE("'",D$1,"'!",D$4,(YEAR($A27)-1921)*12+MONTH($A27)+3+IF(ISNUMBER(FIND("PRV",D$6)),1,0)))*IF(AND(D$3>0,TRIM(D$9)="CFS"),Conv_Flags!$C27,1) -> 62.72737503 | E27: =INDIRECT(CONCATENATE("'",E$1,"'!",E$4,(YEAR($A27)-1921)*12+MONTH($A27)+3+IF(ISNUMBER(FIND("PRV",E$6)),1,0)))*IF(AND(E$3>0,TRIM(E$9)="CFS"),Conv_Flags!$C27,1) -> 63.04059601 | F27: =INDIRECT(CONCATENATE("'",F$1,"'!",F$4,(YEAR($A27)-1921)*12+MONTH($A27)+3+IF(ISNUMBER(FIND("PRV",F$6)),1,0)))*IF(AND(F$3>0,TRIM(F$9)="CFS"),Conv_Flags!$C27,1) -> 63.04059601 | J27: 1937 | K27: =B193 -> 91.62532806 | L27: =B194 -> 90.21311188 | M27: =B195 -> 89.56710815 | N27: =B196 -> 83.39725494 | O27: =B197 -> 57.57126617 | P27: =B198 -> 54.00091171 | Q27: =B199 -> 57.71579742 | R27: =B200 -> 64.90520477 | S27: =B201 -> 73.9806366 | T27: =B202 -> 81.54626465 | U27: =B203 -> 86.91817474 | V27: =B204 -> 92.25325775 | X27: 73.31889407 | Y27: 70.89379406 | Z27: 76.97452641 | AB27: 88.70070076 | AC27: 76.84520976 | AD27: 62.65063763 | AE27: 83.67458344 | AF27: 88.13289642 | AH27: 1937 | AI27: ='Compile Data'!C193 -> 91.29576111 | AJ27: ='Compile Data'!C194 -> 90.09129333 | AK27: ='Compile Data'!C195 -> 89.57042694 | AL27: ='Compile Data'!C196 -> 83.39065552 | AM27: ='Compile Data'!C197 -> 57.77457428 | AN27: ='Compile Data'!C198 -> 54.14441681 | AO27: ='Compile Data'!C199 -> 57.85190582 | AP27: ='Compile Data'!C200 -> 65.08950043 | AQ27: ='Compile Data'!C201 -> 74.0455246 | AR27: ='Compile Data'!C202 -> 81.52059937 | AS27: ='Compile Data'!C203 -> 86.51047516 | AT27: ='Compile Data'!C204 -> 91.24962616 | AV27: 73.28324954 | AW27: 70.85069911 | AX27: 76.87789663 | AZ27: 88.58703423 | BA27: 76.91188558 | BB27: 62.78283691 | BC27: 83.33155632 | BD27: 87.81009165 | BF27: 1937 | BG27: ='Compile Data'!D193 -> 91.16792297 | BH27: ='Compile Data'!D194 -> 90.04174042 | BI27: ='Compile Data'!D195 -> 89.60903931 | BJ27: ='Compile Data'!D196 -> 83.39282227 | BK27: ='Compile Data'!D197 -> 57.75868607 | BL27: ='Compile Data'!D198 -> 54.14431 | BM27: ='Compile Data'!D199 -> 57.84442139 | BN27: ='Compile Data'!D200 -> 65.08728027 | BO27: ='Compile Data'!D201 -> 74.04524994 | BP27: ='Compile Data'!D202 -> 81.52202606 | BQ27: ='Compile Data'!D203 -> 86.51119995 | BR27: ='Compile Data'!D204 -> 91.25270081 | BT27: 73.28246053 | BU27: 70.84915829 | BV27: 76.86478329 | BX27: 88.55288124 | BY27: 76.92018255 | BZ27: 62.7803154 | CA27: 83.33279419 | CB27: 87.80649567 | CD27: 1937 | CE27: ='Compile Data'!E193 -> 91.02190399 | CF27: ='Compile Data'!E194 -> 90.70662689 | CG27: ='Compile Data'!E195 -> 89.89428711 | CH27: ='Compile Data'!E196 -> 83.49388123 | CI27: ='Compile Data'!E197 -> 57.76519394 | CJ27: ='Compile Data'!E198 -> 54.14379501 | CK27: ='Compile Data'!E199 -> 57.86519623 | CL27: ='Compile Data'!E200 -> 64.64459229 | CM27: ='Compile Data'!E201 -> 74.01462555 | CN27: ='Compile Data'!E202 -> 81.62255859 | CO27: ='Compile Data'!E203 -> 86.48420715 | CP27: ='Compile Data'!E204 -> 91.41792297 | CR27: 73.2856973 | CS27: 70.83493106 | CT27: 76.92289925 | CV27: 88.7791748 | CW27: 77.05112076 | CX27: 62.66705227 | CY27: 83.38482857 | CZ27: 87.90203857 | DB27: 1937 | DC27: ='Compile Data'!F193 -> 91.02090454 | DD27: ='Compile Data'!F194 -> 90.70687866 | DE27: ='Compile Data'!F195 -> 89.89471436 | DF27: ='Compile Data'!F196 -> 83.49394989 | DG27: ='Compile Data'!F197 -> 57.76516724 | DH27: ='Compile Data'!F198 -> 54.14378357 | DI27: ='Compile Data'!F199 -> 57.86513138 | DJ27: ='Compile Data'!F200 -> 64.64454651 | DK27: ='Compile Data'!F201 -> 74.01460266 | DL27: ='Compile Data'!F202 -> 81.62245941 | DM27: ='Compile Data'!F203 -> 86.4841156 | DN27: ='Compile Data'!F204 -> 91.41784668 | DP27: 73.2856493 | DQ27: 70.83487066 | DR27: 76.92284171 | DT27: 88.77911186 | DU27: 77.05127716 | DV27: 62.66701603 | DW27: 83.38475609 | DX27: 87.90195465
A28: 1923-01-31 | B28: =INDIRECT(CONCATENATE("'",B$1,"'!",B$4,(YEAR($A28)-1921)*12+MONTH($A28)+3+IF(ISNUMBER(FIND("PRV",B$6)),1,0)))*IF(AND(B$3>0,TRIM(B$9)="CFS"),Conv_Flags!$C28,1) -> 57.99226379 | C28: =INDIRECT(CONCATENATE("'",C$1,"'!",C$4,(YEAR($A28)-1921)*12+MONTH($A28)+3+IF(ISNUMBER(FIND("PRV",C$6)),1,0)))*IF(AND(C$3>0,TRIM(C$9)="CFS"),Conv_Flags!$C28,1) -> 58.29171753 | D28: =INDIRECT(CONCATENATE("'",D$1,"'!",D$4,(YEAR($A28)-1921)*12+MONTH($A28)+3+IF(ISNUMBER(FIND("PRV",D$6)),1,0)))*IF(AND(D$3>0,TRIM(D$9)="CFS"),Conv_Flags!$C28,1) -> 58.2917366 | E28: =INDIRECT(CONCATENATE("'",E$1,"'!",E$4,(YEAR($A28)-1921)*12+MONTH($A28)+3+IF(ISNUMBER(FIND("PRV",E$6)),1,0)))*IF(AND(E$3>0,TRIM(E$9)="CFS"),Conv_Flags!$C28,1) -> 58.30253601 | F28: =INDIRECT(CONCATENATE("'",F$1,"'!",F$4,(YEAR($A28)-1921)*12+MONTH($A28)+3+IF(ISNUMBER(FIND("PRV",F$6)),1,0)))*IF(AND(F$3>0,TRIM(F$9)="CFS"),Conv_Flags!$C28,1) -> 58.30253601 | J28: 1938 | K28: =B205 -> 93.30693817 | L28: =B206 -> 78.83849335 | M28: =B207 -> 55.39252853 | N28: =B208 -> 57.86732101 | O28: =B209 -> 54 | P28: =B210 -> 54 | Q28: =B211 -> 54 | R28: =B212 -> 54.02093506 | S28: =B213 -> 61.11375427 | T28: =B214 -> 74.00301361 | U28: =B215 -> 82.80877686 | V28: =B216 -> 80.59387207 | X28: 68.26203569 | Y28: 72.7735583 | Z28: 66.66213608 | AB28: 71.35132027 | AC28: 55.75328318 | AD28: 55.78367233 | AE28: 74.6298542 | AF28: 80.47752126 | AH28: 1938 | AI28: ='Compile Data'!C205 -> 92.16622925 | AJ28: ='Compile Data'!C206 -> 80.01441956 | AK28: ='Compile Data'!C207 -> 55.6410675 | AL28: ='Compile Data'!C208 -> 57.97462463 | AM28: ='Compile Data'!C209 -> 54 | AN28: ='Compile Data'!C210 -> 54 | AO28: ='Compile Data'!C211 -> 54 | AP28: ='Compile Data'!C212 -> 54.02157211 | AQ28: ='Compile Data'!C213 -> 61.32796478 | AR28: ='Compile Data'!C214 -> 74.14458466 | AS28: ='Compile Data'!C215 -> 82.53175354 | AT28: ='Compile Data'!C216 -> 79.57974243 | AV28: 68.20609125 | AW28: 72.77608522 | AX28: 66.61682987 | AZ28: 71.44908524 | BA28: 55.87189738 | BB28: 55.83738422 | BC28: 74.39601135 | BD28: 80.18568166 | BF28: 1938 | BG28: ='Compile Data'!D205 -> 92.16911316 | BH28: ='Compile Data'!D206 -> 79.99767303 | BI28: ='Compile Data'!D207 -> 55.66404343 | BJ28: ='Compile Data'!D208 -> 57.95188141 | BK28: ='Compile Data'!D209 -> 54 | BL28: ='Compile Data'!D210 -> 54 | BM28: ='Compile Data'!D211 -> 54 | BN28: ='Compile Data'!D212 -> 54.01898193 | BO28: ='Compile Data'!D213 -> 61.32264328 | BP28: ='Compile Data'!D214 -> 74.14494324 | BQ28: ='Compile Data'!D215 -> 82.53177643 | BR28: ='Compile Data'!D216 -> 79.50920105 | BT28: 68.18547471 | BU28: 72.75729402 | BV28: 66.60918808 | BX28: 71.44567776 | BY28: 55.87197495 | BZ28: 55.8354063 | CA28: 74.377141 | CB28: 80.11440277 | CD28: 1938 | CE28: ='Compile Data'!E205 -> 92.19917297 | CF28: ='Compile Data'!E206 -> 80.08901978 | CG28: ='Compile Data'!E207 -> 55.6882019 | CH28: ='Compile Data'!E208 -> 57.84988022 | CI28: ='Compile Data'!E209 -> 54 | CJ28: ='Compile Data'!E210 -> 54 | CK28: ='Compile Data'!E211 -> 54 | CL28: ='Compile Data'!E212 -> 54.0186615 | CM28: ='Compile Data'!E213 -> 61.10855865 | CN28: ='Compile Data'!E214 -> 74.00274658 | CO28: ='Compile Data'!E215 -> 82.48703003 | CP28: ='Compile Data'!E216 -> 80.11299896 | CR28: 68.13423697 | CS28: 72.64859072 | CT28: 66.62968922 | CV28: 71.45656872 | CW28: 55.84602737 | CX28: 55.78180504 | CY28: 74.42783356 | CZ28: 80.09083811 | DB28: 1938 | DC28: ='Compile Data'!F205 -> 92.1991272 | DD28: ='Compile Data'!F206 -> 80.08889008 | DE28: ='Compile Data'!F207 -> 55.68817139 | DF28: ='Compile Data'!F208 -> 57.84977341 | DG28: ='Compile Data'!F209 -> 54 | DH28: ='Compile Data'!F210 -> 54 | DI28: ='Compile Data'!F211 -> 54 | DJ28: ='Compile Data'!F212 -> 54.01870346 | DK28: ='Compile Data'!F213 -> 61.10859299 | DL28: ='Compile Data'!F214 -> 74.00272369 | DM28: ='Compile Data'!F215 -> 82.48626709 | DN28: ='Compile Data'!F216 -> 80.44869232 | DP28: 68.17495124 | DQ28: 72.6894544 | DR28: 66.65757847 | DT28: 71.45649052 | DU28: 55.8459816 | DV28: 55.78182411 | DW28: 74.51156902 | DX28: 80.25372314
A29: 1923-02-28 | B29: =INDIRECT(CONCATENATE("'",B$1,"'!",B$4,(YEAR($A29)-1921)*12+MONTH($A29)+3+IF(ISNUMBER(FIND("PRV",B$6)),1,0)))*IF(AND(B$3>0,TRIM(B$9)="CFS"),Conv_Flags!$C29,1) -> 63.72714615 | C29: =INDIRECT(CONCATENATE("'",C$1,"'!",C$4,(YEAR($A29)-1921)*12+MONTH($A29)+3+IF(ISNUMBER(FIND("PRV",C$6)),1,0)))*IF(AND(C$3>0,TRIM(C$9)="CFS"),Conv_Flags!$C29,1) -> 63.76799393 | D29: =INDIRECT(CONCATENATE("'",D$1,"'!",D$4,(YEAR($A29)-1921)*12+MONTH($A29)+3+IF(ISNUMBER(FIND("PRV",D$6)),1,0)))*IF(AND(D$3>0,TRIM(D$9)="CFS"),Conv_Flags!$C29,1) -> 63.768013 | E29: =INDIRECT(CONCATENATE("'",E$1,"'!",E$4,(YEAR($A29)-1921)*12+MONTH($A29)+3+IF(ISNUMBER(FIND("PRV",E$6)),1,0)))*IF(AND(E$3>0,TRIM(E$9)="CFS"),Conv_Flags!$C29,1) -> 63.78010178 | F29: =INDIRECT(CONCATENATE("'",F$1,"'!",F$4,(YEAR($A29)-1921)*12+MONTH($A29)+3+IF(ISNUMBER(FIND("PRV",F$6)),1,0)))*IF(AND(F$3>0,TRIM(F$9)="CFS"),Conv_Flags!$C29,1) -> 63.78010178 | J29: 1939 | K29: =B217 -> 78.32512665 | L29: =B218 -> 82.51356506 | M29: =B219 -> 85.89806366 | N29: =B220 -> 84.95211029 | O29: =B221 -> 81.05348206 | P29: =B222 -> 80.21705627 | Q29: =B223 -> 79.15809631 | R29: =B224 -> 80.05673218 | S29: =B225 -> 82.58992004 | T29: =B226 -> 86.34929657 | U29: =B227 -> 90.59568787 | V29: =B228 -> 92.85577393 | X29: 86.20234172 | Y29: 82.28677177 | Z29: 83.71374257 | AB29: 82.92221642 | AC29: 83.96788534 | AD29: 80.5054512 | AE29: 88.0976696 | AF29: 92.70360057 | AH29: 1939 | AI29: ='Compile Data'!C217 -> 78.20842743 | AJ29: ='Compile Data'!C218 -> 82.76887512 | AK29: ='Compile Data'!C219 -> 85.91555023 | AL29: ='Compile Data'!C220 -> 85.56481934 | AM29: ='Compile Data'!C221 -> 81.24973297 | AN29: ='Compile Data'!C222 -> 80.27140045 | AO29: ='Compile Data'!C223 -> 79.19159698 | AP29: ='Compile Data'!C224 -> 80.03748322 | AQ29: ='Compile Data'!C225 -> 82.59356689 | AR29: ='Compile Data'!C226 -> 85.78736877 | AS29: ='Compile Data'!C227 -> 89.56511688 | AT29: ='Compile Data'!C228 -> 91.86706543 | AV29: 85.88735008 | AW29: 82.00567245 | AX29: 83.58508364 | AZ29: 83.11441803 | BA29: 84.24336751 | BB29: 80.52351189 | BC29: 87.4532795 | BD29: 91.75932821 | BF29: 1939 | BG29: ='Compile Data'!D217 -> 78.10306549 | BH29: ='Compile Data'!D218 -> 82.73094177 | BI29: ='Compile Data'!D219 -> 85.91226196 | BJ29: ='Compile Data'!D220 -> 85.56443024 | BK29: ='Compile Data'!D221 -> 81.24928284 | BL29: ='Compile Data'!D222 -> 80.27111816 | BM29: ='Compile Data'!D223 -> 79.19153595 | BN29: ='Compile Data'!D224 -> 80.03747559 | BO29: ='Compile Data'!D225 -> 82.5943222 | BP29: ='Compile Data'!D226 -> 85.77309418 | BQ29: ='Compile Data'!D227 -> 89.56436157 | BR29: ='Compile Data'!D228 -> 91.86821747 | BT29: 85.87674077 | BU29: 82.00418345 | BV29: 83.57167562 | BX29: 83.07767487 | BY29: 84.24199168 | BZ29: 80.52361298 | CA29: 87.44999886 | CB29: 91.69637299 | CD29: 1939 | CE29: ='Compile Data'!E217 -> 77.8077774 | CF29: ='Compile Data'!E218 -> 82.35173798 | CG29: ='Compile Data'!E219 -> 85.87145233 | CH29: ='Compile Data'!E220 -> 84.96043396 | CI29: ='Compile Data'!E221 -> 81.06169128 | CJ29: ='Compile Data'!E222 -> 80.22058868 | CK29: ='Compile Data'!E223 -> 79.16139984 | CL29: ='Compile Data'!E224 -> 80.057724 | CM29: ='Compile Data'!E225 -> 82.60810089 | CN29: ='Compile Data'!E226 -> 85.77423096 | CO29: ='Compile Data'!E227 -> 89.47774506 | CP29: ='Compile Data'!E228 -> 91.7569809 | CR29: 85.78304227 | CS29: 81.98398113 | CT29: 83.42582194 | CV29: 82.74785042 | CW29: 83.96452586 | CX29: 80.51195335 | CY29: 87.40426445 | CZ29: 91.6237793 | DB29: 1939 | DC29: ='Compile Data'!F217 -> 77.95716095 | DD29: ='Compile Data'!F218 -> 82.35531616 | DE29: ='Compile Data'!F219 -> 85.87218475 | DF29: ='Compile Data'!F220 -> 84.96156311 | DG29: ='Compile Data'!F221 -> 81.06224823 | DH29: ='Compile Data'!F222 -> 80.22071075 | DI29: ='Compile Data'!F223 -> 79.16142273 | DJ29: ='Compile Data'!F224 -> 80.05769348 | DK29: ='Compile Data'!F225 -> 82.60808563 | DL29: ='Compile Data'!F226 -> 85.77420807 | DM29: ='Compile Data'!F227 -> 89.47772217 | DN29: ='Compile Data'!F228 -> 91.75696564 | DP29: 85.78318405 | DQ29: 81.98397382 | DR29: 83.43877347 | DT29: 82.78655624 | DU29: 83.96533203 | DV29: 80.51197815 | DW29: 87.40424538 | DX29: 91.62377675
A30: 1923-03-31 | B30: =INDIRECT(CONCATENATE("'",B$1,"'!",B$4,(YEAR($A30)-1921)*12+MONTH($A30)+3+IF(ISNUMBER(FIND("PRV",B$6)),1,0)))*IF(AND(B$3>0,TRIM(B$9)="CFS"),Conv_Flags!$C30,1) -> 70.40219879 | C30: =INDIRECT(CONCATENATE("'",C$1,"'!",C$4,(YEAR($A30)-1921)*12+MONTH($A30)+3+IF(ISNUMBER(FIND("PRV",C$6)),1,0)))*IF(AND(C$3>0,TRIM(C$9)="CFS"),Conv_Flags!$C30,1) -> 70.40391541 | D30: =INDIRECT(CONCATENATE("'",D$1,"'!",D$4,(YEAR($A30)-1921)*12+MONTH($A30)+3+IF(ISNUMBER(FIND("PRV",D$6)),1,0)))*IF(AND(D$3>0,TRIM(D$9)="CFS"),Conv_Flags!$C30,1) -> 70.4047699 | E30: =INDIRECT(CONCATENATE("'",E$1,"'!",E$4,(YEAR($A30)-1921)*12+MONTH($A30)+3+IF(ISNUMBER(FIND("PRV",E$6)),1,0)))*IF(AND(E$3>0,TRIM(E$9)="CFS"),Conv_Flags!$C30,1) -> 70.41136169 | F30: =INDIRECT(CONCATENATE("'",F$1,"'!",F$4,(YEAR($A30)-1921)*12+MONTH($A30)+3+IF(ISNUMBER(FIND("PRV",F$6)),1,0)))*IF(AND(F$3>0,TRIM(F$9)="CFS"),Conv_Flags!$C30,1) -> 70.41136169 | J30: 1940 | K30: =B229 -> 92.68517303 | L30: =B230 -> 92.56985474 | M30: =B231 -> 91.3449173 | N30: =B232 -> 64.97450256 | O30: =B233 -> 54.04425049 | P30: =B234 -> 54 | Q30: =B235 -> 54 | R30: =B236 -> 66.66294098 | S30: =B237 -> 80.13208771 | T30: =B238 -> 78.69081879 | U30: =B239 -> 82.61523438 | V30: =B240 -> 80.60099792 | X30: 70.57240486 | Y30: 69.6544714 | Z30: 74.36006482 | AB30: 85.39361191 | AC30: 70.12122345 | AD30: 63.69875717 | AE30: 80.5097847 | AF30: 82.40915171 | AH30: 1940 | AI30: ='Compile Data'!C229 -> 91.38644409 | AJ30: ='Compile Data'!C230 -> 92.0244751 | AK30: ='Compile Data'!C231 -> 91.10913086 | AL30: ='Compile Data'!C232 -> 66.14157104 | AM30: ='Compile Data'!C233 -> 54.09284973 | AN30: ='Compile Data'!C234 -> 54 | AO30: ='Compile Data'!C235 -> 54 | AP30: ='Compile Data'!C236 -> 66.73241425 | AQ30: ='Compile Data'!C237 -> 80.11907196 | AR30: ='Compile Data'!C238 -> 76.82645416 | AS30: ='Compile Data'!C239 -> 81.92408752 | AT30: ='Compile Data'!C240 -> 80.84773254 | AV30: 70.47239749 | AW30: 69.45372804 | AX30: 74.10035261 | AZ30: 85.16540527 | BA30: 70.44785055 | BB30: 63.71287155 | BC30: 79.92933655 | BD30: 82.36534119 | BF30: 1940 | BG30: ='Compile Data'!D229 -> 91.52271271 | BH30: ='Compile Data'!D230 -> 91.69818878 | BI30: ='Compile Data'!D231 -> 91.1861496 | BJ30: ='Compile Data'!D232 -> 66.23963928 | BK30: ='Compile Data'!D233 -> 54.10338593 | BL30: ='Compile Data'!D234 -> 54 | BM30: ='Compile Data'!D235 -> 54 | BN30: ='Compile Data'!D236 -> 66.74069214 | BO30: ='Compile Data'!D237 -> 80.04447937 | BP30: ='Compile Data'!D238 -> 76.8519516 | BQ30: ='Compile Data'!D239 -> 81.94120026 | BR30: ='Compile Data'!D240 -> 80.82542419 | BT30: 70.49042257 | BU30: 69.46319739 | BV30: 74.09615199 | BX30: 85.16167259 | BY30: 70.50972493 | BZ30: 63.69629288 | CA30: 79.91576385 | CB30: 82.30050913 | CD30: 1940 | CE30: ='Compile Data'!E229 -> 91.49651337 | CF30: ='Compile Data'!E230 -> 91.61784363 | CG30: ='Compile Data'!E231 -> 91.2032547 | CH30: ='Compile Data'!E232 -> 66.30244446 | CI30: ='Compile Data'!E233 -> 54.13094711 | CJ30: ='Compile Data'!E234 -> 54 | CK30: ='Compile Data'!E235 -> 54 | CL30: ='Compile Data'!E236 -> 66.62688446 | CM30: ='Compile Data'!E237 -> 79.93380737 | CN30: ='Compile Data'!E238 -> 78.47492218 | CO30: ='Compile Data'!E239 -> 82.2443161 | CP30: ='Compile Data'!E240 -> 80.054039 | CR30: 70.59554132 | CS30: 69.56113243 | CT30: 74.1737477 | CV30: 85.15501404 | CW30: 70.54554876 | CX30: 63.64017296 | CY30: 80.17677116 | CZ30: 82.05342102 | DB30: 1940 | DC30: ='Compile Data'!F229 -> 91.496521 | DD30: ='Compile Data'!F230 -> 91.61784363 | DE30: ='Compile Data'!F231 -> 91.20322418 | DF30: ='Compile Data'!F232 -> 66.30235291 | DG30: ='Compile Data'!F233 -> 54.13093567 | DH30: ='Compile Data'!F234 -> 54 | DI30: ='Compile Data'!F235 -> 54 | DJ30: ='Compile Data'!F236 -> 66.62684631 | DK30: ='Compile Data'!F237 -> 79.93376923 | DL30: ='Compile Data'!F238 -> 78.47498322 | DM30: ='Compile Data'!F239 -> 82.24427795 | DN30: ='Compile Data'!F240 -> 80.05400848 | DP30: 70.56520844 | DQ30: 69.5308075 | DR30: 74.17373021 | DT30: 85.15498543 | DU30: 70.54550425 | DV30: 63.64015388 | DW30: 80.17675972 | DX30: 81.93471273
A31: 1923-04-30 | B31: =INDIRECT(CONCATENATE("'",B$1,"'!",B$4,(YEAR($A31)-1921)*12+MONTH($A31)+3+IF(ISNUMBER(FIND("PRV",B$6)),1,0)))*IF(AND(B$3>0,TRIM(B$9)="CFS"),Conv_Flags!$C31,1) -> 61.82641983 | C31: =INDIRECT(CONCATENATE("'",C$1,"'!",C$4,(YEAR($A31)-1921)*12+MONTH($A31)+3+IF(ISNUMBER(FIND("PRV",C$6)),1,0)))*IF(AND(C$3>0,TRIM(C$9)="CFS"),Conv_Flags!$C31,1) -> 61.87662506 | D31: =INDIRECT(CONCATENATE("'",D$1,"'!",D$4,(YEAR($A31)-1921)*12+MONTH($A31)+3+IF(ISNUMBER(FIND("PRV",D$6)),1,0)))*IF(AND(D$3>0,TRIM(D$9)="CFS"),Conv_Flags!$C31,1) -> 61.8576889 | E31: =INDIRECT(CONCATENATE("'",E$1,"'!",E$4,(YEAR($A31)-1921)*12+MONTH($A31)+3+IF(ISNUMBER(FIND("PRV",E$6)),1,0)))*IF(AND(E$3>0,TRIM(E$9)="CFS"),Conv_Flags!$C31,1) -> 61.82981873 | F31: =INDIRECT(CONCATENATE("'",F$1,"'!",F$4,(YEAR($A31)-1921)*12+MONTH($A31)+3+IF(ISNUMBER(FIND("PRV",F$6)),1,0)))*IF(AND(F$3>0,TRIM(F$9)="CFS"),Conv_Flags!$C31,1) -> 61.82981873 | J31: 1941 | K31: =B241 -> 80.7225647 | L31: =B242 -> 85.90389252 | M31: =B243 -> 64.5215683 | N31: =B244 -> 54.00355148 | O31: =B245 -> 54 | P31: =B246 -> 54 | Q31: =B247 -> 54 | R31: =B248 -> 57.34087753 | S31: =B249 -> 72.69009399 | T31: =B250 -> 79.82200623 | U31: =B251 -> 83.75591278 | V31: =B252 -> 81.13887024 | X31: 67.9354798 | Y31: 67.93518384 | Z31: 68.49161148 | AB31: 71.28789425 | AC31: 57.50837326 | AD31: 59.50774288 | AE31: 79.35172081 | AF31: 82.26755524 | AH31: 1941 | AI31: ='Compile Data'!C241 -> 80.57015991 | AJ31: ='Compile Data'!C242 -> 85.6781311 | AK31: ='Compile Data'!C243 -> 64.73629761 | AL31: ='Compile Data'!C244 -> 54.01038742 | AM31: ='Compile Data'!C245 -> 54 | AN31: ='Compile Data'!C246 -> 54 | AO31: ='Compile Data'!C247 -> 54 | AP31: ='Compile Data'!C248 -> 57.41978073 | AQ31: ='Compile Data'!C249 -> 72.6091156 | AR31: ='Compile Data'!C250 -> 79.97573853 | AS31: ='Compile Data'!C251 -> 83.49636841 | AT31: ='Compile Data'!C252 -> 80.54251099 | AV31: 67.82152208 | AW31: 67.82065646 | AX31: 68.41987419 | AZ31: 71.24874401 | BA31: 57.58222834 | BB31: 59.50722408 | BC31: 79.15593338 | BD31: 81.76794434 | BF31: 1941 | BG31: ='Compile Data'!D241 -> 80.46993256 | BH31: ='Compile Data'!D242 -> 85.60617065 | BI31: ='Compile Data'!D243 -> 65.06219482 | BJ31: ='Compile Data'!D244 -> 54.01632309 | BK31: ='Compile Data'!D245 -> 54 | BL31: ='Compile Data'!D246 -> 54 | BM31: ='Compile Data'!D247 -> 54 | BN31: ='Compile Data'!D248 -> 57.41138077 | BO31: ='Compile Data'!D249 -> 72.61440277 | BP31: ='Compile Data'!D250 -> 79.91210175 | BQ31: ='Compile Data'!D251 -> 83.46008301 | BR31: ='Compile Data'!D252 -> 80.53340149 | BT31: 67.81533591 | BU31: 67.81397565 | BV31: 68.42383258 | BX31: 71.28865528 | BY31: 57.6928393 | BZ31: 59.50644588 | CA31: 79.12999725 | CB31: 81.77247365 | CD31: 1941 | CE31: ='Compile Data'!E241 -> 80.43919373 | CF31: ='Compile Data'!E242 -> 85.66703033 | CG31: ='Compile Data'!E243 -> 65.27291107 | CH31: ='Compile Data'!E244 -> 54.02048492 | CI31: ='Compile Data'!E245 -> 54 | CJ31: ='Compile Data'!E246 -> 54 | CK31: ='Compile Data'!E247 -> 54 | CL31: ='Compile Data'!E248 -> 57.42999649 | CM31: ='Compile Data'!E249 -> 72.63393402 | CN31: ='Compile Data'!E250 -> 79.86289215 | CO31: ='Compile Data'!E251 -> 83.42363739 | CP31: ='Compile Data'!E252 -> 80.53352356 | CR31: 67.80913162 | CS31: 67.80742455 | CT31: 68.44030031 | CV31: 71.34990501 | CW31: 57.76446533 | CX31: 59.51598263 | CY31: 79.11349678 | CZ31: 81.76389313 | DB31: 1941 | DC31: ='Compile Data'!F241 -> 80.21583557 | DD31: ='Compile Data'!F242 -> 85.53429413 | DE31: ='Compile Data'!F243 -> 65.26519775 | DF31: ='Compile Data'!F244 -> 54.02047729 | DG31: ='Compile Data'!F245 -> 54 | DH31: ='Compile Data'!F246 -> 54 | DI31: ='Compile Data'!F247 -> 54 | DJ31: ='Compile Data'!F248 -> 57.42975998 | DK31: ='Compile Data'!F249 -> 72.63376617 | DL31: ='Compile Data'!F250 -> 79.86341095 | DM31: ='Compile Data'!F251 -> 83.42402649 | DN31: ='Compile Data'!F252 -> 80.5334549 | DP31: 67.80915133 | DQ31: 67.80744489 | DR31: 68.4100186 | DT31: 71.25895119 | DU31: 57.76189168 | DV31: 59.51588154 | DW31: 79.11366463 | DX31: 81.76386515
A32: 1923-05-31 | B32: =INDIRECT(CONCATENATE("'",B$1,"'!",B$4,(YEAR($A32)-1921)*12+MONTH($A32)+3+IF(ISNUMBER(FIND("PRV",B$6)),1,0)))*IF(AND(B$3>0,TRIM(B$9)="CFS"),Conv_Flags!$C32,1) -> 66.74623108 | C32: =INDIRECT(CONCATENATE("'",C$1,"'!",C$4,(YEAR($A32)-1921)*12+MONTH($A32)+3+IF(ISNUMBER(FIND("PRV",C$6)),1,0)))*IF(AND(C$3>0,TRIM(C$9)="CFS"),Conv_Flags!$C32,1) -> 66.87442017 | D32: =INDIRECT(CONCATENATE("'",D$1,"'!",D$4,(YEAR($A32)-1921)*12+MONTH($A32)+3+IF(ISNUMBER(FIND("PRV",D$6)),1,0)))*IF(AND(D$3>0,TRIM(D$9)="CFS"),Conv_Flags!$C32,1) -> 66.86754608 | E32: =INDIRECT(CONCATENATE("'",E$1,"'!",E$4,(YEAR($A32)-1921)*12+MONTH($A32)+3+IF(ISNUMBER(FIND("PRV",E$6)),1,0)))*IF(AND(E$3>0,TRIM(E$9)="CFS"),Conv_Flags!$C32,1) -> 66.74427795 | F32: =INDIRECT(CONCATENATE("'",F$1,"'!",F$4,(YEAR($A32)-1921)*12+MONTH($A32)+3+IF(ISNUMBER(FIND("PRV",F$6)),1,0)))*IF(AND(F$3>0,TRIM(F$9)="CFS"),Conv_Flags!$C32,1) -> 66.74427795 | J32: 1942 | K32: =B253 -> 80.70475769 | L32: =B254 -> 84.95903778 | M32: =B255 -> 58.81064987 | N32: =B256 -> 54 | O32: =B257 -> 54 | P32: =B258 -> 58.32318115 | Q32: =B259 -> 54.99025726 | R32: =B260 -> 59.28201294 | S32: =B261 -> 72.35592651 | T32: =B262 -> 80.44742584 | U32: =B263 -> 84.21593475 | V32: =B264 -> 81.20843506 | X32: 69.3557148 | Y32: 69.36945661 | Z32: 68.60813491 | AB32: 69.61861134 | AC32: 55.60354996 | AD32: 61.23784447 | AE32: 79.55693054 | AF32: 81.91912842 | AH32: 1942 | AI32: ='Compile Data'!C253 -> 80.06285858 | AJ32: ='Compile Data'!C254 -> 84.69846344 | AK32: ='Compile Data'!C255 -> 59.04304123 | AL32: ='Compile Data'!C256 -> 54 | AM32: ='Compile Data'!C257 -> 54 | AN32: ='Compile Data'!C258 -> 58.31932449 | AO32: ='Compile Data'!C259 -> 55.08204651 | AP32: ='Compile Data'!C260 -> 58.90729523 | AQ32: ='Compile Data'!C261 -> 72.35375977 | AR32: ='Compile Data'!C262 -> 80.42849731 | AS32: ='Compile Data'!C263 -> 83.87410736 | AT32: ='Compile Data'!C264 -> 80.58952332 | AV32: 69.22663975 | AW32: 69.24387995 | AX32: 68.44657644 | AZ32: 69.45109081 | BA32: 55.68101374 | BB32: 61.1656065 | BC32: 79.31147194 | BD32: 81.41536458 | BF32: 1942 | BG32: ='Compile Data'!D253 -> 80.07499695 | BH32: ='Compile Data'!D254 -> 84.70902252 | BI32: ='Compile Data'!D255 -> 59.05231857 | BJ32: ='Compile Data'!D256 -> 54 | BK32: ='Compile Data'!D257 -> 54 | BL32: ='Compile Data'!D258 -> 58.31939316 | BM32: ='Compile Data'!D259 -> 55.08207703 | BN32: ='Compile Data'!D260 -> 58.90737534 | BO32: ='Compile Data'!D261 -> 72.35381317 | BP32: ='Compile Data'!D262 -> 80.42855835 | BQ32: ='Compile Data'!D263 -> 83.87415314 | BR32: ='Compile Data'!D264 -> 80.58955383 | BT32: 69.22673035 | BU32: 69.2439731 | BV32: 68.44927184 | BX32: 69.45908451 | BY32: 55.68410619 | BZ32: 61.16566467 | CA32: 79.31151962 | CB32: 81.41555786 | CD32: 1942 | CE32: ='Compile Data'!E253 -> 80.05912781 | CF32: ='Compile Data'!E254 -> 84.69902802 | CG32: ='Compile Data'!E255 -> 59.04695511 | CH32: ='Compile Data'!E256 -> 54 | CI32: ='Compile Data'!E257 -> 54 | CJ32: ='Compile Data'!E258 -> 58.32413483 | CK32: ='Compile Data'!E259 -> 54.99106598 | CL32: ='Compile Data'!E260 -> 59.28269958 | CM32: ='Compile Data'!E261 -> 72.3564682 | CN32: ='Compile Data'!E262 -> 80.4450531 | CO32: ='Compile Data'!E263 -> 83.81730652 | CP32: ='Compile Data'!E264 -> 80.64136505 | CR32: 69.26829847 | CS32: 69.2855552 | CT32: 68.47193368 | CV32: 69.45127773 | CW32: 55.68231837 | CX32: 61.23859215 | CY32: 79.31504822 | CZ32: 81.47313182 | DB32: 1942 | DC32: ='Compile Data'!F253 -> 80.05912018 | DD32: ='Compile Data'!F254 -> 84.69902039 | DE32: ='Compile Data'!F255 -> 59.04677963 | DF32: ='Compile Data'!F256 -> 54 | DG32: ='Compile Data'!F257 -> 54 | DH32: ='Compile Data'!F258 -> 58.32408142 | DI32: ='Compile Data'!F259 -> 54.99105072 | DJ32: ='Compile Data'!F260 -> 59.28263092 | DK32: ='Compile Data'!F261 -> 72.35643005 | DL32: ='Compile Data'!F262 -> 80.44502258 | DM32: ='Compile Data'!F263 -> 83.817276 | DN32: ='Compile Data'!F264 -> 80.64134216 | DP32: 69.26825015 | DQ32: 69.28550657 | DR32: 68.47189617 | DT32: 69.45123005 | DU32: 55.68225988 | DV32: 61.23854828 | DW32: 79.3150177 | DX32: 81.47309367
A33: 1923-06-30 | B33: =INDIRECT(CONCATENATE("'",B$1,"'!",B$4,(YEAR($A33)-1921)*12+MONTH($A33)+3+IF(ISNUMBER(FIND("PRV",B$6)),1,0)))*IF(AND(B$3>0,TRIM(B$9)="CFS"),Conv_Flags!$C33,1) -> 80.02337646 | C33: =INDIRECT(CONCATENATE("'",C$1,"'!",C$4,(YEAR($A33)-1921)*12+MONTH($A33)+3+IF(ISNUMBER(FIND("PRV",C$6)),1,0)))*IF(AND(C$3>0,TRIM(C$9)="CFS"),Conv_Flags!$C33,1) -> 80.11871338 | D33: =INDIRECT(CONCATENATE("'",D$1,"'!",D$4,(YEAR($A33)-1921)*12+MONTH($A33)+3+IF(ISNUMBER(FIND("PRV",D$6)),1,0)))*IF(AND(D$3>0,TRIM(D$9)="CFS"),Conv_Flags!$C33,1) -> 80.12005615 | E33: =INDIRECT(CONCATENATE("'",E$1,"'!",E$4,(YEAR($A33)-1921)*12+MONTH($A33)+3+IF(ISNUMBER(FIND("PRV",E$6)),1,0)))*IF(AND(E$3>0,TRIM(E$9)="CFS"),Conv_Flags!$C33,1) -> 80.02120972 | F33: =INDIRECT(CONCATENATE("'",F$1,"'!",F$4,(YEAR($A33)-1921)*12+MONTH($A33)+3+IF(ISNUMBER(FIND("PRV",F$6)),1,0)))*IF(AND(F$3>0,TRIM(F$9)="CFS"),Conv_Flags!$C33,1) -> 80.02120972 | J33: 1943 | K33: =B265 -> 80.71538544 | L33: =B266 -> 83.83356476 | M33: =B267 -> 68.89645386 | N33: =B268 -> 54.16490173 | O33: =B269 -> 54 | P33: =B270 -> 54 | Q33: =B271 -> 56.89365005 | R33: =B272 -> 68.06267548 | S33: =B273 -> 80.40241241 | T33: =B274 -> 81.71672821 | U33: =B275 -> 83.16941071 | V33: =B276 -> 80.48088837 | X33: 72.32046795 | Y33: 75.94025834 | Z33: 70.52800592 | AB33: 71.90257645 | AC33: 59.02045186 | AD33: 64.83968449 | AE33: 81.44235992 | AF33: 82.14707947 | AH33: 1943 | AI33: ='Compile Data'!C265 -> 80.15010834 | AJ33: ='Compile Data'!C266 -> 83.5064621 | AK33: ='Compile Data'!C267 -> 69.50855255 | AL33: ='Compile Data'!C268 -> 54.20688248 | AM33: ='Compile Data'!C269 -> 54 | AN33: ='Compile Data'!C270 -> 54 | AO33: ='Compile Data'!C271 -> 56.89557648 | AP33: ='Compile Data'!C272 -> 67.13103485 | AQ33: ='Compile Data'!C273 -> 80.00210571 | AR33: ='Compile Data'!C274 -> 81.75830841 | AS33: ='Compile Data'!C275 -> 82.88565063 | AT33: ='Compile Data'!C276 -> 79.83272552 | AV33: 72.07350127 | AW33: 75.71663793 | AX33: 70.32311726 | AZ33: 71.84300137 | BA33: 59.23847834 | BB33: 64.50717926 | BC33: 81.11969757 | BD33: 81.71327209 | BF33: 1943 | BG33: ='Compile Data'!D265 -> 80.15036774 | BH33: ='Compile Data'!D266 -> 83.50675201 | BI33: ='Compile Data'!D267 -> 69.5087204 | BJ33: ='Compile Data'!D268 -> 54.20691299 | BK33: ='Compile Data'!D269 -> 54 | BL33: ='Compile Data'!D270 -> 54 | BM33: ='Compile Data'!D271 -> 56.89932632 | BN33: ='Compile Data'!D272 -> 67.13292694 | BO33: ='Compile Data'!D273 -> 79.99876404 | BP33: ='Compile Data'!D274 -> 81.75758362 | BQ33: ='Compile Data'!D275 -> 82.88604736 | BR33: ='Compile Data'!D276 -> 79.83273315 | BT33: 72.07603963 | BU33: 75.71894741 | BV33: 70.32334455 | BX33: 71.84318829 | BY33: 59.23854446 | BZ33: 64.50775433 | CA33: 81.11878204 | CB33: 81.72503408 | CD33: 1943 | CE33: ='Compile Data'!E265 -> 80.15356445 | CF33: ='Compile Data'!E266 -> 83.62446594 | CG33: ='Compile Data'!E267 -> 69.58345795 | CH33: ='Compile Data'!E268 -> 54.20708084 | CI33: ='Compile Data'!E269 -> 54 | CJ33: ='Compile Data'!E270 -> 54 | CK33: ='Compile Data'!E271 -> 56.89495087 | CL33: ='Compile Data'!E272 -> 68.06325531 | CM33: ='Compile Data'!E273 -> 80.40263367 | CN33: ='Compile Data'!E274 -> 81.71621704 | CO33: ='Compile Data'!E275 -> 82.86097717 | CP33: ='Compile Data'!E276 -> 79.95996857 | CR33: 72.1781168 | CS33: 75.81922213 | CT33: 70.45554765 | CV33: 71.8921423 | CW33: 59.26351293 | CX33: 64.84020996 | CY33: 81.23494911 | CZ33: 81.71376546 | DB33: 1943 | DC33: ='Compile Data'!F265 -> 80.15354156 | DD33: ='Compile Data'!F266 -> 83.62439728 | DE33: ='Compile Data'!F267 -> 69.58322906 | DF33: ='Compile Data'!F268 -> 54.20707703 | DG33: ='Compile Data'!F269 -> 54 | DH33: ='Compile Data'!F270 -> 54 | DI33: ='Compile Data'!F271 -> 56.89490128 | DJ33: ='Compile Data'!F272 -> 68.06320953 | DK33: ='Compile Data'!F273 -> 80.4025116 | DL33: ='Compile Data'!F274 -> 81.71618652 | DM33: ='Compile Data'!F275 -> 82.86095428 | DN33: ='Compile Data'!F276 -> 79.9600296 | DP33: 72.17808755 | DQ33: 75.81918875 | DR33: 70.45550315 | DT33: 71.89206123 | DU33: 59.26343536 | DV33: 64.8401556 | DW33: 81.2349205 | DX33: 81.71375275
A34: 1923-07-31 | B34: =INDIRECT(CONCATENATE("'",B$1,"'!",B$4,(YEAR($A34)-1921)*12+MONTH($A34)+3+IF(ISNUMBER(FIND("PRV",B$6)),1,0)))*IF(AND(B$3>0,TRIM(B$9)="CFS"),Conv_Flags!$C34,1) -> 82.4705658 | C34: =INDIRECT(CONCATENATE("'",C$1,"'!",C$4,(YEAR($A34)-1921)*12+MONTH($A34)+3+IF(ISNUMBER(FIND("PRV",C$6)),1,0)))*IF(AND(C$3>0,TRIM(C$9)="CFS"),Conv_Flags!$C34,1) -> 82.4413147 | D34: =INDIRECT(CONCATENATE("'",D$1,"'!",D$4,(YEAR($A34)-1921)*12+MONTH($A34)+3+IF(ISNUMBER(FIND("PRV",D$6)),1,0)))*IF(AND(D$3>0,TRIM(D$9)="CFS"),Conv_Flags!$C34,1) -> 82.4630127 | E34: =INDIRECT(CONCATENATE("'",E$1,"'!",E$4,(YEAR($A34)-1921)*12+MONTH($A34)+3+IF(ISNUMBER(FIND("PRV",E$6)),1,0)))*IF(AND(E$3>0,TRIM(E$9)="CFS"),Conv_Flags!$C34,1) -> 82.47203827 | F34: =INDIRECT(CONCATENATE("'",F$1,"'!",F$4,(YEAR($A34)-1921)*12+MONTH($A34)+3+IF(ISNUMBER(FIND("PRV",F$6)),1,0)))*IF(AND(F$3>0,TRIM(F$9)="CFS"),Conv_Flags!$C34,1) -> 82.47203827 | J34: 1944 | K34: =B277 -> 80.816185 | L34: =B278 -> 85.14416504 | M34: =B279 -> 88.99459839 | N34: =B280 -> 84.65882874 | O34: =B281 -> 66.94355774 | P34: =B282 -> 63.79489899 | Q34: =B283 -> 71.0087738 | R34: =B284 -> 79.4656601 | S34: =B285 -> 82.32274628 | T34: =B286 -> 85.34181213 | U34: =B287 -> 89.85195923 | V34: =B288 -> 92.26230621 | X34: 81.38427862 | Y34: 79.94557953 | Z34: 80.88379097 | AB34: 84.90344429 | AC34: 80.19899495 | AD34: 74.14801979 | AE34: 87.44470596 | AF34: 91.12864431 | AH34: 1944 | AI34: ='Compile Data'!C277 -> 80.32796478 | AJ34: ='Compile Data'!C278 -> 84.97912598 | AK34: ='Compile Data'!C279 -> 88.86264038 | AL34: ='Compile Data'!C280 -> 84.61356354 | AM34: ='Compile Data'!C281 -> 67.31095886 | AN34: ='Compile Data'!C282 -> 63.87016296 | AO34: ='Compile Data'!C283 -> 71.06191254 | AP34: ='Compile Data'!C284 -> 79.55279541 | AQ34: ='Compile Data'!C285 -> 82.39185333 | AR34: ='Compile Data'!C286 -> 85.0426712 | AS34: ='Compile Data'!C287 -> 89.41377258 | AT34: ='Compile Data'!C288 -> 91.28543854 | AV34: 81.28906377 | AW34: 79.8074077 | AX34: 80.72607168 | AZ34: 84.69582367 | BA34: 80.26238759 | BB34: 74.21918106 | BC34: 87.03343391 | BD34: 90.64206187 | BF34: 1944 | BG34: ='Compile Data'!D277 -> 80.37688446 | BH34: ='Compile Data'!D278 -> 84.96548462 | BI34: ='Compile Data'!D279 -> 88.85581207 | BJ34: ='Compile Data'!D280 -> 84.61159515 | BK34: ='Compile Data'!D281 -> 67.31021118 | BL34: ='Compile Data'!D282 -> 63.87009048 | BM34: ='Compile Data'!D283 -> 71.06182861 | BN34: ='Compile Data'!D284 -> 79.55270386 | BO34: ='Compile Data'!D285 -> 82.39761353 | BP34: ='Compile Data'!D286 -> 84.91655731 | BQ34: ='Compile Data'!D287 -> 88.95174408 | BR34: ='Compile Data'!D288 -> 90.97891998 | BT34: 81.14924653 | BU34: 79.66827011 | BV34: 80.65412045 | BX34: 84.70244408 | BY34: 80.25920614 | BZ34: 74.22055912 | CA34: 86.81120872 | CB34: 90.35591634 | CD34: 1944 | CE34: ='Compile Data'!E277 -> 80.32465363 | CF34: ='Compile Data'!E278 -> 84.85667419 | CG34: ='Compile Data'!E279 -> 88.8509903 | CH34: ='Compile Data'!E280 -> 84.59896088 | CI34: ='Compile Data'!E281 -> 67.30138397 | CJ34: ='Compile Data'!E282 -> 63.86879349 | CK34: ='Compile Data'!E283 -> 71.0109024 | CL34: ='Compile Data'!E284 -> 79.44593048 | CM34: ='Compile Data'!E285 -> 82.32650757 | CN34: ='Compile Data'!E286 -> 84.77688599 | CO34: ='Compile Data'!E287 -> 88.93268585 | CP34: ='Compile Data'!E288 -> 90.91773224 | CR34: 81.10038916 | CS34: 79.65807851 | CT34: 80.60100842 | CV34: 84.65781975 | CW34: 80.25044505 | CX34: 74.16303349 | CY34: 86.73845291 | CZ34: 90.24186707 | DB34: 1944 | DC34: ='Compile Data'!F277 -> 80.32458496 | DD34: ='Compile Data'!F278 -> 84.85664368 | DE34: ='Compile Data'!F279 -> 88.85095215 | DF34: ='Compile Data'!F280 -> 84.59893036 | DG34: ='Compile Data'!F281 -> 67.30136108 | DH34: ='Compile Data'!F282 -> 63.86876678 | DI34: ='Compile Data'!F283 -> 71.01089478 | DJ34: ='Compile Data'!F284 -> 79.44595337 | DK34: ='Compile Data'!F285 -> 82.32647705 | DL34: ='Compile Data'!F286 -> 84.77685547 | DM34: ='Compile Data'!F287 -> 88.93266296 | DN34: ='Compile Data'!F288 -> 90.91770172 | DP34: 81.10035896 | DQ34: 79.65804482 | DR34: 80.60098203 | DT34: 84.65777779 | DU34: 80.25041453 | DV34: 74.16302299 | DW34: 86.7384243 | DX34: 90.24182129
A35: 1923-08-31 | B35: =INDIRECT(CONCATENATE("'",B$1,"'!",B$4,(YEAR($A35)-1921)*12+MONTH($A35)+3+IF(ISNUMBER(FIND("PRV",B$6)),1,0)))*IF(AND(B$3>0,TRIM(B$9)="CFS"),Conv_Flags!$C35,1) -> 86.47273254 | C35: =INDIRECT(CONCATENATE("'",C$1,"'!",C$4,(YEAR($A35)-1921)*12+MONTH($A35)+3+IF(ISNUMBER(FIND("PRV",C$6)),1,0)))*IF(AND(C$3>0,TRIM(C$9)="CFS"),Conv_Flags!$C35,1) -> 86.44615173 | D35: =INDIRECT(CONCATENATE("'",D$1,"'!",D$4,(YEAR($A35)-1921)*12+MONTH($A35)+3+IF(ISNUMBER(FIND("PRV",D$6)),1,0)))*IF(AND(D$3>0,TRIM(D$9)="CFS"),Conv_Flags!$C35,1) -> 86.44725037 | E35: =INDIRECT(CONCATENATE("'",E$1,"'!",E$4,(YEAR($A35)-1921)*12+MONTH($A35)+3+IF(ISNUMBER(FIND("PRV",E$6)),1,0)))*IF(AND(E$3>0,TRIM(E$9)="CFS"),Conv_Flags!$C35,1) -> 86.44166565 | F35: =INDIRECT(CONCATENATE("'",F$1,"'!",F$4,(YEAR($A35)-1921)*12+MONTH($A35)+3+IF(ISNUMBER(FIND("PRV",F$6)),1,0)))*IF(AND(F$3>0,TRIM(F$9)="CFS"),Conv_Flags!$C35,1) -> 86.44166565 | J35: 1945 | K35: =B289 -> 92.77528381 | L35: =B290 -> 88.3483429 | M35: =B291 -> 79.83717346 | N35: =B292 -> 77.61006165 | O35: =B293 -> 56.72793579 | P35: =B294 -> 60.36867905 | Q35: =B295 -> 65.54335785 | R35: =B296 -> 73.33827972 | S35: =B297 -> 80.63323975 | T35: =B298 -> 82.40727234 | U35: =B299 -> 87.77534485 | V35: =B300 -> 91.98844147 | X35: 76.43782425 | Y35: 75.03375912 | Z35: 78.11278439 | AB35: 84.64271545 | AC35: 71.39172363 | AD35: 69.97088909 | AE35: 85.7010746 | AF35: 91.86888123 | AH35: 1945 | AI35: ='Compile Data'!C289 -> 91.70928955 | AJ35: ='Compile Data'!C290 -> 88.93145752 | AK35: ='Compile Data'!C291 -> 80.28488922 | AL35: ='Compile Data'!C292 -> 77.62496185 | AM35: ='Compile Data'!C293 -> 56.51968765 | AN35: ='Compile Data'!C294 -> 60.35641479 | AO35: ='Compile Data'!C295 -> 65.47064209 | AP35: ='Compile Data'!C296 -> 73.35137177 | AQ35: ='Compile Data'!C297 -> 80.7237854 | AR35: ='Compile Data'!C298 -> 82.34282684 | AS35: ='Compile Data'!C299 -> 87.32647705 | AT35: ='Compile Data'!C300 -> 90.95529938 | AV35: 76.0532287 | AW35: 74.67588997 | AX35: 77.96642526 | AZ35: 84.63764954 | BA35: 71.47651291 | BB35: 69.97555351 | BC35: 85.33709717 | BD35: 90.63111623 | BF35: 1945 | BG35: ='Compile Data'!D289 -> 91.47969055 | BH35: ='Compile Data'!D290 -> 88.60913849 | BI35: ='Compile Data'!D291 -> 80.05086517 | BJ35: ='Compile Data'!D292 -> 77.56893158 | BK35: ='Compile Data'!D293 -> 56.58115768 | BL35: ='Compile Data'!D294 -> 60.36212921 | BM35: ='Compile Data'!D295 -> 65.46257782 | BN35: ='Compile Data'!D296 -> 73.352211 | BO35: ='Compile Data'!D297 -> 80.64990997 | BP35: ='Compile Data'!D298 -> 82.36904907 | BQ35: ='Compile Data'!D299 -> 87.74074554 | BR35: ='Compile Data'!D300 -> 91.44395447 | BT35: 76.21710682 | BU35: 74.8509957 | BV35: 77.97253005 | BX35: 84.42715645 | BY35: 71.40031815 | BZ35: 69.956707 | CA35: 85.55091476 | CB35: 91.11727142 | CD35: 1945 | CE35: ='Compile Data'!E289 -> 91.38230896 | CF35: ='Compile Data'!E290 -> 88.42556 | CG35: ='Compile Data'!E291 -> 80.21701813 | CH35: ='Compile Data'!E292 -> 77.65172577 | CI35: ='Compile Data'!E293 -> 56.94089127 | CJ35: ='Compile Data'!E294 -> 60.40431976 | CK35: ='Compile Data'!E295 -> 65.46266174 | CL35: ='Compile Data'!E296 -> 73.30448914 | CM35: ='Compile Data'!E297 -> 80.62142944 | CN35: ='Compile Data'!E298 -> 82.39667511 | CO35: ='Compile Data'!E299 -> 87.66447449 | CP35: ='Compile Data'!E300 -> 91.42576599 | CR35: 76.34684372 | CS35: 74.93431473 | CT35: 77.99144332 | CV35: 84.41915321 | CW35: 71.60321172 | CX35: 69.94822502 | CY35: 85.52708626 | CZ35: 91.45444997 | DB35: 1945 | DC35: ='Compile Data'!F289 -> 91.38226318 | DD35: ='Compile Data'!F290 -> 88.42549896 | DE35: ='Compile Data'!F291 -> 80.21694183 | DF35: ='Compile Data'!F292 -> 77.6516571 | DG35: ='Compile Data'!F293 -> 56.94086456 | DH35: ='Compile Data'!F294 -> 60.40423584 | DI35: ='Compile Data'!F295 -> 65.46263885 | DJ35: ='Compile Data'!F296 -> 73.30445099 | DK35: ='Compile Data'!F297 -> 80.62140656 | DL35: ='Compile Data'!F298 -> 82.39663696 | DM35: ='Compile Data'!F299 -> 87.66442108 | DN35: ='Compile Data'!F300 -> 91.4257431 | DP35: 76.34680557 | DQ35: 74.93428071 | DR35: 77.99139659 | DT35: 84.41909027 | DU35: 71.6031545 | DV35: 69.94818306 | DW35: 85.52705193 | DX35: 91.45441945
A36: 1923-09-30 | B36: =INDIRECT(CONCATENATE("'",B$1,"'!",B$4,(YEAR($A36)-1921)*12+MONTH($A36)+3+IF(ISNUMBER(FIND("PRV",B$6)),1,0)))*IF(AND(B$3>0,TRIM(B$9)="CFS"),Conv_Flags!$C36,1) -> 89.34145355 | C36: =INDIRECT(CONCATENATE("'",C$1,"'!",C$4,(YEAR($A36)-1921)*12+MONTH($A36)+3+IF(ISNUMBER(FIND("PRV",C$6)),1,0)))*IF(AND(C$3>0,TRIM(C$9)="CFS"),Conv_Flags!$C36,1) -> 89.15116882 | D36: =INDIRECT(CONCATENATE("'",D$1,"'!",D$4,(YEAR($A36)-1921)*12+MONTH($A36)+3+IF(ISNUMBER(FIND("PRV",D$6)),1,0)))*IF(AND(D$3>0,TRIM(D$9)="CFS"),Conv_Flags!$C36,1) -> 89.38591003 | E36: =INDIRECT(CONCATENATE("'",E$1,"'!",E$4,(YEAR($A36)-1921)*12+MONTH($A36)+3+IF(ISNUMBER(FIND("PRV",E$6)),1,0)))*IF(AND(E$3>0,TRIM(E$9)="CFS"),Conv_Flags!$C36,1) -> 89.33154297 | F36: =INDIRECT(CONCATENATE("'",F$1,"'!",F$4,(YEAR($A36)-1921)*12+MONTH($A36)+3+IF(ISNUMBER(FIND("PRV",F$6)),1,0)))*IF(AND(F$3>0,TRIM(F$9)="CFS"),Conv_Flags!$C36,1) -> 89.33154297 | J36: 1946 | K36: =B301 -> 92.60309601 | L36: =B302 -> 91.0151062 | M36: =B303 -> 57.24307632 | N36: =B304 -> 54.2063446 | O36: =B305 -> 63.28287125 | P36: =B306 -> 65.13447571 | Q36: =B307 -> 66.03781128 | R36: =B308 -> 70.59751892 | S36: =B309 -> 81.02213287 | T36: =B310 -> 82.65917206 | U36: =B311 -> 86.48978424 | V36: =B312 -> 90.0541687 | X36: 77.15316868 | Y36: 80.31078529 | Z36: 75.02879651 | AB36: 73.76690578 | AC36: 58.24409739 | AD36: 70.6979847 | AE36: 85.05631447 | AF36: 91.35870361 | AH36: 1946 | AI36: ='Compile Data'!C301 -> 91.92700958 | AJ36: ='Compile Data'!C302 -> 89.01103973 | AK36: ='Compile Data'!C303 -> 57.02922821 | AL36: ='Compile Data'!C304 -> 54.39562607 | AM36: ='Compile Data'!C305 -> 63.22095871 | AN36: ='Compile Data'!C306 -> 64.75549316 | AO36: ='Compile Data'!C307 -> 65.93145752 | AP36: ='Compile Data'!C308 -> 70.5912323 | AQ36: ='Compile Data'!C309 -> 81.01020813 | AR36: ='Compile Data'!C310 -> 82.63031769 | AS36: ='Compile Data'!C311 -> 86.05882263 | AT36: ='Compile Data'!C312 -> 89.7399292 | AV36: 76.90560214 | AW36: 80.04285558 | AX36: 74.69177691 | AZ36: 73.0907259 | BA36: 58.215271 | BB36: 70.57209778 | BC36: 84.85981941 | BD36: 90.72372691 | BF36: 1946 | BG36: ='Compile Data'!D301 -> 92.13413239 | BH36: ='Compile Data'!D302 -> 89.77372742 | BI36: ='Compile Data'!D303 -> 57.16675568 | BJ36: ='Compile Data'!D304 -> 54.39654922 | BK36: ='Compile Data'!D305 -> 63.3602066 | BL36: ='Compile Data'!D306 -> 64.80731964 | BM36: ='Compile Data'!D307 -> 65.93502045 | BN36: ='Compile Data'!D308 -> 70.59225464 | BO36: ='Compile Data'!D309 -> 81.0104599 | BP36: ='Compile Data'!D310 -> 82.63031769 | BQ36: ='Compile Data'!D311 -> 86.0581131 | BR36: ='Compile Data'!D312 -> 89.52292633 | BT36: 76.88866774 | BU36: 80.01351484 | BV36: 74.78231525 | BX36: 73.36779118 | BY36: 58.30783717 | BZ36: 70.58626366 | CA36: 84.80545425 | CB36: 90.59929403 | CD36: 1946 | CE36: ='Compile Data'!E301 -> 92.08544159 | CF36: ='Compile Data'!E302 -> 90.85214233 | CG36: ='Compile Data'!E303 -> 57.352108 | CH36: ='Compile Data'!E304 -> 54.39859772 | CI36: ='Compile Data'!E305 -> 63.24367142 | CJ36: ='Compile Data'!E306 -> 64.76731873 | CK36: ='Compile Data'!E307 -> 65.93669891 | CL36: ='Compile Data'!E308 -> 70.59315491 | CM36: ='Compile Data'!E309 -> 81.01062012 | CN36: ='Compile Data'!E310 -> 82.63169098 | CO36: ='Compile Data'!E311 -> 86.05821228 | CP36: ='Compile Data'!E312 -> 89.50505829 | CR36: 76.88831361 | CS36: 80.02322833 | CT36: 74.86955961 | CV36: 73.67207241 | CW36: 58.33145905 | CX36: 70.57694817 | CY36: 84.80139542 | CZ36: 90.63948568 | DB36: 1946 | DC36: ='Compile Data'!F301 -> 92.0854187 | DD36: ='Compile Data'!F302 -> 90.85209656 | DE36: ='Compile Data'!F303 -> 57.35209656 | DF36: ='Compile Data'!F304 -> 54.39859009 | DG36: ='Compile Data'!F305 -> 63.24363327 | DH36: ='Compile Data'!F306 -> 64.76768494 | DI36: ='Compile Data'!F307 -> 65.93667603 | DJ36: ='Compile Data'!F308 -> 70.59313202 | DK36: ='Compile Data'!F309 -> 81.0104599 | DL36: ='Compile Data'!F310 -> 82.63166046 | DM36: ='Compile Data'!F311 -> 86.05818176 | DN36: ='Compile Data'!F312 -> 89.50499725 | DP36: 76.88830725 | DQ36: 80.02322133 | DR36: 74.86955229 | DT36: 73.67205048 | DU36: 58.33143997 | DV36: 70.57698822 | DW36: 84.80132484 | DX36: 90.63945262
A37: 1923-10-31 | B37: =INDIRECT(CONCATENATE("'",B$1,"'!",B$4,(YEAR($A37)-1921)*12+MONTH($A37)+3+IF(ISNUMBER(FIND("PRV",B$6)),1,0)))*IF(AND(B$3>0,TRIM(B$9)="CFS"),Conv_Flags!$C37,1) -> 90.6294632 | C37: =INDIRECT(CONCATENATE("'",C$1,"'!",C$4,(YEAR($A37)-1921)*12+MONTH($A37)+3+IF(ISNUMBER(FIND("PRV",C$6)),1,0)))*IF(AND(C$3>0,TRIM(C$9)="CFS"),Conv_Flags!$C37,1) -> 90.4800415 | D37: =INDIRECT(CONCATENATE("'",D$1,"'!",D$4,(YEAR($A37)-1921)*12+MONTH($A37)+3+IF(ISNUMBER(FIND("PRV",D$6)),1,0)))*IF(AND(D$3>0,TRIM(D$9)="CFS"),Conv_Flags!$C37,1) -> 90.61550903 | E37: =INDIRECT(CONCATENATE("'",E$1,"'!",E$4,(YEAR($A37)-1921)*12+MONTH($A37)+3+IF(ISNUMBER(FIND("PRV",E$6)),1,0)))*IF(AND(E$3>0,TRIM(E$9)="CFS"),Conv_Flags!$C37,1) -> 90.46840668 | F37: =INDIRECT(CONCATENATE("'",F$1,"'!",F$4,(YEAR($A37)-1921)*12+MONTH($A37)+3+IF(ISNUMBER(FIND("PRV",F$6)),1,0)))*IF(AND(F$3>0,TRIM(F$9)="CFS"),Conv_Flags!$C37,1) -> 90.46840668 | J37: 1947 | K37: =B313 -> 92.16823578 | L37: =B314 -> 91.85370636 | M37: =B315 -> 82.33180237 | N37: =B316 -> 81.21537781 | O37: =B317 -> 74.16523743 | P37: =B318 -> 67.94134521 | Q37: =B319 -> 71.21440125 | R37: =B320 -> 79.98342133 | S37: =B321 -> 83.38038635 | T37: =B322 -> 86.23303223 | U37: =B323 -> 90.53767395 | V37: =B324 -> 92.23472595 | X37: 83.64676857 | Y37: 84.27090899 | Z37: 82.77161217 | AB37: 86.89228058 | AC37: 79.23747253 | AD37: 75.62988853 | AE37: 88.09645462 | AF37: 92.36417135 | AH37: 1947 | AI37: ='Compile Data'!C313 -> 91.14821625 | AJ37: ='Compile Data'!C314 -> 91.28303528 | AK37: ='Compile Data'!C315 -> 82.10192871 | AL37: ='Compile Data'!C316 -> 81.13169098 | AM37: ='Compile Data'!C317 -> 74.13193512 | AN37: ='Compile Data'!C318 -> 67.93416595 | AO37: ='Compile Data'!C319 -> 71.22618866 | AP37: ='Compile Data'!C320 -> 79.98527527 | AQ37: ='Compile Data'!C321 -> 83.40634918 | AR37: ='Compile Data'!C322 -> 85.74508667 | AS37: ='Compile Data'!C323 -> 89.42808533 | AT37: ='Compile Data'!C324 -> 91.96260071 | AV37: 83.42908796 | AW37: 84.09767914 | AX37: 82.45704651 | AZ37: 86.4162178 | BA37: 79.1218516 | BB37: 75.63799477 | BC37: 87.63553047 | BD37: 92.14495595 | BF37: 1947 | BG37: ='Compile Data'!D313 -> 91.01049805 | BH37: ='Compile Data'!D314 -> 91.2644577 | BI37: ='Compile Data'!D315 -> 82.07588959 | BJ37: ='Compile Data'!D316 -> 81.12412262 | BK37: ='Compile Data'!D317 -> 74.13079834 | BL37: ='Compile Data'!D318 -> 67.92913818 | BM37: ='Compile Data'!D319 -> 71.21835327 | BN37: ='Compile Data'!D320 -> 79.98454285 | BO37: ='Compile Data'!D321 -> 83.40750122 | BP37: ='Compile Data'!D322 -> 85.74880219 | BQ37: ='Compile Data'!D323 -> 89.40493774 | BR37: ='Compile Data'!D324 -> 91.33823395 | BT37: 83.37335078 | BU37: 84.03531901 | BV37: 82.38643964 | BX37: 86.36874199 | BY37: 79.11027018 | BZ37: 75.63488388 | CA37: 87.47486877 | CB37: 91.85296885 | CD37: 1947 | CE37: ='Compile Data'!E313 -> 91.14230347 | CF37: ='Compile Data'!E314 -> 91.27109528 | CG37: ='Compile Data'!E315 -> 82.10134125 | CH37: ='Compile Data'!E316 -> 81.13123322 | CI37: ='Compile Data'!E317 -> 74.13001251 | CJ37: ='Compile Data'!E318 -> 67.93366241 | CK37: ='Compile Data'!E319 -> 71.20715332 | CL37: ='Compile Data'!E320 -> 79.98156738 | CM37: ='Compile Data'!E321 -> 83.40982819 | CN37: ='Compile Data'!E322 -> 85.74871063 | CO37: ='Compile Data'!E323 -> 89.41637421 | CP37: ='Compile Data'!E324 -> 91.17856598 | CR37: 83.24580574 | CS37: 83.86304283 | CT37: 82.38765399 | CV37: 86.4114933 | CW37: 79.12086233 | CX37: 75.63305283 | CY37: 87.43836975 | CZ37: 91.42921956 | DB37: 1947 | DC37: ='Compile Data'!F313 -> 91.14227295 | DD37: ='Compile Data'!F314 -> 91.27108765 | DE37: ='Compile Data'!F315 -> 82.10131073 | DF37: ='Compile Data'!F316 -> 81.1312027 | DG37: ='Compile Data'!F317 -> 74.12998962 | DH37: ='Compile Data'!F318 -> 67.93364716 | DI37: ='Compile Data'!F319 -> 71.20713806 | DJ37: ='Compile Data'!F320 -> 79.98154449 | DK37: ='Compile Data'!F321 -> 83.40981293 | DL37: ='Compile Data'!F322 -> 85.74868774 | DM37: ='Compile Data'!F323 -> 89.41635132 | DN37: ='Compile Data'!F324 -> 91.17856598 | DP37: 83.24578603 | DQ37: 83.86302185 | DR37: 82.38763428 | DT37: 86.41146851 | DU37: 79.12083435 | DV37: 75.63303566 | DW37: 87.43835449 | DX37: 91.42920176
A38: 1923-11-30 | B38: =INDIRECT(CONCATENATE("'",B$1,"'!",B$4,(YEAR($A38)-1921)*12+MONTH($A38)+3+IF(ISNUMBER(FIND("PRV",B$6)),1,0)))*IF(AND(B$3>0,TRIM(B$9)="CFS"),Conv_Flags!$C38,1) -> 91.92802429 | C38: =INDIRECT(CONCATENATE("'",C$1,"'!",C$4,(YEAR($A38)-1921)*12+MONTH($A38)+3+IF(ISNUMBER(FIND("PRV",C$6)),1,0)))*IF(AND(C$3>0,TRIM(C$9)="CFS"),Conv_Flags!$C38,1) -> 91.67668152 | D38: =INDIRECT(CONCATENATE("'",D$1,"'!",D$4,(YEAR($A38)-1921)*12+MONTH($A38)+3+IF(ISNUMBER(FIND("PRV",D$6)),1,0)))*IF(AND(D$3>0,TRIM(D$9)="CFS"),Conv_Flags!$C38,1) -> 91.70207977 | E38: =INDIRECT(CONCATENATE("'",E$1,"'!",E$4,(YEAR($A38)-1921)*12+MONTH($A38)+3+IF(ISNUMBER(FIND("PRV",E$6)),1,0)))*IF(AND(E$3>0,TRIM(E$9)="CFS"),Conv_Flags!$C38,1) -> 91.69731903 | F38: =INDIRECT(CONCATENATE("'",F$1,"'!",F$4,(YEAR($A38)-1921)*12+MONTH($A38)+3+IF(ISNUMBER(FIND("PRV",F$6)),1,0)))*IF(AND(F$3>0,TRIM(F$9)="CFS"),Conv_Flags!$C38,1) -> 91.69731903 | J38: 1948 | K38: =B325 -> 92.9276886 | L38: =B326 -> 91.93009949 | M38: =B327 -> 91.99783325 | N38: =B328 -> 84.06781006 | O38: =B329 -> 78.80249023 | P38: =B330 -> 75.21722412 | Q38: =B331 -> 61.43722534 | R38: =B332 -> 59.66593552 | S38: =B333 -> 74.64263916 | T38: =B334 -> 81.62232971 | U38: =B335 -> 86.49819183 | V38: =B336 -> 90.46966553 | X38: 80.28590616 | Y38: 80.45448844 | Z38: 80.77326107 | AB38: 90.23085785 | AC38: 84.95604451 | AD38: 67.74075603 | AE38: 83.30820656 | AF38: 91.32574463 | AH38: 1948 | AI38: ='Compile Data'!C325 -> 92.81247711 | AJ38: ='Compile Data'!C326 -> 91.65979004 | AK38: ='Compile Data'!C327 -> 91.72541046 | AL38: ='Compile Data'!C328 -> 84.28115082 | AM38: ='Compile Data'!C329 -> 79.00556946 | AN38: ='Compile Data'!C330 -> 75.27452087 | AO38: ='Compile Data'!C331 -> 61.36564636 | AP38: ='Compile Data'!C332 -> 59.6451149 | AQ38: ='Compile Data'!C333 -> 74.65966034 | AR38: ='Compile Data'!C334 -> 81.12414551 | AS38: ='Compile Data'!C335 -> 85.98904419 | AT38: ='Compile Data'!C336 -> 90.69863892 | AV38: 80.24635728 | AW38: 80.35761484 | AX38: 80.68676408 | AZ38: 90.11970711 | BA38: 85.00404358 | BB38: 67.73623562 | BC38: 83.11787224 | BD38: 91.43143972 | BF38: 1948 | BG38: ='Compile Data'!D325 -> 92.69526672 | BH38: ='Compile Data'!D326 -> 91.52540588 | BI38: ='Compile Data'!D327 -> 91.97310638 | BJ38: ='Compile Data'!D328 -> 84.26725769 | BK38: ='Compile Data'!D329 -> 78.93128204 | BL38: ='Compile Data'!D330 -> 75.27241516 | BM38: ='Compile Data'!D331 -> 61.39921188 | BN38: ='Compile Data'!D332 -> 59.65317535 | BO38: ='Compile Data'!D333 -> 74.65963745 | BP38: ='Compile Data'!D334 -> 81.1317215 | BQ38: ='Compile Data'!D335 -> 86.00283813 | BR38: ='Compile Data'!D336 -> 90.69844818 | BT38: 80.24277528 | BU38: 80.36099847 | BV38: 80.6841472 | BX38: 90.11525917 | BY38: 85.05721537 | BZ38: 67.74610996 | CA38: 83.12316132 | CB38: 91.42877706 | CD38: 1948 | CE38: ='Compile Data'!E325 -> 92.00756073 | CF38: ='Compile Data'!E326 -> 91.10153198 | CG38: ='Compile Data'!E327 -> 91.70346832 | CH38: ='Compile Data'!E328 -> 83.94203186 | CI38: ='Compile Data'!E329 -> 78.72605896 | CJ38: ='Compile Data'!E330 -> 75.18572998 | CK38: ='Compile Data'!E331 -> 61.45478439 | CL38: ='Compile Data'!E332 -> 59.66961288 | CM38: ='Compile Data'!E333 -> 74.64261627 | CN38: ='Compile Data'!E334 -> 81.63193512 | CO38: ='Compile Data'!E335 -> 85.88111877 | CP38: ='Compile Data'!E336 -> 90.09965515 | CR38: 80.18011856 | CS38: 80.46478335 | CT38: 80.50384204 | CV38: 89.68864822 | CW38: 84.79051971 | CX38: 67.73818588 | CY38: 83.06383133 | CZ38: 90.8288854 | DB38: 1948 | DC38: ='Compile Data'!F325 -> 92.00753021 | DD38: ='Compile Data'!F326 -> 91.10150909 | DE38: ='Compile Data'!F327 -> 91.70345306 | DF38: ='Compile Data'!F328 -> 83.94200134 | DG38: ='Compile Data'!F329 -> 78.72602081 | DH38: ='Compile Data'!F330 -> 75.18570709 | DI38: ='Compile Data'!F331 -> 61.45472336 | DJ38: ='Compile Data'!F332 -> 59.66955185 | DK38: ='Compile Data'!F333 -> 74.6425705 | DL38: ='Compile Data'!F334 -> 81.63191986 | DM38: ='Compile Data'!F335 -> 85.88088226 | DN38: ='Compile Data'!F336 -> 90.09947968 | DP38: 80.1792647 | DQ38: 80.46468798 | DR38: 80.50377909 | DT38: 89.68862343 | DU38: 84.79049174 | DV38: 67.7381382 | DW38: 83.06371307 | DX38: 90.82442983
A39: 1923-12-31 | B39: =INDIRECT(CONCATENATE("'",B$1,"'!",B$4,(YEAR($A39)-1921)*12+MONTH($A39)+3+IF(ISNUMBER(FIND("PRV",B$6)),1,0)))*IF(AND(B$3>0,TRIM(B$9)="CFS"),Conv_Flags!$C39,1) -> 91.13983154 | C39: =INDIRECT(CONCATENATE("'",C$1,"'!",C$4,(YEAR($A39)-1921)*12+MONTH($A39)+3+IF(ISNUMBER(FIND("PRV",C$6)),1,0)))*IF(AND(C$3>0,TRIM(C$9)="CFS"),Conv_Flags!$C39,1) -> 90.85165405 | D39: =INDIRECT(CONCATENATE("'",D$1,"'!",D$4,(YEAR($A39)-1921)*12+MONTH($A39)+3+IF(ISNUMBER(FIND("PRV",D$6)),1,0)))*IF(AND(D$3>0,TRIM(D$9)="CFS"),Conv_Flags!$C39,1) -> 90.91866302 | E39: =INDIRECT(CONCATENATE("'",E$1,"'!",E$4,(YEAR($A39)-1921)*12+MONTH($A39)+3+IF(ISNUMBER(FIND("PRV",E$6)),1,0)))*IF(AND(E$3>0,TRIM(E$9)="CFS"),Conv_Flags!$C39,1) -> 90.96195984 | F39: =INDIRECT(CONCATENATE("'",F$1,"'!",F$4,(YEAR($A39)-1921)*12+MONTH($A39)+3+IF(ISNUMBER(FIND("PRV",F$6)),1,0)))*IF(AND(F$3>0,TRIM(F$9)="CFS"),Conv_Flags!$C39,1) -> 90.96195984 | J39: 1949 | K39: =B337 -> 92.02331543 | L39: =B338 -> 91.48425293 | M39: =B339 -> 87.49979401 | N39: =B340 -> 84.78487396 | O39: =B341 -> 80.1084137 | P39: =B342 -> 56.53137207 | Q39: =B343 -> 65.86891937 | R39: =B344 -> 74.54650116 | S39: =B345 -> 81.15654755 | T39: =B346 -> 85.73526764 | U39: =B347 -> 90.03334808 | V39: =B348 -> 92.17023468 | X39: 82.29188665 | Y39: 79.4686861 | Z39: 81.82857005 | AB39: 88.94805908 | AC39: 84.13102722 | AD39: 69.52583504 | AE39: 87.27384949 | AF39: 92.3436559 | AH39: 1949 | AI39: ='Compile Data'!C337 -> 91.9464798 | AJ39: ='Compile Data'!C338 -> 91.64920044 | AK39: ='Compile Data'!C339 -> 87.31711578 | AL39: ='Compile Data'!C340 -> 84.60905457 | AM39: ='Compile Data'!C341 -> 80.01275635 | AN39: ='Compile Data'!C342 -> 56.87878799 | AO39: ='Compile Data'!C343 -> 65.894104 | AP39: ='Compile Data'!C344 -> 74.41433716 | AQ39: ='Compile Data'!C345 -> 81.14332581 | AR39: ='Compile Data'!C346 -> 85.63909912 | AS39: ='Compile Data'!C347 -> 90.00052643 | AT39: ='Compile Data'!C348 -> 92.18214417 | AV39: 82.04858557 | AW39: 79.25627041 | AX39: 81.8072443 | AZ39: 88.88046265 | BA39: 83.97964223 | BB39: 69.58263874 | BC39: 87.24127388 | BD39: 91.87657928 | BF39: 1949 | BG39: ='Compile Data'!D337 -> 91.94593048 | BH39: ='Compile Data'!D338 -> 91.64195251 | BI39: ='Compile Data'!D339 -> 87.30943298 | BJ39: ='Compile Data'!D340 -> 84.60548401 | BK39: ='Compile Data'!D341 -> 80.01173401 | BL39: ='Compile Data'!D342 -> 56.87874222 | BM39: ='Compile Data'!D343 -> 65.89412689 | BN39: ='Compile Data'!D344 -> 74.41413879 | BO39: ='Compile Data'!D345 -> 81.14707184 | BP39: ='Compile Data'!D346 -> 85.57894897 | BQ39: ='Compile Data'!D347 -> 89.97945404 | BR39: ='Compile Data'!D348 -> 92.18839264 | BT39: 82.041653 | BU39: 79.25646496 | BV39: 81.79961745 | BX39: 88.8757 | BY39: 83.97555033 | BZ39: 69.58351994 | CA39: 87.22346687 | CB39: 91.87549337 | CD39: 1949 | CE39: ='Compile Data'!E337 -> 91.38822937 | CF39: ='Compile Data'!E338 -> 90.99877167 | CG39: ='Compile Data'!E339 -> 88.5408783 | CH39: ='Compile Data'!E340 -> 85.76686096 | CI39: ='Compile Data'!E341 -> 80.31720734 | CJ39: ='Compile Data'!E342 -> 56.92996979 | CK39: ='Compile Data'!E343 -> 65.90093231 | CL39: ='Compile Data'!E344 -> 74.41246796 | CM39: ='Compile Data'!E345 -> 81.15531158 | CN39: ='Compile Data'!E346 -> 85.45195007 | CO39: ='Compile Data'!E347 -> 89.91181183 | CP39: ='Compile Data'!E348 -> 92.19034576 | CR39: 82.37699318 | CS39: 79.50663503 | CT39: 81.91372808 | CV39: 89.17368507 | CW39: 84.8749822 | CX39: 69.59967041 | CY39: 87.17735481 | CZ39: 92.32732646 | DB39: 1949 | DC39: ='Compile Data'!F337 -> 91.38851929 | DD39: ='Compile Data'!F338 -> 90.98529053 | DE39: ='Compile Data'!F339 -> 88.54450989 | DF39: ='Compile Data'!F340 -> 85.77415466 | DG39: ='Compile Data'!F341 -> 80.31894684 | DH39: ='Compile Data'!F342 -> 56.93021393 | DI39: ='Compile Data'!F343 -> 65.90089417 | DJ39: ='Compile Data'!F344 -> 74.41243744 | DK39: ='Compile Data'!F345 -> 81.15530396 | DL39: ='Compile Data'!F346 -> 85.45193481 | DM39: ='Compile Data'!F347 -> 89.91184998 | DN39: ='Compile Data'!F348 -> 92.19032288 | DP39: 82.37775485 | DQ39: 79.5066398 | DR39: 81.9136982 | DT39: 89.17311859 | DU39: 84.8792038 | DV39: 69.59971237 | DW39: 87.17735291 | DX39: 92.32730611
A40: 1924-01-31 | B40: =INDIRECT(CONCATENATE("'",B$1,"'!",B$4,(YEAR($A40)-1921)*12+MONTH($A40)+3+IF(ISNUMBER(FIND("PRV",B$6)),1,0)))*IF(AND(B$3>0,TRIM(B$9)="CFS"),Conv_Flags!$C40,1) -> 87.49650574 | C40: =INDIRECT(CONCATENATE("'",C$1,"'!",C$4,(YEAR($A40)-1921)*12+MONTH($A40)+3+IF(ISNUMBER(FIND("PRV",C$6)),1,0)))*IF(AND(C$3>0,TRIM(C$9)="CFS"),Conv_Flags!$C40,1) -> 87.43526459 | D40: =INDIRECT(CONCATENATE("'",D$1,"'!",D$4,(YEAR($A40)-1921)*12+MONTH($A40)+3+IF(ISNUMBER(FIND("PRV",D$6)),1,0)))*IF(AND(D$3>0,TRIM(D$9)="CFS"),Conv_Flags!$C40,1) -> 87.43174744 | E40: =INDIRECT(CONCATENATE("'",E$1,"'!",E$4,(YEAR($A40)-1921)*12+MONTH($A40)+3+IF(ISNUMBER(FIND("PRV",E$6)),1,0)))*IF(AND(E$3>0,TRIM(E$9)="CFS"),Conv_Flags!$C40,1) -> 87.42134857 | F40: =INDIRECT(CONCATENATE("'",F$1,"'!",F$4,(YEAR($A40)-1921)*12+MONTH($A40)+3+IF(ISNUMBER(FIND("PRV",F$6)),1,0)))*IF(AND(F$3>0,TRIM(F$9)="CFS"),Conv_Flags!$C40,1) -> 87.42134857 | J40: 1950 | K40: =B349 -> 92.7789917 | L40: =B350 -> 92.08174133 | M40: =B351 -> 91.70642853 | N40: =B352 -> 73.91293335 | O40: =B353 -> 57.10194778 | P40: =B354 -> 63.39276123 | Q40: =B355 -> 62.82668304 | R40: =B356 -> 70.41594696 | S40: =B357 -> 80.58110809 | T40: =B358 -> 82.1669693 | U40: =B359 -> 85.748909 | V40: =B360 -> 91.08113098 | X40: 73.0899636 | Y40: 71.17205683 | Z40: 78.64962928 | AB40: 87.62002373 | AC40: 74.24043655 | AD40: 69.30412483 | AE40: 84.89452934 | AF40: 82.31076813 | AH40: 1950 | AI40: ='Compile Data'!C349 -> 92.29775238 | AJ40: ='Compile Data'!C350 -> 91.14984131 | AK40: ='Compile Data'!C351 -> 90.36129761 | AL40: ='Compile Data'!C352 -> 73.42784882 | AM40: ='Compile Data'!C353 -> 57.68618011 | AN40: ='Compile Data'!C354 -> 63.53803253 | AO40: ='Compile Data'!C355 -> 62.96242905 | AP40: ='Compile Data'!C356 -> 70.45490265 | AQ40: ='Compile Data'!C357 -> 80.60030365 | AR40: ='Compile Data'!C358 -> 81.74841309 | AS40: ='Compile Data'!C359 -> 85.50261688 | AT40: ='Compile Data'!C360 -> 90.59171295 | AV40: 73.06338755 | AW40: 71.13721848 | AX40: 78.36011092 | AZ40: 86.80918503 | BA40: 73.82510885 | BB40: 69.38891697 | BC40: 84.61076164 | BD40: 82.27997462 | BF40: 1950 | BG40: ='Compile Data'!D349 -> 92.2963028 | BH40: ='Compile Data'!D350 -> 91.14178467 | BI40: ='Compile Data'!D351 -> 90.36365509 | BJ40: ='Compile Data'!D352 -> 73.49355316 | BK40: ='Compile Data'!D353 -> 57.70140839 | BL40: ='Compile Data'!D354 -> 63.53493118 | BM40: ='Compile Data'!D355 -> 63.05583954 | BN40: ='Compile Data'!D356 -> 70.4963913 | BO40: ='Compile Data'!D357 -> 80.60391998 | BP40: ='Compile Data'!D358 -> 81.75449371 | BQ40: ='Compile Data'!D359 -> 85.5072937 | BR40: ='Compile Data'!D360 -> 90.59275818 | BT40: 73.08729013 | BU40: 71.15437667 | BV40: 78.37852764 | BX40: 86.82382393 | BY40: 73.85287221 | BZ40: 69.4227705 | CA40: 84.61461639 | CB40: 82.29988352 | CD40: 1950 | CE40: ='Compile Data'!E349 -> 92.72990417 | CF40: ='Compile Data'!E350 -> 92.06172943 | CG40: ='Compile Data'!E351 -> 91.69542694 | CH40: ='Compile Data'!E352 -> 73.88148499 | CI40: ='Compile Data'!E353 -> 57.75828552 | CJ40: ='Compile Data'!E354 -> 63.55000305 | CK40: ='Compile Data'!E355 -> 62.82146072 | CL40: ='Compile Data'!E356 -> 70.41885376 | CM40: ='Compile Data'!E357 -> 80.59155273 | CN40: ='Compile Data'!E358 -> 81.98462677 | CO40: ='Compile Data'!E359 -> 85.62606049 | CP40: ='Compile Data'!E360 -> 90.88852692 | CR40: 73.14533265 | CS40: 71.17535178 | CT40: 78.66732629 | CV40: 87.59213638 | CW40: 74.44506582 | CX40: 69.34546757 | CY40: 84.77269173 | CZ40: 82.37055461 | DB40: 1950 | DC40: ='Compile Data'!F349 -> 92.72988129 | DD40: ='Compile Data'!F350 -> 92.06171417 | DE40: ='Compile Data'!F351 -> 91.69540405 | DF40: ='Compile Data'!F352 -> 73.88146973 | DG40: ='Compile Data'!F353 -> 57.75825119 | DH40: ='Compile Data'!F354 -> 63.54998016 | DI40: ='Compile Data'!F355 -> 62.82143784 | DJ40: ='Compile Data'!F356 -> 70.4188385 | DK40: ='Compile Data'!F357 -> 80.59169006 | DL40: ='Compile Data'!F358 -> 81.98455811 | DM40: ='Compile Data'!F359 -> 85.62604523 | DN40: ='Compile Data'!F360 -> 90.88855743 | DP40: 73.14532948 | DQ40: 71.17535273 | DR40: 78.66731898 | DT40: 87.59211731 | DU40: 74.44504166 | DV40: 69.34548664 | DW40: 84.77271271 | DX40: 82.37056096
A41: 1924-02-29 | B41: =INDIRECT(CONCATENATE("'",B$1,"'!",B$4,(YEAR($A41)-1921)*12+MONTH($A41)+3+IF(ISNUMBER(FIND("PRV",B$6)),1,0)))*IF(AND(B$3>0,TRIM(B$9)="CFS"),Conv_Flags!$C41,1) -> 78.99992371 | C41: =INDIRECT(CONCATENATE("'",C$1,"'!",C$4,(YEAR($A41)-1921)*12+MONTH($A41)+3+IF(ISNUMBER(FIND("PRV",C$6)),1,0)))*IF(AND(C$3>0,TRIM(C$9)="CFS"),Conv_Flags!$C41,1) -> 78.97428894 | D41: =INDIRECT(CONCATENATE("'",D$1,"'!",D$4,(YEAR($A41)-1921)*12+MONTH($A41)+3+IF(ISNUMBER(FIND("PRV",D$6)),1,0)))*IF(AND(D$3>0,TRIM(D$9)="CFS"),Conv_Flags!$C41,1) -> 78.97501373 | E41: =INDIRECT(CONCATENATE("'",E$1,"'!",E$4,(YEAR($A41)-1921)*12+MONTH($A41)+3+IF(ISNUMBER(FIND("PRV",E$6)),1,0)))*IF(AND(E$3>0,TRIM(E$9)="CFS"),Conv_Flags!$C41,1) -> 78.96921539 | F41: =INDIRECT(CONCATENATE("'",F$1,"'!",F$4,(YEAR($A41)-1921)*12+MONTH($A41)+3+IF(ISNUMBER(FIND("PRV",F$6)),1,0)))*IF(AND(F$3>0,TRIM(F$9)="CFS"),Conv_Flags!$C41,1) -> 78.96921539 | J41: 1951 | K41: =B361 -> 92.76123047 | L41: =B362 -> 63.08994293 | M41: =B363 -> 54 | N41: =B364 -> 54 | O41: =B365 -> 54 | P41: =B366 -> 56.64899063 | Q41: =B367 -> 67.08058929 | R41: =B368 -> 75.41116333 | S41: =B369 -> 79.98065948 | T41: =B370 -> 79.06736755 | U41: =B371 -> 82.77846527 | V41: =B372 -> 80.61856079 | X41: 71.52138106 | Y41: 71.52138106 | Z41: 69.95308081 | AB41: 65.96279335 | AC41: 54 | AD41: 69.78035069 | AE41: 80.61126328 | AF41: 82.32080587 | AH41: 1951 | AI41: ='Compile Data'!C361 -> 92.32559967 | AJ41: ='Compile Data'!C362 -> 63.92261124 | AK41: ='Compile Data'!C363 -> 54 | AL41: ='Compile Data'!C364 -> 54 | AM41: ='Compile Data'!C365 -> 54 | AN41: ='Compile Data'!C366 -> 56.76004028 | AO41: ='Compile Data'!C367 -> 67.04043579 | AP41: ='Compile Data'!C368 -> 75.53709412 | AQ41: ='Compile Data'!C369 -> 80.03643036 | AR41: ='Compile Data'!C370 -> 78.98374939 | AS41: ='Compile Data'!C371 -> 82.41768646 | AT41: ='Compile Data'!C372 -> 80.05539703 | AV41: 71.51737499 | AW41: 71.51737499 | AX41: 69.9232537 | AZ41: 66.06205273 | BA41: 54 | BB41: 69.84350014 | BC41: 80.37331581 | BD41: 81.97638448 | BF41: 1951 | BG41: ='Compile Data'!D361 -> 92.37379456 | BH41: ='Compile Data'!D362 -> 63.93309784 | BI41: ='Compile Data'!D363 -> 54 | BJ41: ='Compile Data'!D364 -> 54 | BK41: ='Compile Data'!D365 -> 54 | BL41: ='Compile Data'!D366 -> 56.76105499 | BM41: ='Compile Data'!D367 -> 67.04033661 | BN41: ='Compile Data'!D368 -> 75.53604889 | BO41: ='Compile Data'!D369 -> 80.04076385 | BP41: ='Compile Data'!D370 -> 78.98240662 | BQ41: ='Compile Data'!D371 -> 82.41555786 | BR41: ='Compile Data'!D372 -> 80.05480957 | BT41: 71.49642213 | BU41: 71.49642213 | BV41: 69.9281559 | BX41: 66.0767231 | BY41: 54 | BZ41: 69.84455109 | CA41: 80.37338448 | CB41: 81.89415232 | CD41: 1951 | CE41: ='Compile Data'!E361 -> 92.53366852 | CF41: ='Compile Data'!E362 -> 63.68946838 | CG41: ='Compile Data'!E363 -> 54 | CH41: ='Compile Data'!E364 -> 54 | CI41: ='Compile Data'!E365 -> 54 | CJ41: ='Compile Data'!E366 -> 56.75798035 | CK41: ='Compile Data'!E367 -> 67.04261017 | CL41: ='Compile Data'!E368 -> 75.43091583 | CM41: ='Compile Data'!E369 -> 80.00247955 | CN41: ='Compile Data'!E370 -> 79.08187103 | CO41: ='Compile Data'!E371 -> 82.4814682 | CP41: ='Compile Data'!E372 -> 80.06118774 | CR41: 71.50292714 | CS41: 71.50292714 | CT41: 69.92347082 | CV41: 66.05578423 | CW41: 54 | CX41: 69.80849648 | CY41: 80.40675163 | CZ41: 81.88660431 | DB41: 1951 | DC41: ='Compile Data'!F361 -> 92.53366852 | DD41: ='Compile Data'!F362 -> 63.68945694 | DE41: ='Compile Data'!F363 -> 54 | DF41: ='Compile Data'!F364 -> 54 | DG41: ='Compile Data'!F365 -> 54 | DH41: ='Compile Data'!F366 -> 56.75795364 | DI41: ='Compile Data'!F367 -> 67.04253387 | DJ41: ='Compile Data'!F368 -> 75.43087769 | DK41: ='Compile Data'!F369 -> 80.00247192 | DL41: ='Compile Data'!F370 -> 79.08185577 | DM41: ='Compile Data'!F371 -> 82.48144531 | DN41: ='Compile Data'!F372 -> 80.06116486 | DP41: 71.50290489 | DQ41: 71.50290489 | DR41: 69.92345238 | DT41: 66.05578136 | DU41: 54 | DV41: 69.80845928 | DW41: 80.40673447 | DX41: 81.88658396
A42: 1924-03-31 | B42: =INDIRECT(CONCATENATE("'",B$1,"'!",B$4,(YEAR($A42)-1921)*12+MONTH($A42)+3+IF(ISNUMBER(FIND("PRV",B$6)),1,0)))*IF(AND(B$3>0,TRIM(B$9)="CFS"),Conv_Flags!$C42,1) -> 76.24393463 | C42: =INDIRECT(CONCATENATE("'",C$1,"'!",C$4,(YEAR($A42)-1921)*12+MONTH($A42)+3+IF(ISNUMBER(FIND("PRV",C$6)),1,0)))*IF(AND(C$3>0,TRIM(C$9)="CFS"),Conv_Flags!$C42,1) -> 76.22775269 | D42: =INDIRECT(CONCATENATE("'",D$1,"'!",D$4,(YEAR($A42)-1921)*12+MONTH($A42)+3+IF(ISNUMBER(FIND("PRV",D$6)),1,0)))*IF(AND(D$3>0,TRIM(D$9)="CFS"),Conv_Flags!$C42,1) -> 76.23097229 | E42: =INDIRECT(CONCATENATE("'",E$1,"'!",E$4,(YEAR($A42)-1921)*12+MONTH($A42)+3+IF(ISNUMBER(FIND("PRV",E$6)),1,0)))*IF(AND(E$3>0,TRIM(E$9)="CFS"),Conv_Flags!$C42,1) -> 76.23017883 | F42: =INDIRECT(CONCATENATE("'",F$1,"'!",F$4,(YEAR($A42)-1921)*12+MONTH($A42)+3+IF(ISNUMBER(FIND("PRV",F$6)),1,0)))*IF(AND(F$3>0,TRIM(F$9)="CFS"),Conv_Flags!$C42,1) -> 76.23017883 | J42: 1952 | K42: =B373 -> 80.59790039 | L42: =B374 -> 85.74595642 | M42: =B375 -> 62.32691956 | N42: =B376 -> 54 | O42: =B377 -> 54 | P42: =B378 -> 54 | Q42: =B379 -> 54 | R42: =B380 -> 54.07049179 | S42: =B381 -> 62.07202911 | T42: =B382 -> 75.23876953 | U42: =B383 -> 83.06011963 | V42: =B384 -> 79.26548767 | X42: 66.22193718 | Y42: 66.73905913 | Z42: 66.53147284 | AB42: 70.66769409 | AC42: 56.77563985 | AD42: 56.03563023 | AE42: 74.90910149 | AF42: 80.47993215 | AH42: 1952 | AI42: ='Compile Data'!C373 -> 80.28334045 | AJ42: ='Compile Data'!C374 -> 85.59041595 | AK42: ='Compile Data'!C375 -> 63.50391006 | AL42: ='Compile Data'!C376 -> 54 | AM42: ='Compile Data'!C377 -> 54 | AN42: ='Compile Data'!C378 -> 54 | AO42: ='Compile Data'!C379 -> 54 | AP42: ='Compile Data'!C380 -> 54.07128525 | AQ42: ='Compile Data'!C381 -> 62.20285797 | AR42: ='Compile Data'!C382 -> 75.31877899 | AS42: ='Compile Data'!C383 -> 82.76855469 | AT42: ='Compile Data'!C384 -> 77.73764038 | AV42: 66.14277331 | AW42: 66.66071606 | AX42: 66.45639865 | AZ42: 70.84441662 | BA42: 57.16797002 | BB42: 56.0685358 | BC42: 74.50695801 | BD42: 79.91500854 | BF42: 1952 | BG42: ='Compile Data'!D373 -> 80.12013245 | BH42: ='Compile Data'!D374 -> 85.50751495 | BI42: ='Compile Data'!D375 -> 63.49843979 | BJ42: ='Compile Data'!D376 -> 54 | BK42: ='Compile Data'!D377 -> 54 | BL42: ='Compile Data'!D378 -> 54 | BM42: ='Compile Data'!D379 -> 54 | BN42: ='Compile Data'!D380 -> 54.07128525 | BO42: ='Compile Data'!D381 -> 62.20294189 | BP42: ='Compile Data'!D382 -> 75.31943512 | BQ42: ='Compile Data'!D383 -> 82.74446106 | BR42: ='Compile Data'!D384 -> 78.79263306 | BT42: 66.18733692 | BU42: 66.65716775 | BV42: 66.52140363 | BX42: 70.7815218 | BY42: 57.1661466 | BZ42: 56.06855679 | CA42: 74.76486778 | CB42: 80.11779277 | CD42: 1952 | CE42: ='Compile Data'!E373 -> 80.10285187 | CF42: ='Compile Data'!E374 -> 85.49577332 | CG42: ='Compile Data'!E375 -> 63.57798767 | CH42: ='Compile Data'!E376 -> 54 | CI42: ='Compile Data'!E377 -> 54 | CJ42: ='Compile Data'!E378 -> 54 | CK42: ='Compile Data'!E379 -> 54 | CL42: ='Compile Data'!E380 -> 54.0715065 | CM42: ='Compile Data'!E381 -> 62.07274628 | CN42: ='Compile Data'!E382 -> 75.23881531 | CO42: ='Compile Data'!E383 -> 82.69176483 | CP42: ='Compile Data'!E384 -> 78.74692535 | CR42: 66.15818628 | CS42: 66.67655595 | CT42: 66.49986426 | CV42: 70.79415321 | CW42: 57.19266256 | CX42: 56.03606319 | CY42: 74.68756294 | CZ42: 80.09004466 | DB42: 1952 | DC42: ='Compile Data'!F373 -> 80.10283661 | DD42: ='Compile Data'!F374 -> 85.49575043 | DE42: ='Compile Data'!F375 -> 63.5779686 | DF42: ='Compile Data'!F376 -> 54 | DG42: ='Compile Data'!F377 -> 54 | DH42: ='Compile Data'!F378 -> 54 | DI42: ='Compile Data'!F379 -> 54 | DJ42: ='Compile Data'!F380 -> 54.0715065 | DK42: ='Compile Data'!F381 -> 62.07269669 | DL42: ='Compile Data'!F382 -> 75.23877716 | DM42: ='Compile Data'!F383 -> 82.69174194 | DN42: ='Compile Data'!F384 -> 78.74679565 | DP42: 66.15816021 | DQ42: 66.67652702 | DR42: 66.49983946 | DT42: 70.79413891 | DU42: 57.1926562 | DV42: 56.0360508 | DW42: 74.68750286 | DX42: 80.08998617
A43: 1924-04-30 | B43: =INDIRECT(CONCATENATE("'",B$1,"'!",B$4,(YEAR($A43)-1921)*12+MONTH($A43)+3+IF(ISNUMBER(FIND("PRV",B$6)),1,0)))*IF(AND(B$3>0,TRIM(B$9)="CFS"),Conv_Flags!$C43,1) -> 82.26754761 | C43: =INDIRECT(CONCATENATE("'",C$1,"'!",C$4,(YEAR($A43)-1921)*12+MONTH($A43)+3+IF(ISNUMBER(FIND("PRV",C$6)),1,0)))*IF(AND(C$3>0,TRIM(C$9)="CFS"),Conv_Flags!$C43,1) -> 82.26911926 | D43: =INDIRECT(CONCATENATE("'",D$1,"'!",D$4,(YEAR($A43)-1921)*12+MONTH($A43)+3+IF(ISNUMBER(FIND("PRV",D$6)),1,0)))*IF(AND(D$3>0,TRIM(D$9)="CFS"),Conv_Flags!$C43,1) -> 82.26951599 | E43: =INDIRECT(CONCATENATE("'",E$1,"'!",E$4,(YEAR($A43)-1921)*12+MONTH($A43)+3+IF(ISNUMBER(FIND("PRV",E$6)),1,0)))*IF(AND(E$3>0,TRIM(E$9)="CFS"),Conv_Flags!$C43,1) -> 82.2648468 | F43: =INDIRECT(CONCATENATE("'",F$1,"'!",F$4,(YEAR($A43)-1921)*12+MONTH($A43)+3+IF(ISNUMBER(FIND("PRV",F$6)),1,0)))*IF(AND(F$3>0,TRIM(F$9)="CFS"),Conv_Flags!$C43,1) -> 82.2648468 | J43: 1953 | K43: =B385 -> 78.2485199 | L43: =B386 -> 83.92578888 | M43: =B387 -> 62.78203964 | N43: =B388 -> 54 | O43: =B389 -> 60.20546341 | P43: =B390 -> 63.78369522 | Q43: =B391 -> 67.89373779 | R43: =B392 -> 66.78125 | S43: =B393 -> 76.85342407 | T43: =B394 -> 78.59636688 | U43: =B395 -> 82.15782928 | V43: =B396 -> 80.35185242 | X43: 73.54632759 | Y43: 74.11836529 | Z43: 71.29833062 | AB43: 69.7390871 | AC43: 58.99583435 | AD43: 68.82802677 | AE43: 79.48986816 | AF43: 81.37500509 | AH43: 1953 | AI43: ='Compile Data'!C385 -> 77.84985352 | AJ43: ='Compile Data'!C386 -> 84.15753174 | AK43: ='Compile Data'!C387 -> 63.60677719 | AL43: ='Compile Data'!C388 -> 54.00867844 | AM43: ='Compile Data'!C389 -> 60.20663452 | AN43: ='Compile Data'!C390 -> 63.78279114 | AO43: ='Compile Data'!C391 -> 67.89466858 | AP43: ='Compile Data'!C392 -> 66.7804718 | AQ43: ='Compile Data'!C393 -> 76.97446442 | AR43: ='Compile Data'!C394 -> 78.56313324 | AS43: ='Compile Data'!C395 -> 81.82900238 | AT43: ='Compile Data'!C396 -> 79.81674194 | AV43: 73.36725903 | AW43: 74.05596097 | AX43: 71.28922908 | AZ43: 69.90571022 | BA43: 59.27403005 | BB43: 68.85809898 | BC43: 79.29583549 | BD43: 80.95742035 | BF43: 1953 | BG43: ='Compile Data'!D385 -> 77.78453064 | BH43: ='Compile Data'!D386 -> 83.7762146 | BI43: ='Compile Data'!D387 -> 63.55654144 | BJ43: ='Compile Data'!D388 -> 54.01091003 | BK43: ='Compile Data'!D389 -> 59.62705994 | BL43: ='Compile Data'!D390 -> 63.59861374 | BM43: ='Compile Data'!D391 -> 67.81851959 | BN43: ='Compile Data'!D392 -> 67.47966003 | BO43: ='Compile Data'!D393 -> 77.35919189 | BP43: ='Compile Data'!D394 -> 78.59581757 | BQ43: ='Compile Data'!D395 -> 81.80514526 | BR43: ='Compile Data'!D396 -> 79.78726959 | BT43: 73.38998445 | BU43: 74.13175424 | BV43: 71.26662286 | BX43: 69.78204918 | BY43: 59.06483714 | BZ43: 69.06399632 | CA43: 79.38685608 | CB43: 80.95770009 | CD43: 1953 | CE43: ='Compile Data'!E385 -> 77.75634766 | CF43: ='Compile Data'!E386 -> 83.76686096 | CG43: ='Compile Data'!E387 -> 63.55326843 | CH43: ='Compile Data'!E388 -> 54.01124573 | CI43: ='Compile Data'!E389 -> 60.20919037 | CJ43: ='Compile Data'!E390 -> 63.78720093 | CK43: ='Compile Data'!E391 -> 67.89550781 | CL43: ='Compile Data'!E392 -> 66.78202057 | CM43: ='Compile Data'!E393 -> 76.85361481 | CN43: ='Compile Data'!E394 -> 78.59650421 | CO43: ='Compile Data'!E395 -> 81.83727264 | CP43: ='Compile Data'!E396 -> 79.79801941 | CR43: 73.36103884 | CS43: 74.05968889 | CT43: 71.23725446 | CV43: 69.77193069 | CW43: 59.25790151 | CX43: 68.82958603 | CY43: 79.27135277 | CZ43: 80.9617513 | DB43: 1953 | DC43: ='Compile Data'!F385 -> 77.75631714 | DD43: ='Compile Data'!F386 -> 83.7668457 | DE43: ='Compile Data'!F387 -> 63.55324173 | DF43: ='Compile Data'!F388 -> 54.01124573 | DG43: ='Compile Data'!F389 -> 60.20915604 | DH43: ='Compile Data'!F390 -> 63.78717422 | DI43: ='Compile Data'!F391 -> 67.89556122 | DJ43: ='Compile Data'!F392 -> 66.78205109 | DK43: ='Compile Data'!F393 -> 76.85360718 | DL43: ='Compile Data'!F394 -> 78.59648132 | DM43: ='Compile Data'!F395 -> 81.83725739 | DN43: ='Compile Data'!F396 -> 79.79794312 | DP43: 73.36068217 | DQ43: 74.05875333 | DR43: 71.23724016 | DT43: 69.77191257 | DU43: 59.25788116 | DV43: 68.82959843 | DW43: 79.27132225 | DX43: 80.9618276
A44: 1924-05-31 | B44: =INDIRECT(CONCATENATE("'",B$1,"'!",B$4,(YEAR($A44)-1921)*12+MONTH($A44)+3+IF(ISNUMBER(FIND("PRV",B$6)),1,0)))*IF(AND(B$3>0,TRIM(B$9)="CFS"),Conv_Flags!$C44,1) -> 88.61326599 | C44: =INDIRECT(CONCATENATE("'",C$1,"'!",C$4,(YEAR($A44)-1921)*12+MONTH($A44)+3+IF(ISNUMBER(FIND("PRV",C$6)),1,0)))*IF(AND(C$3>0,TRIM(C$9)="CFS"),Conv_Flags!$C44,1) -> 88.29864502 | D44: =INDIRECT(CONCATENATE("'",D$1,"'!",D$4,(YEAR($A44)-1921)*12+MONTH($A44)+3+IF(ISNUMBER(FIND("PRV",D$6)),1,0)))*IF(AND(D$3>0,TRIM(D$9)="CFS"),Conv_Flags!$C44,1) -> 88.29885864 | E44: =INDIRECT(CONCATENATE("'",E$1,"'!",E$4,(YEAR($A44)-1921)*12+MONTH($A44)+3+IF(ISNUMBER(FIND("PRV",E$6)),1,0)))*IF(AND(E$3>0,TRIM(E$9)="CFS"),Conv_Flags!$C44,1) -> 88.61140442 | F44: =INDIRECT(CONCATENATE("'",F$1,"'!",F$4,(YEAR($A44)-1921)*12+MONTH($A44)+3+IF(ISNUMBER(FIND("PRV",F$6)),1,0)))*IF(AND(F$3>0,TRIM(F$9)="CFS"),Conv_Flags!$C44,1) -> 88.61139679 | J44: 1954 | K44: =B397 -> 80.04615021 | L44: =B398 -> 83.72701263 | M44: =B399 -> 88.15914917 | N44: =B400 -> 66.69538879 | O44: =B401 -> 54.37452698 | P44: =B402 -> 54 | Q44: =B403 -> 55.13493729 | R44: =B404 -> 67.03503418 | S44: =B405 -> 80.55027771 | T44: =B406 -> 78.84197235 | U44: =B407 -> 82.38805389 | V44: =B408 -> 80.34163666 | X44: =IF(X$11="AVG",AVERAGE(N44:V44,K45:M45),SUM(N44:V44,K45:M45)) -> 71.83025392 | Y44: =IF(Y$11="AVG",AVERAGE(P44:V44,K45:O45),SUM(P44:V44,K45:O45)) -> 73.3456138 | Z44: =IF(Z$11="AVG",AVERAGE(K44:V44),SUM(K44:V44)) -> 72.60784499 | AB44: =IF(AB$11="AVG",IF(AB$1="INST-VAL",AVERAGE(V43,K44:M44,K44:N44),AVERAGE(K44:N44)),SUM(K44:N44)) -> 79.6569252 | AC44: =IF(AC$11="AVG",IF(AB$1="INST-VAL",AVERAGE(L44:N44,M44:O44),AVERAGE(M44:O44)),SUM(M44:O44)) -> 69.74302165 | AD44: =IF(AD$11="AVG",IF(AB$1="INST-VAL",AVERAGE(O44:R44,P44:S44),AVERAGE(P44:S44)),SUM(P44:S44)) -> 64.18006229 | AE44: =IF(AE$11="AVG",IF(AB$1="INST-VAL",AVERAGE(R44:U44,S44:V44),AVERAGE(S44:V44)),SUM(S44:V44)) -> 80.53048515 | AF44: =IF(AF$11="AVG",IF(AB$1="INST-VAL",AVERAGE(U44:V44,K45,V44,K45:L45),AVERAGE(V44,K45:L45)),SUM(V44,K45:L45)) -> 81.54993693 | AH44: 1954 | AI44: ='Compile Data'!C397 -> 79.52713776 | AJ44: ='Compile Data'!C398 -> 83.52838135 | AK44: ='Compile Data'!C399 -> 87.49500275 | AL44: ='Compile Data'!C400 -> 67.98369598 | AM44: ='Compile Data'!C401 -> 54.49604034 | AN44: ='Compile Data'!C402 -> 54 | AO44: ='Compile Data'!C403 -> 55.16090012 | AP44: ='Compile Data'!C404 -> 66.2838974 | AQ44: ='Compile Data'!C405 -> 80.3793335 | AR44: ='Compile Data'!C406 -> 78.82871246 | AS44: ='Compile Data'!C407 -> 82.06751251 | AT44: ='Compile Data'!C408 -> 79.68241882 | AV44: =IF(AV$11="AVG",AVERAGE(AL44:AT44,AI45:AK45),SUM(AL44:AT44,AI45:AK45)) -> 71.58889929 | AW44: =IF(AW$11="AVG",AVERAGE(AN44:AT44,AI45:AM45),SUM(AN44:AT44,AI45:AM45)) -> 72.96431255 | AX44: =IF(AX$11="AVG",AVERAGE(AI44:AT44),SUM(AI44:AT44)) -> 72.45275275 | AZ44: =IF(AZ$11="AVG",IF(AZ$1="INST-VAL",AVERAGE(AT43,AI44:AK44,AI44:AL44),AVERAGE(AI44:AL44)),SUM(AI44:AL44)) -> 79.63355446 | BA44: =IF(BA$11="AVG",IF(AZ$1="INST-VAL",AVERAGE(AJ44:AL44,AK44:AM44),AVERAGE(AK44:AM44)),SUM(AK44:AM44)) -> 69.99157969 | BB44: =IF(BB$11="AVG",IF(AZ$1="INST-VAL",AVERAGE(AM44:AP44,AN44:AQ44),AVERAGE(AN44:AQ44)),SUM(AN44:AQ44)) -> 63.95603275 | BC44: =IF(BC$11="AVG",IF(AZ$1="INST-VAL",AVERAGE(AP44:AS44,AQ44:AT44),AVERAGE(AQ44:AT44)),SUM(AQ44:AT44)) -> 80.23949432 | BD44: =IF(BD$11="AVG",IF(AZ$1="INST-VAL",AVERAGE(AS44:AT44,AI45,AT44,AI45:AJ45),AVERAGE(AT44,AI45:AJ45)),SUM(AT44,AI45:AJ45)) -> 81.0507431 | BF44: 1954 | BG44: ='Compile Data'!D397 -> 79.51937866 | BH44: ='Compile Data'!D398 -> 83.56645203 | BI44: ='Compile Data'!D399 -> 87.51179504 | BJ44: ='Compile Data'!D400 -> 68.0375061 | BK44: ='Compile Data'!D401 -> 54.50170135 | BL44: ='Compile Data'!D402 -> 54 | BM44: ='Compile Data'!D403 -> 55.16031265 | BN44: ='Compile Data'!D404 -> 66.28423309 | BO44: ='Compile Data'!D405 -> 80.38101196 | BP44: ='Compile Data'!D406 -> 78.85835266 | BQ44: ='Compile Data'!D407 -> 82.08483124 | BR44: ='Compile Data'!D408 -> 79.68556213 | BT44: =IF(BT$11="AVG",AVERAGE(BJ44:BR44,BG45:BI45),SUM(BJ44:BR44,BG45:BI45)) -> 71.68727016 | BU44: =IF(BU$11="AVG",AVERAGE(BL44:BR44,BG45:BK45),SUM(BL44:BR44,BG45:BK45)) -> 73.09790579 | BV44: =IF(BV$11="AVG",AVERAGE(BG44:BR44),SUM(BG44:BR44)) -> 72.46592808 | BX44: =IF(BX$11="AVG",IF(BX$1="INST-VAL",AVERAGE(BR43,BG44:BI44,BG44:BJ44),AVERAGE(BG44:BJ44)),SUM(BG44:BJ44)) -> 79.65878296 | BY44: =IF(BY$11="AVG",IF(BX$1="INST-VAL",AVERAGE(BH44:BJ44,BI44:BK44),AVERAGE(BI44:BK44)),SUM(BI44:BK44)) -> 70.01700083 | BZ44: =IF(BZ$11="AVG",IF(BX$1="INST-VAL",AVERAGE(BK44:BN44,BL44:BO44),AVERAGE(BL44:BO44)),SUM(BL44:BO44)) -> 63.95638943 | CA44: =IF(CA$11="AVG",IF(BX$1="INST-VAL",AVERAGE(BN44:BQ44,BO44:BR44),AVERAGE(BO44:BR44)),SUM(BO44:BR44)) -> 80.2524395 | CB44: =IF(CB$11="AVG",IF(BX$1="INST-VAL",AVERAGE(BQ44:BR44,BG45,BR44,BG45:BH45),AVERAGE(BR44,BG45:BH45)),SUM(BR44,BG45:BH45)) -> 81.0523351 | CD44: 1954 | CE44: ='Compile Data'!E397 -> 79.51915741 | CF44: ='Compile Data'!E398 -> 83.56807709 | CG44: ='Compile Data'!E399 -> 87.47465515 | CH44: ='Compile Data'!E400 -> 68.09635925 | CI44: ='Compile Data'!E401 -> 54.50787735 | CJ44: ='Compile Data'!E402 -> 54 | CK44: ='Compile Data'!E403 -> 55.15598297 | CL44: ='Compile Data'!E404 -> 67.03269958 | CM44: ='Compile Data'!E405 -> 80.53504944 | CN44: ='Compile Data'!E406 -> 79.02765656 | CO44: ='Compile Data'!E407 -> 82.16572571 | CP44: ='Compile Data'!E408 -> 79.6434021 | CR44: 71.87615172 | CS44: 73.331213 | CT44: 72.56055355 | CV44: 79.66456223 | CW44: 70.02629725 | CX44: 64.180933 | CY44: 80.34295845 | CZ44: 81.13964335 | DB44: 1954 | DC44: ='Compile Data'!F397 -> 79.51911163 | DD44: ='Compile Data'!F398 -> 83.56842804 | DE44: ='Compile Data'!F399 -> 87.47016907 | DF44: ='Compile Data'!F400 -> 68.09004211 | DG44: ='Compile Data'!F401 -> 54.50721359 | DH44: ='Compile Data'!F402 -> 54 | DI44: ='Compile Data'!F403 -> 55.15658188 | DJ44: ='Compile Data'!F404 -> 67.03261566 | DK44: ='Compile Data'!F405 -> 80.53490448 | DL44: ='Compile Data'!F406 -> 79.03343964 | DM44: ='Compile Data'!F407 -> 82.16863251 | DN44: ='Compile Data'!F408 -> 79.64395142 | DP44: 71.88987033 | DQ44: 73.35380967 | DR44: 72.56042417 | DT44: 79.66193771 | DU44: 70.02247492 | DV44: 64.18102551 | DW44: 80.34523201 | DX44: 81.13608805
A45: 1924-06-30 | B45: =INDIRECT(CONCATENATE("'",B$1,"'!",B$4,(YEAR($A45)-1921)*12+MONTH($A45)+3+IF(ISNUMBER(FIND("PRV",B$6)),1,0)))*IF(AND(B$3>0,TRIM(B$9)="CFS"),Conv_Flags!$C45,1) -> 91.95285034 | C45: =INDIRECT(CONCATENATE("'",C$1,"'!",C$4,(YEAR($A45)-1921)*12+MONTH($A45)+3+IF(ISNUMBER(FIND("PRV",C$6)),1,0)))*IF(AND(C$3>0,TRIM(C$9)="CFS"),Conv_Flags!$C45,1) -> 91.74576569 | D45: =INDIRECT(CONCATENATE("'",D$1,"'!",D$4,(YEAR($A45)-1921)*12+MONTH($A45)+3+IF(ISNUMBER(FIND("PRV",D$6)),1,0)))*IF(AND(D$3>0,TRIM(D$9)="CFS"),Conv_Flags!$C45,1) -> 91.74517822 | E45: =INDIRECT(CONCATENATE("'",E$1,"'!",E$4,(YEAR($A45)-1921)*12+MONTH($A45)+3+IF(ISNUMBER(FIND("PRV",E$6)),1,0)))*IF(AND(E$3>0,TRIM(E$9)="CFS"),Conv_Flags!$C45,1) -> 91.9940567 | F45: =INDIRECT(CONCATENATE("'",F$1,"'!",F$4,(YEAR($A45)-1921)*12+MONTH($A45)+3+IF(ISNUMBER(FIND("PRV",F$6)),1,0)))*IF(AND(F$3>0,TRIM(F$9)="CFS"),Conv_Flags!$C45,1) -> 91.99417114 | J45: 1955 | K45: =B409 -> 80.29631042 | L45: =B410 -> 84.01186371 | M45: =B411 -> 78.29304504 | N45: =B412 -> 68.22397614 | O45: =B413 -> 71.03025818 | P45: =B414 -> 76.76469421 | Q45: =B415 -> 77.48823547 | R45: =B416 -> 79.78365326 | S45: =B417 -> 82.11906433 | T45: =B418 -> 85.71408081 | U45: =B419 -> 90.38739014 | V45: =B420 -> 91.89258575 | X45: 80.45402718 | Y45: 77.84950765 | Z45: 80.50042979 | AB45: 77.70629883 | AC45: 72.51575979 | AD45: 79.03891182 | AE45: 87.52828026 | AF45: 92.44082642 | AH45: 1955 | AI45: ='Compile Data'!C409 -> 79.81665802 | AJ45: ='Compile Data'!C410 -> 83.65315247 | AK45: ='Compile Data'!C411 -> 76.71446991 | AL45: ='Compile Data'!C412 -> 67.8874054 | AM45: ='Compile Data'!C413 -> 71.09729004 | AN45: ='Compile Data'!C414 -> 76.74213409 | AO45: ='Compile Data'!C415 -> 77.54664612 | AP45: ='Compile Data'!C416 -> 79.82415009 | AQ45: ='Compile Data'!C417 -> 82.06586456 | AR45: ='Compile Data'!C418 -> 85.40184784 | AS45: ='Compile Data'!C419 -> 89.39791107 | AT45: ='Compile Data'!C420 -> 90.64298248 | AV45: 79.98693816 | AW45: 77.40488021 | AX45: 80.06587601 | AZ45: 77.01792145 | BA45: 71.89972178 | BB45: 79.04469872 | BC45: 86.87715149 | BD45: 91.09520721 | BF45: 1955 | BG45: ='Compile Data'!D409 -> 79.8227005 | BH45: ='Compile Data'!D410 -> 83.64874268 | BI45: ='Compile Data'!D411 -> 77.7822876 | BJ45: ='Compile Data'!D412 -> 68.32143402 | BK45: ='Compile Data'!D413 -> 71.145401 | BL45: ='Compile Data'!D414 -> 76.75431061 | BM45: ='Compile Data'!D415 -> 77.55591583 | BN45: ='Compile Data'!D416 -> 79.82759094 | BO45: ='Compile Data'!D417 -> 82.06465912 | BP45: ='Compile Data'!D418 -> 85.42195892 | BQ45: ='Compile Data'!D419 -> 89.39772797 | BR45: ='Compile Data'!D420 -> 90.64533997 | BT45: 80.03657595 | BU45: 77.4143397 | BV45: 80.19900576 | BX45: 77.3937912 | BY45: 72.41637421 | BZ45: 79.05061913 | CA45: 86.88242149 | CB45: 91.11457062 | CD45: 1955 | CE45: ='Compile Data'!E409 -> 79.8427887 | CF45: ='Compile Data'!E410 -> 83.93273926 | CG45: ='Compile Data'!E411 -> 78.57353973 | CH45: ='Compile Data'!E412 -> 68.81099701 | CI45: ='Compile Data'!E413 -> 71.25397491 | CJ45: ='Compile Data'!E414 -> 76.76154327 | CK45: ='Compile Data'!E415 -> 77.59816742 | CL45: ='Compile Data'!E416 -> 79.83609009 | CM45: ='Compile Data'!E417 -> 82.05715179 | CN45: ='Compile Data'!E418 -> 85.45940399 | CO45: ='Compile Data'!E419 -> 89.38243866 | CP45: ='Compile Data'!E420 -> 90.86891937 | CR45: 80.00610924 | CS45: 77.33402824 | CT45: 80.36481285 | CV45: 77.79001617 | CW45: 72.87950389 | CX45: 79.06323814 | CY45: 86.94197845 | CZ45: 90.87602234 | DB45: 1955 | DC45: ='Compile Data'!F409 -> 79.84348297 | DD45: ='Compile Data'!F410 -> 83.92082977 | DE45: ='Compile Data'!F411 -> 78.74674988 | DF45: ='Compile Data'!F412 -> 68.90996552 | DG45: ='Compile Data'!F413 -> 71.25456238 | DH45: ='Compile Data'!F414 -> 76.78027344 | DI45: ='Compile Data'!F415 -> 77.54013062 | DJ45: ='Compile Data'!F416 -> 79.81615448 | DK45: ='Compile Data'!F417 -> 82.05392456 | DL45: ='Compile Data'!F418 -> 85.4973526 | DM45: ='Compile Data'!F419 -> 89.51299286 | DN45: ='Compile Data'!F420 -> 90.91259766 | DP45: 80.02643299 | DQ45: 77.34605567 | DR45: 80.39908473 | DT45: 77.85525703 | DU45: 72.97042592 | DV45: 79.04762077 | DW45: 86.99421692 | DX45: 90.88594818
A46: 1924-07-31 | B46: =INDIRECT(CONCATENATE("'",B$1,"'!",B$4,(YEAR($A46)-1921)*12+MONTH($A46)+3+IF(ISNUMBER(FIND("PRV",B$6)),1,0)))*IF(AND(B$3>0,TRIM(B$9)="CFS"),Conv_Flags!$C46,1) -> 92.5099411 | C46: =INDIRECT(CONCATENATE("'",C$1,"'!",C$4,(YEAR($A46)-1921)*12+MONTH($A46)+3+IF(ISNUMBER(FIND("PRV",C$6)),1,0)))*IF(AND(C$3>0,TRIM(C$9)="CFS"),Conv_Flags!$C46,1) -> 91.53073883 | D46: =INDIRECT(CONCATENATE("'",D$1,"'!",D$4,(YEAR($A46)-1921)*12+MONTH($A46)+3+IF(ISNUMBER(FIND("PRV",D$6)),1,0)))*IF(AND(D$3>0,TRIM(D$9)="CFS"),Conv_Flags!$C46,1) -> 91.53011322 | E46: =INDIRECT(CONCATENATE("'",E$1,"'!",E$4,(YEAR($A46)-1921)*12+MONTH($A46)+3+IF(ISNUMBER(FIND("PRV",E$6)),1,0)))*IF(AND(E$3>0,TRIM(E$9)="CFS"),Conv_Flags!$C46,1) -> 91.60155487 | F46: =INDIRECT(CONCATENATE("'",F$1,"'!",F$4,(YEAR($A46)-1921)*12+MONTH($A46)+3+IF(ISNUMBER(FIND("PRV",F$6)),1,0)))*IF(AND(F$3>0,TRIM(F$9)="CFS"),Conv_Flags!$C46,1) -> 91.59326935 | J46: 1956 | K46: =B421 -> 92.66513824 | L46: =B422 -> 92.76475525 | M46: =B423 -> 56.61449432 | N46: =B424 -> 54 | O46: =B425 -> 54 | P46: =B426 -> 54.5489769 | Q46: =B427 -> 63.80511856 | R46: =B428 -> 65.92062378 | S46: =B429 -> 74.4491272 | T46: =B430 -> 80.38846588 | U46: =B431 -> 84.40813446 | V46: =B432 -> 80.9953537 | X46: 72.07795334 | Y46: 76.07201576 | Z46: 71.21334902 | AB46: 74.01109695 | AC46: 54.87149811 | AD46: 64.68096161 | AE46: 80.06027031 | AF46: 81.75392914 | AH46: 1956 | AI46: ='Compile Data'!C421 -> 91.10455322 | AJ46: ='Compile Data'!C422 -> 91.53808594 | AK46: ='Compile Data'!C423 -> 56.59438705 | AL46: ='Compile Data'!C424 -> 54 | AM46: ='Compile Data'!C425 -> 54 | AN46: ='Compile Data'!C426 -> 54.88933945 | AO46: ='Compile Data'!C427 -> 63.95102692 | AP46: ='Compile Data'!C428 -> 65.89006042 | AQ46: ='Compile Data'!C429 -> 74.4379425 | AR46: ='Compile Data'!C430 -> 80.3840332 | AS46: ='Compile Data'!C431 -> 84.04647064 | AT46: ='Compile Data'!C432 -> 80.81513214 | AV46: 72.06813335 | AW46: 76.08788013 | AX46: 70.97091929 | AZ46: 73.30925655 | BA46: 54.86479568 | BB46: 64.79209232 | BC46: 79.92089462 | BD46: 81.69080098 | BF46: 1956 | BG46: ='Compile Data'!D421 -> 91.14741516 | BH46: ='Compile Data'!D422 -> 91.55095673 | BI46: ='Compile Data'!D423 -> 56.60620117 | BJ46: ='Compile Data'!D424 -> 54 | BK46: ='Compile Data'!D425 -> 54 | BL46: ='Compile Data'!D426 -> 54.90585327 | BM46: ='Compile Data'!D427 -> 63.95925522 | BN46: ='Compile Data'!D428 -> 65.88924408 | BO46: ='Compile Data'!D429 -> 74.43714142 | BP46: ='Compile Data'!D430 -> 80.38379669 | BQ46: ='Compile Data'!D431 -> 84.04734802 | BR46: ='Compile Data'!D432 -> 80.52042389 | BT46: 72.03483804 | BU46: 76.04852708 | BV46: 70.95396964 | BX46: 73.32614326 | BY46: 54.86873372 | BZ46: 64.7978735 | CA46: 79.84717751 | CB46: 81.54904683 | CD46: 1956 | CE46: ='Compile Data'!E421 -> 91.49177551 | CF46: ='Compile Data'!E422 -> 90.26737213 | CG46: ='Compile Data'!E423 -> 56.28547668 | CH46: ='Compile Data'!E424 -> 54 | CI46: ='Compile Data'!E425 -> 54 | CJ46: ='Compile Data'!E426 -> 54.90523529 | CK46: ='Compile Data'!E427 -> 63.95889664 | CL46: ='Compile Data'!E428 -> 65.92638397 | CM46: ='Compile Data'!E429 -> 74.45819855 | CN46: ='Compile Data'!E430 -> 80.38920593 | CO46: ='Compile Data'!E431 -> 84.04576874 | CP46: ='Compile Data'!E432 -> 80.44752502 | CR46: 71.98726622 | CS46: 75.99709924 | CT46: 70.84798654 | CV46: 73.01115608 | CW46: 54.76182556 | CX46: 64.81217861 | CY46: 79.83517456 | CZ46: 81.34463247 | DB46: 1956 | DC46: ='Compile Data'!F421 -> 91.50733948 | DD46: ='Compile Data'!F422 -> 90.23790741 | DE46: ='Compile Data'!F423 -> 56.2939949 | DF46: ='Compile Data'!F424 -> 54 | DG46: ='Compile Data'!F425 -> 54 | DH46: ='Compile Data'!F426 -> 54.89217377 | DI46: ='Compile Data'!F427 -> 63.95409393 | DJ46: ='Compile Data'!F428 -> 65.92640686 | DK46: ='Compile Data'!F429 -> 74.45809174 | DL46: ='Compile Data'!F430 -> 80.389328 | DM46: ='Compile Data'!F431 -> 84.04567719 | DN46: ='Compile Data'!F432 -> 80.44737244 | DP46: 71.98582586 | DQ46: 75.99697622 | DR46: 70.84603214 | DT46: 73.00981045 | DU46: 54.76466497 | DV46: 64.80769157 | DW46: 79.83511734 | DX46: 81.34456635
A47: 1924-08-31 | B47: =INDIRECT(CONCATENATE("'",B$1,"'!",B$4,(YEAR($A47)-1921)*12+MONTH($A47)+3+IF(ISNUMBER(FIND("PRV",B$6)),1,0)))*IF(AND(B$3>0,TRIM(B$9)="CFS"),Conv_Flags!$C47,1) -> 92.66281128 | C47: =INDIRECT(CONCATENATE("'",C$1,"'!",C$4,(YEAR($A47)-1921)*12+MONTH($A47)+3+IF(ISNUMBER(FIND("PRV",C$6)),1,0)))*IF(AND(C$3>0,TRIM(C$9)="CFS"),Conv_Flags!$C47,1) -> 90.72483826 | D47: =INDIRECT(CONCATENATE("'",D$1,"'!",D$4,(YEAR($A47)-1921)*12+MONTH($A47)+3+IF(ISNUMBER(FIND("PRV",D$6)),1,0)))*IF(AND(D$3>0,TRIM(D$9)="CFS"),Conv_Flags!$C47,1) -> 90.72385406 | E47: =INDIRECT(CONCATENATE("'",E$1,"'!",E$4,(YEAR($A47)-1921)*12+MONTH($A47)+3+IF(ISNUMBER(FIND("PRV",E$6)),1,0)))*IF(AND(E$3>0,TRIM(E$9)="CFS"),Conv_Flags!$C47,1) -> 90.78041077 | F47: =INDIRECT(CONCATENATE("'",F$1,"'!",F$4,(YEAR($A47)-1921)*12+MONTH($A47)+3+IF(ISNUMBER(FIND("PRV",F$6)),1,0)))*IF(AND(F$3>0,TRIM(F$9)="CFS"),Conv_Flags!$C47,1) -> 90.96156311 | J47: 1957 | K47: =B433 -> 80.04846191 | L47: =B434 -> 84.2179718 | M47: =B435 -> 88.15320587 | N47: =B436 -> 85.81942749 | O47: =B437 -> 70.10932159 | P47: =B438 -> 55.53289795 | Q47: =B439 -> 65.92722321 | R47: =B440 -> 69.40561676 | S47: =B441 -> 79.87918854 | T47: =B442 -> 82.13713074 | U47: =B443 -> 86.14801025 | V47: =B444 -> 90.00261688 | X47: 76.08946609 | Y47: 72.45706336 | Z47: 78.11508942 | AB47: 84.55976677 | AC47: 81.36065165 | AD47: 67.68623161 | AE47: 84.5417366 | AF47: 82.29207357 | AH47: 1957 | AI47: ='Compile Data'!C433 -> 80.04408264 | AJ47: ='Compile Data'!C434 -> 84.21318817 | AK47: ='Compile Data'!C435 -> 88.14632416 | AL47: ='Compile Data'!C436 -> 85.78937531 | AM47: ='Compile Data'!C437 -> 70.44758606 | AN47: ='Compile Data'!C438 -> 56.32859421 | AO47: ='Compile Data'!C439 -> 66.14517212 | AP47: ='Compile Data'!C440 -> 69.40354919 | AQ47: ='Compile Data'!C441 -> 79.89363098 | AR47: ='Compile Data'!C442 -> 82.18000793 | AS47: ='Compile Data'!C443 -> 85.81565094 | AT47: ='Compile Data'!C444 -> 88.76751709 | AV47: 76.66212686 | AW47: 73.12021478 | AX47: 78.0978899 | AZ47: 84.54824257 | BA47: 81.46109517 | BB47: 67.94273663 | BC47: 84.16420174 | BD47: 84.49011993 | BF47: 1957 | BG47: ='Compile Data'!D433 -> 79.91984558 | BH47: ='Compile Data'!D434 -> 84.20687103 | BI47: ='Compile Data'!D435 -> 88.14827728 | BJ47: ='Compile Data'!D436 -> 85.81671143 | BK47: ='Compile Data'!D437 -> 70.34755707 | BL47: ='Compile Data'!D438 -> 56.30731201 | BM47: ='Compile Data'!D439 -> 66.14569855 | BN47: ='Compile Data'!D440 -> 69.40375519 | BO47: ='Compile Data'!D441 -> 79.89380646 | BP47: ='Compile Data'!D442 -> 82.18104553 | BQ47: ='Compile Data'!D443 -> 85.78823853 | BR47: ='Compile Data'!D444 -> 89.22917938 | BT47: 76.30798149 | BU47: 72.73260752 | BV47: 78.1156915 | BX47: 84.52292633 | BY47: 81.43751526 | BZ47: 67.93764305 | CA47: 84.27306747 | CB47: 82.08560435 | CD47: 1957 | CE47: ='Compile Data'!E433 -> 79.55434418 | CF47: ='Compile Data'!E434 -> 84.0320282 | CG47: ='Compile Data'!E435 -> 88.12960815 | CH47: ='Compile Data'!E436 -> 85.81354523 | CI47: ='Compile Data'!E437 -> 70.30445099 | CJ47: ='Compile Data'!E438 -> 56.28435135 | CK47: ='Compile Data'!E439 -> 66.141922 | CL47: ='Compile Data'!E440 -> 69.40414429 | CM47: ='Compile Data'!E441 -> 79.89409637 | CN47: ='Compile Data'!E442 -> 82.16725159 | CO47: ='Compile Data'!E443 -> 85.76595306 | CP47: ='Compile Data'!E444 -> 89.16585541 | CR47: 76.71100267 | CS47: 73.09378497 | CT47: 78.0547959 | CV47: 84.38238144 | CW47: 81.41586812 | CX47: 67.9311285 | CY47: 84.24828911 | CZ47: 84.66137187 | DB47: 1957 | DC47: ='Compile Data'!F433 -> 79.55437469 | DD47: ='Compile Data'!F434 -> 84.0319519 | DE47: ='Compile Data'!F435 -> 88.13043976 | DF47: ='Compile Data'!F436 -> 85.8129425 | DG47: ='Compile Data'!F437 -> 70.32086182 | DH47: ='Compile Data'!F438 -> 55.92839813 | DI47: ='Compile Data'!F439 -> 66.04447174 | DJ47: ='Compile Data'!F440 -> 69.39716339 | DK47: ='Compile Data'!F441 -> 79.88075256 | DL47: ='Compile Data'!F442 -> 82.15698242 | DM47: ='Compile Data'!F443 -> 85.77696228 | DN47: ='Compile Data'!F444 -> 89.32829285 | DP47: 76.28773562 | DQ47: 72.67135398 | DR47: 78.0302995 | DT47: 84.38242722 | DU47: 81.42141469 | DV47: 67.81269646 | DW47: 84.28574753 | DX47: 82.30865733
A48: 1924-09-30 | B48: =INDIRECT(CONCATENATE("'",B$1,"'!",B$4,(YEAR($A48)-1921)*12+MONTH($A48)+3+IF(ISNUMBER(FIND("PRV",B$6)),1,0)))*IF(AND(B$3>0,TRIM(B$9)="CFS"),Conv_Flags!$C48,1) -> 93.45515442 | C48: =INDIRECT(CONCATENATE("'",C$1,"'!",C$4,(YEAR($A48)-1921)*12+MONTH($A48)+3+IF(ISNUMBER(FIND("PRV",C$6)),1,0)))*IF(AND(C$3>0,TRIM(C$9)="CFS"),Conv_Flags!$C48,1) -> 91.57067108 | D48: =INDIRECT(CONCATENATE("'",D$1,"'!",D$4,(YEAR($A48)-1921)*12+MONTH($A48)+3+IF(ISNUMBER(FIND("PRV",D$6)),1,0)))*IF(AND(D$3>0,TRIM(D$9)="CFS"),Conv_Flags!$C48,1) -> 91.57710266 | E48: =INDIRECT(CONCATENATE("'",E$1,"'!",E$4,(YEAR($A48)-1921)*12+MONTH($A48)+3+IF(ISNUMBER(FIND("PRV",E$6)),1,0)))*IF(AND(E$3>0,TRIM(E$9)="CFS"),Conv_Flags!$C48,1) -> 91.6618576 | F48: =INDIRECT(CONCATENATE("'",F$1,"'!",F$4,(YEAR($A48)-1921)*12+MONTH($A48)+3+IF(ISNUMBER(FIND("PRV",F$6)),1,0)))*IF(AND(F$3>0,TRIM(F$9)="CFS"),Conv_Flags!$C48,1) -> 92.06061554 | J48: 1958 | K48: =B445 -> 77.49184418 | L48: =B446 -> 79.38175964 | M48: =B447 -> 71.23855591 | N48: =B448 -> 58.33991623 | O48: =B449 -> 54 | P48: =B450 -> 54 | Q48: =B451 -> 54 | R48: =B452 -> 57.49812698 | S48: =B453 -> 68.42935181 | T48: =B454 -> 78.51461792 | U48: =B455 -> 84.14931488 | V48: =B456 -> 79.84021759 | X48: 69.84524473 | Y48: 70.78661283 | Z48: 68.07364209 | AB48: 71.61301899 | AC48: 61.19282405 | AD48: 58.4818697 | AE48: 77.73337555 | AF48: 80.71289062 | AH48: 1958 | AI48: ='Compile Data'!C445 -> 84.68637848 | AJ48: ='Compile Data'!C446 -> 80.01646423 | AK48: ='Compile Data'!C447 -> 70.47159576 | AL48: ='Compile Data'!C448 -> 59.73401642 | AM48: ='Compile Data'!C449 -> 54 | AN48: ='Compile Data'!C450 -> 54 | AO48: ='Compile Data'!C451 -> 54 | AP48: ='Compile Data'!C452 -> 57.29973221 | AQ48: ='Compile Data'!C453 -> 68.85703278 | AR48: ='Compile Data'!C454 -> 78.84580231 | AS48: ='Compile Data'!C455 -> 83.85244751 | AT48: ='Compile Data'!C456 -> 79.15380859 | AV48: 69.85657024 | AW48: 70.80967299 | AX48: 68.74310652 | AZ48: 73.72711372 | BA48: 61.40187073 | BB48: 58.53919125 | BC48: 77.6772728 | BD48: 80.21271006 | BF48: 1958 | BG48: ='Compile Data'!D445 -> 77.51641083 | BH48: ='Compile Data'!D446 -> 79.51122284 | BI48: ='Compile Data'!D447 -> 73.55484009 | BJ48: ='Compile Data'!D448 -> 59.25978088 | BK48: ='Compile Data'!D449 -> 54 | BL48: ='Compile Data'!D450 -> 54 | BM48: ='Compile Data'!D451 -> 54 | BN48: ='Compile Data'!D452 -> 57.30007172 | BO48: ='Compile Data'!D453 -> 68.85965729 | BP48: ='Compile Data'!D454 -> 78.83878326 | BQ48: ='Compile Data'!D455 -> 83.84884644 | BR48: ='Compile Data'!D456 -> 79.16152191 | BT48: 69.81395594 | BU48: 70.80737178 | BV48: 68.32092794 | BX48: 72.46056366 | BY48: 62.27154032 | BZ48: 58.53993225 | CA48: 77.67720222 | CB48: 80.21620178 | CD48: 1958 | CE48: ='Compile Data'!E445 -> 84.79936981 | CF48: ='Compile Data'!E446 -> 80.01889038 | CG48: ='Compile Data'!E447 -> 70.77220154 | CH48: ='Compile Data'!E448 -> 58.71138382 | CI48: ='Compile Data'!E449 -> 54 | CJ48: ='Compile Data'!E450 -> 54 | CK48: ='Compile Data'!E451 -> 54 | CL48: ='Compile Data'!E452 -> 57.49687576 | CM48: ='Compile Data'!E453 -> 68.42650604 | CN48: ='Compile Data'!E454 -> 78.52902222 | CO48: ='Compile Data'!E455 -> 83.79222107 | CP48: ='Compile Data'!E456 -> 79.20614624 | CR48: 69.72534498 | CS48: 70.76351674 | CT48: 68.64605141 | CV48: 73.57546139 | CW48: 61.16119512 | CX48: 58.48084545 | CY48: 77.48847389 | CZ48: 80.24533844 | DB48: 1958 | DC48: ='Compile Data'!F445 -> 77.90996552 | DD48: ='Compile Data'!F446 -> 79.68771362 | DE48: ='Compile Data'!F447 -> 73.20832062 | DF48: ='Compile Data'!F448 -> 58.73722458 | DG48: ='Compile Data'!F449 -> 54 | DH48: ='Compile Data'!F450 -> 54 | DI48: ='Compile Data'!F451 -> 54 | DJ48: ='Compile Data'!F452 -> 57.49683762 | DK48: ='Compile Data'!F453 -> 68.42658997 | DL48: ='Compile Data'!F454 -> 78.53194427 | DM48: ='Compile Data'!F455 -> 83.77742767 | DN48: ='Compile Data'!F456 -> 79.21238708 | DP48: 69.72716586 | DQ48: 70.76336543 | DR48: 68.24903425 | DT48: 72.38580608 | DU48: 61.9818484 | DV48: 58.4808569 | DW48: 77.48708725 | DX48: 80.24794515
A49: 1924-10-31 | B49: =INDIRECT(CONCATENATE("'",B$1,"'!",B$4,(YEAR($A49)-1921)*12+MONTH($A49)+3+IF(ISNUMBER(FIND("PRV",B$6)),1,0)))*IF(AND(B$3>0,TRIM(B$9)="CFS"),Conv_Flags!$C49,1) -> 93.83544922 | C49: =INDIRECT(CONCATENATE("'",C$1,"'!",C$4,(YEAR($A49)-1921)*12+MONTH($A49)+3+IF(ISNUMBER(FIND("PRV",C$6)),1,0)))*IF(AND(C$3>0,TRIM(C$9)="CFS"),Conv_Flags!$C49,1) -> 93.38535309 | D49: =INDIRECT(CONCATENATE("'",D$1,"'!",D$4,(YEAR($A49)-1921)*12+MONTH($A49)+3+IF(ISNUMBER(FIND("PRV",D$6)),1,0)))*IF(AND(D$3>0,TRIM(D$9)="CFS"),Conv_Flags!$C49,1) -> 93.3706665 | E49: =INDIRECT(CONCATENATE("'",E$1,"'!",E$4,(YEAR($A49)-1921)*12+MONTH($A49)+3+IF(ISNUMBER(FIND("PRV",E$6)),1,0)))*IF(AND(E$3>0,TRIM(E$9)="CFS"),Conv_Flags!$C49,1) -> 93.23855591 | F49: =INDIRECT(CONCATENATE("'",F$1,"'!",F$4,(YEAR($A49)-1921)*12+MONTH($A49)+3+IF(ISNUMBER(FIND("PRV",F$6)),1,0)))*IF(AND(F$3>0,TRIM(F$9)="CFS"),Conv_Flags!$C49,1) -> 92.85369873 | J49: 1959 | K49: =B457 -> 78.79478455 | L49: =B458 -> 83.50366974 | M49: =B459 -> 87.07293701 | N49: =B460 -> 69.08434296 | O49: =B461 -> 54.55199051 | P49: =B462 -> 63.92768478 | Q49: =B463 -> 75.7434082 | R49: =B464 -> 81.12765503 | S49: =B465 -> 84.08401489 | T49: =B466 -> 81.83242798 | U49: =B467 -> 84.44141388 | V49: =B468 -> 89.65769196 | X49: 80.07489332 | Y49: 82.54047807 | Z49: 77.81850179 | AB49: 79.61393356 | AC49: 70.23642349 | AD49: 76.22069073 | AE49: 85.00388718 | AF49: 91.33559672 | AH49: 1959 | AI49: ='Compile Data'!C457 -> 78.16316223 | AJ49: ='Compile Data'!C458 -> 83.32115936 | AK49: ='Compile Data'!C459 -> 87.05168152 | AL49: ='Compile Data'!C460 -> 70.47558594 | AM49: ='Compile Data'!C461 -> 54.69566345 | AN49: ='Compile Data'!C462 -> 63.92901993 | AO49: ='Compile Data'!C463 -> 75.74217224 | AP49: ='Compile Data'!C464 -> 81.1275177 | AQ49: ='Compile Data'!C465 -> 84.23096466 | AR49: ='Compile Data'!C466 -> 81.61591339 | AS49: ='Compile Data'!C467 -> 83.94046783 | AT49: ='Compile Data'!C468 -> 88.81804657 | AV49: 79.81066418 | AW49: 82.25695133 | AX49: 77.75927957 | AZ49: 79.75289726 | BA49: 70.74097697 | BB49: 76.25741863 | BC49: 84.65134811 | BD49: 89.9810435 | BF49: 1959 | BG49: ='Compile Data'!D457 -> 78.1652832 | BH49: ='Compile Data'!D458 -> 83.32180023 | BI49: ='Compile Data'!D459 -> 87.01172638 | BJ49: ='Compile Data'!D460 -> 70.47674561 | BK49: ='Compile Data'!D461 -> 54.70402527 | BL49: ='Compile Data'!D462 -> 63.93618011 | BM49: ='Compile Data'!D463 -> 75.74187469 | BN49: ='Compile Data'!D464 -> 81.12550354 | BO49: ='Compile Data'!D465 -> 84.23993683 | BP49: ='Compile Data'!D466 -> 81.47719574 | BQ49: ='Compile Data'!D467 -> 83.79445648 | BR49: ='Compile Data'!D468 -> 88.84307861 | BT49: 79.81929906 | BU49: 82.27702649 | BV49: 77.73648389 | BX49: 79.74388885 | BY49: 70.73083242 | BZ49: 76.26087379 | CA49: 84.58866692 | CB49: 90.07450867 | CD49: 1959 | CE49: ='Compile Data'!E457 -> 78.21092224 | CF49: ='Compile Data'!E458 -> 83.31894684 | CG49: ='Compile Data'!E459 -> 87.01211548 | CH49: ='Compile Data'!E460 -> 70.47357178 | CI49: ='Compile Data'!E461 -> 54.69587326 | CJ49: ='Compile Data'!E462 -> 63.92974854 | CK49: ='Compile Data'!E463 -> 75.75112915 | CL49: ='Compile Data'!E464 -> 81.13185883 | CM49: ='Compile Data'!E465 -> 84.0844574 | CN49: ='Compile Data'!E466 -> 81.61091614 | CO49: ='Compile Data'!E467 -> 83.88175201 | CP49: ='Compile Data'!E468 -> 88.87847137 | CR49: 79.84515667 | CS49: 82.30245972 | CT49: 77.74831359 | CV49: 79.75388908 | CW49: 70.72718684 | CX49: 76.22429848 | CY49: 84.61389923 | CZ49: 90.14060974 | DB49: 1959 | DC49: ='Compile Data'!F457 -> 78.21245575 | DD49: ='Compile Data'!F458 -> 83.31899261 | DE49: ='Compile Data'!F459 -> 87.01213074 | DF49: ='Compile Data'!F460 -> 70.47212982 | DG49: ='Compile Data'!F461 -> 54.69948959 | DH49: ='Compile Data'!F462 -> 63.93278503 | DI49: ='Compile Data'!F463 -> 75.75019836 | DJ49: ='Compile Data'!F464 -> 81.13033295 | DK49: ='Compile Data'!F465 -> 84.08496857 | DL49: ='Compile Data'!F466 -> 81.61037445 | DM49: ='Compile Data'!F467 -> 83.90340424 | DN49: ='Compile Data'!F468 -> 88.90365601 | DP49: 79.86028449 | DQ49: 82.31818072 | DR49: 77.75257651 | DT49: 79.75392723 | DU49: 70.72791672 | DV49: 76.22457123 | DW49: 84.62560081 | DX49: 90.17726135
A50: 1924-11-30 | B50: =INDIRECT(CONCATENATE("'",B$1,"'!",B$4,(YEAR($A50)-1921)*12+MONTH($A50)+3+IF(ISNUMBER(FIND("PRV",B$6)),1,0)))*IF(AND(B$3>0,TRIM(B$9)="CFS"),Conv_Flags!$C50,1) -> 93.83898926 | C50: =INDIRECT(CONCATENATE("'",C$1,"'!",C$4,(YEAR($A50)-1921)*12+MONTH($A50)+3+IF(ISNUMBER(FIND("PRV",C$6)),1,0)))*IF(AND(C$3>0,TRIM(C$9)="CFS"),Conv_Flags!$C50,1) -> 93.74147797 | D50: =INDIRECT(CONCATENATE("'",D$1,"'!",D$4,(YEAR($A50)-1921)*12+MONTH($A50)+3+IF(ISNUMBER(FIND("PRV",D$6)),1,0)))*IF(AND(D$3>0,TRIM(D$9)="CFS"),Conv_Flags!$C50,1) -> 93.71954346 | E50: =INDIRECT(CONCATENATE("'",E$1,"'!",E$4,(YEAR($A50)-1921)*12+MONTH($A50)+3+IF(ISNUMBER(FIND("PRV",E$6)),1,0)))*IF(AND(E$3>0,TRIM(E$9)="CFS"),Conv_Flags!$C50,1) -> 93.61920166 | F50: =INDIRECT(CONCATENATE("'",F$1,"'!",F$4,(YEAR($A50)-1921)*12+MONTH($A50)+3+IF(ISNUMBER(FIND("PRV",F$6)),1,0)))*IF(AND(F$3>0,TRIM(F$9)="CFS"),Conv_Flags!$C50,1) -> 93.35310364 | J50: 1960 | K50: =B469 -> 92.37679291 | L50: =B470 -> 91.9723053 | M50: =B471 -> 92.09899139 | N50: =B472 -> 87.18983459 | O50: =B473 -> 66.03351593 | P50: =B474 -> 63.1639061 | Q50: =B475 -> 68.26335144 | R50: =B476 -> 78.45806122 | S50: =B477 -> 84.04811096 | T50: =B478 -> 84.78488922 | U50: =B479 -> 89.61843872 | V50: =B480 -> 92.82063293 | X50: 81.43080807 | Y50: 80.37451204 | Z50: 82.56906923 | AB50: 90.90948105 | AC50: 81.77411397 | AD50: 73.48335743 | AE50: 87.81801796 | AF50: 92.36165873 | AH50: 1960 | AI50: ='Compile Data'!C469 -> 90.90641022 | AJ50: ='Compile Data'!C470 -> 90.21867371 | AK50: ='Compile Data'!C471 -> 92.02753448 | AL50: ='Compile Data'!C472 -> 87.4977951 | AM50: ='Compile Data'!C473 -> 67.02890015 | AN50: ='Compile Data'!C474 -> 63.08507538 | AO50: ='Compile Data'!C475 -> 68.39054108 | AP50: ='Compile Data'!C476 -> 78.52601624 | AQ50: ='Compile Data'!C477 -> 84.00827026 | AR50: ='Compile Data'!C478 -> 84.81717682 | AS50: ='Compile Data'!C479 -> 88.62046814 | AT50: ='Compile Data'!C480 -> 91.49693298 | AV50: 81.35165977 | AW50: 80.38209756 | AX50: 82.21864955 | AZ50: 90.16260338 | BA50: 82.18474325 | BB50: 73.50247574 | BC50: 87.23571205 | BD50: 91.194369 | BF50: 1960 | BG50: ='Compile Data'!D469 -> 90.69417572 | BH50: ='Compile Data'!D470 -> 90.68627167 | BI50: ='Compile Data'!D471 -> 92.11214447 | BJ50: ='Compile Data'!D472 -> 87.55153656 | BK50: ='Compile Data'!D473 -> 67.1219635 | BL50: ='Compile Data'!D474 -> 62.95105743 | BM50: ='Compile Data'!D475 -> 68.33826447 | BN50: ='Compile Data'!D476 -> 78.55195618 | BO50: ='Compile Data'!D477 -> 84.02827454 | BP50: ='Compile Data'!D478 -> 84.83238983 | BQ50: ='Compile Data'!D479 -> 88.63977814 | BR50: ='Compile Data'!D480 -> 91.46955872 | BT50: 81.06597392 | BU50: 80.0527153 | BV50: 82.24811427 | BX50: 90.2610321 | BY50: 82.26188151 | BZ50: 73.46738815 | CA50: 87.24250031 | CB50: 90.58248138 | CD50: 1960 | CE50: ='Compile Data'!E469 -> 90.85692596 | CF50: ='Compile Data'!E470 -> 90.68643188 | CG50: ='Compile Data'!E471 -> 92.16074371 | CH50: ='Compile Data'!E472 -> 87.54853058 | CI50: ='Compile Data'!E473 -> 67.10855103 | CJ50: ='Compile Data'!E474 -> 63.87583542 | CK50: ='Compile Data'!E475 -> 68.20256042 | CL50: ='Compile Data'!E476 -> 78.37922668 | CM50: ='Compile Data'!E477 -> 84.06563568 | CN50: ='Compile Data'!E478 -> 84.80472565 | CO50: ='Compile Data'!E479 -> 88.59955597 | CP50: ='Compile Data'!E480 -> 91.63925934 | CR50: 81.50134945 | CS50: 80.56405894 | CT50: 82.32733186 | CV50: 90.31315804 | CW50: 82.27260844 | CX50: 73.63081455 | CY50: 87.27729416 | CZ50: 91.37787374 | DB50: 1960 | DC50: ='Compile Data'!F469 -> 90.86113739 | DD50: ='Compile Data'!F470 -> 90.76699066 | DE50: ='Compile Data'!F471 -> 92.20794678 | DF50: ='Compile Data'!F472 -> 87.54271698 | DG50: ='Compile Data'!F473 -> 67.12365723 | DH50: ='Compile Data'!F474 -> 64.16418457 | DI50: ='Compile Data'!F475 -> 68.08075714 | DJ50: ='Compile Data'!F476 -> 78.292099 | DK50: ='Compile Data'!F477 -> 84.07561493 | DL50: ='Compile Data'!F478 -> 84.78917694 | DM50: ='Compile Data'!F479 -> 88.58781433 | DN50: ='Compile Data'!F480 -> 91.64244843 | DP50: 81.51301257 | DQ50: 80.57940229 | DR50: 82.34454536 | DT50: 90.34469795 | DU50: 82.29144033 | DV50: 73.65316391 | DW50: 87.27376366 | DX50: 91.37854513
A51: 1924-12-31 | B51: =INDIRECT(CONCATENATE("'",B$1,"'!",B$4,(YEAR($A51)-1921)*12+MONTH($A51)+3+IF(ISNUMBER(FIND("PRV",B$6)),1,0)))*IF(AND(B$3>0,TRIM(B$9)="CFS"),Conv_Flags!$C51,1) -> 86.89602661 | C51: =INDIRECT(CONCATENATE("'",C$1,"'!",C$4,(YEAR($A51)-1921)*12+MONTH($A51)+3+IF(ISNUMBER(FIND("PRV",C$6)),1,0)))*IF(AND(C$3>0,TRIM(C$9)="CFS"),Conv_Flags!$C51,1) -> 86.80229187 | D51: =INDIRECT(CONCATENATE("'",D$1,"'!",D$4,(YEAR($A51)-1921)*12+MONTH($A51)+3+IF(ISNUMBER(FIND("PRV",D$6)),1,0)))*IF(AND(D$3>0,TRIM(D$9)="CFS"),Conv_Flags!$C51,1) -> 86.80023193 | E51: =INDIRECT(CONCATENATE("'",E$1,"'!",E$4,(YEAR($A51)-1921)*12+MONTH($A51)+3+IF(ISNUMBER(FIND("PRV",E$6)),1,0)))*IF(AND(E$3>0,TRIM(E$9)="CFS"),Conv_Flags!$C51,1) -> 86.60567474 | F51: =INDIRECT(CONCATENATE("'",F$1,"'!",F$4,(YEAR($A51)-1921)*12+MONTH($A51)+3+IF(ISNUMBER(FIND("PRV",F$6)),1,0)))*IF(AND(F$3>0,TRIM(F$9)="CFS"),Conv_Flags!$C51,1) -> 86.8290863 | J51: 1961 | K51: =B481 -> 92.98499298 | L51: =B482 -> 91.27935028 | M51: =B483 -> 78.52461243 | N51: =B484 -> 78.3215332 | O51: =B485 -> 62.22626495 | P51: =B486 -> 64.30636597 | Q51: =B487 -> 73.54984283 | R51: =B488 -> 81.17481995 | S51: =B489 -> 83.18362427 | T51: =B490 -> 86.40460968 | U51: =B491 -> 90.47814941 | V51: =B492 -> 92.43729401 | X51: 81.66198349 | Y51: 81.64805381 | Z51: 81.23928833 | AB51: 85.27762222 | AC51: 73.02413686 | AD51: 75.55366325 | AE51: 88.12591934 | AF51: 92.68877157 | AH51: 1961 | AI51: ='Compile Data'!C481 -> 91.00874329 | AJ51: ='Compile Data'!C482 -> 91.07743073 | AK51: ='Compile Data'!C483 -> 80.66256714 | AL51: ='Compile Data'!C484 -> 79.29114532 | AM51: ='Compile Data'!C485 -> 63.60080338 | AN51: ='Compile Data'!C486 -> 64.61618805 | AO51: ='Compile Data'!C487 -> 73.55579376 | AP51: ='Compile Data'!C488 -> 80.97106171 | AQ51: ='Compile Data'!C489 -> 83.05652618 | AR51: ='Compile Data'!C490 -> 85.73805237 | AS51: ='Compile Data'!C491 -> 89.77236176 | AT51: ='Compile Data'!C492 -> 91.3380127 | AV51: 81.23122311 | AW51: 80.97525406 | AX51: 81.2240572 | AZ51: 85.50997162 | BA51: 74.51817195 | BB51: 75.54989243 | BC51: 87.47623825 | BD51: 91.03969574 | BF51: 1961 | BG51: ='Compile Data'!D481 -> 90.89179993 | BH51: ='Compile Data'!D482 -> 89.38608551 | BI51: ='Compile Data'!D483 -> 79.02902222 | BJ51: ='Compile Data'!D484 -> 78.96765137 | BK51: ='Compile Data'!D485 -> 63.5467453 | BL51: ='Compile Data'!D486 -> 64.61474609 | BM51: ='Compile Data'!D487 -> 73.55701447 | BN51: ='Compile Data'!D488 -> 80.96975708 | BO51: ='Compile Data'!D489 -> 83.07074738 | BP51: ='Compile Data'!D490 -> 85.54842377 | BQ51: ='Compile Data'!D491 -> 89.81438446 | BR51: ='Compile Data'!D492 -> 91.46403503 | BT51: 81.23483404 | BU51: 81.00672881 | BV51: 80.90503438 | BX51: 84.56863976 | BY51: 73.84780629 | BZ51: 75.55306625 | CA51: 87.47439766 | CB51: 91.22154236 | CD51: 1961 | CE51: ='Compile Data'!E481 -> 91.41344452 | CF51: ='Compile Data'!E482 -> 91.08091736 | CG51: ='Compile Data'!E483 -> 81.29795074 | CH51: ='Compile Data'!E484 -> 79.74362183 | CI51: ='Compile Data'!E485 -> 63.66597366 | CJ51: ='Compile Data'!E486 -> 64.62322235 | CK51: ='Compile Data'!E487 -> 73.56063843 | CL51: ='Compile Data'!E488 -> 80.97107697 | CM51: ='Compile Data'!E489 -> 83.0613327 | CN51: ='Compile Data'!E490 -> 85.68148804 | CO51: ='Compile Data'!E491 -> 89.78932953 | CP51: ='Compile Data'!E492 -> 91.40581512 | CR51: 81.3229812 | CS51: 81.02101994 | CT51: 81.35790094 | CV51: 85.88398361 | CW51: 74.90251541 | CX51: 75.55406761 | CY51: 87.48449135 | CZ51: 91.26937358 | DB51: 1961 | DC51: ='Compile Data'!F481 -> 91.41452789 | DD51: ='Compile Data'!F482 -> 91.07865906 | DE51: ='Compile Data'!F483 -> 81.36449432 | DF51: ='Compile Data'!F484 -> 79.78998566 | DG51: ='Compile Data'!F485 -> 63.67306519 | DH51: ='Compile Data'!F486 -> 64.62386322 | DI51: ='Compile Data'!F487 -> 73.56100464 | DJ51: ='Compile Data'!F488 -> 80.97094727 | DK51: ='Compile Data'!F489 -> 83.06093597 | DL51: ='Compile Data'!F490 -> 85.68241882 | DM51: ='Compile Data'!F491 -> 89.78749084 | DN51: ='Compile Data'!F492 -> 91.40648651 | DP51: 81.34648895 | DQ51: 81.05348365 | DR51: 81.36782328 | DT51: 85.91191673 | DU51: 74.94251506 | DV51: 75.55418777 | DW51: 87.48433304 | DX51: 91.27552541
A52: 1925-01-31 | B52: =INDIRECT(CONCATENATE("'",B$1,"'!",B$4,(YEAR($A52)-1921)*12+MONTH($A52)+3+IF(ISNUMBER(FIND("PRV",B$6)),1,0)))*IF(AND(B$3>0,TRIM(B$9)="CFS"),Conv_Flags!$C52,1) -> 84.175354 | C52: =INDIRECT(CONCATENATE("'",C$1,"'!",C$4,(YEAR($A52)-1921)*12+MONTH($A52)+3+IF(ISNUMBER(FIND("PRV",C$6)),1,0)))*IF(AND(C$3>0,TRIM(C$9)="CFS"),Conv_Flags!$C52,1) -> 84.07061005 | D52: =INDIRECT(CONCATENATE("'",D$1,"'!",D$4,(YEAR($A52)-1921)*12+MONTH($A52)+3+IF(ISNUMBER(FIND("PRV",D$6)),1,0)))*IF(AND(D$3>0,TRIM(D$9)="CFS"),Conv_Flags!$C52,1) -> 84.06627655 | E52: =INDIRECT(CONCATENATE("'",E$1,"'!",E$4,(YEAR($A52)-1921)*12+MONTH($A52)+3+IF(ISNUMBER(FIND("PRV",E$6)),1,0)))*IF(AND(E$3>0,TRIM(E$9)="CFS"),Conv_Flags!$C52,1) -> 83.9352951 | F52: =INDIRECT(CONCATENATE("'",F$1,"'!",F$4,(YEAR($A52)-1921)*12+MONTH($A52)+3+IF(ISNUMBER(FIND("PRV",F$6)),1,0)))*IF(AND(F$3>0,TRIM(F$9)="CFS"),Conv_Flags!$C52,1) -> 84.13132477 | J52: 1962 | K52: =B493 -> 92.87574005 | L52: =B494 -> 92.75328064 | M52: =B495 -> 82.23227692 | N52: =B496 -> 82.91200256 | O52: =B497 -> 57.46863937 | P52: =B498 -> 59.9274025 | Q52: =B499 -> 67.82171631 | R52: =B500 -> 73.1537323 | S52: =B501 -> 81.75702667 | T52: =B502 -> 82.07035828 | U52: =B503 -> 86.66689301 | V52: =B504 -> 92.21045685 | X52: 75.19483248 | Y52: 73.81398773 | Z52: 79.32079379 | AB52: 87.69332504 | AC52: 74.20430628 | AD52: 70.66496944 | AE52: 85.6761837 | AF52: 80.76242574 | AH52: 1962 | AI52: ='Compile Data'!C493 -> 91.09894562 | AJ52: ='Compile Data'!C494 -> 90.68212891 | AK52: ='Compile Data'!C495 -> 81.05365753 | AL52: ='Compile Data'!C496 -> 82.17955017 | AM52: ='Compile Data'!C497 -> 57.64076996 | AN52: ='Compile Data'!C498 -> 60.54369354 | AO52: ='Compile Data'!C499 -> 68.08035278 | AP52: ='Compile Data'!C500 -> 73.00376129 | AQ52: ='Compile Data'!C501 -> 81.67905426 | AR52: ='Compile Data'!C502 -> 82.03981018 | AS52: ='Compile Data'!C503 -> 86.53282166 | AT52: ='Compile Data'!C504 -> 91.48303986 | AV52: 75.25613276 | AW52: 73.96765391 | AX52: 78.83479881 | AZ52: 86.25357056 | BA52: 73.62465922 | BB52: 70.82671547 | BC52: 85.43368149 | BD52: 80.47791036 | BF52: 1962 | BG52: ='Compile Data'!D493 -> 90.90513611 | BH52: ='Compile Data'!D494 -> 91.29545593 | BI52: ='Compile Data'!D495 -> 81.06391144 | BJ52: ='Compile Data'!D496 -> 82.23376465 | BK52: ='Compile Data'!D497 -> 57.54336929 | BL52: ='Compile Data'!D498 -> 60.51859283 | BM52: ='Compile Data'!D499 -> 68.06754303 | BN52: ='Compile Data'!D500 -> 73.16133118 | BO52: ='Compile Data'!D501 -> 81.74239349 | BP52: ='Compile Data'!D502 -> 82.38443756 | BQ52: ='Compile Data'!D503 -> 86.69940948 | BR52: ='Compile Data'!D504 -> 91.40952301 | BT52: 75.26607482 | BU52: 73.98001893 | BV52: 78.918739 | BX52: 86.37456703 | BY52: 73.61368179 | BZ52: 70.87246513 | CA52: 85.55894089 | CB52: 80.30653636 | CD52: 1962 | CE52: ='Compile Data'!E493 -> 91.20794678 | CF52: ='Compile Data'!E494 -> 91.19435883 | CG52: ='Compile Data'!E495 -> 80.97097015 | CH52: ='Compile Data'!E496 -> 82.17215729 | CI52: ='Compile Data'!E497 -> 57.61390305 | CJ52: ='Compile Data'!E498 -> 60.53892517 | CK52: ='Compile Data'!E499 -> 68.06440735 | CL52: ='Compile Data'!E500 -> 73.16225433 | CM52: ='Compile Data'!E501 -> 81.74262238 | CN52: ='Compile Data'!E502 -> 82.41679382 | CO52: ='Compile Data'!E503 -> 86.73069 | CP52: ='Compile Data'!E504 -> 91.45261383 | CR52: 75.30489254 | CS52: 74.01865927 | CT52: 78.93897025 | CV52: 86.38635826 | CW52: 73.58567683 | CX52: 70.87705231 | CY52: 85.58568001 | CZ52: 80.42775726 | DB52: 1962 | DC52: ='Compile Data'!F493 -> 91.20104218 | DD52: ='Compile Data'!F494 -> 91.21904755 | DE52: ='Compile Data'!F495 -> 81.18157959 | DF52: ='Compile Data'!F496 -> 82.3176651 | DG52: ='Compile Data'!F497 -> 57.62932205 | DH52: ='Compile Data'!F498 -> 60.53963852 | DI52: ='Compile Data'!F499 -> 68.06715393 | DJ52: ='Compile Data'!F500 -> 73.16429901 | DK52: ='Compile Data'!F501 -> 81.74295044 | DL52: ='Compile Data'!F502 -> 82.41564178 | DM52: ='Compile Data'!F503 -> 86.70223236 | DN52: ='Compile Data'!F504 -> 91.42965698 | DP52: 75.31487656 | DQ52: 74.01523558 | DR52: 78.96751912 | DT52: 86.4798336 | DU52: 73.70952225 | DV52: 70.87851048 | DW52: 85.57262039 | DX52: 80.42185211
A53: 1925-02-28 | B53: =INDIRECT(CONCATENATE("'",B$1,"'!",B$4,(YEAR($A53)-1921)*12+MONTH($A53)+3+IF(ISNUMBER(FIND("PRV",B$6)),1,0)))*IF(AND(B$3>0,TRIM(B$9)="CFS"),Conv_Flags!$C53,1) -> 56.44813538 | C53: =INDIRECT(CONCATENATE("'",C$1,"'!",C$4,(YEAR($A53)-1921)*12+MONTH($A53)+3+IF(ISNUMBER(FIND("PRV",C$6)),1,0)))*IF(AND(C$3>0,TRIM(C$9)="CFS"),Conv_Flags!$C53,1) -> 56.56201172 | D53: =INDIRECT(CONCATENATE("'",D$1,"'!",D$4,(YEAR($A53)-1921)*12+MONTH($A53)+3+IF(ISNUMBER(FIND("PRV",D$6)),1,0)))*IF(AND(D$3>0,TRIM(D$9)="CFS"),Conv_Flags!$C53,1) -> 56.57205582 | E53: =INDIRECT(CONCATENATE("'",E$1,"'!",E$4,(YEAR($A53)-1921)*12+MONTH($A53)+3+IF(ISNUMBER(FIND("PRV",E$6)),1,0)))*IF(AND(E$3>0,TRIM(E$9)="CFS"),Conv_Flags!$C53,1) -> 56.57234573 | F53: =INDIRECT(CONCATENATE("'",F$1,"'!",F$4,(YEAR($A53)-1921)*12+MONTH($A53)+3+IF(ISNUMBER(FIND("PRV",F$6)),1,0)))*IF(AND(F$3>0,TRIM(F$9)="CFS"),Conv_Flags!$C53,1) -> 56.58979034 | J53: 1963 | K53: =B505 -> 72.25660706 | L53: =B506 -> 77.82021332 | M53: =B507 -> 68.27294159 | N53: =B508 -> 68.84941864 | O53: =B509 -> 54.96108627 | P53: =B510 -> 58.47286987 | Q53: =B511 -> 54.09612274 | R53: =B512 -> 61.31654358 | S53: =B513 -> 73.501091 | T53: =B514 -> 76.24079895 | U53: =B515 -> 82.32783508 | V53: =B516 -> 81.41243744 | X53: 70.57657464 | Y53: 71.73589389 | Z53: 69.12733046 | AB53: 71.79979515 | AC53: 64.0278155 | AD53: 61.8466568 | AE53: 78.37054062 | AF53: 78.77857971 | AH53: 1963 | AI53: ='Compile Data'!C505 -> 72.2530899 | AJ53: ='Compile Data'!C506 -> 77.69760132 | AK53: ='Compile Data'!C507 -> 69.94004822 | AL53: ='Compile Data'!C508 -> 69.33080292 | AM53: ='Compile Data'!C509 -> 55.027771 | AN53: ='Compile Data'!C510 -> 58.88615799 | AO53: ='Compile Data'!C511 -> 54.12573624 | AP53: ='Compile Data'!C512 -> 61.39077759 | AQ53: ='Compile Data'!C513 -> 73.52398682 | AR53: ='Compile Data'!C514 -> 76.33242798 | AS53: ='Compile Data'!C515 -> 82.0676651 | AT53: ='Compile Data'!C516 -> 80.93915558 | AV53: 70.58109856 | AW53: 71.70110512 | AX53: 69.29293505 | AZ53: 72.30538559 | BA53: 64.76620738 | BB53: 61.98166466 | BC53: 78.21580887 | BD53: 78.48700968 | BF53: 1963 | BG53: ='Compile Data'!D505 -> 71.96453857 | BH53: ='Compile Data'!D506 -> 77.54554749 | BI53: ='Compile Data'!D507 -> 69.9224472 | BJ53: ='Compile Data'!D508 -> 69.33764648 | BK53: ='Compile Data'!D509 -> 55.00681686 | BL53: ='Compile Data'!D510 -> 58.88243484 | BM53: ='Compile Data'!D511 -> 54.12623215 | BN53: ='Compile Data'!D512 -> 61.39276505 | BO53: ='Compile Data'!D513 -> 73.52539062 | BP53: ='Compile Data'!D514 -> 76.33328247 | BQ53: ='Compile Data'!D515 -> 82.06884766 | BR53: ='Compile Data'!D516 -> 80.94537354 | BT53: 70.57037036 | BU53: 71.68946234 | BV53: 69.25427691 | BX53: 72.19254494 | BY53: 64.75563685 | BZ53: 61.98170567 | CA53: 78.21822357 | CB53: 78.44332123 | CD53: 1963 | CE53: ='Compile Data'!E505 -> 72.20231628 | CF53: ='Compile Data'!E506 -> 77.62834167 | CG53: ='Compile Data'!E507 -> 69.9336853 | CH53: ='Compile Data'!E508 -> 69.34380341 | CI53: ='Compile Data'!E509 -> 55.00745773 | CJ53: ='Compile Data'!E510 -> 58.88271332 | CK53: ='Compile Data'!E511 -> 54.12626266 | CL53: ='Compile Data'!E512 -> 61.32965851 | CM53: ='Compile Data'!E513 -> 73.47963715 | CN53: ='Compile Data'!E514 -> 76.33747101 | CO53: ='Compile Data'!E515 -> 82.07225037 | CP53: ='Compile Data'!E516 -> 80.94873047 | CR53: 70.58031019 | CS53: 71.69559447 | CT53: 69.27436066 | CV53: 72.27703667 | CW53: 64.76164881 | CX53: 61.95456791 | CY53: 78.20952225 | CZ53: 78.49934896 | DB53: 1963 | DC53: ='Compile Data'!F505 -> 72.20513916 | DD53: ='Compile Data'!F506 -> 77.63076019 | DE53: ='Compile Data'!F507 -> 69.93405914 | DF53: ='Compile Data'!F508 -> 69.34378052 | DG53: ='Compile Data'!F509 -> 55.00751495 | DH53: ='Compile Data'!F510 -> 58.8826561 | DI53: ='Compile Data'!F511 -> 54.12625885 | DJ53: ='Compile Data'!F512 -> 61.32971954 | DK53: ='Compile Data'!F513 -> 73.4796524 | DL53: ='Compile Data'!F514 -> 76.33740234 | DM53: ='Compile Data'!F515 -> 82.07209778 | DN53: ='Compile Data'!F516 -> 80.94835663 | DP53: 70.57975674 | DQ53: 71.69499747 | DR53: 69.27478313 | DT53: 72.27843475 | DU53: 64.76178487 | DV53: 61.95457172 | DW53: 78.20937729 | DX53: 78.49800364
A54: 1925-03-31 | B54: =INDIRECT(CONCATENATE("'",B$1,"'!",B$4,(YEAR($A54)-1921)*12+MONTH($A54)+3+IF(ISNUMBER(FIND("PRV",B$6)),1,0)))*IF(AND(B$3>0,TRIM(B$9)="CFS"),Conv_Flags!$C54,1) -> 63.88208771 | C54: =INDIRECT(CONCATENATE("'",C$1,"'!",C$4,(YEAR($A54)-1921)*12+MONTH($A54)+3+IF(ISNUMBER(FIND("PRV",C$6)),1,0)))*IF(AND(C$3>0,TRIM(C$9)="CFS"),Conv_Flags!$C54,1) -> 63.90963745 | D54: =INDIRECT(CONCATENATE("'",D$1,"'!",D$4,(YEAR($A54)-1921)*12+MONTH($A54)+3+IF(ISNUMBER(FIND("PRV",D$6)),1,0)))*IF(AND(D$3>0,TRIM(D$9)="CFS"),Conv_Flags!$C54,1) -> 63.91022491 | E54: =INDIRECT(CONCATENATE("'",E$1,"'!",E$4,(YEAR($A54)-1921)*12+MONTH($A54)+3+IF(ISNUMBER(FIND("PRV",E$6)),1,0)))*IF(AND(E$3>0,TRIM(E$9)="CFS"),Conv_Flags!$C54,1) -> 63.91189194 | F54: =INDIRECT(CONCATENATE("'",F$1,"'!",F$4,(YEAR($A54)-1921)*12+MONTH($A54)+3+IF(ISNUMBER(FIND("PRV",F$6)),1,0)))*IF(AND(F$3>0,TRIM(F$9)="CFS"),Conv_Flags!$C54,1) -> 63.91220474 | J54: 1964 | K54: =B517 -> 80.54829407 | L54: =B518 -> 74.37500763 | M54: =B519 -> 80.81739044 | N54: =B520 -> 68.37666321 | O54: =B521 -> 69.34567261 | P54: =B522 -> 76.94432068 | Q54: =B523 -> 81.07449341 | R54: =B524 -> 80.7910614 | S54: =B525 -> 82.71320343 | T54: =B526 -> 86.03811646 | U54: =B527 -> 90.70290375 | V54: =B528 -> 92.71157074 | X54: 80.27831268 | Y54: 77.94909445 | Z54: 80.36989148 | AB54: 76.02933884 | AC54: 72.84657542 | AD54: 80.38076973 | AE54: 88.04144859 | AF54: 90.43812561 | AH54: 1964 | AI54: ='Compile Data'!C517 -> 80.18584442 | AJ54: ='Compile Data'!C518 -> 74.33602905 | AK54: ='Compile Data'!C519 -> 80.826828 | AL54: ='Compile Data'!C520 -> 68.43186188 | AM54: ='Compile Data'!C521 -> 69.36679077 | AN54: ='Compile Data'!C522 -> 76.94683838 | AO54: ='Compile Data'!C523 -> 81.07311249 | AP54: ='Compile Data'!C524 -> 80.7904892 | AQ54: ='Compile Data'!C525 -> 82.74337769 | AR54: ='Compile Data'!C526 -> 85.49891663 | AS54: ='Compile Data'!C527 -> 90.21670532 | AT54: ='Compile Data'!C528 -> 91.92106628 | AV54: 80.1526645 | AW54: 77.82536761 | AX54: 80.19482168 | AZ54: 75.94514084 | BA54: 72.87516022 | BB54: 80.38845444 | BC54: 87.59501648 | BD54: 90.17590841 | BF54: 1964 | BG54: ='Compile Data'!D517 -> 80.05211639 | BH54: ='Compile Data'!D518 -> 74.33247375 | BI54: ='Compile Data'!D519 -> 80.84106445 | BJ54: ='Compile Data'!D520 -> 68.41301727 | BK54: ='Compile Data'!D521 -> 69.36054993 | BL54: ='Compile Data'!D522 -> 76.94644165 | BM54: ='Compile Data'!D523 -> 81.07440186 | BN54: ='Compile Data'!D524 -> 80.79154968 | BO54: ='Compile Data'!D525 -> 82.73943329 | BP54: ='Compile Data'!D526 -> 85.56416321 | BQ54: ='Compile Data'!D527 -> 90.16687775 | BR54: ='Compile Data'!D528 -> 92.00611877 | BT54: 80.00110118 | BU54: 77.67594242 | BV54: 80.190684 | BX54: 75.90966797 | BY54: 72.87154388 | BZ54: 80.38795662 | CA54: 87.61914825 | CB54: 89.65666199 | CD54: 1964 | CE54: ='Compile Data'!E517 -> 80.11565399 | CF54: ='Compile Data'!E518 -> 74.43366241 | CG54: ='Compile Data'!E519 -> 80.8864212 | CH54: ='Compile Data'!E520 -> 68.38619232 | CI54: ='Compile Data'!E521 -> 69.34848022 | CJ54: ='Compile Data'!E522 -> 76.94499969 | CK54: ='Compile Data'!E523 -> 81.07526398 | CL54: ='Compile Data'!E524 -> 80.79145813 | CM54: ='Compile Data'!E525 -> 82.73854065 | CN54: ='Compile Data'!E526 -> 85.5711441 | CO54: ='Compile Data'!E527 -> 90.16643524 | CP54: ='Compile Data'!E528 -> 92.00183868 | CR54: 79.99922371 | CS54: 77.67740854 | CT54: 80.20500755 | CV54: 75.95548248 | CW54: 72.87369792 | CX54: 80.38756561 | CY54: 87.61948967 | CZ54: 89.6439565 | DB54: 1964 | DC54: ='Compile Data'!F517 -> 80.1161499 | DD54: ='Compile Data'!F518 -> 74.42950439 | DE54: ='Compile Data'!F519 -> 80.88398743 | DF54: ='Compile Data'!F520 -> 68.38579559 | DG54: ='Compile Data'!F521 -> 69.34838867 | DH54: ='Compile Data'!F522 -> 76.94494629 | DI54: ='Compile Data'!F523 -> 81.07524109 | DJ54: ='Compile Data'!F524 -> 80.79139709 | DK54: ='Compile Data'!F525 -> 82.73831177 | DL54: ='Compile Data'!F526 -> 85.57301331 | DM54: ='Compile Data'!F527 -> 90.16566467 | DN54: ='Compile Data'!F528 -> 92.00130463 | DP54: 79.99924946 | DQ54: 77.67747466 | DR54: 80.2044754 | DT54: 75.95385933 | DU54: 72.8727239 | DV54: 80.38747406 | DW54: 87.61957359 | DX54: 89.64393361
A55: 1925-04-30 | B55: =INDIRECT(CONCATENATE("'",B$1,"'!",B$4,(YEAR($A55)-1921)*12+MONTH($A55)+3+IF(ISNUMBER(FIND("PRV",B$6)),1,0)))*IF(AND(B$3>0,TRIM(B$9)="CFS"),Conv_Flags!$C55,1) -> 61.04888153 | C55: =INDIRECT(CONCATENATE("'",C$1,"'!",C$4,(YEAR($A55)-1921)*12+MONTH($A55)+3+IF(ISNUMBER(FIND("PRV",C$6)),1,0)))*IF(AND(C$3>0,TRIM(C$9)="CFS"),Conv_Flags!$C55,1) -> 61.04726028 | D55: =INDIRECT(CONCATENATE("'",D$1,"'!",D$4,(YEAR($A55)-1921)*12+MONTH($A55)+3+IF(ISNUMBER(FIND("PRV",D$6)),1,0)))*IF(AND(D$3>0,TRIM(D$9)="CFS"),Conv_Flags!$C55,1) -> 61.04533386 | E55: =INDIRECT(CONCATENATE("'",E$1,"'!",E$4,(YEAR($A55)-1921)*12+MONTH($A55)+3+IF(ISNUMBER(FIND("PRV",E$6)),1,0)))*IF(AND(E$3>0,TRIM(E$9)="CFS"),Conv_Flags!$C55,1) -> 61.04026794 | F55: =INDIRECT(CONCATENATE("'",F$1,"'!",F$4,(YEAR($A55)-1921)*12+MONTH($A55)+3+IF(ISNUMBER(FIND("PRV",F$6)),1,0)))*IF(AND(F$3>0,TRIM(F$9)="CFS"),Conv_Flags!$C55,1) -> 61.04005051 | J55: 1965 | K55: =B529 -> 92.83468628 | L55: =B530 -> 85.76811981 | M55: =B531 -> 56.03894043 | N55: =B532 -> 54 | O55: =B533 -> 55.77171707 | P55: =B534 -> 64.19212341 | Q55: =B535 -> 55.61667633 | R55: =B536 -> 65.97614288 | S55: =B537 -> 80.51661682 | T55: =B538 -> 78.64533234 | U55: =B539 -> 82.71701813 | V55: =B540 -> 81.26406097 | X55: 71.62530931 | Y55: 72.4886233 | Z55: 71.11178621 | AB55: 72.16043663 | AC55: 55.27021917 | AD55: 66.57538986 | AE55: 80.78575706 | AF55: 80.95432027 | AH55: 1965 | AI55: ='Compile Data'!C529 -> 92.24202728 | AJ55: ='Compile Data'!C530 -> 86.36463165 | AK55: ='Compile Data'!C531 -> 56.23615646 | AL55: ='Compile Data'!C532 -> 54 | AM55: ='Compile Data'!C533 -> 55.87108994 | AN55: ='Compile Data'!C534 -> 64.19890594 | AO55: ='Compile Data'!C535 -> 55.90568542 | AP55: ='Compile Data'!C536 -> 65.89086914 | AQ55: ='Compile Data'!C537 -> 80.34336853 | AR55: ='Compile Data'!C538 -> 80.72805023 | AS55: ='Compile Data'!C539 -> 82.75402832 | AT55: ='Compile Data'!C540 -> 80.65029907 | AV55: 71.61306985 | AW55: 72.63171609 | AX55: 71.265426 | AZ55: 72.21070385 | BA55: 55.36908213 | BB55: 66.58470726 | BC55: 81.11893654 | BD55: 80.43749237 | BF55: 1965 | BG55: ='Compile Data'!D529 -> 91.87132263 | BH55: ='Compile Data'!D530 -> 85.09254456 | BI55: ='Compile Data'!D531 -> 55.98679352 | BJ55: ='Compile Data'!D532 -> 54 | BK55: ='Compile Data'!D533 -> 55.87166214 | BL55: ='Compile Data'!D534 -> 64.19630432 | BM55: ='Compile Data'!D535 -> 55.90681076 | BN55: ='Compile Data'!D536 -> 65.88977051 | BO55: ='Compile Data'!D537 -> 80.41888428 | BP55: ='Compile Data'!D538 -> 78.70479584 | BQ55: ='Compile Data'!D539 -> 82.36811066 | BR55: ='Compile Data'!D540 -> 80.78509521 | BT55: 71.56049093 | BU55: 72.59231567 | BV55: 70.9243412 | BX55: 71.73766518 | BY55: 55.28615189 | BZ55: 66.60294247 | CA55: 80.5692215 | CB55: 80.70597839 | CD55: 1965 | CE55: ='Compile Data'!E529 -> 91.84461975 | CF55: ='Compile Data'!E530 -> 85.08541107 | CG55: ='Compile Data'!E531 -> 56.03630066 | CH55: ='Compile Data'!E532 -> 54 | CI55: ='Compile Data'!E533 -> 55.87289047 | CJ55: ='Compile Data'!E534 -> 64.1995163 | CK55: ='Compile Data'!E535 -> 55.90790176 | CL55: ='Compile Data'!E536 -> 65.88993073 | CM55: ='Compile Data'!E537 -> 80.41885376 | CN55: ='Compile Data'!E538 -> 78.70526886 | CO55: ='Compile Data'!E539 -> 82.36399841 | CP55: ='Compile Data'!E540 -> 80.8155899 | CR55: 71.58469073 | CS55: 72.6120135 | CT55: 70.92835681 | CV55: 71.74158287 | CW55: 55.30306371 | CX55: 66.60405064 | CY55: 80.57592773 | CZ55: 80.80998993 | DB55: 1965 | DC55: ='Compile Data'!F529 -> 91.8444519 | DD55: ='Compile Data'!F530 -> 85.08604431 | DE55: ='Compile Data'!F531 -> 56.03643417 | DF55: ='Compile Data'!F532 -> 54 | DG55: ='Compile Data'!F533 -> 55.87288666 | DH55: ='Compile Data'!F534 -> 64.19947815 | DI55: ='Compile Data'!F535 -> 55.90787125 | DJ55: ='Compile Data'!F536 -> 65.88993073 | DK55: ='Compile Data'!F537 -> 80.41886139 | DL55: ='Compile Data'!F538 -> 78.70534515 | DM55: ='Compile Data'!F539 -> 82.36342621 | DN55: ='Compile Data'!F540 -> 80.81634521 | DP55: 71.58471012 | DQ55: 72.61223793 | DR55: 70.92842293 | DT55: 71.7417326 | DU55: 55.30310694 | DV55: 66.60403538 | DW55: 80.57599449 | DX55: 80.81021881
A56: 1925-05-31 | B56: =INDIRECT(CONCATENATE("'",B$1,"'!",B$4,(YEAR($A56)-1921)*12+MONTH($A56)+3+IF(ISNUMBER(FIND("PRV",B$6)),1,0)))*IF(AND(B$3>0,TRIM(B$9)="CFS"),Conv_Flags!$C56,1) -> 69.41654205 | C56: =INDIRECT(CONCATENATE("'",C$1,"'!",C$4,(YEAR($A56)-1921)*12+MONTH($A56)+3+IF(ISNUMBER(FIND("PRV",C$6)),1,0)))*IF(AND(C$3>0,TRIM(C$9)="CFS"),Conv_Flags!$C56,1) -> 69.41713715 | D56: =INDIRECT(CONCATENATE("'",D$1,"'!",D$4,(YEAR($A56)-1921)*12+MONTH($A56)+3+IF(ISNUMBER(FIND("PRV",D$6)),1,0)))*IF(AND(D$3>0,TRIM(D$9)="CFS"),Conv_Flags!$C56,1) -> 69.41514587 | E56: =INDIRECT(CONCATENATE("'",E$1,"'!",E$4,(YEAR($A56)-1921)*12+MONTH($A56)+3+IF(ISNUMBER(FIND("PRV",E$6)),1,0)))*IF(AND(E$3>0,TRIM(E$9)="CFS"),Conv_Flags!$C56,1) -> 69.45848846 | F56: =INDIRECT(CONCATENATE("'",F$1,"'!",F$4,(YEAR($A56)-1921)*12+MONTH($A56)+3+IF(ISNUMBER(FIND("PRV",F$6)),1,0)))*IF(AND(F$3>0,TRIM(F$9)="CFS"),Conv_Flags!$C56,1) -> 69.41495514 | J56: 1966 | K56: =B541 -> 80.51356506 | L56: =B542 -> 81.08533478 | M56: =B543 -> 79.2051239 | N56: =B544 -> 60.95672989 | O56: =B545 -> 59.1747551 | P56: =B546 -> 61.98187637 | Q56: =B547 -> 69.44013214 | R56: =B548 -> 74.97485352 | S56: =B549 -> 81.91798401 | T56: =B550 -> 82.21570587 | U56: =B551 -> 86.13353729 | V56: =B552 -> 91.79708862 | X56: 75.88254007 | Y56: 74.87377421 | Z56: 75.78305721 | AB56: 75.44018841 | AC56: 66.4455363 | AD56: 72.07871151 | AE56: 85.51607895 | AF56: 90.72029368 | AH56: 1966 | AI56: ='Compile Data'!C541 -> 80.71281433 | AJ56: ='Compile Data'!C542 -> 79.94936371 | AK56: ='Compile Data'!C543 -> 78.35236359 | AL56: ='Compile Data'!C544 -> 61.87168884 | AM56: ='Compile Data'!C545 -> 60.22315598 | AN56: ='Compile Data'!C546 -> 63.7565918 | AO56: ='Compile Data'!C547 -> 69.31131744 | AP56: ='Compile Data'!C548 -> 74.44795227 | AQ56: ='Compile Data'!C549 -> 81.88729095 | AR56: ='Compile Data'!C550 -> 81.98491669 | AS56: ='Compile Data'!C551 -> 86.00823212 | AT56: ='Compile Data'!C552 -> 90.99395752 | AV56: 76.22972902 | AW56: 75.07177671 | AX56: 75.7916371 | AZ56: 75.22155762 | BA56: 66.81573613 | BB56: 72.35078812 | BC56: 85.21859932 | BD56: 90.52696482 | BF56: 1966 | BG56: ='Compile Data'!D541 -> 80.407341 | BH56: ='Compile Data'!D542 -> 80.92549896 | BI56: ='Compile Data'!D543 -> 79.25161743 | BJ56: ='Compile Data'!D544 -> 62.02458191 | BK56: ='Compile Data'!D545 -> 60.2289772 | BL56: ='Compile Data'!D546 -> 63.75849533 | BM56: ='Compile Data'!D547 -> 69.46252441 | BN56: ='Compile Data'!D548 -> 74.56585693 | BO56: ='Compile Data'!D549 -> 81.90280151 | BP56: ='Compile Data'!D550 -> 81.93753815 | BQ56: ='Compile Data'!D551 -> 85.9646225 | BR56: ='Compile Data'!D552 -> 90.97821045 | BT56: 76.31740888 | BU56: 75.14838727 | BV56: 75.95067215 | BX56: 75.65225983 | BY56: 67.16839218 | BZ56: 72.42241955 | CA56: 85.19579315 | CB56: 90.57026418 | CD56: 1966 | CE56: ='Compile Data'!E541 -> 80.41202545 | CF56: ='Compile Data'!E542 -> 81.20235443 | CG56: ='Compile Data'!E543 -> 79.22795868 | CH56: ='Compile Data'!E544 -> 61.96992874 | CI56: ='Compile Data'!E545 -> 60.23083496 | CJ56: ='Compile Data'!E546 -> 63.7212677 | CK56: ='Compile Data'!E547 -> 69.4330368 | CL56: ='Compile Data'!E548 -> 74.55344391 | CM56: ='Compile Data'!E549 -> 81.90023041 | CN56: ='Compile Data'!E550 -> 81.95835114 | CO56: ='Compile Data'!E551 -> 85.97120667 | CP56: ='Compile Data'!E552 -> 91.12792969 | CR56: 76.33240668 | CS56: 75.16172345 | CT56: 75.97571405 | CV56: 75.70306683 | CW56: 67.14290746 | CX56: 72.40199471 | CY56: 85.23942947 | CZ56: 90.58100891 | DB56: 1966 | DC56: ='Compile Data'!F541 -> 80.4119873 | DD56: ='Compile Data'!F542 -> 81.20232391 | DE56: ='Compile Data'!F543 -> 79.22806549 | DF56: ='Compile Data'!F544 -> 61.96988678 | DG56: ='Compile Data'!F545 -> 60.23333359 | DH56: ='Compile Data'!F546 -> 63.46793365 | DI56: ='Compile Data'!F547 -> 69.46279907 | DJ56: ='Compile Data'!F548 -> 74.64093781 | DK56: ='Compile Data'!F549 -> 81.90796661 | DL56: ='Compile Data'!F550 -> 81.96582794 | DM56: ='Compile Data'!F551 -> 85.97747803 | DN56: ='Compile Data'!F552 -> 90.94920349 | DP56: 76.34569836 | DQ56: 75.17252827 | DR56: 75.95147864 | DT56: 75.70306587 | DU56: 67.14376195 | DV56: 72.36990929 | DW56: 85.20011902 | DX56: 90.46868896
